Workbook

Sheet PORTADA

Sheet INDICE
M1: =INDEX('ITCER GLOBAL'!B6:B10030,COUNT('ITCER GLOBAL'!C:C)) -> Abril | N1: =YEAR(TODAY()) -> 2019
M3: 2017
B4: Secretaría Ejecutiva
B5: Consejo Monetario Centroamericano
A10: ÍNDICE DEL TIPO DE CAMBIO EFECTIVO REAL (ITCER)
B11: Periodo de referencia Diciembre 2000=100
B12: Ponderaciones móviles
B15: REPORTE CORRESPONDIENTE AL MES DE | I15: =CONCATENATE( INDEX('ITCER GLOBAL'!B6:B10030,COUNT('ITCER GLOBAL'!C:C)), " 2019") -> Abril 2019
B19: CONTENIDO:
D21: Índices de Precios
D23: Tipos de cambio (moneda nacional por US$)
D25: ITCER (incluye efecto tipo de cambio y efecto precio)
E26: Global
E28: Resto del Mundo
E30: Región CAPARD
E32: Bilateral con USA
D34: Gráficos
E35: ITCER Global, Resto del Mundo, CAPARD y Bilateral
E36: Efecto Precio y Efecto Tipo de Cambio
D38: Metodología
C40: Nota: Las ponderaciones del aporte de los socios comerciales al total del comercio de cada país para 2019, están con base a la última información disponible de 2017, provenientes de la biblioteca electrónica del Fondo Monetario Internacional; por lo tanto, los datos estimados del ITCER de enero de 2019 están sujetos a cambios.
B42: ADVERTENCIA El Consejo Monetario Centroamericano y su Secretaría Ejecutiva autorizan la reproducción total de los gráficos y cifras de esta publicación, siempre que se mencione la fuente. No obstante, no asumen responsabilidad legal alguna o de cualquier otra índole, por la manipulación, interpretación personal y uso de dicha información. Derechos Reservados © 2019

Sheet PRECIOS
A2: Secretaría Ejecutiva
A3: Consejo Monetario Centroamericano
A4: ÍNDICE DE PRECIOS AL CONSUMIDOR (NIVEL)
C5: REGIÓN CAPARD 1/ | J5: RESTO DEL MUNDO
A6: Año | B6: MES | C6: COSTA RICA | D6: EL SALVADOR | E6: GUATEMALA | F6: HONDURAS | G6: NICARAGUA | H6: REPÚBLICA DOMINICANA | I6: PANAMÁ | J6: BRASIL | K6: CANADÁ | L6: CHINA | M6: COLOMBIA | N6: COREA DEL SUR | O6: HAITÍ | P6: JAPÓN | Q6: MÉXICO | R6: ESTADOS UNIDOS | S6: ZONA EURO
B7: periodo base | C7: Junio 2015 | D7: Diciembre 2009 | E7: Diciembre 2010 | F7: Diciembre 1999 | G7: 2006 | H7: Diciembre 2010 | I7: 2013 | J7: Diciembre 1993 | K7: 2002 | L7: Mes anterior =100 (total) | M7: Diciembre 2008 | N7: 2010 | O7: 2004 | P7: 2010 | Q7: 2º Q de diciembre 2010 | R7: 1982-84 | S7: 2015
A8: Año | B8: MES | C8: 2006=100 | D8: 2009=100 | E8: 2010=100 | F8: 1999=100 | G8: 2006=100 | H8: 2010=100 | I8: 2015=100 | K8: 2002=100 | P8: 2005=100 | Q8: 2010=100 | R8: 1982-84=100 | S8: 2015=100
A9: 1995 | B9: Enero | C9: 15.69875 | D9: 56.55 | E9: 34.05054577 | F9: 44.74710931 | G9: 35.13 | H9: 21.86160887 | I9: 62.10854735 | J9: 1033.712222 | K9: 86.6 | L9: 71.37154892 | M9: 26.63043 | N9: 53.601 | O9: 1 | P9: 97.8 | Q9: 20.46862019 | R9: 150.3 | S9: 69.42697674
B10: Febrero | C10: 15.9312 | D10: 57.17 | E10: 33.93804936 | F10: 46.96034617 | G10: 35.42 | H10: 21.94722629 | I10: 62.10854735 | J10: 1044.256087 | K10: 87 | L10: 72.02021203 | M10: 27.56985 | N10: 53.82 | O10: 1 | P10: 97.5 | Q10: 21.33613293 | R10: 150.9 | S10: 69.78632963
B11: Marzo | C11: 16.06295866 | D11: 57.81 | E11: 34.10091764 | F11: 47.62006101 | G11: 35.62 | H11: 22.12669358 | I11: 62.28317307 | J11: 1060.442056 | K11: 87.2 | L11: 72.2219584 | M11: 28.29186 | N11: 54.368 | O11: 1 | P11: 97.4 | Q11: 22.59392133 | R11: 151.4 | S11: 70.00194135
B12: Abril | C12: 16.15401866 | D12: 58.17 | E12: 34.36274865 | F12: 48.84017876 | G12: 35.61 | H12: 22.09588072 | I12: 62.39959021 | J12: 1086.210798 | K12: 87.5 | L12: 73.51830541 | M12: 28.92475 | N12: 54.696 | O12: 1 | P12: 97.7 | Q12: 24.3942825 | R12: 151.9 | S12: 70.14568251
B13: Mayo | C13: 16.29530865 | D13: 58.58 | E13: 34.86963994 | F13: 49.72689225 | G13: 35.86 | H13: 22.1899658 | I13: 62.57421593 | J13: 1115.212627 | K13: 87.7 | L13: 74.12721777 | M13: 29.40409 | N13: 54.806 | O13: 1 | P13: 97.9 | Q13: 25.4138631 | R13: 152.2 | S13: 70.21755308
B14: Junio | C14: 16.53863863 | D14: 59.09 | E14: 35.31005252 | F14: 50.18798326 | G14: 36.52 | H14: 22.33015256 | I14: 62.69063308 | J14: 1140.416432 | K14: 87.7 | L14: 73.51194546 | M14: 29.75967 | N14: 54.643 | O14: 1 | P14: 97.8 | Q14: 26.22043406 | R14: 152.5 | S14: 70.43316481
B15: Julio | C15: 16.8180686 | D15: 60.63 | E15: 35.3844687 | F15: 50.86188551 | G15: 36.96 | H15: 22.47763092 | I15: 62.74884165 | J15: 1167.33026 | K15: 87.9 | L15: 72.89923444 | M15: 29.99151 | N15: 54.806 | O15: 1 | P15: 97.3 | Q15: 26.75496405 | R15: 152.5 | S15: 70.43316481
B16: Agosto | C16: 17.00488859 | D16: 61.05 | E16: 35.59962781 | F16: 51.50031922 | G16: 36.37 | H16: 22.73071979 | I16: 62.8652588 | J16: 1178.886829 | K16: 87.7 | L16: 74.11832969 | M16: 30.18243 | N16: 55.135 | O16: 1 | P16: 97.4 | Q16: 27.19875002 | R16: 152.9 | S16: 70.50503539
B17: Septiembre | C17: 17.32042856 | D17: 61.86 | E17: 35.8000026 | F17: 52.59275023 | G17: 36.75 | H17: 23.08259798 | I17: 62.80705022 | J17: 1190.557809 | K17: 87.8 | L17: 76.09700979 | M17: 30.43686 | N17: 55.628 | O17: 1 | P17: 98 | Q17: 20.85564 | R17: 153.2 | S17: 70.09217
B18: Octubre | C18: 17.83691852 | D18: 62.14 | E18: 36.30143568 | F18: 53.57168192 | G18: 38.16 | H18: 23.24983421 | I18: 62.69063308 | J18: 1207.344674 | K18: 87.7 | L18: 76.14366189 | M18: 30.70715 | N18: 55.355 | O18: 1 | P18: 97.7 | Q18: 21.28476 | R18: 153.7 | S18: 70.09217
B19: Noviembre | C19: 18.25921848 | D19: 62.41 | E19: 36.77819652 | F19: 54.31652125 | G19: 39.25 | H19: 23.46340734 | I19: 62.69063308 | J19: 1225.092641 | K19: 88 | L19: 76.06773003 | M19: 30.95091 | N19: 55.245 | O19: 1 | P19: 97.4 | Q19: 21.80961 | R19: 153.6 | S19: 70.16348
B20: Diciembre | C20: 18.46957846 | D20: 62.48 | E20: 36.96088329 | F20: 55.15357878 | G20: 38.88 | H20: 23.51444849 | I20: 62.92346737 | J20: 1244.204086 | K20: 87.8 | L20: 76.37469936 | M20: 31.23709 | N20: 55.628 | O20: 1 | P20: 97.4 | Q20: 22.52017 | R20: 153.5 | S20: 70.30608
A21: 1996 | B21: Enero | C21: 18.70348845 | D21: 63.45 | E21: 37.37381278 | F21: 55.43023338 | G21: 39.06 | H21: 23.49633711 | I21: 62.92346737 | J21: 1260.876421 | K21: 88 | L21: 77.79498827 | M21: 32.02244 | N21: 56.176 | O21: 1 | P21: 97.3 | Q21: 23.32975 | R21: 154.4 | S21: 70.97
B22: Febrero | C22: 18.89501843 | D22: 63.6 | E22: 37.61346349 | F22: 57.00503653 | G22: 39.46 | H22: 23.52597391 | I22: 62.92346737 | J22: 1273.863448 | K22: 88.1 | L22: 78.71809177 | M22: 33.30729 | N22: 56.397 | O22: 1 | P22: 97.1 | Q22: 23.87426 | R22: 154.9 | S22: 71.29
B23: Marzo | C23: 19.00019842 | D23: 63.91 | E23: 38.0141377 | F23: 57.88465631 | G23: 39.78 | H23: 23.5591389 | I23: 63.09809309 | J23: 1278.32197 | K23: 88.5 | L23: 79.29971029 | M23: 34.00939 | N23: 56.78 | O23: 1 | P23: 97.3 | Q23: 24.39983 | R23: 155.7 | S23: 71.54
B24: Abril | C24: 19.14462841 | D24: 64.15 | E24: 38.46784954 | F24: 59.07639923 | G24: 40.11 | H24: 23.58807006 | I24: 63.21451023 | J24: 1294.428827 | K24: 88.7 | L24: 80.64958161 | M24: 34.68176 | N24: 57.163 | O24: 1 | P24: 97.9 | Q24: 25.09345 | R24: 156.3 | S24: 71.66
B25: Mayo | C25: 19.46487838 | D25: 64.63 | E25: 38.710684 | F25: 60.31070441 | G25: 40.8 | H25: 23.64169856 | I25: 63.09809309 | J25: 1310.220858 | K25: 89 | L25: 80.72453994 | M25: 35.22039 | N25: 57.492 | O25: 1 | P25: 98.1 | Q25: 25.55084 | R25: 156.6 | S25: 71.83
B26: Junio | C26: 19.73018836 | D26: 65.69 | E26: 38.95960347 | F26: 61.82875789 | G26: 40.95 | H26: 23.72284694 | I26: 63.03988451 | J26: 1325.812487 | K26: 89 | L26: 79.83397346 | M26: 35.62416 | N26: 57.492 | O26: 1 | P26: 97.8 | Q26: 25.9669 | R26: 156.7 | S26: 71.84
B27: Julio | C27: 19.96095834 | D27: 65.69 | E27: 39.4891913 | F27: 63.24040576 | G27: 41.06 | H27: 23.78376703 | I27: 63.21451023 | J27: 1340.529005 | K27: 89 | L27: 78.94987052 | M27: 36.16228 | N27: 57.766 | O27: 1 | P27: 97.7 | Q27: 26.33603 | R27: 157 | S27: 71.84
B28: Agosto | C28: 20.15248833 | D28: 67.66 | E28: 39.880694 | F28: 65.01383273 | G28: 40.74 | H28: 23.8221067 | I28: 63.33092738 | J28: 1346.427333 | K28: 89 | L28: 80.1219147 | M28: 36.5613 | N28: 58.039 | O28: 1 | P28: 97.6 | Q28: 26.68607 | R28: 157.3 | S28: 71.8
B29: Septiembre | C29: 20.33615831 | D29: 67.25 | E29: 40.01359458 | F29: 66.12045116 | G29: 41.16 | H29: 23.95217932 | I29: 63.5055531 | J29: 1348.446974 | K29: 89.1 | L29: 81.72818888 | M29: 36.99661 | N29: 58.15 | O29: 1 | P29: 98 | Q29: 27.11275 | R29: 157.8 | S29: 71.93
B30: Octubre | C30: 20.59989829 | D30: 67.28 | E30: 40.16296013 | F30: 67.09228914 | G30: 42.22 | H30: 24.00674866 | I30: 63.79659596 | J30: 1352.492315 | K30: 89.3 | L30: 81.47371854 | M30: 37.42344 | N30: 58.15 | O30: 1 | P30: 98.2 | Q30: 27.45117 | R30: 158.3 | S30: 72
B31: Noviembre | C31: 20.81026827 | D31: 66.89 | E31: 40.61907221 | F31: 68.41881251 | G31: 42.82 | H31: 24.16410596 | I31: 63.85480454 | J31: 1356.82029 | K31: 89.7 | L31: 81.31640285 | M31: 37.72398 | N31: 58.15 | O31: 1 | P31: 97.9 | Q31: 27.86708 | R31: 158.6 | S31: 72.01
B32: Diciembre | C32: 21.03475825 | D32: 67.08 | E32: 40.97274387 | F32: 69.17783926 | G32: 43.59 | H32: 24.44306822 | I32: 64.37868169 | J32: 1363.197346 | K32: 89.7 | L32: 81.72092822 | M32: 37.99651 | N32: 58.368 | O32: 1 | P32: 98 | Q32: 28.75934 | R32: 158.6 | S32: 72.19
A33: 1997 | B33: Enero | C33: 21.46803822 | D33: 67.61 | E33: 41.4114269 | F33: 70.58948712 | G33: 43.49 | H33: 25.12918365 | I33: 64.20405597 | J33: 1379.283074 | K33: 89.9 | L33: 82.38489277 | M33: 38.62612 | N33: 58.808 | O33: 1 | P33: 97.9 | Q33: 29.49889 | R33: 159.1 | S33: 72.42
B34: Febrero | C34: 21.6030482 | D34: 68.54 | E34: 42.37597194 | F34: 72.29907072 | G34: 43.48 | H34: 25.09790036 | I34: 64.20405597 | J34: 1386.17949 | K34: 90.1 | L34: 83.12630493 | M34: 39.83103 | N34: 59.136 | O34: 1 | P34: 97.7 | Q34: 29.9946 | R34: 159.6 | S34: 72.59
B35: Marzo | C35: 21.83853818 | D35: 68.67 | E35: 42.38804107 | F35: 72.84528623 | G35: 43.45 | H35: 25.13294706 | I35: 64.1458474 | J35: 1393.249005 | K35: 90.2 | L35: 82.47169863 | M35: 40.45016 | N35: 59.355 | O35: 1 | P35: 97.8 | Q35: 30.36789 | R35: 160 | S35: 72.65
B36: Abril | C36: 22.13052816 | D36: 68.71 | E36: 42.36588355 | F36: 73.2709087 | G36: 43.6 | H36: 25.35028359 | I36: 63.97122168 | J36: 1405.509596 | K36: 90.2 | L36: 83.23036821 | M36: 41.10718 | N36: 59.629 | O36: 1 | P36: 99.8 | Q36: 30.69597 | R36: 160.2 | S36: 72.6
B37: Mayo | C37: 22.24355815 | D37: 68.56 | E37: 42.43266606 | F37: 74.19309073 | G37: 43.93 | H37: 25.39756134 | I37: 64.1458474 | J37: 1411.272186 | K37: 90.3 | L37: 82.98482722 | M37: 41.77435 | N37: 59.684 | O37: 1 | P37: 100 | Q37: 30.97612 | R37: 160.1 | S37: 72.8
B38: Junio | C38: 22.41781814 | D38: 68.82 | E38: 42.45385438 | F38: 75.15074129 | G38: 44.83 | H38: 25.50787609 | I38: 64.20405597 | J38: 1418.893055 | K38: 90.5 | L38: 82.06932427 | M38: 42.27692 | N38: 59.793 | O38: 1 | P38: 100 | Q38: 31.25096 | R38: 160.3 | S38: 72.83
B39: Julio | C39: 22.61090812 | D39: 69.36 | E39: 42.64149403 | F39: 76.20061006 | G39: 45.59 | H39: 25.99194382 | I39: 64.32047312 | J39: 1422.01462 | K39: 90.5 | L39: 81.08151736 | M39: 42.6301 | N39: 59.903 | O39: 1 | P39: 99.6 | Q39: 31.52321 | R39: 160.5 | S39: 72.9
B40: Agosto | C40: 22.8620881 | D40: 68.9 | E40: 43.09019949 | F40: 77.14407321 | G40: 45.33 | H40: 26.15188846 | I40: 64.32047312 | J40: 1421.730217 | K40: 90.6 | L40: 81.6442308 | M40: 43.1199 | N40: 60.341 | O40: 1 | P40: 99.7 | Q40: 31.8035 | R40: 160.8 | S40: 73.02
B41: Septiembre | C41: 22.77103811 | D41: 68.67 | E41: 43.34719806 | F41: 77.38525928 | G41: 44.95 | H41: 26.31700777 | I41: 64.37868169 | J41: 1422.583255 | K41: 90.6 | L41: 83.19929595 | M41: 43.66319 | N41: 60.617 | O41: 1 | P41: 100.4 | Q41: 32.19961 | R41: 161.2 | S41: 73.07
B42: Octubre | C42: 22.8102881 | D42: 68.45 | E42: 43.56896964 | F42: 77.17954175 | G42: 45.18 | H42: 26.40191955 | I42: 64.08763883 | J42: 1425.855197 | K42: 90.6 | L42: 82.69582423 | M42: 44.08496 | N42: 60.617 | O42: 1 | P42: 100.7 | Q42: 32.45694 | R42: 161.6 | S42: 73.09
B43: Noviembre | C43: 23.19333807 | D43: 68.37 | E43: 43.730078 | F43: 77.77541321 | G43: 46.49 | H43: 26.44378741 | I43: 64.02943025 | J43: 1428.279151 | K43: 90.5 | L43: 82.21088371 | M43: 44.44339 | N43: 60.67 | O43: 1 | P43: 100 | Q43: 32.82004 | R43: 161.5 | S43: 73.18
B44: Diciembre | C44: 23.39113806 | D44: 68.38 | E44: 43.89234306 | F44: 77.9456622 | G44: 46.75 | H44: 26.4880074 | I44: 64.08763883 | J44: 1434.420751 | K44: 90.4 | L44: 82.04781258 | M44: 44.71589 | N44: 62.205 | O44: 1 | P44: 99.8 | Q44: 33.27987 | R44: 161.3 | S44: 73.26
A45: 1998 | B45: Enero | C45: 23.76319802 | D45: 69.22 | E45: 44.42928463 | F45: 78.59118961 | G45: 47.04 | H45: 26.51270473 | I45: 64.32047312 | J45: 1444.605138 | K45: 90.9 | L45: 82.63204742 | M45: 45.51778 | N45: 63.685 | O45: 1 | P45: 99.7 | Q45: 34.00393 | R45: 161.6 | S45: 73.2
B46: Febrero | C46: 24.00338801 | D46: 69.4 | E46: 44.68475321 | F46: 80.54195928 | G46: 47.69 | H46: 26.49671027 | I46: 64.1458474 | J46: 1451.250322 | K46: 91 | L46: 83.04317877 | M46: 47.01282 | N46: 64.782 | O46: 1 | P46: 99.6 | Q46: 34.59924 | R46: 161.9 | S46: 73.4
B47: Marzo | C47: 24.25613798 | D47: 69.7 | E47: 44.97614957 | F47: 81.9039512 | G47: 48.2 | H47: 26.45319592 | I47: 64.26226455 | J47: 1456.184573 | K47: 91.1 | L47: 83.04900057 | M47: 48.23588 | N47: 64.672 | O47: 1 | P47: 100 | Q47: 35.00453 | R47: 162.2 | S47: 73.46
B48: Abril | C48: 24.45080797 | D48: 70.56 | E48: 45.30623324 | F48: 83.32269277 | G48: 49.2 | H48: 26.42191263 | I48: 64.20405597 | J48: 1459.679416 | K48: 91 | L48: 82.98067654 | M48: 49.63681 | N48: 64.891 | O48: 1 | P48: 100.2 | Q48: 35.33204 | R48: 162.5 | S48: 73.61
B49: Mayo | C49: 24.63604795 | D49: 70.93 | E49: 45.53863161 | F49: 84.31581187 | G49: 50.19 | H49: 26.53857813 | I49: 64.32047312 | J49: 1466.977813 | K49: 91.3 | L49: 82.15497936 | M49: 50.41245 | N49: 64.562 | O49: 1 | P49: 100.5 | Q49: 35.61348 | R49: 162.8 | S49: 73.76
B50: Junio | C50: 24.83385794 | D50: 71 | E50: 45.6064452 | F50: 85.79839682 | G50: 51.15 | H50: 26.67782405 | I50: 64.49509884 | J50: 1467.271209 | K50: 91.4 | L50: 81.00242292 | M50: 51.02799 | N50: 64.288 | O50: 1 | P50: 100.1 | Q50: 36.03442 | R50: 163 | S50: 73.8
B51: Julio | C51: 25.2561479 | D51: 71.31 | E51: 45.74203481 | F51: 87.49379301 | G51: 50.69 | H51: 26.84670676 | I51: 64.55330741 | J51: 1465.510483 | K51: 91.4 | L51: 79.94637614 | M51: 51.27197 | N51: 64.288 | O51: 1 | P51: 99.5 | Q51: 36.38188 | R51: 163.2 | S51: 73.83
B52: Agosto | C52: 25.76635786 | D52: 70.44 | E52: 45.80792591 | F52: 87.62147975 | G52: 50.43 | H52: 26.90833249 | I52: 64.55330741 | J52: 1458.03638 | K52: 91.4 | L52: 80.50121146 | M52: 51.28861 | N52: 64.507 | O52: 1 | P52: 99.4 | Q52: 36.73163 | R52: 163.4 | S52: 73.85
B53: Septiembre | C53: 25.66588787 | D53: 69.71 | E53: 45.72834341 | F53: 87.88394694 | G53: 50.57 | H53: 27.08403637 | I53: 64.90255885 | J53: 1454.8287 | K53: 91.2 | L53: 81.95130695 | M53: 51.43735 | N53: 64.782 | O53: 1 | P53: 100.2 | Q53: 37.32738 | R53: 163.6 | S53: 73.79
B54: Octubre | C54: 25.74594786 | D54: 69.76 | E54: 45.73266565 | F54: 88.37341278 | G54: 51.77 | H54: 27.67959492 | I54: 65.01897599 | J54: 1455.119665 | K54: 91.6 | L54: 81.78616978 | M54: 51.62089 | N54: 65 | O54: 1 | P54: 100.9 | Q54: 37.86227 | R54: 164 | S54: 73.77
B55: Noviembre | C55: 26.08504783 | D55: 71.3 | E55: 46.94461143 | F55: 89.48712492 | G55: 54.83 | H55: 28.1831853 | I55: 65.01897599 | J55: 1453.373522 | K55: 91.6 | L55: 81.224353 | M55: 51.71247 | N55: 64.782 | O55: 1 | P55: 100.8 | Q55: 38.53279 | R55: 164 | S55: 73.77
B56: Diciembre | C56: 26.28127782 | D56: 71.26 | E56: 47.17430384 | F56: 90.13974605 | G56: 55.38 | H56: 28.55929041 | I56: 64.96076742 | J56: 1458.169654 | K56: 91.3 | L56: 81.2273343 | M56: 52.18481 | N56: 64.672 | O56: 1 | P56: 100.4 | Q56: 39.47297 | R56: 163.9 | S56: 73.81
A57: 1999 | B57: Enero | C57: 26.75380778 | D57: 71.39 | E57: 47.22455595 | F57: 91.68617436 | G57: 55.2 | H57: 28.40828386 | I57: 65.01897599 | J57: 1468.376842 | K57: 91.5 | L57: 81.6404629 | M57: 53.33761 | N57: 64.617 | O57: 1 | P57: 99.9 | Q57: 40.46977 | R57: 164.3 | S57: 73.76
B58: Febrero | C58: 26.94847776 | D58: 71.22 | E58: 46.99353448 | F58: 92.47357594 | G58: 55 | H58: 28.33158149 | I58: 65.01897599 | J58: 1483.794799 | K58: 91.6 | L58: 81.96361738 | M58: 54.24344 | N58: 64.891 | O58: 1 | P58: 99.5 | Q58: 41.01364 | R58: 164.5 | S58: 73.94
B59: Marzo | C59: 26.84800777 | D59: 71.07 | E59: 46.77229687 | F59: 92.75023055 | G59: 53.95 | H59: 28.47930457 | I59: 65.13539314 | J59: 1500.116542 | K59: 92 | L59: 81.55411831 | M59: 54.75222 | N59: 65 | O59: 1 | P59: 99.6 | Q59: 41.39468 | R59: 165 | S59: 74.15
B60: Abril | C60: 26.88096777 | D60: 70.67 | E60: 46.87994152 | F60: 93.0694474 | G60: 54.15 | H60: 28.5531661 | I60: 65.19360171 | J60: 1508.517194 | K60: 92.5 | L60: 81.15510156 | M60: 55.18137 | N60: 65.164 | O60: 1 | P60: 100.1 | Q60: 41.77458 | R60: 166.2 | S60: 74.4
B61: Mayo | C61: 27.09918775 | D61: 70.2 | E61: 47.23655945 | F61: 93.80009931 | G61: 54.88 | H61: 28.53896196 | I61: 65.19360171 | J61: 1513.042746 | K61: 92.7 | L61: 80.3475698 | M61: 55.44543 | N61: 65.055 | O61: 1 | P61: 100.1 | Q61: 42.02588 | R61: 166.2 | S61: 74.45
B62: Junio | C62: 27.47595772 | D62: 70.15 | E62: 47.53216571 | F62: 94.92090516 | G62: 55.31 | H62: 28.3827164 | I62: 65.31001886 | J62: 1515.917527 | K62: 92.9 | L62: 79.3013725 | M62: 55.60033 | N62: 64.672 | O62: 1 | P62: 99.8 | Q62: 42.30201 | R62: 166.2 | S62: 74.45
B63: Julio | C63: 27.54502771 | D63: 70.55 | E63: 48.12826068 | F63: 95.65155707 | G63: 55.76 | H63: 28.31169569 | I63: 65.42643601 | J63: 1532.441028 | K63: 93.1 | L63: 78.82712633 | M63: 55.77382 | N63: 64.452 | O63: 1 | P63: 99.4 | Q63: 42.58158 | R63: 166.7 | S63: 74.58
B64: Agosto | C64: 27.7082977 | D64: 70.54 | E64: 48.57224193 | F64: 96.43895864 | G64: 56.66 | H64: 28.39123889 | I64: 65.48464458 | J64: 1541.022698 | K64: 93.3 | L64: 79.45469612 | M64: 56.04996 | N64: 65.111 | O64: 1 | P64: 99.7 | Q64: 42.82125 | R64: 167.1 | S64: 74.67
B65: Septiembre | C65: 27.89039768 | D65: 70.72 | E65: 48.83418516 | F65: 97.14123572 | G65: 57.41 | H65: 28.50487202 | I65: 65.48464458 | J65: 1545.799868 | K65: 93.6 | L65: 81.29569637 | M65: 56.23539 | N65: 65.275 | O65: 1 | P65: 100 | Q65: 43.23502 | R65: 167.9 | S65: 74.71
B66: Octubre | C66: 28.30013765 | D66: 71.12 | E66: 49.19561452 | F66: 98.02794921 | G66: 58.45 | H66: 29.50484361 | I66: 65.54285315 | J66: 1564.194887 | K66: 93.7 | L66: 81.29545278 | M66: 56.43202 | N66: 65.768 | O66: 1 | P66: 100.2 | Q66: 43.50885 | R66: 168.2 | S66: 74.74
B67: Noviembre | C67: 28.56544763 | D67: 70.8 | E67: 49.36198198 | F67: 98.96431865 | G67: 59.06 | H67: 29.92812704 | I67: 65.6592703 | J67: 1579.054738 | K67: 93.6 | L67: 80.49333333 | M67: 56.70225 | N67: 65.658 | O67: 1 | P67: 99.6 | Q67: 43.89577 | R67: 168.3 | S67: 74.84
B68: Diciembre | C68: 28.93907759 | D68: 70.53 | E68: 49.49341809 | F68: 100 | G68: 59.37 | H68: 30.01619272 | I68: 65.95031316 | J68: 1588.529067 | K68: 93.7 | L68: 80.4150611 | M68: 57.00236 | N68: 65.548 | O68: 1 | P68: 99.3 | Q68: 44.33552 | R68: 168.3 | S68: 75.09
A69: 2000 | B69: Enero | C69: 29.45399755 | D69: 71 | E69: 49.71441799 | F69: 100.4965596 | G69: 59.89 | H69: 30.10994006 | I69: 65.94868332 | J69: 1598.377947 | K69: 93.5 | L69: 81.47718135 | M69: 57.73729 | N69: 65.839 | O69: 1 | P69: 99.2 | Q69: 44.93083 | R69: 168.8 | S69: 75.13
B70: Febrero | C70: 29.88100752 | D70: 71.35 | E70: 50.1046949 | F70: 102.014613 | G70: 61.16 | H70: 30.1241442 | I70: 65.89210459 | J70: 1600.455838 | K70: 94.1 | L70: 82.53736263 | M70: 59.06643 | N70: 66.04 | O70: 1 | P70: 98.9 | Q70: 45.32938 | R70: 169.8 | S70: 75.37
B71: Marzo | C71: 30.0835175 | D71: 71.41 | E71: 50.64410719 | F71: 102.9793573 | G71: 61.76 | H71: 30.10994006 | I71: 66.2995646 | J71: 1603.976841 | K71: 94.8 | L71: 81.39101076 | M71: 60.07697 | N71: 66.372 | O71: 1 | P71: 99.1 | Q71: 45.58068 | R71: 171.2 | S71: 75.6
B72: Abril | C72: 29.97833751 | D72: 71.47 | E72: 51.12998922 | F72: 104.3 | G72: 62.13 | H72: 30.12982586 | I72: 66.24135603 | J72: 1610.713544 | K72: 94.5 | L72: 80.91163632 | M72: 60.67541 | N72: 66.106 | O72: 1 | P72: 99.3 | Q72: 45.84002 | R72: 171.3 | S72: 75.67
B73: Mayo | C73: 29.95478751 | D73: 71.9 | E73: 50.71524087 | F73: 105.3 | G73: 62.62 | H73: 30.15255248 | I73: 66.2995646 | J73: 1610.874615 | K73: 94.9 | L73: 80.42791697 | M73: 60.9917 | N73: 65.773 | O73: 1 | P73: 99.4 | Q73: 46.01138 | R73: 171.5 | S73: 75.76
B74: Junio | C74: 30.35981748 | D74: 72.7 | E74: 50.96947327 | F74: 106.3 | G74: 63.03 | H74: 30.44799864 | I74: 66.47419032 | J74: 1614.579627 | K74: 95.5 | L74: 79.69787894 | M74: 60.97989 | N74: 66.106 | O74: 1 | P74: 99.2 | Q74: 46.28392 | R74: 172.4 | S74: 76.04
B75: Julio | C75: 30.76013744 | D75: 72.61 | E75: 51.083868 | F75: 107 | G75: 62.84 | H75: 30.58719923 | I75: 66.59060746 | J75: 1640.574359 | K75: 95.8 | L75: 79.22126244 | M75: 60.9562 | N75: 66.372 | O75: 1 | P75: 98.9 | Q75: 46.46447 | R75: 172.8 | S75: 76.14
B76: Agosto | C76: 30.96264743 | D76: 72.92 | E76: 50.86030874 | F76: 107.5 | G76: 62.92 | H76: 30.93662112 | I76: 66.41598175 | J76: 1662.065883 | K76: 95.7 | L76: 79.6930598 | M76: 61.1486 | N76: 66.704 | O76: 1 | P76: 99.2 | Q76: 46.71978 | R76: 172.8 | S76: 76.2
B77: Septiembre | C77: 31.08038742 | D77: 73.06 | E77: 50.93062834 | F77: 107.7 | G77: 63.18 | H77: 32.12692821 | I77: 66.70702461 | J77: 1665.888634 | K77: 96.1 | L77: 81.29569637 | M77: 61.40907 | N77: 67.57 | O77: 1 | P77: 99.1 | Q77: 47.06107 | R77: 173.7 | S77: 76.5
B78: Octubre | C78: 31.2766274 | D78: 73.05 | E78: 51.0849663 | F78: 108.3 | G78: 63.87 | H78: 32.21215306 | I78: 66.53239889 | J78: 1668.220878 | K78: 96.3 | L78: 81.29545278 | M78: 61.50305 | N78: 67.504 | O78: 1 | P78: 99.1 | Q78: 47.38514 | R78: 174 | S78: 76.52
B79: Noviembre | C79: 31.53565738 | D79: 73.21 | E79: 51.42218215 | F79: 109.5 | G79: 64.52 | H79: 32.3655578 | I79: 66.35777317 | J79: 1673.559185 | K79: 96.6 | L79: 81.5397467 | M79: 61.70503 | N79: 67.104 | O79: 1 | P79: 98.8 | Q79: 47.79029 | R79: 174.1 | S79: 76.68
B80: Diciembre | C80: 31.90457735 | D80: 73.56 | E80: 52.00924292 | F80: 110.1 | G80: 65.22 | H80: 32.72350217 | I80: 66.41598175 | J80: 1683.433184 | K80: 96.7 | L80: 81.62128672 | M80: 61.98903 | N80: 67.37 | O80: 1 | P80: 98.9 | Q80: 48.30767 | R80: 174 | S80: 76.96
A81: 2001 | B81: Enero | C81: 32.34788731 | D81: 74.89 | E81: 52.72007955 | F81: 111.1 | G81: 65.69 | H81: 33.54166075 | I81: 66.41598175 | J81: 1693.028754 | K81: 96.3 | L81: 82.45490815 | M81: 62.64044 | N81: 68.103 | O81: 52.03 | P81: 98.9 | Q81: 48.57548 | R81: 175.1 | S81: 76.63
B82: Febrero | C82: 32.72102728 | D82: 74.75 | E82: 53.10710291 | F82: 112.5 | G82: 66.48 | H82: 33.587114 | I82: 66.41598175 | J82: 1700.816686 | K82: 96.8 | L82: 82.53736263 | M82: 63.82616 | N82: 68.435 | O82: 52.47 | P82: 98.6 | Q82: 48.54333 | R82: 175.8 | S82: 76.86
B83: Marzo | C83: 33.28020723 | D83: 74.9 | E83: 53.38879729 | F83: 113.5 | G83: 66.49 | H83: 33.44507258 | I83: 66.53239889 | J83: 1707.279789 | K83: 97.1 | L83: 82.04213887 | M83: 64.77157 | N83: 69.035 | O83: 52.88 | P83: 98.4 | Q83: 48.85089 | R83: 176.2 | S83: 77.27
B84: Abril | C84: 33.6977572 | D84: 75 | E84: 53.62233419 | F84: 114.2 | G84: 66.95 | H84: 33.65245306 | I84: 66.64881604 | J84: 1717.182012 | K84: 97.8 | L84: 82.20622319 | M84: 65.51484 | N84: 69.301 | O84: 53.17 | P84: 98.6 | Q84: 49.09731 | R84: 176.9 | S84: 77.73
B85: Mayo | C85: 33.92837718 | D85: 75.12 | E85: 53.78291349 | F85: 115.6 | G85: 67.45 | H85: 33.74051874 | I85: 66.70702461 | J85: 1724.222458 | K85: 98.6 | L85: 81.79519139 | M85: 65.78895 | N85: 69.234 | O85: 53.72 | P85: 98.7 | Q85: 49.20997 | R85: 177.7 | S85: 78.1
B86: Junio | C86: 34.02274717 | D86: 75.23 | E86: 54.17879985 | F86: 116.3 | G86: 67.88 | H86: 33.55018323 | I86: 66.24135603 | J86: 1733.188415 | K86: 98.7 | L86: 80.81364975 | M86: 65.81547 | N86: 69.434 | O86: 53.71 | P86: 98.4 | Q86: 49.32636 | R86: 178 | S86: 78.21
B87: Julio | C87: 34.22971716 | D87: 75.2 | E87: 54.64709642 | F87: 116.9 | G87: 67.61 | H87: 33.47064004 | I87: 66.2995646 | J87: 1756.239821 | K87: 98.4 | L87: 80.4095808 | M87: 65.88726 | N87: 69.567 | O87: 53.69 | P87: 98.1 | Q87: 49.1982 | R87: 177.5 | S87: 78.03
B88: Agosto | C88: 34.50190713 | D88: 75.46 | E88: 55.33292702 | F88: 117.7 | G88: 67.76 | H88: 33.71779211 | I88: 66.35777317 | J88: 1768.5335 | K88: 98.4 | L88: 80.4899911 | M88: 66.05898 | N88: 69.833 | O88: 54.19 | P88: 98.5 | Q88: 49.48969 | R88: 177.5 | S88: 77.97
B89: Septiembre | C89: 34.71161712 | D89: 75.46 | E89: 55.5074128 | F89: 118.6 | G89: 67.79 | H89: 34.02460157 | I89: 66.9398589 | J89: 1773.485393 | K89: 98.6 | L89: 81.21440074 | M89: 66.30408 | N89: 69.767 | O89: 55 | P89: 98.3 | Q89: 49.95038 | R89: 178.3 | S89: 78.18
B90: Octubre | C90: 34.70850712 | D90: 74.46 | E90: 55.92242688 | F90: 118.8 | G90: 67.91 | H90: 34.10982643 | I90: 66.9398589 | J90: 1788.205322 | K90: 98.1 | L90: 81.45804402 | M90: 66.42691 | N90: 69.767 | O90: 55.3 | P90: 98.3 | Q90: 50.17614 | R90: 177.7 | S90: 78.24
B91: Noviembre | C91: 35.01713709 | D91: 75.42 | E91: 56.31330234 | F91: 119.4 | G91: 68.23 | H91: 34.07573648 | I91: 66.64881604 | J91: 1800.90158 | K91: 97.2 | L91: 81.29512746 | M91: 66.50455 | N91: 69.368 | O91: 55.66 | P91: 97.8 | Q91: 50.36515 | R91: 177.4 | S91: 78.19
B92: Diciembre | C92: 35.40005706 | D92: 74.6 | E92: 56.64326646 | F92: 119.8 | G92: 68.26 | H92: 34.15812051 | I92: 66.41598175 | J92: 1812.60744 | K92: 97.4 | L92: 81.37642308 | M92: 66.72893 | N92: 69.501 | O92: 56.28 | P92: 97.7 | Q92: 50.4349 | R92: 176.7 | S92: 78.54
A93: 2002 | B93: Enero | C93: 35.79632702 | D93: 75.52 | E93: 57.38515909 | F93: 120.2 | G93: 68.43 | H93: 34.35129684 | I93: 66.9398589 | J93: 1822.032999 | K93: 97.6 | L93: 81.62055191 | M93: 67.26002 | N93: 69.9 | O93: 56.55 | P93: 97.5 | Q93: 50.90047 | R93: 177.1 | S93: 78.63
B94: Febrero | C94: 35.95662701 | D94: 75.76 | E94: 57.89199515 | F94: 121.5 | G94: 68.98 | H94: 34.36550098 | I94: 66.88165033 | J94: 1828.592318 | K94: 98.2 | L94: 82.51837825 | M94: 68.1052 | N94: 70.233 | O94: 56.97 | P94: 97 | Q94: 50.86775 | R94: 177.8 | S94: 78.76
B95: Marzo | C95: 36.23763699 | D95: 76.2 | E95: 58.26170817 | F95: 122.2 | G95: 69.18 | H95: 34.7575353 | I95: 67.11448462 | J95: 1839.563872 | K95: 98.9 | L95: 81.44563972 | M95: 68.58761 | N95: 70.632 | O95: 57.66 | P95: 97.2 | Q95: 51.12795 | R95: 178.8 | S95: 79.21
B96: Abril | C96: 36.30080698 | D96: 76.48 | E96: 58.58409042 | F96: 123.1 | G96: 69.57 | H96: 34.99332405 | I96: 67.11448462 | J96: 1854.280383 | K96: 99.5 | L96: 81.2013021 | M96: 69.21518 | N96: 71.032 | O96: 57.85 | P96: 97.5 | Q96: 51.40723 | R96: 179.8 | S96: 79.56
B97: Mayo | C97: 36.52848696 | D97: 76.46 | E97: 58.79141805 | F97: 123.7 | G97: 69.89 | H97: 34.8683276 | I97: 66.99806748 | J97: 1858.174371 | K97: 99.7 | L97: 80.95769847 | M97: 69.62961 | N97: 71.298 | O97: 58.12 | P97: 97.8 | Q97: 51.51143 | R97: 179.8 | S97: 79.71
B98: Junio | C98: 36.76103694 | D98: 76.96 | E98: 59.13015028 | F98: 125.1 | G98: 70.01 | H98: 34.9080992 | I98: 67.05627605 | J98: 1865.978704 | K98: 99.9 | L98: 80.22907906 | M98: 69.9282 | N98: 71.231 | O98: 58.62 | P98: 97.7 | Q98: 51.76258 | R98: 179.9 | S98: 79.67
B99: Julio | C99: 37.3001569 | D99: 77.09 | E99: 59.61879647 | F99: 126.1 | G99: 70.12 | H99: 35.04729979 | I99: 67.17269319 | J99: 1888.18385 | K99: 100.5 | L99: 79.66747592 | M99: 69.944 | N99: 71.032 | O99: 59.21 | P99: 97.3 | Q99: 51.91118 | R99: 180.1 | S99: 79.59
B100: Agosto | C100: 37.74220686 | D100: 76.8 | E100: 59.60810947 | F100: 126.9 | G100: 70.2 | H100: 35.35979092 | I100: 67.40552749 | J100: 1900.457045 | K100: 100.9 | L100: 79.90647811 | M100: 70.01001 | N100: 71.498 | O100: 60.07 | P100: 97.6 | Q100: 52.10856 | R100: 180.7 | S100: 79.64
B101: Septiembre | C101: 37.89213685 | D101: 76.53 | E101: 59.44956766 | F101: 127.1 | G101: 70.53 | H101: 35.85693588 | I101: 67.34731891 | J101: 1914.140336 | K101: 100.9 | L101: 80.70554261 | M101: 70.2622 | N101: 71.898 | O101: 60.8 | P101: 97.6 | Q101: 52.42198 | R101: 181 | S101: 79.84
B102: Octubre | C102: 38.14146683 | D102: 76.63 | E102: 59.61487764 | F102: 127.8 | G102: 70.58 | H102: 36.8995199 | I102: 67.52194463 | J102: 1939.215575 | K102: 101.2 | L102: 80.86695395 | M102: 70.65505 | N102: 71.697 | O102: 62.15 | P102: 97.4 | Q102: 52.65303 | R102: 181.3 | S102: 80.03
B103: Noviembre | C103: 38.5354568 | D103: 76.48 | E103: 59.88619103 | F103: 128.6 | G103: 70.44 | H103: 37.07565126 | I103: 67.58946658 | J103: 1997.779885 | K103: 101.5 | L103: 80.78608724 | M103: 71.20492 | N103: 71.764 | O103: 63.1 | P103: 97.4 | Q103: 53.07888 | R103: 181.3 | S103: 79.97
B104: Diciembre | C104: 38.82782677 | D104: 76.69 | E104: 60.2267033 | F104: 129.5 | G104: 70.9 | H104: 37.74892759 | I104: 67.45442269 | J104: 2039.733262 | K104: 101.1 | L104: 81.02844542 | M104: 71.39513 | N104: 72.096 | O104: 64.83 | P104: 97.4 | Q104: 53.30993 | R104: 180.9 | S104: 80.36
A105: 2003 | B105: Enero | C105: 39.07935675 | D105: 77.6 | E105: 60.94247727 | F105: 130.6 | G105: 71.57 | H105: 38.99036959 | I105: 67.58946658 | J105: 2085.627261 | K105: 102 | L105: 81.91975803 | M105: 72.23341 | N105: 72.564 | O105: 69.26 | P105: 97.1 | Q105: 53.52544 | R105: 181.7 | S105: 80.3
B106: Febrero | C106: 39.39701673 | D106: 77.79 | E106: 61.366243 | F106: 132.3 | G106: 72.62 | H106: 40.54146189 | I106: 67.58946658 | J106: 2118.371609 | K106: 102.8 | L106: 82.65703569 | M106: 73.03558 | N106: 72.962 | O106: 71.75 | P106: 96.8 | Q106: 53.67412 | R106: 183.1 | S106: 80.62
B107: Marzo | C107: 39.6520667 | D107: 78.02 | E107: 61.62646093 | F107: 132.8 | G107: 72.77 | H107: 41.26019147 | I107: 67.65698852 | J107: 2144.42758 | K107: 103.1 | L107: 82.16109412 | M107: 73.80035 | N107: 73.828 | O107: 74.07 | P107: 97.1 | Q107: 54.01293 | R107: 184.2 | S107: 81.08
B108: Abril | C108: 40.03380667 | D108: 77.99 | E108: 61.90753092 | F108: 133.5 | G108: 72.62 | H108: 41.37950626 | I108: 67.65698852 | J108: 2165.228527 | K108: 102.4 | L108: 81.99677187 | M108: 74.64728 | N108: 73.695 | O108: 75.67 | P108: 97.4 | Q108: 54.10514 | R108: 183.8 | S108: 81.21
B109: Mayo | C109: 40.24390666 | D109: 77.89 | E109: 62.06280888 | F109: 133.7 | G109: 73.17 | H109: 41.8738104 | I109: 67.52194463 | J109: 2178.436421 | K109: 102.5 | L109: 81.42279437 | M109: 75.01296 | N109: 73.562 | O109: 76.71 | P109: 97.6 | Q109: 53.93056 | R109: 183.5 | S109: 81.15
B110: Junio | C110: 40.51354663 | D110: 78.15 | E110: 62.2299453 | F110: 134.1 | G110: 73.98 | H110: 44.02431749 | I110: 67.58946658 | J110: 2175.168767 | K110: 102.5 | L110: 80.44572064 | M110: 74.97195 | N110: 73.362 | O110: 77.9 | P110: 97.3 | Q110: 53.97511 | R110: 183.7 | S110: 81.25
B111: Julio | C111: 40.83858661 | D111: 77.86 | E111: 62.39067527 | F111: 134.6 | G111: 73.92 | H111: 45.63506719 | I111: 67.65698852 | J111: 2179.519104 | K111: 102.6 | L111: 80.04349195 | M111: 74.86465 | N111: 73.296 | O111: 78.7 | P111: 97.1 | Q111: 54.05334 | R111: 183.9 | S111: 81.13
B112: Agosto | C112: 41.00802659 | D112: 78.11 | E112: 62.56745108 | F112: 135.8 | G112: 73.87 | H112: 47.03275475 | I112: 67.72451047 | J112: 2186.929469 | K112: 102.9 | L112: 80.60379623 | M112: 75.09591 | N112: 73.628 | O112: 81.37 | P112: 97.3 | Q112: 54.21549 | R112: 184.6 | S112: 81.25
B113: Septiembre | C113: 41.06161659 | D113: 78.16 | E113: 62.82484274 | F113: 136.4 | G113: 74.03 | H113: 47.74012102 | I113: 67.58946658 | J113: 2203.987519 | K113: 103.1 | L113: 81.57104232 | M113: 75.26122 | N113: 74.294 | O113: 84.15 | P113: 97.4 | Q113: 54.53824 | R113: 185.2 | S113: 81.54
B114: Octubre | C114: 41.54074655 | D114: 78.41 | E114: 63.09410238 | F114: 137 | G114: 74.32 | H114: 48.9787222 | I114: 67.38690074 | J114: 2210.379083 | K114: 102.8 | L114: 82.30518168 | M114: 75.30658 | N114: 74.36 | O114: 85.44 | P114: 97.4 | Q114: 54.73821 | R114: 185 | S114: 81.66
B115: Noviembre | C115: 42.1307165 | D115: 78.46 | E115: 63.38106905 | F115: 137.9 | G115: 74.93 | H115: 51.92466123 | I115: 67.45442269 | J115: 2217.894372 | K115: 103.1 | L115: 83.12823339 | M115: 75.56889 | N115: 74.227 | O115: 86.72 | P115: 96.9 | Q115: 55.19254 | R115: 184.5 | S115: 81.7
B116: Diciembre | C116: 42.65930645 | D116: 78.62 | E116: 63.75292997 | F116: 138.3 | G116: 75.5 | H116: 53.85074288 | I116: 67.3193788 | J116: 2229.427422 | K116: 103.2 | L116: 83.62700251 | M116: 76.02913 | N116: 74.561 | O116: 88.05 | P116: 97 | Q116: 55.42981 | R116: 184.3 | S116: 81.95
A117: 2004 | B117: Enero | C117: 43.38554639 | D117: 79.49 | E117: 64.72862879 | F117: 139.6 | G117: 76.69 | H117: 58.82219255 | I117: 67.58946658 | J117: 2246.371071 | K117: 103.3 | L117: 84.54689973 | M117: 76.70288 | N117: 75.027 | O117: 89.24 | P117: 96.8 | Q117: 55.77432 | R117: 185.2 | S117: 81.75
B118: Febrero | C118: 43.94632635 | D118: 79.84 | E118: 65.2097597 | F118: 141.2 | G118: 77.65 | H118: 65.44132269 | I118: 67.58946658 | J118: 2260.073934 | K118: 103.5 | L118: 84.3778061 | M118: 77.62288 | N118: 75.359 | O118: 90.63 | P118: 96.8 | Q118: 56.10794 | R118: 186.2 | S118: 81.94
B119: Marzo | C119: 44.14920633 | D119: 80.35 | E119: 65.67248512 | F119: 141.7 | G119: 78.02 | H119: 66.97537002 | I119: 67.45442269 | J119: 2270.696282 | K119: 103.9 | L119: 84.63093955 | M119: 78.38691 | N119: 76.091 | O119: 93.29 | P119: 97 | Q119: 56.29807 | R119: 187.4 | S119: 82.46
B120: Abril | C120: 44.5525763 | D120: 81.03 | E120: 66.02672478 | F120: 143.2 | G120: 78.67 | H120: 67.44126587 | I120: 67.45442269 | J120: 2279.097858 | K120: 104.1 | L120: 85.05409404 | M120: 78.74445 | N120: 76.091 | O120: 97.44 | P120: 97 | Q120: 56.38303 | R120: 188 | S120: 82.88
B121: Mayo | C121: 44.85132627 | D121: 81.6 | E121: 66.57202327 | F121: 144.3 | G121: 79.37 | H121: 69.21394279 | I121: 67.65698852 | J121: 2290.721257 | K121: 105 | L121: 84.96904022 | M121: 79.04433 | N121: 76.025 | O121: 98.81 | P121: 97.1 | Q121: 56.2416 | R121: 189.1 | S121: 83.14
B122: Junio | C122: 45.32952623 | D122: 81.73 | E122: 66.83802984 | F122: 145.2 | G122: 79.62 | H122: 70.59174455 | I122: 67.9270763 | J122: 2306.985378 | K122: 105.1 | L122: 84.3742567 | M122: 79.52133 | N122: 76.025 | O122: 99.34 | P122: 97.3 | Q122: 56.33175 | R122: 189.7 | S122: 83.18
B123: Julio | C123: 45.91731618 | D123: 81.99 | E123: 67.1543544 | F123: 147.1 | G123: 80.11 | H123: 71.0263913 | I123: 67.99459824 | J123: 2327.978945 | K123: 105 | L123: 84.20550781 | M123: 79.49675 | N123: 76.491 | O123: 99.57 | P123: 97 | Q123: 56.47939 | R123: 189.4 | S123: 83
B124: Agosto | C124: 46.36106615 | D124: 82.17 | E124: 67.35752776 | F124: 147.6 | G124: 80.29 | H124: 71.41274396 | I124: 68.19716408 | J124: 2344.042 | K124: 104.8 | L124: 84.79494699 | M124: 79.52074 | N124: 77.156 | O124: 100 | P124: 97.1 | Q124: 56.82804 | R124: 189.5 | S124: 83.17
B125: Septiembre | C125: 46.72106612 | D125: 82.34 | E125: 67.87995426 | F125: 147.8 | G125: 80.77 | H125: 70.60310787 | I125: 68.06212019 | J125: 2351.777338 | K125: 105 | L125: 85.72769119 | M125: 79.7563 | N125: 77.156 | O125: 102.4 | P125: 97.4 | Q125: 57.29792 | R125: 189.9 | S125: 83.26
B126: Octubre | C126: 47.07174609 | D126: 82.69 | E126: 68.54436774 | F126: 149.1 | G126: 81.87 | H126: 71.55478538 | I126: 68.12964213 | J126: 2362.125159 | K126: 105.2 | L126: 85.72769119 | M126: 79.74837 | N126: 77.156 | O126: 103 | P126: 97.9 | Q126: 57.69475 | R126: 190.9 | S126: 83.59
B127: Noviembre | C127: 47.73035603 | D127: 82.71 | E127: 69.22666859 | F127: 150.4 | G127: 82.57 | H127: 70.37300077 | I127: 68.12964213 | J127: 2378.423822 | K127: 105.6 | L127: 85.47050821 | M127: 79.96987 | N127: 76.691 | O127: 103.6 | P127: 97.7 | Q127: 58.1869 | R127: 191 | S127: 83.53
B128: Diciembre | C128: 48.26002599 | D128: 82.84 | E128: 69.63517534 | F128: 151 | G128: 82.48 | H128: 69.32757592 | I128: 68.39972991 | J128: 2398.878267 | K128: 105.4 | L128: 85.5559788 | M128: 80.20885 | N128: 76.824 | O128: 104.9 | P128: 97.2 | Q128: 58.30709 | R128: 190.3 | S128: 83.85
A129: 2005 | B129: Enero | C129: 49.20620591 | D129: 84.03 | E129: 70.57948106 | F129: 152.2 | G129: 82.97 | H129: 69.87301497 | I129: 68.66981769 | J129: 2412.791761 | K129: 105.3 | L129: 86.06931456 | M129: 56.44590316 | N129: 77.58 | O129: 107 | P129: 97 | Q129: 58.30916 | R129: 190.7 | S129: 83.32
B130: Febrero | C130: 49.74428587 | D130: 84.11 | E130: 71.10245851 | F130: 154 | G130: 83.99 | H130: 69.90142326 | I130: 69.00742741 | J130: 2427.027232 | K130: 105.7 | L130: 87.61856195 | M130: 57.02304259 | N130: 77.895 | O130: 108.1 | P130: 96.7 | Q130: 58.50343 | R130: 191.8 | S130: 83.62
B131: Marzo | C131: 50.15919583 | D131: 84.17 | E131: 71.42948868 | F131: 155.2 | G131: 84.81 | H131: 69.85028834 | I131: 69.48008103 | J131: 2441.832098 | K131: 106.3 | L131: 86.82999514 | M131: 57.46412186 | N131: 78.365 | O131: 109.2 | P131: 97 | Q131: 58.76712 | R131: 193.3 | S131: 84.25
B132: Abril | C132: 50.63982579 | D132: 84.59 | E132: 71.88825443 | F132: 156.6 | G132: 86.24 | H132: 70.06903213 | I132: 69.68264686 | J132: 2463.076038 | K132: 106.6 | L132: 86.56950473 | M132: 57.71621243 | N132: 78.444 | O132: 110.32 | P132: 97.1 | Q132: 58.97641 | R132: 194.6 | S132: 84.6
B133: Mayo | C133: 51.33438573 | D133: 85.2 | E133: 72.24624807 | F133: 157.2 | G133: 86.96 | H133: 69.85881083 | I133: 69.48008103 | J133: 2475.14511 | K133: 106.7 | L133: 86.39636562 | M133: 57.95160896 | N133: 78.365 | O133: 112.31 | P133: 97.2 | Q133: 58.82825 | R133: 194.4 | S133: 84.78
B134: Junio | C134: 51.56885571 | D134: 85.23 | E134: 72.72035898 | F134: 158.3 | G134: 87.59 | H134: 69.89858243 | I134: 69.54760297 | J134: 2474.650081 | K134: 106.9 | L134: 85.70519544 | M134: 58.18398386 | N134: 78.129 | O134: 113.71 | P134: 96.8 | Q134: 58.77178 | R134: 194.5 | S134: 84.87
B135: Julio | C135: 52.23020566 | D135: 85.37 | E135: 73.40018261 | F135: 159.7 | G135: 88.32 | H135: 70.3161842 | I135: 69.81769075 | J135: 2480.836706 | K135: 107.1 | L135: 85.70519544 | M135: 58.21230026 | N135: 78.444 | O135: 114.79 | P135: 96.7 | Q135: 59.0018 | R135: 195.4 | S135: 84.78
B136: Agosto | C136: 52.8828156 | D136: 85.6 | E136: 73.67148334 | F136: 161 | G136: 88.9 | H136: 71.25649839 | I136: 69.81769075 | J136: 2485.054129 | K136: 107.5 | L136: 85.87660516 | M136: 58.21319579 | N136: 78.679 | O136: 116 | P136: 96.8 | Q136: 59.07225 | R136: 196.4 | S136: 84.98
B137: Septiembre | C137: 52.9735556 | D137: 85.95 | E137: 74.29245683 | F137: 161.6 | G137: 89.5 | H137: 73.58029601 | I137: 70.42538825 | J137: 2493.751818 | K137: 108.4 | L137: 86.47774136 | M137: 58.4622382 | N137: 79.071 | O137: 117.6 | P137: 97.1 | Q137: 59.30901 | R137: 198.8 | S137: 85.42
B138: Octubre | C138: 53.63140554 | D138: 87.59 | E138: 75.59758318 | F138: 161.7 | G138: 90.33 | H138: 74.39845459 | I138: 70.83051992 | J138: 2512.454957 | K138: 107.9 | L138: 86.82365299 | M138: 58.59674881 | N138: 78.914 | O138: 118.7 | P138: 97.1 | Q138: 59.45458 | R138: 199.2 | S138: 85.64
B139: Noviembre | C139: 54.50253547 | D139: 86.47 | E139: 75.62874424 | F139: 162 | G139: 90.07 | H139: 73.77347234 | I139: 70.42538825 | J139: 2526.273459 | K139: 107.7 | L139: 86.563182 | M139: 58.66373155 | N139: 78.6 | O139: 120.1 | P139: 96.7 | Q139: 59.88249 | R139: 197.6 | S139: 85.45
B140: Diciembre | C140: 55.05260542 | D140: 86.37 | E140: 75.6006355 | F140: 162.7 | G140: 90.39 | H140: 74.48367944 | I140: 70.69547603 | J140: 2535.368044 | K140: 107.6 | L140: 86.90943433 | M140: 58.70371221 | N140: 78.836 | O140: 121 | P140: 96.8 | Q140: 60.25031 | R140: 196.8 | S140: 85.74
A141: 2006 | B141: Enero | C141: 55.69915537 | D141: 86.83 | E141: 76.28471212 | F141: 163.3 | G141: 91.49 | H141: 75.63705577 | I141: 70.76299797 | J141: 2550.36 | K141: 108.2 | L141: 88.0392571 | M141: 59.02160031 | N141: 79.306 | O141: 122.5 | P141: 96.9 | Q141: 60.60363 | R141: 198.3 | S141: 85.35
B142: Febrero | C142: 56.19236533 | D142: 87.26 | E142: 76.26702155 | F142: 164.4431 | G142: 92.8 | H142: 75.54614926 | I142: 70.62795409 | J142: 2560.82 | K142: 108 | L142: 88.47945294 | M142: 59.40979082 | N142: 79.464 | O142: 124.6 | P142: 96.6 | Q142: 60.69636 | R142: 198.7 | S142: 85.59
B143: Marzo | C143: 56.28694532 | D143: 87.57 | E143: 76.63003391 | F143: 164.8 | G143: 93.41 | H143: 75.61716997 | I143: 70.89804186 | J143: 2571.83 | K143: 108.6 | L143: 87.6831383 | M143: 59.82705089 | N143: 79.934 | O143: 125.9 | P143: 96.8 | Q143: 60.77251 | R143: 199.8 | S143: 86.09
B144: Abril | C144: 56.5287453 | D144: 88.16 | E144: 77.26609085 | F144: 165.7 | G144: 94.73 | H144: 76.06602085 | I144: 71.7083052 | J144: 2577.23 | K144: 109.2 | L144: 87.85850449 | M144: 60.09493786 | N144: 80.013 | O144: 127 | P144: 97 | Q144: 60.86162 | R144: 201.5 | S144: 86.66
B145: Mayo | C145: 57.42470523 | D145: 88.27 | E145: 77.74884186 | F145: 166.8 | G145: 95.58 | H145: 76.50066759 | I145: 71.64078325 | J145: 2579.81 | K145: 109.7 | L145: 87.77064579 | M145: 60.29194307 | N145: 80.169 | O145: 128.3 | P145: 97.3 | Q145: 60.59068 | R145: 202.5 | S145: 86.89
B146: Junio | C146: 57.97363518 | D146: 89 | E146: 78.21261324 | F146: 167.3 | G146: 95.91 | H146: 77.08019659 | I146: 71.77582714 | J146: 2574.39 | K146: 109.5 | L146: 87.33179251 | M146: 60.4754134 | N146: 80.013 | O146: 128.5 | P146: 97.3 | Q146: 60.643 | R146: 202.9 | S146: 86.96
B147: Julio | C147: 58.51141514 | D147: 90.11 | E147: 78.56430202 | F147: 168.2 | G147: 96.42 | H147: 77.77051788 | I147: 71.77582714 | J147: 2579.28 | K147: 109.6 | L147: 87.06979769 | M147: 60.72524315 | N147: 80.326 | O147: 129.3 | P147: 97 | Q147: 60.80929 | R147: 203.5 | S147: 86.85
B148: Agosto | C148: 59.0246605 | D148: 89.63 | E148: 78.82562665 | F148: 168.8 | G148: 96.59 | H148: 77.91824096 | I148: 71.84334909 | J148: 2580.57 | K148: 109.8 | L148: 87.33100672 | M148: 60.96350008 | N148: 80.797 | O148: 130.2 | P148: 97.7 | Q148: 61.11961 | R148: 203.9 | S148: 86.93
B149: Septiembre | C149: 58.92759771 | D149: 89.59 | E149: 78.52585269 | F149: 168.8 | G149: 96.2 | H149: 77.06031079 | I149: 71.57326131 | J149: 2585.99 | K149: 109.2 | L149: 87.76766205 | M149: 61.1379725 | N149: 81.032 | O149: 132.2 | P149: 97.7 | Q149: 61.73661 | R149: 202.9 | S149: 86.93
B150: Octubre | C150: 59.04034644 | D150: 89.24 | E150: 78.50878417 | F150: 169 | G150: 96.63 | H150: 77.13985398 | I150: 71.77582714 | J150: 2594.52 | K150: 109 | L150: 87.85542931 | M150: 61.04956679 | N150: 80.64 | O150: 132.7 | P150: 97.5 | Q150: 62.00652 | R150: 201.8 | S150: 87
B151: Noviembre | C151: 59.63927766 | D151: 89.8 | E151: 78.9571995 | F151: 169.9 | G151: 97.36 | H151: 77.63415812 | I151: 71.84334909 | J151: 2602.56 | K151: 109.2 | L151: 88.11899571 | M151: 61.19424445 | N151: 80.248 | O151: 133 | P151: 97 | Q151: 62.33186 | R151: 201.5 | S151: 87.03
B152: Diciembre | C152: 60.24611167 | D152: 90.59 | E152: 79.97981376 | F152: 171.3 | G152: 98.93 | H152: 78.20800545 | I152: 72.24848076 | J152: 2615.05 | K152: 109.4 | L152: 89.35266165 | M152: 61.33241187 | N152: 80.483 | O152: 133.5 | P152: 97.1 | Q152: 62.69242 | R152: 201.8 | S152: 87.37
A153: 2007 | B153: Enero | C153: 60.81977795 | D153: 91.64 | E153: 81.03300379 | F153: 172.4 | G153: 99.8 | H153: 78.93809835 | I153: 72.38352465 | J153: 2626.56 | K153: 109.4 | L153: 89.97813061 | M153: 61.80255231 | N153: 80.64 | O153: 134.2 | P153: 96.9 | Q153: 63.01621 | R153: 202.416 | S153: 86.92
B154: Febrero | C154: 61.03467446 | D154: 91.44 | E154: 81.31716325 | F154: 173.9807998 | G154: 100.98 | H154: 79.17956876 | I154: 72.58609048 | J154: 2638.12 | K154: 110.2 | L154: 90.87791131 | M154: 62.52688499 | N154: 81.189 | O154: 135.3 | P154: 96.4 | Q154: 63.19235 | R154: 203.499 | S154: 87.17
B155: Marzo | C155: 61.47576658 | D155: 92 | E155: 82.01259822 | F155: 175.2 | G155: 102.11 | H155: 79.80455101 | I155: 73.19378798 | J155: 2647.88 | K155: 111.1 | L155: 90.60527798 | M155: 63.28533025 | N155: 81.66 | O155: 136 | P155: 96.7 | Q155: 63.32911 | R155: 205.352 | S155: 87.75
B156: Abril | C156: 62.04413004 | D156: 92.07 | E156: 82.21224408 | F156: 176.2 | G156: 103.14 | H156: 80.45225988 | I156: 73.66644159 | J156: 2654.5 | K156: 111.6 | L156: 90.51467266 | M156: 63.85467932 | N156: 81.973 | O156: 137.2 | P156: 97 | Q156: 63.29129 | R156: 206.686 | S156: 88.31
B157: Mayo | C157: 62.69011104 | D157: 91.69 | E157: 81.99800929 | F157: 176.9 | G157: 103.93 | H157: 81.30734922 | I157: 74.07157326 | J157: 2661.93 | K157: 112.1 | L157: 90.78621672 | M157: 64.04598119 | N157: 82.052 | O157: 139 | P157: 97.3 | Q157: 62.98253 | R157: 207.949 | S157: 88.52
B158: Junio | C158: 63.04676781 | D158: 92.3 | E158: 82.36821093 | F158: 177.6 | G158: 104.98 | H158: 81.63404449 | I158: 74.40918298 | J158: 2669.38 | K158: 111.9 | L158: 91.1493615 | M158: 64.12438946 | N158: 82.052 | O158: 140.2 | P158: 97.1 | Q158: 63.05817 | R158: 208.352 | S158: 88.61
B159: Julio | C159: 63.63257532 | D159: 92.96 | E159: 82.95354349 | F159: 178.8 | G159: 105.83 | H159: 81.84426579 | I159: 74.74679271 | J159: 2675.79 | K159: 112 | L159: 91.96970543 | M159: 64.23016766 | N159: 82.366 | O159: 139.5 | P159: 97 | Q159: 63.326 | R159: 208.299 | S159: 88.39
B160: Agosto | C160: 64.07877449 | D160: 92.82 | E160: 83.71972237 | F160: 180.1 | G160: 106.12 | H160: 81.31871254 | I160: 74.8818366 | J160: 2688.37 | K160: 111.7 | L160: 93.07334224 | M160: 64.14442761 | N160: 82.444 | O160: 140.1 | P160: 97.5 | Q160: 63.584 | R160: 207.917 | S160: 88.45
B161: Septiembre | C161: 64.48451982 | D161: 93.45 | E161: 84.28306304 | F161: 180.8 | G161: 107.32 | H161: 82.31016164 | I161: 75.28696826 | J161: 2693.21 | K161: 111.9 | L161: 93.35256211 | M161: 64.1979292 | N161: 82.915 | O161: 142.6 | P161: 97.5 | Q161: 64.07771 | R161: 208.49 | S161: 88.78
B162: Octubre | C162: 64.85226781 | D162: 94.11 | E162: 84.56752381 | F162: 183 | G162: 109.53 | H162: 82.70219596 | I162: 75.69209993 | J162: 2701.29 | K162: 111.6 | L162: 93.63262038 | M162: 64.20173957 | N162: 83.072 | O162: 143.5 | P162: 97.8 | Q162: 64.32741 | R162: 208.936 | S162: 89.21
B163: Noviembre | C163: 65.65727185 | D163: 95.39 | E163: 86.16538541 | F163: 186.2 | G163: 114.24 | H163: 84.19079003 | I163: 76.50236327 | J163: 2711.55 | K163: 111.9 | L163: 94.28804807 | M163: 64.50612279 | N163: 83.072 | O163: 145.3 | P163: 97.6 | Q163: 64.78122 | R163: 210.177 | S163: 89.69
B164: Diciembre | C164: 66.75601991 | D164: 94.99 | E164: 86.97505693 | F164: 186.5 | G164: 115.62 | H164: 85.15099003 | I164: 76.83997299 | J164: 2731.62 | K164: 112 | L164: 95.23092903 | M164: 64.82471797 | N164: 83.386 | O164: 146.8 | P164: 97.8 | Q164: 65.04906 | R164: 210.036 | S164: 90.05
A165: 2008 | B165: Enero | C165: 67.24397792 | D165: 95.99 | E165: 87.83039394 | F165: 187.7 | G165: 117.05 | H165: 86.07994091 | I165: 77.92032411 | J165: 2746.37 | K165: 111.8 | L165: 96.37369993 | M165: 65.50887943 | N165: 83.777 | O165: 149 | P165: 97.6 | Q165: 65.35056 | R165: 211.08 | S165: 89.7
B166: Febrero | C166: 67.99215068 | D166: 96.76 | E166: 88.44249192 | F166: 189.7 | G166: 119.51 | H166: 86.05153263 | I166: 78.6630655 | J166: 2759.83 | K166: 112.2 | L166: 98.87941653 | M166: 66.49859745 | N166: 84.092 | O166: 151.4 | P166: 97.4 | Q166: 65.54484 | R166: 211.693 | S166: 90.02
B167: Marzo | C167: 68.25994427 | D167: 97.51 | E167: 89.47538062 | F167: 191.4 | G167: 121.42 | H167: 87.52308173 | I167: 79.60837272 | J167: 2773.08 | K167: 112.6 | L167: 98.18725985 | M167: 67.0355887 | N167: 84.876 | O167: 158.2 | P167: 97.9 | Q167: 66.01989 | R167: 213.528 | S167: 90.9
B168: Abril | C168: 68.83562226 | D168: 98.32 | E168: 90.73668693 | F168: 193.3 | G168: 123.1 | H168: 89.16792137 | I168: 79.94598244 | J168: 2788.33 | K168: 113.5 | L168: 98.28544711 | M168: 67.51227567 | N168: 85.347 | O168: 159.9 | P168: 97.8 | Q168: 66.17013 | R168: 214.823 | S168: 91.19
B169: Mayo | C169: 70.14757259 | D169: 99.39 | E169: 92.03582217 | F169: 196.8 | G169: 126.53 | H169: 89.46620835 | I169: 80.62120189 | J169: 2810.36 | K169: 114.6 | L169: 97.89230558 | M169: 68.14128617 | N169: 86.052 | O169: 160.7 | P169: 98.6 | Q169: 66.09863 | R169: 216.632 | S169: 91.76
B170: Junio | C170: 71.12808199 | D170: 100.63 | E170: 93.53475439 | F170: 199.2 | G170: 129.22 | H170: 91.59682964 | I170: 81.56650912 | J170: 2831.16 | K170: 115.4 | L170: 97.696521 | M170: 68.72877901 | N170: 86.601 | O170: 162.3 | P170: 99 | Q170: 66.37217 | R170: 218.815 | S170: 92.11
B171: Julio | C171: 72.64918566 | D171: 101.92 | E171: 94.69632458 | F171: 203.4 | G171: 130.84 | H171: 93.07974205 | I171: 81.90411884 | J171: 2846.16 | K171: 115.8 | L171: 97.79421785 | M171: 69.06001284 | N171: 87.229 | O171: 165 | P171: 99.2 | Q171: 66.74206 | R171: 219.964 | S171: 91.97
B172: Agosto | C172: 73.94859955 | D172: 102 | E172: 95.17741935 | F172: 205.3 | G172: 131.5 | H172: 93.1649669 | I172: 82.24172856 | J172: 2854.13 | K172: 115.6 | L172: 97.69642308 | M172: 69.19212373 | N172: 87.072 | O172: 166.5 | P172: 99.5 | Q172: 67.12749 | R172: 219.086 | S172: 91.84
B173: Septiembre | C173: 74.65167855 | D173: 101.56 | E173: 95.02777538 | F173: 205.6 | G173: 131.78 | H173: 94.30982074 | I173: 82.84942606 | J173: 2861.55 | K173: 115.7 | L173: 97.69642308 | M173: 69.0600994 | N173: 87.151 | O173: 170.9 | P173: 99.5 | Q173: 67.58494 | R173: 218.783 | S173: 92.01
B174: Octubre | C174: 75.42567066 | D174: 101.08 | E174: 95.49925833 | F174: 206.9 | G174: 131.75 | H174: 93.32405329 | I174: 82.84942606 | J174: 2874.43 | K174: 114.5 | L174: 97.40333414 | M174: 69.29915204 | N174: 87.072 | O174: 169.4 | P174: 99.4 | Q174: 68.04549 | R174: 216.573 | S174: 92.04
B175: Noviembre | C175: 76.35774799 | D175: 100.44 | E175: 95.51106368 | F175: 206.5 | G175: 131.86 | H175: 90.26448112 | I175: 82.37677245 | J175: 2884.78 | K175: 114.1 | L175: 96.62410779 | M175: 69.49250673 | N175: 86.837 | O175: 165.4 | P175: 98.6 | Q175: 68.81894 | R175: 212.425 | S175: 91.59
B176: Diciembre | C176: 76.03666384 | D176: 100.19 | E176: 95.15090992 | F176: 206.7 | G176: 131.55 | H176: 88.99747166 | I176: 82.03916273 | J176: 2892.86 | K176: 113.3 | L176: 96.43085943 | M176: 69.79985854 | N176: 86.837 | O176: 161.7 | P176: 98.2 | Q176: 69.29556 | R176: 210.228 | S176: 91.47
A177: 2009 | B177: Enero | C177: 76.32256691 | D177: 99.65 | E177: 94.75260227 | F177: 206.6 | G177: 131.63 | H177: 89.24746456 | I177: 81.76907495 | J177: 2906.74 | K177: 113 | L177: 97.29873675 | M177: 70.21120865 | N177: 86.916 | O177: 161 | P177: 97.6 | Q177: 69.45615 | R177: 211.143 | S177: 90.71
B178: Febrero | C178: 76.66006506 | D178: 99.53 | E178: 94.18956358 | F178: 208.2 | G178: 132.39 | H178: 89.52018409 | I178: 82.03916273 | J178: 2922.73 | K178: 113.8 | L178: 97.29873675 | M178: 70.79889344 | N178: 87.543 | O178: 160.3 | P178: 97.3 | Q178: 69.6095 | R178: 212.193 | S178: 91.08
B179: Marzo | C179: 76.67087969 | D179: 100 | E179: 93.94784951 | F179: 208.2 | G179: 131.69 | H179: 89.65938468 | I179: 82.57933828 | J179: 2928.57 | K179: 114 | L179: 97.00684066 | M179: 71.15210725 | N179: 88.17 | O179: 159.8 | P179: 97.6 | Q179: 70.00995 | R179: 212.709 | S179: 91.42
B180: Abril | C180: 76.92431069 | D180: 100.08 | E180: 94.02372041 | F180: 208.9 | G180: 131.57 | H180: 89.78722195 | I180: 82.91694801 | J180: 2942.63 | K180: 113.9 | L180: 96.81282674 | M180: 71.38063897 | N180: 88.405 | O180: 160 | P180: 97.7 | Q180: 70.25499 | R180: 213.24 | S180: 91.75
B181: Mayo | C181: 76.82823741 | D181: 100.36 | E181: 94.14740353 | F181: 208.9 | G181: 131.71 | H181: 89.88949178 | I181: 82.64686023 | J181: 2956.46 | K181: 114.7 | L181: 96.52238893 | M181: 71.39068736 | N181: 88.405 | O181: 160.1 | P181: 97.5 | Q181: 70.05036 | R181: 213.856 | S181: 91.8
B182: Junio | C182: 76.95778996 | D182: 100.4 | E182: 94.11206521 | F182: 210 | G182: 131.75 | H182: 91.83261839 | I182: 83.0519919 | J182: 2967.1 | K182: 115.1 | L182: 96.03977664 | M182: 71.35068715 | N182: 88.327 | O182: 160.6 | P182: 97.3 | Q182: 70.17935 | R182: 215.693 | S182: 91.98
B183: Julio | C183: 77.66395325 | D183: 99.99 | E183: 94.41029581 | F183: 211.5 | G183: 130.94 | H183: 91.9434107 | I183: 83.45712357 | J183: 2974.22 | K183: 114.7 | L183: 96.03977664 | M183: 71.32294171 | N183: 88.641 | O183: 160.9 | P183: 97 | Q183: 70.37051 | R183: 215.351 | S183: 91.38
B184: Agosto | C184: 78.17228975 | D184: 99.8 | E184: 94.4804918 | F184: 211.7 | G184: 131.34 | H184: 92.72747933 | I184: 83.72721134 | J184: 2978.68 | K184: 114.7 | L184: 96.51997556 | M184: 71.35439213 | N184: 88.955 | O184: 161.9 | P184: 97.3 | Q184: 70.53889 | R184: 215.834 | S184: 91.69
B185: Septiembre | C185: 78.26021072 | D185: 99.73 | E185: 95.05897977 | F185: 211.9 | G185: 131.79 | H185: 92.82974915 | I185: 83.25455773 | J185: 2985.83 | K185: 114.7 | L185: 96.90604516 | M185: 71.27620861 | N185: 89.034 | O185: 162.9 | P185: 97.3 | Q185: 70.89272 | R185: 215.969 | S185: 91.71
B186: Octubre | C186: 78.44280801 | D186: 99.03 | E186: 94.87518214 | F186: 212.4 | G186: 132.31 | H186: 93.04281128 | I186: 83.45712357 | J186: 2994.19 | K186: 114.6 | L186: 96.81152383 | M186: 71.18519378 | N186: 88.798 | O186: 163.5 | P186: 96.9 | Q186: 71.10719 | R186: 216.177 | S186: 91.92
B187: Noviembre | C187: 78.3175067 | D187: 100.41 | E187: 94.92858401 | F187: 212.9 | G187: 132.47 | H187: 94.03710122 | I187: 83.52464551 | J187: 3006.47 | K187: 115.2 | L187: 97.10285668 | M187: 71.13845021 | N187: 88.955 | O187: 164.1 | P187: 96.7 | Q187: 71.47604 | R187: 216.33 | S187: 92.03
B188: Diciembre | C188: 79.11389905 | D188: 100 | E188: 94.88566278 | F188: 212.8 | G188: 132.778411 | H188: 94.12800773 | I188: 83.59216745 | J188: 3017.59 | K188: 114.8 | L188: 98.07396617 | M188: 71.19711769 | N188: 89.269 | O188: 165 | P188: 96.5 | Q188: 71.77186 | R188: 215.949 | S188: 92.32
A189: 2010 | B189: Enero | C189: 80.40052054 | D189: 100.44 | E189: 96.11 | F189: 214 | G189: 134.065768 | H189: 95.36376807 | I189: 84.2673869 | J189: 3040.22 | K189: 115.1 | L189: 98.65663187 | M189: 71.68538026 | N189: 89.974 | O189: 170.8 | P189: 96.6 | Q189: 72.55205 | R189: 216.687 | S189: 91.57
B190: Febrero | C190: 80.9526067 | D190: 100.57 | E190: 96.53 | F190: 215.5 | G190: 136.020941 | H190: 95.49728701 | I190: 84.46995273 | J190: 3063.93 | K190: 115.6 | L190: 99.846241 | M190: 72.27925282 | N190: 90.156 | O190: 168.6 | P190: 96.6 | Q190: 72.97167 | R190: 216.741 | S190: 91.85
B191: Marzo | C191: 81.14970377 | D191: 100.89 | E191: 97.64 | F191: 216.5 | G191: 137.51637 | H191: 96.31828641 | I191: 84.80756246 | J191: 3079.86 | K191: 115.6 | L191: 99.14218661 | M191: 72.46095581 | N191: 90.338 | O191: 169.5 | P191: 96.8 | Q191: 73.48972 | R191: 217.631 | S191: 92.87
B192: Abril | C192: 81.19825128 | D192: 100.71 | E192: 97.55 | F192: 217.6 | G192: 137.94896 | H192: 96.66202665 | I192: 85.07765024 | J192: 3097.42 | K192: 116 | L192: 99.34450109 | M192: 72.7945761 | N192: 90.702 | O192: 170.1 | P192: 96.9 | Q192: 73.25556 | R192: 218.009 | S192: 93.25
B193: Mayo | C193: 81.61693009 | D193: 100.5 | E193: 97.45 | F193: 218 | G193: 137.86852 | H193: 96.99156274 | I193: 85.28021607 | J193: 3110.74 | K193: 116.3 | L193: 99.24739014 | M193: 72.86975753 | N193: 90.793 | O193: 170.4 | P193: 96.8 | Q193: 72.79398 | R193: 218.178 | S193: 93.35
B194: Junio | C194: 81.81529197 | D194: 100.96 | E194: 97.94 | F194: 218.9 | G194: 137.853416 | H194: 96.82679469 | I194: 85.34773801 | J194: 3110.74 | K194: 116.2 | L194: 98.64853929 | M194: 72.95260577 | N194: 90.702 | O194: 170.8 | P194: 96.6 | Q194: 72.77119 | R194: 217.965 | S194: 93.35
B195: Julio | C195: 82.07687615 | D195: 100.98 | E195: 98.3 | F195: 220.3 | G195: 139.055419 | H195: 97.15917161 | I195: 86.29304524 | J195: 3111.05 | K195: 116.8 | L195: 99.04507567 | M195: 72.92186172 | N195: 90.884 | O195: 170.6 | P195: 96.1 | Q195: 72.92919 | R195: 218.011 | S195: 92.95
B196: Agosto | C196: 82.24212908 | D196: 100.81 | E196: 98.35 | F196: 221.3 | G196: 138.354437 | H196: 97.37223374 | I196: 86.76569885 | J196: 3112.29 | K196: 116.7 | L196: 99.63583394 | M196: 73.00370345 | N196: 91.34 | O196: 170.6 | P196: 96.2 | Q196: 73.13175 | R196: 218.312 | S196: 93.14
B197: Septiembre | C197: 82.17379441 | D197: 101.11 | E197: 98.63 | F197: 222.6 | G197: 138.941018 | H197: 98.12221244 | I197: 86.76569885 | J197: 3126.29 | K197: 116.9 | L197: 100.2346848 | M197: 72.90461209 | N197: 92.068 | O197: 170.5 | P197: 96.4 | Q197: 73.51511 | R197: 218.439 | S197: 93.43
B198: Octubre | C198: 82.56333564 | D198: 101.78 | E198: 99.15 | F198: 224.7 | G198: 141.915796 | H198: 98.78412545 | I198: 86.90074274 | J198: 3149.74 | K198: 117.4 | L198: 100.9387392 | M198: 72.84030199 | N198: 92.068 | O198: 171 | P198: 96.7 | Q198: 73.96893 | R198: 218.711 | S198: 93.71
B199: Noviembre | C199: 83.10495003 | D199: 102.24 | E199: 99.92 | F199: 226.6 | G199: 144.114007 | H199: 99.09093492 | I199: 87.10330858 | J199: 3175.88 | K199: 117.5 | L199: 102.0474225 | M199: 72.98163483 | N199: 91.613 | O199: 172.5 | P199: 96.4 | Q199: 74.56158 | R199: 218.803 | S199: 93.79
B200: Diciembre | C200: 83.72174234 | D200: 102.13 | E200: 100 | F200: 226.6 | G200: 145.034368 | H200: 100 | I200: 87.71100608 | J200: 3195.89 | K200: 117.5 | L200: 102.557255 | M200: 73.45493651 | N200: 91.977 | O200: 175.2 | P200: 96.2 | Q200: 74.93095 | R200: 219.179 | S200: 94.36
A201: 2011 | B201: Enero | C201: 84.28810387 | D201: 102.77 | E201: 100.82 | F201: 227.6 | G201: 144.817066 | H201: 101.2437 | I201: 88.31870358 | J201: 3222.42 | K201: 117.8 | L201: 90.18423 | M201: 74.12223432 | N201: 93.07 | O201: 177.2 | P201: 96.1 | Q201: 75.29599 | R201: 220.223 | S201: 93.68
... 103 more rows

Sheet TIPO CAMBIO
A2: Secretaría Ejecutiva
A3: Consejo Monetario Centroamericano
A4: TIPO DE CAMBIO PROMEDIO de COMPRA (moneda nacional por US$)
C5: REGIÓN CAPARD 1/ | J5: RESTO DEL MUNDO
A6: Año | B6: MES | C6: COSTA RICA | D6: EL SALVADOR | E6: GUATEMALA | F6: HONDURAS | G6: NICARAGUA | H6: REPÚBLICA DOMINICANA | I6: PANAMÁ | J6: BRASIL | K6: CANADÁ | L6: CHINA | M6: COLOMBIA | N6: COREA DEL SUR | O6: HAITÍ | P6: JAPÓN | Q6: MÉXICO | R6: ESTADOS UNIDOS | S6: ZONA EURO
B7: moneda | C7: Colón | D7: Colón | E7: Quetzal | F7: Lempira | G7: Córdoba | H7: Peso dominicano | I7: Balboa | J7: Euro | K7: Dólar canadiense | L7: Reminbi | M7: Peso Colombiano | N7: Won surcoreano | O7: Gourde | P7: Yen japonés | Q7: Peso mexicano | R7: Dólar estadounidense | S7: Euro
A9: 1995 | B9: Enero | C9: 165.5670968 | D9: 8.72 | E9: 5.72614 | F9: 9.21 | G9: 7.147106452 | H9: 12.87 | I9: 1 | J9: 0.841 | K9: 1.4132 | L9: 8.4608 | M9: 846.63 | N9: 793.075 | O9: 14.0569 | P9: 99.766 | Q9: 5.6405 | R9: 1 | S9: 0.805921914
B10: Febrero | C10: 167.7107143 | D10: 8.72 | E10: 5.70749 | F10: 9.08 | G10: 7.212860714 | H10: 12.87 | I10: 1 | J10: 0.8505 | K10: 1.4005 | L10: 8.4553 | M10: 850.9 | N10: 793.1947 | O10: 14.0815 | P10: 98.2368 | Q10: 5.6779 | R10: 1 | S10: 0.794474273
B11: Marzo | C11: 170.2619355 | D11: 8.72 | E11: 5.68631 | F11: 9.13 | G11: 7.279235484 | H11: 12.87 | I11: 1 | J11: 0.895 | K11: 1.4077 | L11: 8.4483 | M11: 865.83 | N11: 781.813 | O11: 14.2885 | P11: 90.5196 | Q11: 6.777 | R11: 1 | S11: 0.759265122
B12: Abril | C12: 172.853 | D12: 8.72 | E12: 5.72022 | F12: 9.12 | G12: 7.348496667 | H12: 12.87 | I12: 1 | J12: 0.912 | K12: 1.3762 | L12: 8.4421 | M12: 873.39 | N12: 770.61 | O12: 14.322 | P12: 83.6895 | Q12: 6.2285 | R12: 1 | S12: 0.745472003
B13: Mayo | C13: 175.2487097 | D13: 8.72 | E13: 5.72867 | F13: 9.15 | G13: 7.418419355 | H13: 12.87 | I13: 1 | J13: 0.905 | K13: 1.3609 | L13: 8.337 | M13: 876.95 | N13: 764.4318 | O13: 14.4087 | P13: 85.1127 | Q13: 5.9741 | R13: 1 | S13: 0.756633978
B14: Junio | C14: 177.866 | D14: 8.72 | E14: 5.74684 | F14: 9.28 | G14: 7.489003333 | H14: 12.87 | I14: 1 | J14: 0.921 | K14: 1.3775 | L14: 8.3206 | M14: 874.86 | N14: 763.8818 | O14: 14.9452 | P14: 84.6355 | Q14: 6.233 | R14: 1 | S14: 0.75106595
B15: Julio | C15: 180.2796774 | D15: 8.72 | E15: 5.75962 | F15: 9.41 | G15: 7.560258065 | H15: 12.87 | I15: 1 | J15: 0.935 | K15: 1.3612 | L15: 8.3207 | M15: 893.22 | N15: 760.045 | O15: 14.9523 | P15: 87.397 | Q15: 6.122 | R15: 1 | S15: 0.743596703
B16: Agosto | C16: 182.6629032 | D16: 8.72 | E16: 5.80171 | F16: 9.55 | G16: 7.633380645 | H16: 12.87 | I16: 1 | J16: 0.95 | K16: 1.3552 | L16: 8.3253 | M16: 935.1 | N16: 767.4217 | O16: 15.2639 | P16: 94.7383 | Q16: 6.2047 | R16: 1 | S16: 0.766629536
B17: Septiembre | C17: 185.2703333 | D17: 8.72 | E17: 5.87913 | F17: 9.67 | G17: 7.706013333 | H17: 12.87 | I17: 1 | J17: 0.953 | K17: 1.3509 | L17: 8.3374 | M17: 964.17 | N17: 772.04 | O17: 15.4309 | P17: 100.5455 | Q17: 6.3167 | R17: 1 | S17: 0.775914376
B18: Octubre | C18: 187.8916129 | D18: 8.72 | E18: 5.94587 | F18: 9.81 | G18: 7.77933871 | H18: 12.87 | I18: 1 | J18: 0.9614 | K18: 1.3458 | L18: 8.3353 | M18: 984.96 | N18: 767.1952 | O18: 15.8088 | P18: 100.839 | Q18: 6.7452 | R18: 1 | S18: 0.756331249
B19: Noviembre | C19: 190.654 | D19: 8.72 | E19: 5.98728 | F19: 10.04 | G19: 7.853353333 | H19: 12.87 | I19: 1 | J19: 0.9661 | K19: 1.3534 | L19: 8.3334 | M19: 1000.58 | N19: 769.781 | O19: 17.4361 | P19: 101.94 | Q19: 7.6936 | R19: 1 | S19: 0.755398265
B20: Diciembre | C20: 193.3877419 | D20: 8.72 | E20: 5.92452 | F20: 10.25 | G20: 7.928080645 | H20: 12.87 | I20: 1 | J20: 0.972 | K20: 1.3693 | L20: 8.335 | M20: 988.15 | N20: 771.305 | O20: 16.0465 | P20: 101.8495 | Q20: 7.687 | R20: 1 | S20: 0.766692428
A21: 1996 | B21: Enero | C21: 195.7090323 | D21: 8.72 | E21: 6.0907 | F21: 10.45 | G21: 8.004754839 | H21: 12.87 | I21: 1 | J21: 0.9781 | K21: 1.3669 | L21: 8.3384 | M21: 1011.19 | N21: 787.1333 | O21: 16.4419 | P21: 105.7514 | Q21: 7.4806 | R21: 1 | S21: 0.774090869
B22: Febrero | C22: 198.0155172 | D22: 8.72 | E22: 6.15872 | F22: 10.67 | G22: 8.079662069 | H22: 12.87 | I22: 1 | J22: 0.9837 | K22: 1.3752 | L22: 8.3338 | M22: 1029.64 | N22: 780.115 | O22: 16.5528 | P22: 105.788 | Q22: 7.5183 | R22: 1 | S22: 0.776034201
B23: Marzo | C23: 200.1377419 | D23: 8.72 | E23: 6.17398 | F23: 10.9 | G23: 8.155277419 | H23: 12.87 | I23: 1 | J23: 0.9876 | K23: 1.3656 | L23: 8.3495 | M23: 1044.98 | N23: 781.3143 | O23: 16.7016 | P23: 105.94 | Q23: 7.5682 | R23: 1 | S23: 0.780434811
B24: Abril | C24: 201.996 | D24: 8.72 | E24: 6.12782 | F24: 11.05 | G24: 8.232873333 | H24: 12.87 | I24: 1 | J24: 0.9921 | K24: 1.3592 | L24: 8.3515 | M24: 1050.93 | N24: 780.4182 | O24: 16.4571 | P24: 107.1995 | Q24: 7.4694 | R24: 1 | S24: 0.791198706
B25: Mayo | C25: 204.0116129 | D25: 8.72 | E25: 6.08057 | F25: 11.18 | G25: 8.311274194 | H25: 12.87 | I25: 1 | J25: 0.998 | K25: 1.3693 | L25: 8.3479 | M25: 1066.24 | N25: 780.8591 | O25: 15.9461 | P25: 106.3423 | Q25: 7.4368 | R25: 1 | S25: 0.802130458
B26: Junio | C26: 206.2313333 | D26: 8.72 | E26: 6.12286 | F26: 11.46 | G26: 8.390286667 | H26: 12.87 | I26: 1 | J26: 1.004 | K26: 1.3658 | L26: 8.3424 | M26: 1071.96 | N26: 798.45 | O26: 15.6307 | P26: 108.96 | Q26: 7.5648 | R26: 1 | S26: 0.798134281
B27: Julio | C27: 208.3454839 | D27: 8.72 | E27: 6.08948 | F27: 12 | G27: 8.470125806 | H27: 12.87 | I27: 1 | J27: 1.0108 | K27: 1.3697 | L27: 8.3409 | M27: 1064.1 | N27: 813.0318 | O27: 15.1665 | P27: 109.1909 | Q27: 7.6179 | R27: 1 | S27: 0.787006213
B28: Agosto | C28: 210.3451613 | D28: 8.72 | E28: 6.06868 | F28: 12.27 | G28: 8.552041935 | H28: 12.87 | I28: 1 | J28: 1.0165 | K28: 1.3722 | L28: 8.3379 | M28: 1044.84 | N28: 817.5227 | O28: 14.9141 | P28: 107.8659 | Q28: 7.5143 | R28: 1 | S28: 0.779271989
B29: Septiembre | C29: 212.4936667 | D29: 8.72 | E29: 6.04309 | F29: 12.42 | G29: 8.633416667 | H29: 12.87 | I29: 1 | J29: 1.0211 | K29: 1.3694 | L29: 8.3341 | M29: 1040.84 | N29: 822.4 | O29: 15.0548 | P29: 109.931 | Q29: 7.5441 | R29: 1 | S29: 0.78797984
B30: Octubre | C30: 214.6712903 | D30: 8.72 | E30: 6.05052 | F30: 12.56 | G30: 8.715551613 | H30: 12.87 | I30: 1 | J30: 1.0272 | K30: 1.3508 | L30: 8.3299 | M30: 1015.78 | N30: 828.2364 | O30: 15.1583 | P30: 112.4123 | Q30: 7.7345 | R30: 1 | S30: 0.794652939
B31: Noviembre | C31: 216.8486667 | D31: 8.72 | E31: 6.00662 | F31: 12.61 | G31: 8.79849 | H31: 12.87 | I31: 1 | J31: 1.0328 | K31: 1.3381 | L31: 8.3294 | M31: 998.18 | N31: 830.5632 | O31: 15.27 | P31: 112.2958 | Q31: 7.9119 | R31: 1 | S31: 0.783146683
B32: Diciembre | C32: 219.0122581 | D32: 8.72 | E32: 5.9947 | F32: 12.78 | G32: 8.8822 | H32: 13.19 | I32: 1 | J32: 1.039 | K32: 1.3622 | L32: 8.329 | M32: 1000.79 | N32: 841.919 | O32: 15.0453 | P32: 113.981 | Q32: 7.8769 | R32: 1 | S32: 0.799838753
A33: 1997 | B33: Enero | C33: 220.8754839 | D33: 8.72 | E33: 6.05304 | F33: 12.93 | G33: 8.968112903 | H33: 13.91 | I33: 1 | J33: 1.0457 | K33: 1.3494 | L33: 8.326 | M33: 1027.06 | N33: 854.0714 | O33: 15.641 | P33: 117.9124 | Q33: 7.8289 | R33: 1 | S33: 0.822229129
B34: Febrero | C34: 223.0125 | D34: 8.72 | E34: 6.09068 | F34: 12.73 | G34: 9.050621429 | H34: 13.96 | I34: 1 | J34: 1.0511 | K34: 1.3556 | L34: 8.3227 | M34: 1074.24 | N34: 868.3947 | O34: 16.0887 | P34: 122.9621 | Q34: 7.8023 | R34: 1 | S34: 0.857808762
B35: Marzo | C35: 225.1687097 | D35: 8.72 | E35: 5.99539 | F35: 12.79 | G35: 9.133906452 | H35: 14.02 | I35: 1 | J35: 1.0589 | K35: 1.3725 | L35: 8.3258 | M35: 1062.16 | N35: 882.619 | O35: 16.519 | P35: 122.7738 | Q35: 7.9562 | R35: 1 | S35: 0.869749756
B36: Abril | C36: 227.1756667 | D36: 8.72 | E36: 5.99677 | F36: 12.76 | G36: 9.22082 | H36: 14.02 | I36: 1 | J36: 1.0634 | K36: 1.3942 | L36: 8.3257 | M36: 1060.65 | N36: 895.5682 | O36: 16.7499 | P36: 125.6377 | Q36: 7.9059 | R36: 1 | S36: 0.873351004
B37: Mayo | C37: 229.2754839 | D37: 8.72 | E37: 5.97565 | F37: 13.05 | G37: 9.308564516 | H37: 14.02 | I37: 1 | J37: 1.0713 | K37: 1.3804 | L37: 8.3229 | M37: 1075.18 | N37: 894.6667 | O37: 16.7757 | P37: 119.1924 | Q37: 7.9037 | R37: 1 | S37: 0.870063802
B38: Junio | C38: 231.525 | D38: 8.72 | E38: 5.92258 | F38: 13.07 | G38: 9.39712 | H38: 14.02 | I38: 1 | J38: 1.0765 | K38: 1.3843 | L38: 8.3224 | M38: 1082.37 | N38: 891.4048 | O38: 16.8329 | P38: 114.2857 | Q38: 7.9498 | R38: 1 | S38: 0.879796098
B39: Julio | C39: 233.6948387 | D39: 8.72 | E39: 5.95351 | F39: 13.08 | G39: 9.486535484 | H39: 14.02 | I39: 1 | J39: 1.083 | K39: 1.3775 | L39: 8.3162 | M39: 1102.4 | N39: 893.0909 | O39: 16.6062 | P39: 115.3759 | Q39: 7.8679 | R39: 1 | S39: 0.905048633
B40: Agosto | C40: 235.5841935 | D40: 8.72 | E40: 6.07217 | F40: 13.08 | G40: 9.578293548 | H40: 14.02 | I40: 1 | J40: 1.0912 | K40: 1.3905 | L40: 8.3187 | M40: 1132.7 | N40: 898.7095 | O40: 16.7091 | P40: 117.9295 | Q40: 7.7818 | R40: 1 | S40: 0.932198413
B41: Septiembre | C41: 237.4746667 | D41: 8.72 | E41: 6.10458 | F41: 13.09 | G41: 9.669423333 | H41: 14.02 | I41: 1 | J41: 1.096 | K41: 1.3872 | L41: 8.3171 | M41: 1222.49 | N41: 912.5048 | O41: 16.6976 | P41: 120.89 | Q41: 7.7809 | R41: 1 | S41: 0.909161162
B42: Octubre | C42: 239.3864516 | D42: 8.72 | E42: 6.1468 | F42: 13.09 | G42: 9.761432258 | H42: 14.02 | I42: 1 | J42: 1.1027 | K42: 1.3869 | L42: 8.3135 | M42: 1262.89 | N42: 929.4182 | O42: 17.2022 | P42: 121.0605 | Q42: 7.8708 | R42: 1 | S42: 0.892603707
B43: Noviembre | C43: 241.3403333 | D43: 8.72 | E43: 6.21059 | F43: 13.09 | G43: 9.8543 | H43: 14.02 | I43: 1 | J43: 1.1094 | K43: 1.4128 | L43: 8.3109 | M43: 1294.56 | N43: 1035.2235 | O43: 17.1843 | P43: 125.3817 | Q43: 8.2716 | R43: 1 | S43: 0.877679556
B44: Diciembre | C44: 243.2551613 | D44: 8.72 | E44: 6.18186 | F44: 13.1 | G44: 9.948080645 | H44: 14.02 | I44: 1 | J44: 1.116 | K44: 1.4271 | L44: 8.3099 | M44: 1296.7 | N44: 1496.9 | O44: 16.8441 | P44: 129.7341 | Q44: 8.1271 | R44: 1 | S44: 0.899619551
A45: 1998 | B45: Enero | C45: 244.8922581 | D45: 8.72 | E45: 6.25174 | F45: 13.11 | G45: 10.0442871 | H45: 14.02 | I45: 1 | J45: 1.1233 | K45: 1.4409 | L45: 8.3094 | M45: 1323.16 | N45: 1707.3 | O45: 17.3089 | P45: 129.5475 | Q45: 8.2272 | R45: 1 | S45: 0.919350865
B46: Febrero | C46: 246.8389286 | D46: 8.72 | E46: 6.21013 | F46: 13.16 | G46: 10.13669643 | H46: 14.02 | I46: 1 | J46: 1.13 | K46: 1.4334 | L46: 8.3072 | M46: 1346.12 | N46: 1628.4211 | O46: 17.4239 | P46: 125.8516 | Q46: 8.5021 | R46: 1 | S46: 0.918741031
B47: Marzo | C47: 248.8829032 | D47: 8.72 | E47: 6.26765 | F47: 13.21 | G47: 10.22998065 | H47: 14.02 | I47: 1 | J47: 1.137 | K47: 1.4166 | L47: 8.3076 | M47: 1357.1 | N47: 1489.3571 | O47: 17.4209 | P47: 129.0823 | Q47: 8.5681 | R47: 1 | S47: 0.922228473
B48: Abril | C48: 250.932 | D48: 8.72 | E48: 6.28013 | F48: 13.21 | G48: 10.32733333 | H48: 14.02 | I48: 1 | J48: 1.1439 | K48: 1.4298 | L48: 8.3058 | M48: 1360.65 | N48: 1391.5455 | O48: 17.1673 | P48: 131.7536 | Q48: 8.5017 | R48: 1 | S48: 0.916539039
B49: Mayo | C49: 252.9432258 | D49: 8.72 | E49: 6.27564 | F49: 13.27 | G49: 10.42558065 | H49: 14.02 | I49: 1 | J49: 1.1501 | K49: 1.4452 | L49: 8.3084 | M49: 1386.28 | N49: 1399.05 | O49: 16.7847 | P49: 134.896 | Q49: 8.5848 | R49: 1 | S49: 0.901676668
B50: Junio | C50: 255.277 | D50: 8.72 | E50: 6.30639 | F50: 13.32 | G50: 10.52477667 | H50: 14.02 | I50: 1 | J50: 1.1565 | K50: 1.4655 | L50: 8.31 | M50: 1386.61 | N50: 1397.7727 | O50: 16.4381 | P50: 140.3305 | Q50: 8.92 | R50: 1 | S50: 0.907930409
B51: Julio | C51: 257.6841935 | D51: 8.72 | E51: 6.34077 | F51: 13.37 | G51: 10.62492581 | H51: 15.22 | I51: 1 | J51: 1.163 | K51: 1.4869 | L51: 8.31 | M51: 1371.54 | N51: 1295.7609 | O51: 16.0629 | P51: 140.7874 | Q51: 8.899 | R51: 1 | S51: 0.911161731
B52: Agosto | C52: 260.1232258 | D52: 8.72 | E52: 6.3964 | F52: 13.42 | G52: 10.72768065 | H52: 15.33 | I52: 1 | J52: 1.1765 | K52: 1.5346 | L52: 8.31 | M52: 1390.46 | N52: 1314.2857 | O52: 16.4145 | P52: 144.68 | Q52: 9.3712 | R52: 1 | S52: 0.907798534
B53: Septiembre | C53: 262.495 | D53: 8.72 | E53: 6.48178 | F53: 13.51 | G53: 10.82976 | H53: 15.36 | I53: 1 | J53: 1.1852 | K53: 1.5218 | L53: 8.3055 | M53: 1520.52 | N53: 1375.5381 | O53: 16.7801 | P53: 134.4805 | Q53: 10.2192 | R53: 1 | S53: 0.866457273
B54: Octubre | C54: 264.9251613 | D54: 8.72 | E54: 6.56218 | F54: 13.57 | G54: 10.9328 | H54: 15.44 | I54: 1 | J54: 1.1928 | K54: 1.5452 | L54: 8.2778 | M54: 1587.38 | N54: 1344.1429 | O54: 16.6143 | P54: 121.0486 | Q54: 10.1594 | R54: 1 | S54: 0.837692826
B55: Noviembre | C55: 267.5306667 | D55: 8.72 | E55: 6.55906 | F55: 13.67 | G55: 11.03682 | H55: 15.49 | I55: 1 | J55: 1.2008 | K55: 1.5404 | L55: 8.2778 | M55: 1562.71 | N55: 1294.0105 | O55: 16.6488 | P55: 120.2895 | Q55: 9.9685 | R55: 1 | S55: 0.858794442
B56: Diciembre | C56: 270.0809677 | D56: 8.72 | E56: 6.71953 | F56: 13.75 | G56: 11.14184194 | H56: 15.48 | I56: 1 | J56: 1.2083 | K56: 1.5433 | L56: 8.278 | M56: 1524.56 | N56: 1213.2182 | O56: 16.4006 | P56: 117.0709 | Q56: 9.9067 | R56: 1 | S56: 0.853153511
A57: 1999 | B57: Enero | C57: 272.2612903 | D57: 8.72 | E57: 6.97126 | F57: 13.84 | G57: 11.24959032 | H57: 15.49 | I57: 1 | J57: 1.9828 | K57: 1.5194 | L57: 8.2789 | M57: 1570.01 | N57: 1175.1053 | O57: 16.742 | P57: 113.29 | Q57: 10.1279 | R57: 1 | S57: 0.861489688
B58: Febrero | C58: 274.7885714 | D58: 8.72 | E58: 6.87337 | F58: 13.9 | G58: 11.35310357 | H58: 15.75 | I58: 1 | J58: 2.0644 | K58: 1.4977 | L58: 8.2781 | M58: 1567.07 | N58: 1188.8368 | O58: 16.8081 | P58: 116.6684 | Q58: 10.0057 | R58: 1 | S58: 0.892247706
B59: Marzo | C59: 277.3080645 | D59: 8.72 | E59: 6.96803 | F59: 13.96 | G59: 11.45758065 | H59: 15.88 | I59: 1 | J59: 1.7216 | K59: 1.5176 | L59: 8.2792 | M59: 1550.15 | N59: 1229.7217 | O59: 16.7885 | P59: 119.473 | Q59: 9.7324 | R59: 1 | S59: 0.918867661
B60: Abril | C60: 279.7366667 | D60: 8.72 | E60: 7.0647 | F60: 14.03 | G60: 11.56658 | H60: 15.88 | I60: 1 | J60: 1.6603 | K60: 1.4881 | L60: 8.2792 | M60: 1574.67 | N60: 1209.9636 | O60: 16.6984 | P60: 119.7723 | Q60: 9.4304 | R60: 1 | S60: 0.934194411
B61: Mayo | C61: 282.3070968 | D61: 8.72 | E61: 7.2619 | F61: 14.09 | G61: 11.67665484 | H61: 15.88 | I61: 1 | J61: 1.7236 | K61: 1.4611 | L61: 8.2785 | M61: 1641.33 | N61: 1197.92 | O61: 16.6891 | P61: 121.9995 | Q61: 9.3955 | R61: 1 | S61: 0.940901949
B62: Junio | C62: 284.9086667 | D62: 8.72 | E62: 7.35194 | F62: 14.17 | G62: 11.78772767 | H62: 15.85 | I62: 1 | J62: 1.7691 | K62: 1.4695 | L62: 8.278 | M62: 1693.99 | N62: 1168.9136 | O62: 16.694 | P62: 120.7245 | Q62: 9.5146 | R62: 1 | S62: 0.96361858
B63: Julio | C63: 287.3267742 | D63: 8.72 | E63: 7.38059 | F63: 14.22 | G63: 11.8933 | H63: 15.85 | I63: 1 | J63: 1.7888 | K63: 1.489 | L63: 8.2776 | M63: 1818.63 | N63: 1189.0952 | O63: 16.7887 | P63: 119.3305 | Q63: 9.3699 | R63: 1 | S63: 0.965933459
B64: Agosto | C64: 289.3332258 | D64: 8.72 | E64: 7.66137 | F64: 14.27 | G64: 11.98196452 | H64: 15.85 | I64: 1 | J64: 1.9155 | K64: 1.4932 | L64: 8.2772 | M64: 1876.93 | N64: 1198.3091 | O64: 16.747 | P64: 113.2268 | Q64: 9.3979 | R64: 1 | S64: 0.943080383
B65: Septiembre | C65: 291.233 | D65: 8.72 | E65: 7.77441 | F65: 14.35 | G65: 12.06856 | H65: 15.85 | I65: 1 | J65: 1.9219 | K65: 1.4771 | L65: 8.2774 | M65: 1975.64 | N65: 1201 | O65: 16.9016 | P65: 106.8752 | Q65: 9.3413 | R65: 1 | S65: 0.952311116
B66: Octubre | C66: 293.1183871 | D66: 8.72 | E66: 7.79699 | F66: 14.39 | G66: 12.15577742 | H66: 15.89 | I66: 1 | J66: 1.9526 | K66: 1.4776 | L66: 8.2775 | M66: 1978.71 | N66: 1205.285 | O66: 17.1158 | P66: 105.965 | Q66: 9.5752 | R66: 1 | S66: 0.934026879
B67: Noviembre | C67: 295.0493333 | D67: 8.72 | E67: 7.75743 | F67: 14.44 | G67: 12.22911333 | H67: 15.93 | I67: 1 | J67: 1.9223 | K67: 1.4674 | L67: 8.2782 | M67: 1944.64 | N67: 1176.975 | O67: 17.544 | P67: 104.6485 | Q67: 9.4161 | R67: 1 | S67: 0.967283568
B68: Diciembre | C68: 297.0222581 | D68: 8.72 | E68: 7.66364 | F68: 14.49 | G68: 12.28880645 | H68: 15.92 | I68: 1 | J68: 1.7886 | K68: 1.4722 | L68: 8.2794 | M68: 1888.46 | N68: 1136.8043 | O68: 17.9375 | P68: 102.5843 | Q68: 9.4271 | R68: 1 | S68: 0.989105987
A69: 2000 | B69: Enero | C69: 298.7364516 | D69: 8.72 | E69: 7.87332 | F69: 14.54 | G69: 12.34977097 | H69: 15.98 | I69: 1 | J69: 1.802 | K69: 1.4486 | L69: 8.2792 | M69: 1923.57 | N69: 1130.99 | O69: 18.5376 | P69: 105.296 | Q69: 9.4935 | R69: 1 | S69: 0.986490019
B70: Febrero | C70: 300.4144828 | D70: 8.72 | E70: 7.78135 | F70: 14.61 | G70: 12.40880345 | H70: 16.05 | I70: 1 | J70: 1.7681 | K70: 1.4512 | L70: 8.2781 | M70: 1950.64 | N70: 1129.7455 | O70: 18.9944 | P70: 109.3885 | Q70: 9.4265 | R70: 1 | S70: 1.016855395
B71: Marzo | C71: 302.1435484 | D71: 8.72 | E71: 7.71708 | F71: 14.65 | G71: 12.46821517 | H71: 16.05 | I71: 1 | J71: 1.7469 | K71: 1.4608 | L71: 8.2786 | M71: 1956.25 | N71: 1116.3904 | O71: 19.9225 | P71: 106.3074 | Q71: 9.2886 | R71: 1 | S71: 1.036975433
B72: Abril | C72: 303.7516667 | D72: 8.72 | E72: 7.70609 | F72: 14.7 | G72: 12.52891333 | H72: 16.05 | I72: 1 | J72: 1.8063 | K72: 1.4689 | L72: 8.2793 | M72: 1986.77 | N72: 1110.32 | O72: 19.5216 | P72: 105.627 | Q72: 9.3937 | R72: 1 | S72: 1.056021965
B73: Mayo | C73: 305.2680645 | D73: 8.72 | E73: 7.69516 | F73: 14.76 | G73: 12.58989355 | H73: 16.05 | I73: 1 | J73: 1.8262 | K73: 1.4957 | L73: 8.2781 | M73: 2055.69 | N73: 1119.4864 | O73: 19.9427 | P73: 108.3205 | Q73: 9.5059 | R73: 1 | S73: 1.103791745
B74: Junio | C74: 307.0143333 | D74: 8.72 | E74: 7.724 | F74: 14.8 | G74: 12.65117333 | H74: 16.05 | I74: 1 | J74: 1.7996 | K74: 1.477 | L74: 8.2772 | M74: 2120.17 | N74: 1117.935 | O74: 19.824 | P74: 106.1255 | Q74: 9.8343 | R74: 1 | S74: 1.053544281
B75: Julio | C75: 308.7287097 | D75: 8.71 | E75: 7.74189 | F75: 14.8499 | G75: 12.71274839 | H75: 16.05 | I75: 1 | J75: 1.7744 | K75: 1.4778 | L75: 8.2794 | M75: 2161.34 | N75: 1115.075 | O75: 20.2654 | P75: 108.2115 | Q75: 9.4192 | R75: 1 | S75: 1.064218114
B76: Agosto | C76: 310.3445161 | D76: 8.71 | E76: 7.74016 | F76: 14.9107 | G76: 12.77564839 | H76: 16.05 | I76: 1 | J76: 1.823 | K76: 1.4828 | L76: 8.2796 | M76: 2187.38 | N76: 1114.467 | O76: 21.5975 | P76: 108.0804 | Q76: 9.2724 | R76: 1 | S76: 1.106124946
B77: Septiembre | C77: 311.9903333 | D77: 8.71 | E77: 7.79254 | F77: 14.9791 | G77: 12.83783333 | H77: 16.38 | I77: 1 | J77: 1.8433 | K77: 1.4864 | L77: 8.2785 | M77: 2213.76 | N77: 1117.57 | O77: 24.2546 | P77: 106.8375 | Q77: 9.3615 | R77: 1 | S77: 1.146639086
B78: Octubre | C78: 313.6677419 | D78: 8.71 | E78: 7.81044 | F78: 15.0326 | G78: 12.90032258 | H78: 16.45 | I78: 1 | J78: 1.9086 | K78: 1.5125 | L78: 8.2785 | M78: 2176.61 | N78: 1131.099 | O78: 24.4349 | P78: 108.4429 | Q78: 9.537 | R78: 1 | S78: 1.169373181
B79: Noviembre | C79: 315.3476667 | D79: 8.71 | E79: 7.7614 | F79: 15.09 | G79: 12.96312 | H79: 16.49 | I79: 1 | J79: 1.9592 | K79: 1.5426 | L79: 8.2774 | M79: 2136.63 | N79: 1156.5429 | O79: 23.874 | P79: 109.0095 | Q79: 9.5081 | R79: 1 | S79: 1.167697744
B80: Diciembre | C80: 317.0809677 | D80: 8.71 | E80: 7.72292 | F80: 15.1301 | G80: 13.02621935 | H80: 16.53 | I80: 1 | J80: 1.955 | K80: 1.5219 | L80: 8.2771 | M80: 2186.21 | N80: 1216.935 | O80: 22.8792 | P80: 112.209 | Q80: 9.4673 | R80: 1 | S80: 1.114434603
A81: 2001 | B81: Enero | C81: 318.6270968 | D81: 8.75 | E81: 7.79306 | F81: 15.1461 | G81: 13.09075161 | H81: 16.62 | I81: 1 | J81: 1.9707 | K81: 1.5032 | L81: 8.2776 | M81: 2241.4 | N81: 1272.6343 | O81: 23.4207 | P81: 116.6719 | Q81: 9.7688 | R81: 1 | S81: 1.065777666
B82: Febrero | C82: 320.2896429 | D82: 8.75 | E82: 7.72851 | F82: 15.1992 | G82: 13.15255 | H82: 16.66 | I82: 1 | J82: 2.0448 | K82: 1.5216 | L82: 8.2771 | M82: 2243.42 | N82: 1252.8526 | O82: 23.4455 | P82: 116.2337 | Q82: 9.7108 | R82: 1 | S82: 1.084945834
B83: Marzo | C83: 321.983871 | D83: 8.75 | E83: 7.69248 | F83: 15.2479 | G83: 13.21463548 | H83: 16.66 | I83: 1 | J83: 2.1612 | K83: 1.5587 | L83: 8.2775 | M83: 2278.78 | N83: 1291.405 | O83: 23.6632 | P83: 121.505 | Q83: 9.599 | R83: 1 | S83: 1.099477418
B84: Abril | C84: 323.5533333 | D84: 8.75 | E84: 7.73824 | F84: 15.31 | G84: 13.27913667 | H84: 16.66 | I84: 1 | J84: 2.1843 | K84: 1.5578 | L84: 8.2771 | M84: 2323.1 | N84: 1327.7571 | O84: 23.3955 | P84: 123.771 | Q84: 9.3276 | R84: 1 | S84: 1.121076233
B85: Mayo | C85: 325.1493548 | D85: 8.75 | E85: 7.76021 | F85: 15.37 | G85: 13.34395161 | H85: 16.66 | I85: 1 | J85: 2.3596 | K85: 1.5411 | L85: 8.277 | M85: 2346.93 | N85: 1298.8955 | O85: 23.3644 | P85: 121.7682 | Q85: 9.1475 | R85: 1 | S85: 1.143950105
B86: Junio | C86: 326.88 | D86: 8.75 | E86: 7.7891 | F86: 15.43 | G86: 13.40908833 | H86: 16.66 | I86: 1 | J86: 2.3045 | K86: 1.5245 | L86: 8.277 | M86: 2305.66 | N86: 1295.0476 | O86: 23.8204 | P86: 122.351 | Q86: 9.0881 | R86: 1 | S86: 1.172103469
B87: Julio | C87: 328.8070968 | D87: 8.75 | E87: 7.79042 | F87: 15.49 | G87: 13.47453226 | H87: 16.66 | I87: 1 | J87: 2.4309 | K87: 1.5308 | L87: 8.2769 | M87: 2304.28 | N87: 1305.2381 | O87: 24.0899 | P87: 124.4981 | Q87: 9.1682 | R87: 1 | S87: 1.161893608
B88: Agosto | C88: 330.7993548 | D88: 8.75 | E88: 7.8394 | F88: 15.52 | G88: 13.54137742 | H88: 16.66 | I88: 1 | J88: 2.5513 | K88: 1.5399 | L88: 8.277 | M88: 2288.9 | N88: 1285.6522 | O88: 24.5618 | P88: 121.367 | Q88: 9.1332 | R88: 1 | S88: 1.110515135
B89: Septiembre | C89: 332.9223333 | D89: 8.75 | E89: 7.94337 | F89: 15.59 | G89: 13.60747 | H89: 16.66 | I89: 1 | J89: 2.6709 | K89: 1.5679 | L89: 8.2768 | M89: 2328.23 | N89: 1293.8333 | O89: 24.9993 | P89: 118.6117 | Q89: 9.4253 | R89: 1 | S89: 1.097580384
B90: Octubre | C90: 335.1687097 | D90: 8.75 | E90: 8.09895 | F90: 15.68 | G90: 13.67389355 | H90: 16.66 | I90: 1 | J90: 2.7067 | K90: 1.5717 | L90: 8.2768 | M90: 2320.65 | N90: 1302.3636 | O90: 25.6969 | P90: 121.4536 | Q90: 9.3391 | R90: 1 | S90: 1.10391725
B91: Noviembre | C91: 337.7323333 | D91: 8.75 | E91: 8.07323 | F91: 15.8 | G91: 13.74063333 | H91: 16.76 | I91: 1 | J91: 2.5283 | K91: 1.5922 | L91: 8.2769 | M91: 2310.47 | N91: 1282.1 | O91: 26.5209 | P91: 122.4055 | Q91: 9.225 | R91: 1 | S91: 1.125734401
B92: Diciembre | C92: 340.3132258 | D92: 8.75 | E92: 7.94645 | F92: 15.88 | G92: 13.80771613 | H92: 16.97 | I92: 1 | J92: 2.32 | K92: 1.5788 | L92: 8.2764 | M92: 2306.9 | N92: 1292.285 | O92: 26.1705 | P92: 127.5945 | Q92: 9.1574 | R92: 1 | S92: 1.120608894
A93: 2002 | B93: Enero | C93: 342.6709677 | D93: 8.75 | E93: 8.00503 | F93: 15.97 | G93: 13.8621 | H93: 17.05 | I93: 1 | J93: 2.4179 | K93: 1.5997 | L93: 8.2771 | M93: 2274.96 | N93: 1316.3381 | O93: 26.6329 | P93: 132.6833 | Q93: 9.1636 | R93: 1 | S93: 1.132136137
B94: Febrero | C94: 345.5242857 | D94: 8.75 | E94: 7.92902 | F94: 16.07 | G94: 13.9149 | H94: 17.15 | I94: 1 | J94: 2.3478 | K94: 1.5964 | L94: 8.2767 | M94: 2286.7 | N94: 1320.5526 | O94: 26.7524 | P94: 133.6426 | Q94: 9.105 | R94: 1 | S94: 1.149379048
B95: Marzo | C95: 348.5267742 | D95: 8.75 | E95: 7.90187 | F95: 16.15 | G95: 13.983 | H95: 17.15 | I95: 1 | J95: 2.3232 | K95: 1.5877 | L95: 8.2773 | M95: 2282.33 | N95: 1322.9048 | O95: 26.9262 | P95: 131.061 | Q95: 9.064 | R95: 1 | S95: 1.141813199
B96: Abril | C96: 351.335 | D96: 8.75 | E96: 7.81547 | F96: 16.23 | G96: 14.0527 | H96: 17.56 | I96: 1 | J96: 2.3621 | K96: 1.5815 | L96: 8.2772 | M96: 2263.11 | N96: 1318.0909 | O96: 26.663 | P96: 130.7718 | Q96: 9.1649 | R96: 1 | S96: 1.128868208
B97: Mayo | C97: 354.3854839 | D97: 8.75 | E97: 7.85872 | F97: 16.31 | G97: 14.1466 | H97: 17.56 | I97: 1 | J97: 2.5216 | K97: 1.5502 | L97: 8.277 | M97: 2310.24 | N97: 1262.2 | O97: 26.8032 | P97: 126.375 | Q97: 9.5099 | R97: 1 | S97: 1.090512541
B98: Junio | C98: 357.641 | D98: 8.75 | E98: 7.88929 | F98: 16.39 | G98: 14.2436 | H98: 17.56 | I98: 1 | J98: 2.844 | K98: 1.5318 | L98: 8.2767 | M98: 2364.25 | N98: 1219.695 | O98: 27.0976 | P98: 123.2905 | Q98: 9.7671 | R98: 1 | S98: 1.046638198
B99: Julio | C99: 360.86 | D99: 8.75 | E99: 7.84418 | F99: 16.47 | G99: 14.2648 | H99: 17.56 | I99: 1 | J99: 3.4281 | K99: 1.5456 | L99: 8.2768 | M99: 2506.72 | N99: 1179.9868 | O99: 27.9664 | P99: 117.8991 | Q99: 9.7792 | R99: 1 | S99: 1.007878587
B100: Agosto | C100: 363.8735484 | D100: 8.75 | E100: 7.75982 | F100: 16.55 | G100: 14.3295 | H100: 17.56 | I100: 1 | J100: 3.0219 | K100: 1.5694 | L100: 8.2767 | M100: 2647.22 | N100: 1197.5091 | O100: 28.6704 | P100: 118.9927 | Q100: 9.8389 | R100: 1 | S100: 1.022746914
B101: Septiembre | C101: 367.0563333 | D101: 8.75 | E101: 7.77145 | F101: 16.64 | G101: 14.4255 | H101: 17.56 | I101: 1 | J101: 3.8945 | K101: 1.5761 | L101: 8.277 | M101: 2751.23 | N101: 1211.605 | O101: 29.0614 | P101: 121.078 | Q101: 10.0708 | R101: 1 | S101: 1.019581054
B102: Octubre | C102: 370.2774194 | D102: 8.75 | E102: 7.71726 | F102: 16.73 | G102: 14.4897 | H102: 17.56 | I102: 1 | J102: 3.6446 | K102: 1.578 | L102: 8.2772 | M102: 2827.86 | N102: 1240.1909 | O102: 31.0806 | P102: 123.9077 | Q102: 10.0941 | R102: 1 | S102: 1.01924
B103: Noviembre | C103: 373.5763333 | D103: 8.75 | E103: 7.60066 | F103: 16.8 | G103: 14.551 | H103: 17.56 | I103: 1 | J103: 3.6361 | K103: 1.5715 | L103: 8.2772 | M103: 2726.66 | N103: 1210.2 | O103: 36.1445 | P103: 121.6079 | Q103: 10.1952 | R103: 1 | S103: 0.998204
B104: Diciembre | C104: 376.9258065 | D104: 8.75 | E104: 7.6367 | F104: 16.88 | G104: 14.6049 | H104: 17.56 | I104: 1 | J104: 3.5329 | K104: 1.5592 | L104: 8.2777 | M104: 2814.89 | N104: 1206.6143 | O104: 37.2054 | P104: 121.8929 | Q104: 10.2251 | R104: 1 | S104: 0.981194
A105: 2003 | B105: Enero | C105: 379.8832258 | D105: 8.75 | E105: 7.78465 | F105: 16.96 | G105: 14.6928 | H105: 17.56 | I105: 1 | J105: 3.4375 | K105: 1.5414 | L105: 8.2775 | M105: 2913 | N105: 1176.4524 | O105: 39.4296 | P105: 118.8133 | Q105: 10.6223 | R105: 1 | S105: 0.9416
B106: Febrero | C106: 383.2114286 | D106: 8.75 | E106: 7.81442 | F106: 17.04 | G106: 14.7624 | H106: 18.17 | I106: 1 | J106: 3.5955 | K106: 1.5121 | L106: 8.278 | M106: 2951.86 | N106: 1190.3684 | O106: 45.2528 | P106: 119.3379 | Q106: 10.9447 | R106: 1 | S106: 0.927264
B107: Marzo | C107: 386.5945161 | D107: 8.75 | E107: 7.89245 | F107: 17.11 | G107: 14.8422 | H107: 22.72 | I107: 1 | J107: 3.4567 | K107: 1.4761 | L107: 8.2773 | M107: 2959.01 | N107: 1237.2 | O107: 43.9104 | P107: 118.6871 | Q107: 10.9053 | R107: 1 | S107: 0.926369
B108: Abril | C108: 389.8286667 | D108: 8.75 | E108: 7.89457 | F108: 17.18 | G108: 14.9195 | H108: 23.78 | I108: 1 | J108: 3.109 | K108: 1.4582 | L108: 8.2772 | M108: 2926.62 | N108: 1231.1045 | O108: 42.8068 | P108: 119.895 | Q108: 10.5887 | R108: 1 | S108: 0.920756
B109: Mayo | C109: 392.9264516 | D109: 8.75 | E109: 7.89054 | F109: 17.23 | G109: 14.9912 | H109: 25.6 | I109: 1 | J109: 2.9517 | K109: 1.384 | L109: 8.2769 | M109: 2858.94 | N109: 1201.2333 | O109: 41.4992 | P109: 117.3681 | Q109: 10.2528 | R109: 1 | S109: 0.865632
B110: Junio | C110: 396.3583333 | D110: 8.75 | E110: 7.90827 | F110: 17.3 | G110: 15.0721 | H110: 28.89 | I110: 1 | J110: 2.8887 | K110: 1.3525 | L110: 8.2771 | M110: 2826.95 | N110: 1194.1429 | O110: 41.5904 | P110: 118.329 | Q110: 10.5028 | R110: 1 | S110: 0.856689
B111: Julio | C111: 399.8593548 | D111: 8.75 | E111: 7.90744 | F111: 17.38 | G111: 15.1853 | H111: 34.45 | I111: 1 | J111: 2.8833 | K111: 1.3821 | L111: 8.2773 | M111: 2858.82 | N111: 1181.1636 | O111: 43.1851 | P111: 118.6959 | Q111: 10.4581 | R111: 1 | S111: 0.879984
B112: Agosto | C112: 403.0351613 | D112: 8.75 | E112: 7.91057 | F112: 17.45 | G112: 15.1651 | H112: 33.72 | I112: 1 | J112: 3.0053 | K112: 1.3963 | L112: 8.277 | M112: 2867.29 | N112: 1178.6 | O112: 41.5286 | P112: 118.6624 | Q112: 10.783 | R112: 1 | S112: 0.896693
B113: Septiembre | C113: 406.2573333 | D113: 8.75 | E113: 7.97079 | F113: 17.53 | G113: 15.3093 | H113: 31.7 | I113: 1 | J113: 2.9204 | K113: 1.3634 | L113: 8.2772 | M113: 2840.08 | N113: 1165.4048 | O113: 41.598 | P113: 114.8 | Q113: 10.9229 | R113: 1 | S113: 0.887894
B114: Octubre | C114: 409.6496774 | D114: 8.75 | E114: 8.0822 | F114: 17.6 | G114: 15.4447 | H114: 34.91 | I114: 1 | J114: 2.8628 | K114: 1.3221 | L114: 8.2768 | M114: 2876.2 | N114: 1169.3409 | O114: 41.8573 | P114: 109.4955 | Q114: 11.1796 | R114: 1 | S114: 0.854156
B115: Noviembre | C115: 413.166 | D115: 8.75 | E115: 8.0664 | F115: 17.67 | G115: 15.4718 | H115: 39.74 | I115: 1 | J115: 2.915 | K115: 1.313 | L115: 8.2769 | M115: 2844.55 | N115: 1186.3889 | O115: 42.5846 | P115: 109.1778 | Q115: 11.1494 | R115: 1 | S115: 0.855
B116: Diciembre | C116: 416.6296774 | D116: 8.75 | E116: 8.01746 | F116: 17.73 | G116: 15.5284 | H116: 37.44 | I116: 1 | J116: 2.9255 | K116: 1.3128 | L116: 8.277 | M116: 2807.2 | N116: 1192.3364 | O116: 42.9347 | P116: 107.7377 | Q116: 11.2515 | R116: 1 | S116: 0.813343
A117: 2004 | B117: Enero | C117: 419.3096774 | D117: 8.75 | E117: 8.09869 | F117: 17.78 | G117: 15.6318 | H117: 46.09 | I117: 1 | J117: 2.8533 | K117: 1.2958 | L117: 8.277 | M117: 2749.14 | N117: 1183.345 | O117: 43.4428 | P117: 106.2685 | Q117: 10.9203 | R117: 1 | S117: 0.791328
B118: Febrero | C118: 422.45 | D118: 8.75 | E118: 8.09348 | F118: 17.86 | G118: 15.6826 | H118: 49.23 | I118: 1 | J118: 2.9342 | K118: 1.3299 | L118: 8.2771 | M118: 2717.94 | N118: 1167.5316 | O118: 43.9299 | P118: 106.7079 | Q118: 11.0319 | R118: 1 | S118: 0.791199
B119: Marzo | C119: 425.6667742 | D119: 8.75 | E119: 8.08826 | F119: 17.94 | G119: 15.7525 | H119: 46.52 | I119: 1 | J119: 2.9067 | K119: 1.3286 | L119: 8.2771 | M119: 2670.8 | N119: 1166.287 | O119: 40.6702 | P119: 108.5157 | Q119: 11.019 | R119: 1 | S119: 0.815652
B120: Abril | C120: 428.7176667 | D120: 8.75 | E120: 8.03469 | F120: 18.0243 | G120: 15.8154 | H120: 44.35 | I120: 1 | J120: 2.9079 | K120: 1.342 | L120: 8.2769 | M120: 2639.6 | N120: 1152.8636 | O120: 38.1618 | P120: 107.6564 | Q120: 11.2701 | R120: 1 | S120: 0.834161
B121: Mayo | C121: 431.8922581 | D121: 8.75 | E121: 7.97367 | F121: 18.0993 | G121: 15.89065072 | H121: 46.92 | I121: 1 | J121: 3.1023 | K121: 1.3789 | L121: 8.2771 | M121: 2719.43 | N121: 1177.875 | O121: 37.3971 | P121: 112.196 | Q121: 11.5199 | R121: 1 | S121: 0.833433
B122: Junio | C122: 435.101 | D122: 8.75 | E122: 7.9268 | F122: 18.1691 | G122: 15.9534 | H122: 48.12 | I122: 1 | J122: 3.1293 | K122: 1.3578 | L122: 8.2767 | M122: 2716.56 | N122: 1159.0227 | O122: 36.3213 | P122: 109.4336 | Q122: 11.3926 | R122: 1 | S122: 0.823351
B123: Julio | C123: 438.3590323 | D123: 8.75 | E123: 7.88227 | F123: 18.241 | G123: 15.98695896 | H123: 44.84 | I123: 1 | J123: 3.0384 | K123: 1.3225 | L123: 8.2767 | M123: 2653.32 | N123: 1158.7 | O123: 36.0411 | P123: 109.4871 | Q123: 11.4678 | R123: 1 | S123: 0.815356
B124: Agosto | C124: 441.6951613 | D124: 8.75 | E124: 7.89726 | F124: 18.33 | G124: 16.03618052 | H124: 41.25 | I124: 1 | J124: 3.0018 | K124: 1.3127 | L124: 8.2768 | M124: 2598.59 | N124: 1158.0318 | O124: 36.2618 | P124: 110.2336 | Q124: 11.3953 | R124: 1 | S124: 0.820331
B125: Septiembre | C125: 445.2136667 | D125: 8.75 | E125: 7.88727 | F125: 18.411 | G125: 16.05154237 | H125: 36.95 | I125: 1 | J125: 2.8914 | K125: 1.2881 | L125: 8.2767 | M125: 2552.78 | N125: 1148.719 | O125: 36.6082 | P125: 110.0914 | Q125: 11.487 | R125: 1 | S125: 0.8181
B126: Octubre | C126: 448.8583871 | D126: 8.75 | E126: 7.81805 | F126: 18.4867 | G126: 16.08446956 | H126: 32.27 | I126: 1 | J126: 2.852 | K126: 1.2469 | L126: 8.2765 | M126: 2580.7 | N126: 1141.57 | O126: 36.7766 | P126: 108.7835 | Q126: 11.4037 | R126: 1 | S126: 0.799695
B127: Noviembre | C127: 452.4416667 | D127: 8.75 | E127: 7.75895 | F127: 18.54 | G127: 16.10736806 | H127: 29.56 | I127: 1 | J127: 2.7877 | K127: 1.1968 | L127: 8.2765 | M127: 2530.19 | N127: 1086.435 | O127: 37.1746 | P127: 104.699 | Q127: 11.371 | R127: 1 | S127: 0.769676
B128: Diciembre | C128: 456.0416129 | D128: 8.75 | E128: 7.76585 | F128: 18.59 | G128: 16.13547747 | H128: 28.86 | I128: 1 | J128: 2.715 | K128: 1.2189 | L128: 8.2765 | M128: 2411.37 | N128: 1050.3739 | O128: 37.4835 | P128: 103.8104 | Q128: 11.2012 | R128: 1 | S128: 0.745974
A129: 2005 | B129: Enero | C129: 459.5196774 | D129: 8.75 | E129: 7.75159 | F129: 18.66 | G129: 16.2872 | H129: 29.8356 | I129: 1 | J129: 2.6895 | K129: 1.2248 | L129: 8.2765 | M129: 2362.96 | N129: 1037.9825 | O129: 37.6008 | P129: 103.341 | Q129: 11.2627 | R129: 1 | S129: 0.762113
B130: Febrero | C130: 462.8046429 | D130: 8.75 | E130: 7.70642 | F130: 18.73 | G130: 16.4573 | H130: 28.8475 | I130: 1 | J130: 2.5971 | K130: 1.2401 | L130: 8.2765 | M130: 2340.49 | N130: 1023.1105 | O130: 37.7423 | P130: 104.9442 | Q130: 11.1373 | R130: 1 | S130: 0.768564
B131: Marzo | C131: 465.9141935 | D131: 8.75 | E131: 7.60374 | F131: 18.77 | G131: 16.5247 | H131: 28.2981 | I131: 1 | J131: 2.7061 | K131: 1.216 | L131: 8.2765 | M131: 2353.71 | N131: 1007.7761 | O131: 38.079 | P131: 105.2543 | Q131: 11.1552 | R131: 1 | S131: 0.7585
B132: Abril | C132: 468.8153333 | D132: 8.75 | E132: 7.59479 | F132: 18.81 | G132: 16.5694 | H132: 28.2471 | I132: 1 | J132: 2.576 | K132: 1.2359 | L132: 8.2765 | M132: 2350.01 | N132: 1010.0667 | O132: 38.6212 | P132: 107.1938 | Q132: 11.1121 | R132: 1 | S132: 0.772678
B133: Mayo | C133: 471.983871 | D133: 8.75 | E133: 7.58225 | F133: 18.85 | G133: 16.6574 | H133: 28.699 | I133: 1 | J133: 2.4554 | K133: 1.2555 | L133: 8.2765 | M133: 2339.22 | N133: 1001.8386 | O133: 38.6551 | P133: 106.5952 | Q133: 10.9764 | R133: 1 | S133: 0.788075
B134: Junio | C134: 475.28 | D134: 8.75 | E134: 7.60466 | F134: 18.86 | G134: 16.6816 | H134: 28.8986 | I134: 1 | J134: 2.4148 | K134: 1.2402 | L134: 8.2765 | M134: 2331.79 | N134: 1012.46 | O134: 39.1768 | P134: 108.7473 | Q134: 10.8197 | R134: 1 | S134: 0.822727
B135: Julio | C135: 478.4996774 | D135: 8.75 | E135: 7.58016 | F135: 18.87 | G135: 16.8089 | H135: 28.927 | I135: 1 | J135: 2.3702 | K135: 1.2229 | L135: 8.2264 | M135: 2323.38 | N135: 1036.56 | O135: 41.5448 | P135: 111.9535 | Q135: 10.6724 | R135: 1 | S135: 0.830835
B136: Agosto | C136: 481.4567742 | D136: 8.75 | E136: 7.5793 | F136: 18.87 | G136: 16.8875 | H136: 29.001 | I136: 1 | J136: 2.3609 | K136: 1.2043 | L136: 8.1017 | M136: 2306.19 | N136: 1021.6804 | O136: 42.5957 | P136: 110.6065 | Q136: 10.6862 | R136: 1 | S136: 0.813361
B137: Septiembre | C137: 484.562 | D137: 8.75 | E137: 7.61243 | F137: 18.88 | G137: 16.9521 | H137: 30.4228 | I137: 1 | J137: 2.2949 | K137: 1.1777 | L137: 8.0919 | M137: 2294.52 | N137: 1029.8433 | O137: 42.3862 | P137: 111.239 | Q137: 10.7858 | R137: 1 | S137: 0.816512
B138: Octubre | C138: 487.7196774 | D138: 8.75 | E138: 7.66584 | F138: 18.89 | G138: 17.0094 | H138: 32.4065 | I138: 1 | J138: 2.2536 | K138: 1.1774 | L138: 8.0895 | M138: 2292.55 | N138: 1045.8775 | O138: 42.9885 | P138: 114.8695 | Q138: 10.8354 | R138: 1 | S138: 0.831505
B139: Noviembre | C139: 490.9143333 | D139: 8.75 | E139: 7.60081 | F139: 18.9 | G139: 17.0805 | H139: 33.2516 | I139: 1 | J139: 2.2109 | K139: 1.1815 | L139: 8.084 | M139: 2279.85 | N139: 1040.76 | O139: 43.0084 | P139: 118.454 | Q139: 10.6715 | R139: 1 | S139: 0.848452
B140: Diciembre | C140: 494.1467742 | D140: 8.75 | E140: 7.60234 | F140: 18.9 | G140: 17.1058 | H140: 33.1227 | I140: 1 | J140: 2.2809 | K140: 1.1615 | L140: 8.0755 | M140: 2278.91 | N140: 1022.381 | O140: 42.9838 | P140: 118.4624 | Q140: 10.6266 | R140: 1 | S140: 0.843167
A141: 2006 | B141: Enero | C141: 497.2870968 | D141: 8.75 | E141: 7.61146 | F141: 18.9 | G141: 17.2182 | H141: 34.5649 | I141: 1 | J141: 2.2666 | K141: 1.1572 | L141: 8.0654 | M141: 2273.66 | N141: 981.435 | O141: 43.3674 | P141: 115.4765 | Q141: 10.5422 | R141: 1 | S141: 0.82627
B142: Febrero | C142: 500.2321429 | D142: 8.75 | E142: 7.59895 | F142: 18.9 | G142: 17.309 | H142: 34.1737 | I142: 1 | J142: 2.1587 | K142: 1.1489 | L142: 8.0512 | M142: 2256.24 | N142: 969.8447 | O142: 43.0526 | P142: 117.8605 | Q142: 10.4842 | R142: 1 | S142: 0.837593
B143: Marzo | C143: 502.9870968 | D143: 8.75 | E143: 7.60908 | F143: 18.9 | G143: 17.36209876 | H143: 32.5611 | I143: 1 | J143: 2.1528 | K143: 1.1573 | L143: 8.035 | M143: 2262.36 | N143: 974.7109 | O143: 42.689 | P143: 117.2778 | Q143: 10.7493 | R143: 1 | S143: 0.83141
B144: Abril | C144: 505.5616667 | D144: 8.75 | E144: 7.58411 | F144: 18.9 | G144: 17.4192 | H144: 32.1063 | I144: 1 | J144: 2.1281 | K144: 1.1441 | L144: 8.0143 | M144: 2334.29 | N144: 952.595 | O144: 42.1459 | P144: 117.0695 | Q144: 11.0489 | R144: 1 | S144: 0.814902
B145: Mayo | C145: 507.6303226 | D145: 8.75 | E145: 7.5749 | F145: 18.9 | G145: 17.4924 | H145: 32.4925 | I145: 1 | J145: 2.1697 | K145: 1.11 | L145: 8.0131 | M145: 2417.99 | N145: 940.8168 | O145: 39.4874 | P145: 111.7305 | Q145: 11.0908 | R145: 1 | S145: 0.783345
B146: Junio | C146: 510.3943333 | D146: 8.75 | E146: 7.60124 | F146: 18.9 | G146: 17.59090004 | H146: 32.7652 | I146: 1 | J146: 2.2493 | K146: 1.1137 | L146: 8.0042 | M146: 2542.24 | N146: 954.45 | O146: 39.5805 | P146: 114.625 | Q146: 11.3934 | R146: 1 | S146: 0.789929
B147: Julio | C147: 513.2693548 | D147: 8.75 | E147: 7.57412 | F147: 18.9 | G147: 17.62906868 | H147: 32.7544 | I147: 1 | J147: 2.1883 | K147: 1.1294 | L147: 7.9897 | M147: 2511.74 | N147: 950.81 | O147: 39.901 | P147: 115.767 | Q147: 10.983 | R147: 1 | S147: 0.788641
B148: Agosto | C148: 515.8822581 | D148: 8.75 | E148: 7.57383 | F148: 18.9 | G148: 17.7196 | H148: 32.6344 | I148: 1 | J148: 2.1553 | K148: 1.1182 | L148: 7.9722 | M148: 2389.65 | N148: 960.9522 | O148: 39.103 | P148: 115.9243 | Q148: 10.8735 | R148: 1 | S148: 0.780622
B149: Septiembre | C149: 518.4986667 | D149: 8.75 | E149: 7.59764 | F149: 18.9 | G149: 17.74859545 | H149: 32.9495 | I149: 1 | J149: 2.1679 | K149: 1.1161 | L149: 7.9334 | M149: 2398.88 | N149: 952.29 | O149: 39.0757 | P149: 117.2145 | Q149: 10.9888 | R149: 1 | S149: 0.785722
B150: Octubre | C150: 518.0187097 | D150: 8.75 | E150: 7.60496 | F150: 18.9 | G150: 17.8292 | H150: 33.4737 | I150: 1 | J150: 2.1458 | K150: 1.1285 | L150: 7.9018 | M150: 2364.29 | N150: 952.6429 | O150: 39.1024 | P150: 118.609 | Q150: 10.8854 | R150: 1 | S150: 0.792652
B151: Noviembre | C151: 514.7626667 | D151: 8.75 | E151: 7.59913 | F151: 18.9 | G151: 17.91546185 | H151: 33.559 | I151: 1 | J151: 2.1555 | K151: 1.1359 | L151: 7.8622 | M151: 2290.46 | N151: 935.4143 | O151: 39.0829 | P151: 117.3205 | Q151: 10.9133 | R151: 1 | S151: 0.775936
B152: Diciembre | C152: 515.1909677 | D152: 8.75 | E152: 7.59505 | F152: 18.9 | G152: 17.9846 | H152: 33.0856 | I152: 1 | J152: 2.1476 | K152: 1.1532 | L152: 7.8219 | M152: 2261.335263 | N152: 924.98 | O152: 38.3144 | P152: 117.322 | Q152: 10.8546 | R152: 1 | S152: 0.757527
A153: 2007 | B153: Enero | C153: 516.1519355 | D153: 8.75 | E153: 7.66913 | F153: 18.9 | G153: 18.06 | H153: 33.7012 | I153: 1 | J153: 2.1376 | K153: 1.1763 | L153: 7.7876 | M153: 2236.829312 | N153: 936.7619 | O153: 38.3987 | P153: 120.4471 | Q153: 10.9559 | R153: 1 | S153: 0.769334
B154: Febrero | C154: 517.1875 | D154: 8.75 | E154: 7.6863 | F154: 18.9 | G154: 18.1479 | H154: 33.3618 | I154: 1 | J154: 2.0939 | K154: 1.171 | L154: 7.7502 | M154: 2226.745692 | N154: 936.9 | O154: 38.4593 | P154: 120.5047 | Q154: 10.9951 | R154: 1 | S154: 0.764384
B155: Marzo | C155: 516.9158065 | D155: 8.75 | E155: 7.68327 | F155: 18.9 | G155: 18.1942535 | H155: 32.7913 | I155: 1 | J155: 2.0883 | K155: 1.1682 | L155: 7.7369 | M155: 2200.36 | N155: 942.8841 | O155: 37.9979 | P155: 117.26 | Q155: 11.1144 | R155: 1 | S155: 0.754985
B156: Abril | C156: 516.734 | D156: 8.75 | E156: 7.65258 | F156: 18.9 | G156: 18.21900657 | H156: 32.2281 | I156: 1 | J156: 2.0302 | K156: 1.135 | L156: 7.7247 | M156: 2141.93 | N156: 930.6905 | O156: 36.9313 | P156: 118.9324 | Q156: 10.9802 | R156: 1 | S156: 0.740076
B157: Mayo | C157: 516.7677419 | D157: 8.75 | E157: 7.63443 | F157: 18.9 | G157: 18.25888113 | H157: 32.1398 | I157: 1 | J157: 1.9836 | K157: 1.0951 | L157: 7.6773 | M157: 2004.673 | N157: 927.5636 | O157: 36.8584 | P157: 120.7732 | Q157: 10.8221 | R157: 1 | S157: 0.739935
B158: Junio | C158: 516.6763333 | D158: 8.75 | E158: 7.66962 | F158: 18.9 | G158: 18.2928 | H158: 32.4154 | I158: 1 | J158: 1.9323 | K158: 1.0651 | L158: 7.6333 | M158: 1920.918 | N158: 927.8667 | O158: 36.2805 | P158: 122.6886 | Q158: 10.833 | R158: 1 | S158: 0.745139
B159: Julio | C159: 516.5954839 | D159: 8.75 | E159: 7.67015 | F159: 18.9 | G159: 18.3649 | H159: 32.9927 | I159: 1 | J159: 1.8812 | K159: 1.0502 | L159: 7.5757 | M159: 1952.1725 | N159: 918.119 | O159: 35.6152 | P159: 121.4148 | Q159: 10.8146 | R159: 1 | S159: 0.728812
B160: Agosto | C160: 516.5754839 | D160: 8.75 | E160: 7.65421 | F160: 18.9 | G160: 18.5101 | H160: 32.9035 | I160: 1 | J160: 1.962 | K160: 1.0579 | L160: 7.5734 | M160: 2061.568 | N160: 934.4848 | O160: 35.6897 | P160: 116.7335 | Q160: 11.0438 | R160: 1 | S160: 0.733945
B161: Septiembre | C161: 516.3666667 | D161: 8.75 | E161: 7.690245151 | F161: 18.9 | G161: 18.5948 | H161: 33.3062 | I161: 1 | J161: 1.9023 | K161: 1.0267 | L161: 7.521 | M161: 2109.29281 | N161: 928.595 | O161: 36.0888 | P161: 115.0435 | Q161: 11.0319 | R161: 1 | S161: 0.719036
B162: Octubre | C162: 516.5822581 | D162: 8.75 | E162: 7.71088 | F162: 18.9 | G162: 18.7143 | H162: 33.4551 | I162: 1 | J162: 1.7987 | K162: 0.9754 | L162: 7.5019 | M162: 1998.37865 | N162: 914.9435 | O162: 36.216 | P162: 115.8661 | Q162: 10.8214 | R162: 1 | S162: 0.702626
B163: Noviembre | C163: 511.2913333 | D163: 8.75 | E163: 7.629872428 | F163: 18.9 | G163: 18.793 | H163: 33.4079 | I163: 1 | J163: 1.7669 | K163: 0.9672 | L163: 7.421 | M163: 2044.93333 | N163: 918.8095 | O163: 36.7643 | P163: 111.0729 | Q163: 10.8811 | R163: 1 | S163: 0.681164
B164: Diciembre | C164: 495.7548387 | D164: 8.75 | E164: 7.614519314 | F164: 18.9 | G164: 18.8406 | H164: 33.5189 | I164: 1 | J164: 1.7852 | K164: 1.0021 | L164: 7.3682 | M164: 2015.04303 | N164: 931.095 | O164: 37.0585 | P164: 112.449 | Q164: 10.8463 | R164: 1 | S164: 0.687273
A165: 2008 | B165: Enero | C165: 494.6080645 | D165: 8.75 | E165: 7.695000353 | F165: 18.8951 | G165: 18.9028871 | H165: 33.757 | I165: 1 | J165: 1.771 | K165: 1.0099 | L165: 7.2405 | M165: 1984.306271 | N165: 942.0571 | O165: 37.1911 | P165: 107.8181 | Q165: 10.9057 | R165: 1 | S165: 0.67947
B166: Febrero | C166: 493.5082759 | D166: 8.75 | E166: 7.713841629 | F166: 18.8951 | G166: 18.99551702 | H166: 33.8344 | I166: 1 | J166: 1.729 | K166: 0.9986 | L166: 7.1644 | M166: 1905.305172 | N166: 944.005 | O166: 37.6004 | P166: 107.03 | Q166: 10.7679 | R166: 1 | S166: 0.677845
B167: Marzo | C167: 492.3593548 | D167: 8.75 | E167: 7.628418063 | F167: 18.897 | G167: 19.06378869 | H167: 33.9169 | I167: 1 | J167: 1.709 | K167: 1.0029 | L167: 7.0722 | M167: 1842.826575 | N167: 981.7348 | O167: 38.2881 | P167: 100.7562 | Q167: 10.7328 | R167: 1 | S167: 0.64443
B168: Abril | C168: 491.277 | D168: 8.75 | E168: 7.530417114 | F168: 18.9036 | G168: 19.12489106 | H168: 34.0258 | I168: 1 | J168: 1.6863 | K168: 1.0137 | L168: 6.9997 | M168: 1793.286364 | N168: 986.8636 | O168: 38.6261 | P168: 102.6777 | Q168: 10.5146 | R168: 1 | S168: 0.634813
B169: Mayo | C169: 507.5548387 | D169: 8.75 | E169: 7.42408705 | F169: 18.91190952 | G169: 19.21389597 | H169: 34.0114 | I169: 1 | J169: 1.6585 | K169: 0.9993 | L169: 6.9725 | M169: 1775.645076 | N169: 1034.1333 | O169: 38.6801 | P169: 104.3595 | Q169: 10.4381 | R169: 1 | S169: 0.642524
B170: Junio | C170: 516.4616667 | D170: 8.75 | E170: 7.482083383 | F170: 18.89890952 | G170: 19.30172157 | H170: 34.1572 | I170: 1 | J170: 1.6179 | K170: 1.0166 | L170: 6.8993 | M170: 1731.661556 | N170: 1031.4857 | O170: 39.2399 | P170: 106.9152 | Q170: 10.3269 | R170: 1 | S170: 0.642637
B171: Julio | C171: 532.2603226 | D171: 8.75 | E171: 7.431765251 | F171: 18.89541304 | G171: 19.3756 | H171: 34.2736 | I171: 1 | J171: 1.59 | K171: 1.013 | L171: 6.8355 | M171: 1770.139071 | N171: 1015.0545 | O171: 39.6695 | P171: 106.8518 | Q171: 10.2094 | R171: 1 | S171: 0.634692
B172: Agosto | C172: 547.1509677 | D172: 8.75 | E172: 7.397198527 | F172: 18.8952 | G172: 19.47558358 | H172: 34.6753 | I172: 1 | J172: 1.6127 | K172: 1.0535 | L172: 6.8462 | M172: 1848.142324 | N172: 1046.1143 | O172: 39.8556 | P172: 109.3624 | Q172: 10.1154 | R172: 1 | S172: 0.668898
B173: Septiembre | C173: 548.974 | D173: 8.75 | E173: 7.450371104 | F173: 18.89512381 | G173: 19.43296112 | H173: 34.8317 | I173: 1 | J173: 1.8031 | K173: 1.0582 | L173: 6.8307 | M173: 2072.656352 | N173: 1134.8667 | O173: 40.0095 | P173: 106.5748 | Q173: 10.6633 | R173: 1 | S173: 0.696734
B174: Octubre | C174: 550.2519355 | D174: 8.75 | E174: 7.51294666 | F174: 18.89511905 | G174: 19.6469793 | H174: 34.99 | I174: 1 | J174: 2.181 | K174: 1.1847 | L174: 6.8358 | M174: 2286.977252 | N174: 1329.1877 | O174: 39.8173 | P174: 99.9659 | Q174: 12.6593 | R174: 1 | S174: 0.753716
B175: Noviembre | C175: 548.6533333 | D175: 8.75 | E175: 7.620865861 | F175: 18.895115 | G175: 19.73158772 | H175: 35.1941 | I175: 1 | J175: 2.2704 | K175: 1.2171 | L175: 6.8281 | M175: 2329.922068 | N175: 1398.7044 | O175: 40.1076 | P175: 96.9656 | Q175: 13.1186 | R175: 1 | S175: 0.78448
B176: Diciembre | C176: 544.4825806 | D176: 8.75 | E176: 7.689267775 | F176: 18.8951 | G176: 19.79588242 | H176: 35.2569 | I176: 1 | J176: 2.3954 | K176: 1.2337 | L176: 6.8539 | M176: 2243.669072 | N176: 1361.5727 | O176: 40.2059 | P176: 91.275 | Q176: 13.4167 | R176: 1 | S176: 0.740453
A177: 2009 | B177: Enero | C177: 551.3083871 | D177: 8.75 | E177: 7.845511406 | F177: 18.8951 | G177: 19.91604225 | H177: 35.3693 | I177: 1 | J177: 2.3079 | K177: 1.2248 | L177: 6.836 | M177: 2265.820814 | N177: 1354.3975 | O177: 40.1949 | P177: 90.1205 | Q177: 13.8839 | R177: 1 | S177: 0.755724
B178: Febrero | C178: 557.7839286 | D178: 8.75 | E178: 7.932446275 | F178: 18.8951 | G178: 19.99792655 | H178: 35.558 | I178: 1 | J178: 2.323 | K178: 1.2452 | L178: 6.8363 | M178: 2511.68 | N178: 1439.5842 | O178: 40.4555 | P178: 92.9158 | Q178: 14.6066 | R178: 1 | S178: 0.782243
B179: Marzo | C179: 560.7116129 | D179: 8.75 | E179: 8.063584331 | F179: 18.8951 | G179: 20.0287 | H179: 35.6669 | I179: 1 | J179: 2.3161 | K179: 1.2645 | L179: 6.836 | M179: 2471.706805 | N179: 1449.6159 | O179: 40.5829 | P179: 97.855 | Q179: 14.6466 | R179: 1 | S179: 0.766963
B180: Abril | C180: 565.0963333 | D180: 8.75 | E180: 8.079561435 | F180: 18.8951 | G180: 20.00655499 | H180: 35.8256 | I180: 1 | J180: 2.2027 | K180: 1.2242 | L180: 6.8306 | M180: 2375.038058 | N180: 1332.125 | O180: 40.7511 | P180: 98.92 | Q180: 13.4035 | R180: 1 | S180: 0.757793
B181: Mayo | C181: 569.7370968 | D181: 8.75 | E181: 8.08862782 | F181: 18.8951 | G181: 20.16488068 | H181: 35.9483 | I181: 1 | J181: 2.0689 | K181: 1.1528 | L181: 6.8235 | M181: 2227.246872 | N181: 1254.345 | O181: 40.8097 | P181: 96.6445 | Q181: 13.1895 | R181: 1 | S181: 0.733808
B182: Junio | C182: 571.894 | D182: 8.75 | E182: 8.119083535 | F182: 18.8951 | G182: 20.27352226 | H182: 35.9232 | I182: 1 | J182: 1.9586 | K182: 1.1264 | L182: 6.8334 | M182: 2090.041057 | N182: 1259.2932 | O182: 40.9695 | P182: 96.6145 | Q182: 13.3414 | R182: 1 | S182: 0.713503
B183: Julio | C183: 577.1987097 | D183: 8.75 | E183: 8.165131655 | F183: 18.8951 | G183: 20.37069852 | H183: 35.9799 | I183: 1 | J183: 1.9328 | K183: 1.1229 | L183: 6.8317 | M183: 2049.352106 | N183: 1259.6739 | O183: 41.2803 | P183: 94.367 | Q183: 13.3623 | R183: 1 | S183: 0.709885
B184: Agosto | C184: 582.2083871 | D184: 8.75 | E184: 8.249371139 | F184: 18.8951 | G184: 20.49532671 | H184: 36.0269 | I184: 1 | J184: 1.8453 | K184: 1.0872 | L184: 6.8323 | M184: 2016.95569 | N184: 1238.9952 | O184: 41.4541 | P184: 94.8971 | Q184: 13.0063 | R184: 1 | S184: 0.7009
B185: Septiembre | C185: 582.1556667 | D185: 8.75 | E185: 8.303127853 | F185: 18.89511 | G185: 20.57807166 | H185: 36.0559 | I185: 1 | J185: 1.8187 | K185: 1.0816 | L185: 6.8277 | M185: 1973.81 | N185: 1211.8643 | O185: 41.5617 | P185: 91.2748 | Q185: 13.406 | R185: 1 | S185: 0.686827
B186: Octubre | C186: 577.4912903 | D186: 8.75 | E186: 8.335664967 | F186: 18.89511 | G186: 20.65787076 | H186: 36.0949 | I186: 1 | J186: 1.7378 | K186: 1.0547 | L186: 6.8267 | M186: 1902.123363 | N186: 1173.7405 | O186: 41.8817 | P186: 90.3671 | Q186: 13.2275 | R186: 1 | S186: 0.674987
B187: Noviembre | C187: 562.3836667 | D187: 8.75 | E187: 8.292607554 | F187: 18.89511 | G187: 20.72508312 | H187: 36.0931 | I187: 1 | J187: 1.7268 | K187: 1.0593 | L187: 6.8271 | M187: 1974.952872 | N187: 1162.8368 | O187: 42.1744 | P187: 89.2674 | Q187: 13.1115 | R187: 1 | S187: 0.670522
B188: Diciembre | C188: 562.636129 | D188: 8.75 | E188: 8.314132134 | F188: 18.89511 | G188: 20.78146346 | H188: 36.0895 | I188: 1 | J188: 1.7508 | K188: 1.0537 | L188: 6.8275 | M188: 2020.074189 | N188: 1163.3109 | O188: 42.2555 | P188: 89.9509 | Q188: 12.8622 | R188: 1 | S188: 0.68454
A189: 2010 | B189: Enero | C189: 559.0506452 | D189: 8.75 | E189: 8.356340509 | F189: 18.89511 | G189: 20.9182347 | H189: 36.11 | I189: 1 | J189: 1.7817 | K189: 1.0438 | L189: 6.8269 | M189: 1982.18751 | N189: 1138.1947 | O189: 40.5771 | P189: 91.1011 | Q189: 12.8096 | R189: 1 | S189: 0.70078
B190: Febrero | C190: 548.6385714 | D190: 8.75 | E190: 8.136126219 | F190: 18.8951 | G190: 21.03876956 | H190: 36.192 | I190: 1 | J190: 1.842 | K190: 1.0572 | L190: 6.8285 | M190: 1951.677306 | N190: 1155.6553 | O190: 38.5728 | P190: 90.1395 | Q190: 12.9396 | R190: 1 | S190: 0.730765
B191: Marzo | C191: 532.6467742 | D191: 8.75 | E191: 8.01032769 | F191: 18.89510361 | G191: 21.12179636 | H191: 36.2973 | I191: 1 | J191: 1.7855 | K191: 1.0229 | L191: 6.8262 | M191: 1910.294664 | N191: 1136.0822 | O191: 39.4833 | P191: 90.7161 | Q191: 12.5673 | R191: 1 | S191: 0.73706
B192: Abril | C192: 511.2883333 | D192: 8.75 | E192: 7.992844968 | F192: 18.89510361 | G192: 21.18448476 | H192: 36.4216 | I192: 1 | J192: 1.7568 | K192: 1.0052 | L192: 6.8256 | M192: 1936.521278 | N192: 1115.4591 | O192: 39.6312 | P192: 93.4527 | Q192: 12.2396 | R192: 1 | S192: 0.745791
B193: Mayo | C193: 522.3954839 | D193: 8.75 | E193: 7.987906195 | F193: 18.8951 | G193: 21.26230473 | H193: 36.6982 | I193: 1 | J193: 1.8142 | K193: 1.0403 | L193: 6.8275 | M193: 1985.691771 | N193: 1164.841 | O193: 39.7598 | P193: 91.973 | Q193: 12.7262 | R193: 1 | S193: 0.796253
B194: Junio | C194: 529.9133333 | D194: 8.75 | E194: 7.998232545 | F194: 18.8951 | G194: 21.33895573 | H194: 36.7269 | I194: 1 | J194: 1.8042 | K194: 1.0376 | L194: 6.8184 | M194: 1926.178542 | N194: 1214.1114 | O194: 39.8171 | P194: 90.8059 | Q194: 12.7102 | R194: 1 | S194: 0.819193
B195: Julio | C195: 518.7045161 | D195: 8.75 | E195: 7.99287 | F195: 18.8951 | G195: 21.42315135 | H195: 36.7962 | I195: 1 | J195: 1.7689 | K195: 1.0422 | L195: 6.7762 | M195: 1872.964996 | N195: 1203.8095 | O195: 39.8263 | P195: 87.5005 | Q195: 12.8038 | R195: 1 | S195: 0.783286
B196: Agosto | C196: 506.8458065 | D196: 8.75 | E196: 8 | F196: 18.89509971 | G196: 21.53039115 | H196: 36.8931 | I196: 1 | J196: 1.7589 | K196: 1.0404 | L196: 6.7873 | M196: 1821.423907 | N196: 1179.5159 | O196: 39.833 | P196: 85.3727 | Q196: 12.766 | R196: 1 | S196: 0.775236
B197: Septiembre | C197: 505.0586667 | D197: 8.75 | E197: 8.06628 | F197: 18.8951 | G197: 21.61925608 | H197: 36.9847 | I197: 1 | J197: 1.718 | K197: 1.033 | L197: 6.7396 | M197: 1806.701629 | N197: 1159.931 | O197: 39.8995 | P197: 84.3571 | Q197: 12.7977 | R197: 1 | S197: 0.765702
B198: Octubre | C198: 505.0580645 | D198: 8.75 | E198: 8.04459 | F198: 18.8951 | G198: 21.72013716 | H198: 37.1886 | I198: 1 | J198: 1.6837 | K198: 1.0179 | L198: 6.6678 | M198: 1807.896822 | N198: 1121.94 | O198: 39.9661 | P198: 81.7285 | Q198: 12.4393 | R198: 1 | S198: 0.719578
B199: Noviembre | C199: 507.397 | D199: 8.75 | E199: 7.99179 | F199: 18.8951 | G199: 21.74105588 | H199: 37.2157 | I199: 1 | J199: 1.7131 | K199: 1.0129 | L199: 6.6538 | M199: 1866.059614 | N199: 1129.623 | O199: 40.1379 | P199: 82.518 | Q199: 12.3376 | R199: 1 | S199: 0.732405
B200: Diciembre | C200: 501.1212903 | D200: 8.75 | E200: 7.96 | F200: 18.8951 | G200: 21.7999789 | H200: 37.3097 | I200: 1 | J200: 1.6955 | K200: 1.0081 | L200: 6.6497 | M200: 1918.793154 | N200: 1145.4833 | O200: 40.0611 | P200: 83.3376 | Q200: 12.3902 | R200: 1 | S200: 0.756462
A201: 2011 | B201: Enero | C201: 501.8674194 | D201: 8.75 | E201: 7.94 | F201: 18.8951 | G201: 21.95954562 | H201: 37.4465 | I201: 1 | J201: 1.6745 | K201: 0.9939 | L201: 6.5964 | M201: 1867.732238 | N201: 1118.8675 | O201: 40.2057 | P201: 82.625 | Q201: 12.128 | R201: 1 | S201: 0.748475
B202: Febrero | C202: 497.1978571 | D202: 8.75 | E202: 7.79368 | F202: 18.8951 | G202: 22.06417578 | H202: 37.6276 | I202: 1 | J202: 1.6664 | K202: 0.9876 | L202: 6.5761 | M202: 1882.658221 | N202: 1117.4368 | O202: 40.4101 | P202: 82.5368 | Q202: 12.0649 | R202: 1 | S202: 0.732902
... 101 more rows

Sheet ITCER GLOBAL
A2: Secretaría Ejecutiva
A3: Consejo Monetario Centroamericano
C4: ITCER GLOBAL Periodo de referencia Diciembre 2000=100 | K4: VARIACION INTERANUAL | S4: EFECTO TIPO DE CAMBIO | AA4: EFECTO PRECIO
A5: Año | B5: MES | C5: COSTA RICA | D5: EL SALVADOR | E5: GUATEMALA | F5: HONDURAS | G5: NICARAGUA | H5: REPÚBLICA DOMINICANA | I5: PANAMÁ | K5: COSTA RICA | L5: EL SALVADOR | M5: GUATEMALA | N5: HONDURAS | O5: NICARAGUA | P5: REPÚBLICA DOMINICANA | Q5: PANAMÁ | S5: COSTA RICA | T5: EL SALVADOR | U5: GUATEMALA | V5: HONDURAS | W5: NICARAGUA | X5: REPÚBLICA DOMINICANA | Y5: PANAMÁ | AA5: COSTA RICA | AB5: EL SALVADOR | AC5: GUATEMALA | AD5: HONDURAS | AE5: NICARAGUA | AF5: REPÚBLICA DOMINICANA | AG5: PANAMÁ
A6: 1995 | B6: Enero | C6: 99.89023078 | D6: 118.501069 | E6: 101.6990852 | F6: 138.6148717 | G6: 92.8714573 | H6: 106.4655057 | I6: 101.1299937 | S6: 60.66291634 | T6: 120.2189122 | U6: 87.03910577 | V6: 70.0784916 | W6: 66.66885468 | X6: 85.60894354 | Y6: 118.2462462 | AA6: 60.72957872 | AB6: 101.4496436 | AC6: 85.58494462 | AD6: 50.55625761 | AE6: 71.78616188 | AF6: 80.4100286 | AG6: 116.9250011
B7: Febrero | C7: 100.6178855 | D7: 118.2307747 | E7: 102.8111566 | F7: 131.1635373 | G7: 93.92033958 | H7: 106.8685601 | I7: 102.0376397 | S7: 61.61515775 | T7: 120.4415559 | U7: 86.87120216 | V7: 69.21535506 | W7: 67.42265376 | X7: 85.74475497 | Y7: 118.5099954 | AA7: 61.23678455 | AB7: 101.8698864 | AC7: 84.49589033 | AD7: 52.77027175 | AE7: 71.78706345 | AF7: 80.23384512 | AG7: 116.1434112
B8: Marzo | C8: 102.3056847 | D8: 117.5753271 | E8: 102.2512257 | F8: 131.3236695 | G8: 95.04785266 | H8: 106.5147147 | I8: 102.8897444 | S8: 62.79138632 | T8: 120.3068175 | U8: 86.06772418 | V8: 69.89352768 | W8: 68.13013259 | X8: 85.62447705 | Y8: 119.0959884 | AA8: 61.37624366 | AB8: 102.3231833 | AC8: 84.17280441 | AD8: 53.22233834 | AE8: 71.67982304 | AF8: 80.38746315 | AG8: 115.7510781
B9: Abril | C9: 104.8703964 | D9: 118.7160149 | E9: 104.1546201 | F9: 129.5088249 | G9: 97.74998395 | H9: 108.544291 | I9: 104.6144521 | S9: 64.28434539 | T9: 121.216817 | U9: 87.47072841 | V9: 70.28980928 | W9: 69.45785767 | X9: 86.46309582 | Y9: 120.4404707 | AA9: 61.29884847 | AB9: 102.1065415 | AC9: 83.98161148 | AD9: 54.27414643 | AE9: 71.05664355 | AF9: 79.6569723 | AG9: 115.1279468
B10: Mayo | C10: 105.7682308 | D10: 118.5456207 | E10: 103.4830791 | F10: 127.9103596 | G10: 98.42345968 | H10: 108.6528194 | I10: 104.623609 | S10: 65.07532664 | T10: 121.064934 | U10: 87.6034408 | V10: 70.35109549 | W10: 69.9595416 | X10: 86.52432114 | Y10: 120.1878906 | AA10: 61.52634508 | AB10: 102.1251846 | AC10: 84.65484561 | AD10: 55.00031092 | AE10: 71.0801488 | AF10: 79.63375605 | AG10: 114.8764526
B11: Junio | C11: 106.1333618 | D11: 117.885571 | E11: 102.7646466 | F11: 129.027318 | G11: 97.82937374 | H11: 108.1545833 | I11: 104.7278841 | S11: 65.98475093 | T11: 120.6913457 | U11: 87.56713081 | V11: 71.27404355 | W11: 70.38927633 | X11: 86.38272714 | Y11: 120.0238616 | AA11: 62.17154511 | AB11: 102.3800832 | AC11: 85.21133846 | AD11: 55.23949863 | AE11: 71.95106504 | AF11: 79.86968699 | AG11: 114.6054489
B12: Julio | C12: 106.0147037 | D12: 115.0545351 | E12: 103.2981519 | F12: 129.3627655 | G12: 97.82916968 | H12: 107.5696607 | I12: 104.6111162 | S12: 66.86863358 | T12: 120.521172 | U12: 87.70523361 | V12: 72.20287215 | W12: 70.89590164 | X12: 86.38817718 | Y12: 119.7373096 | AA12: 63.07486718 | AB12: 104.7513441 | AC12: 84.90493975 | AD12: 55.81426146 | AE12: 72.46908245 | AF12: 80.30905426 | AG12: 114.4594513
B13: Agosto | C13: 105.4256553 | D13: 113.5695722 | E13: 102.8943654 | F13: 128.7692143 | G13: 99.60647265 | H13: 105.9047046 | I13: 103.3538951 | S13: 67.02523879 | T13: 119.3060179 | U13: 87.4957175 | V13: 72.55303419 | W13: 70.67974199 | X13: 85.69290221 | Y13: 118.0617318 | AA13: 63.57583324 | AB13: 105.051041 | AC13: 85.03450811 | AD13: 56.34346267 | AE13: 70.958985 | AF13: 80.9151043 | AG13: 114.2305587
B14: Septiembre | C14: 103.719186 | D14: 110.2399655 | E14: 101.61967 | F14: 126.4197766 | G14: 97.90609077 | H14: 102.6713036 | I14: 101.898798 | S14: 67.53368401 | T14: 118.3416584 | U14: 88.07010868 | V14: 72.97213689 | W14: 70.66299758 | X14: 85.23817928 | Y14: 116.9448549 | AA14: 65.11204593 | AB14: 107.3491432 | AC14: 86.66639906 | AD14: 57.72208975 | AE14: 72.1742611 | AF14: 83.020451 | AG14: 114.7656863
B15: Octubre | C15: 102.6701064 | D15: 110.1579104 | E15: 101.6479234 | F15: 126.6139381 | G15: 95.5702631 | H15: 102.149721 | I15: 102.4742587 | S15: 68.53829051 | T15: 117.9068444 | U15: 88.76813993 | V15: 74.02349656 | W15: 71.10306263 | X15: 85.12541168 | Y15: 116.8373347 | AA15: 66.75583859 | AB15: 107.0343872 | AC15: 87.32902453 | AD15: 58.46393981 | AE15: 74.39873065 | AF15: 83.33396392 | AG15: 114.0162771
B16: Noviembre | C16: 101.4501673 | D16: 109.219379 | E16: 100.3279522 | F16: 127.5843533 | G16: 93.38521963 | H16: 100.5760214 | I16: 102.0100063 | S16: 69.15836958 | T16: 116.8170799 | U16: 88.39088569 | V16: 75.38913968 | W16: 71.07722216 | X16: 84.49526383 | Y16: 116.0132582 | AA16: 68.1697935 | AB16: 106.9563671 | AC16: 88.10195344 | AD16: 59.0896436 | AE16: 76.11185415 | AF16: 84.0113405 | AG16: 113.7273317
B17: Diciembre | C17: 101.6631218 | D17: 109.270434 | E17: 98.82432909 | F17: 128.2028673 | G17: 95.23849065 | H17: 100.420418 | I17: 101.6443739 | S17: 69.96828458 | T17: 116.6228691 | U17: 87.18384 | V17: 76.80674833 | W17: 71.51766456 | X17: 84.38708585 | Y17: 115.7292871 | AA17: 68.82366324 | AB17: 106.7286592 | AC17: 88.22102897 | AD17: 59.91032022 | AE17: 75.09323601 | AF17: 84.03379268 | AG17: 113.8570515
A18: 1996 | B18: Enero | C18: 101.6605897 | D18: 108.7531167 | E18: 100.7398155 | F18: 130.5542623 | G18: 96.99226486 | H18: 97.38966824 | I18: 105.1459706 | K18: =(C18/C6-1)*100 -> 1.772304333 | L18: =(D18/D6-1)*100 -> -8.226045887 | M18: -0.9432432207 | N18: -5.815111488 | O18: 4.437108745 | P18: -8.524674128 | Q18: 3.97110377 | S18: 70.81670843 | T18: 116.9454778 | U18: 89.44050497 | V18: 78.25965589 | W18: 71.2970034 | X18: 79.82466412 | Y18: 119.9216214 | AA18: 69.65994262 | AB18: 107.5329897 | AC18: 88.78366963 | AD18: 59.94415999 | AE18: 73.50792716 | AF18: 81.96420171 | AG18: 114.0525126
B19: Febrero | C19: 102.1712876 | D19: 108.7539396 | E19: 101.6285737 | F19: 129.9408899 | G19: 97.13075574 | H19: 97.60352894 | I19: 105.5772447 | K19: =(C19/C7-1)*100 -> 1.543862852 | L19: =(D19/D7-1)*100 -> -8.015540054 | M19: =(E19/E7-1)*100 -> -1.150247682 | N19: =(F19/F7-1)*100 -> -0.9321549705 | O19: =(G19/G7-1)*100 -> 3.418233128 | P19: =(H19/H7-1)*100 -> -8.66955737 | Q19: =(I19/I7-1)*100 -> 3.468920869 | S19: 71.49277097 | T19: 116.5002557 | U19: 90.22383597 | V19: 79.7290356 | W19: 71.71726034 | X19: 79.8017783 | Y19: 119.6735944 | AA19: 69.97344618 | AB19: 107.1227912 | AC19: 88.77802048 | AD19: 61.35792643 | AE19: 73.8357895 | AF19: 81.76116086 | AG19: 113.3516931
B20: Marzo | C20: 103.0932941 | D20: 108.6392415 | E20: 101.1958874 | F20: 131.2237081 | G20: 97.54856487 | H20: 97.96381853 | I20: 105.6406915 | K20: 0.7698588865 | L20: -7.600306806 | M20: -1.032103276 | N20: -0.07611834637 | O20: 2.631003382 | P20: -8.027901332 | Q20: 2.673684389 | S20: 72.09656779 | T20: 116.150702 | U20: 90.19736224 | V20: 81.28606874 | W20: 72.16477967 | X20: 79.77295197 | Y20: 119.342645 | AA20: 69.93332438 | AB20: 106.914132 | AC20: 89.13145045 | AD20: 61.94465158 | AE20: 73.97830995 | AF20: 81.43103563 | AG20: 112.9703368
B21: Abril | C21: 103.6359938 | D21: 108.7981399 | E21: 99.73293591 | F21: 130.7578444 | G21: 98.00374235 | H21: 98.2584515 | I21: 105.7364686 | K21: -1.177074396 | L21: -8.354285649 | M21: -4.245307795 | N21: 0.9644280635 | O21: 0.2595994219 | P21: -9.476168124 | Q21: 1.072525366 | S21: 72.58932843 | T21: 115.9396124 | U21: 89.33382314 | V21: 82.22072394 | W21: 72.6430853 | X21: 79.75906437 | Y21: 118.9455605 | AA21: 70.04258438 | AB21: 106.5639656 | AC21: 89.57304056 | AD21: 62.88014637 | AE21: 74.12276671 | AF21: 81.17272677 | AG21: 112.4924655
B22: Mayo | C22: 103.1157024 | D22: 108.4026225 | E22: 98.67514868 | F22: 129.906932 | G22: 97.5395849 | H22: 98.24417639 | I22: 106.1168612 | K22: -2.507868738 | L22: -8.556198124 | M22: -4.646102941 | N22: 1.560915276 | O22: -0.8980326199 | P22: -9.579726573 | Q22: 1.427261266 | S22: 73.13688006 | T22: 115.7759618 | U22: 88.44880113 | V22: 83.04180599 | W22: 73.16520298 | X22: 79.74032608 | Y22: 118.6011728 | AA22: 70.92700567 | AB22: 106.8018089 | AC22: 89.6363495 | AD22: 63.92407606 | AE22: 75.01077952 | AF22: 81.16544818 | AG22: 111.7646822
B23: Junio | C23: 102.8839053 | D23: 106.598596 | E23: 98.83909586 | F23: 129.9760645 | G23: 98.16674154 | H23: 97.94336082 | I23: 106.0409517 | K23: -3.061673003 | L23: -9.574517805 | M23: -3.819942793 | N23: 0.7353067281 | O23: 0.3448532773 | P23: -9.441322006 | Q23: 1.253789876 | S23: 73.79050817 | T23: 115.3125702 | U23: 88.75028886 | V23: 84.93907864 | W23: 73.59372126 | X23: 79.69174672 | Y23: 118.1321932 | AA23: 71.72211039 | AB23: 108.1745674 | AC23: 89.79269598 | AD23: 65.34978494 | AE23: 74.96807993 | AF23: 81.36513394 | AG23: 111.4024264
B24: Julio | C24: 103.1646713 | D24: 107.0838242 | E24: 97.15652733 | F24: 133.6619913 | G24: 99.21190572 | H24: 97.92004834 | I24: 106.110615 | K24: -2.688336898 | L24: -6.92776772 | M24: -5.945531869 | N24: 3.323387361 | O24: 1.41341896 | P24: -8.970570605 | Q24: 1.433402993 | S24: 74.63698936 | T24: 115.2637823 | U24: 88.12176447 | V24: 89.06582706 | W24: 74.26688549 | X24: 79.70323547 | Y24: 118.1550012 | AA24: 72.34743095 | AB24: 107.6388364 | AC24: 90.70081742 | AD24: 66.63511909 | AE24: 74.85682787 | AF24: 81.39623787 | AG24: 111.3507835
B25: Agosto | C25: 103.8211709 | D25: 104.5573989 | E25: 96.64547829 | F25: 133.7389493 | G25: 101.7360964 | H25: 98.03892167 | I25: 106.5509398 | K25: -1.521910709 | L25: -7.935376713 | M25: -6.073109151 | N25: 3.85941235 | O25: 2.138037539 | P25: -7.427227144 | Q25: 3.093298654 | S25: 75.53692418 | T25: 115.4200611 | U25: 87.92394876 | V25: 91.25534858 | W25: 75.09311694 | X25: 79.7594803 | Y25: 118.4528456 | AA25: 72.75676386 | AB25: 110.3891856 | AC25: 90.97575004 | AD25: 68.23393564 | AE25: 73.81167509 | AF25: 81.35491389 | AG25: 111.1701556
B26: Septiembre | C26: 104.0552615 | D26: 105.3802355 | E26: 96.01870769 | F26: 133.1739733 | G26: 101.6998247 | H26: 97.77936103 | I26: 106.2825326 | K26: 0.3240244303 | L26: -4.4083196 | M26: -5.511691059 | N26: 5.342674148 | O26: 3.874870248 | P26: -4.764663915 | Q26: 4.302047386 | S26: 76.08934138 | T26: 115.0740784 | U26: 87.25771501 | V26: 92.10478098 | W26: 75.52205333 | X26: 79.70979332 | Y26: 117.9791487 | AA26: 73.12397307 | AB26: 109.1989194 | AC26: 90.87574401 | AD26: 69.16124728 | AE26: 74.25976743 | AF26: 81.52005953 | AG26: 111.0052102
B27: Octubre | C27: 103.8508229 | D27: 105.3862581 | E27: 95.7803665 | F27: 132.8007252 | G27: 100.0744972 | H27: 97.79193473 | I27: 105.8292329 | K27: 1.150010039 | L27: -4.331647502 | M27: -5.77243162 | N27: 4.886339673 | O27: 4.71300792 | P27: -4.266077551 | Q27: 3.273967831 | S27: 76.64076402 | T27: 114.5862253 | U27: 86.97664356 | V27: 92.82754938 | W27: 75.90392804 | X27: 79.63921133 | Y27: 117.5679143 | AA27: 73.7988991 | AB27: 108.7297599 | AC27: 90.80842635 | AD27: 69.89988137 | AE27: 75.84742386 | AF27: 81.43740232 | AG27: 111.0920972
B28: Noviembre | C28: 104.3404702 | D28: 106.6175934 | E28: 94.23221261 | F28: 131.3044236 | G28: 100.0618328 | H28: 97.36183376 | I28: 106.2107644 | K28: 2.848987811 | L28: -2.382164791 | M28: -6.075813778 | N28: 2.915773137 | O28: 7.149539485 | P28: -3.195779298 | Q28: 4.117986321 | S28: 77.57982939 | T28: 114.7130389 | U28: 86.28849265 | V28: 93.33997225 | W28: 76.71490643 | X28: 79.64064869 | Y28: 117.8018831 | AA28: 74.35257787 | AB28: 107.5929734 | AC28: 91.57005897 | AD28: 71.0866928 | AE28: 76.66750078 | AF28: 81.7986326 | AG28: 110.9133182
B29: Diciembre | C29: 104.1097607 | D29: 106.341716 | E29: 93.28224563 | F29: 131.4621074 | G29: 99.15821953 | H29: 98.64771267 | I29: 105.0152606 | K29: 2.406614042 | L29: -2.680247405 | M29: -5.608015265 | N29: 2.542252141 | O29: 4.115698237 | P29: -1.765283729 | Q29: 3.316353467 | S29: 77.97822312 | T29: 114.2160009 | U29: 85.75245787 | V29: 94.19105311 | W29: 77.03403178 | X29: 81.55246181 | Y29: 117.067344 | AA29: 74.90001183 | AB29: 107.4046998 | AC29: 91.92795188 | AD29: 71.64882334 | AE29: 77.68799415 | AF29: 82.6704032 | AG29: 111.4765067
A30: 1997 | B30: Enero | C30: 102.0955255 | D30: 105.8370874 | E30: 92.89721987 | F30: 129.2384188 | G30: 99.90632325 | H30: 101.2787308 | I30: 107.8121096 | K30: 0.4278313422 | L30: -2.681329385 | M30: -7.785000982 | N30: -1.00789018 | O30: 3.004423491 | P30: 3.993300963 | Q30: 2.53565493 | S30: 78.02354904 | T30: 115.0509708 | U30: 86.00615442 | V30: 94.53508663 | W30: 76.55448696 | X30: 85.9162289 | Y30: 119.9885661 | AA30: 76.42210432 | AB30: 108.7057228 | AC30: 92.58205417 | AD30: 73.14782055 | AE30: 76.62626797 | AF30: 84.83146286 | AG30: 111.2941454
B31: Febrero | C31: 102.024109 | D31: 104.2879785 | E31: 91.33965484 | F31: 123.8315807 | G31: 100.5818858 | H31: 101.9406461 | I31: 106.794341 | K31: -0.14405085 | L31: -4.106482143 | M31: -10.12404139 | N31: -4.701606377 | O31: 3.553076508 | P31: 4.443606901 | Q31: 1.152801718 | S31: 78.0102391 | T31: 114.047531 | U31: 85.99732995 | V31: 92.25401502 | W31: 76.5634322 | X31: 86.06589098 | Y31: 118.1760673 | AA31: 76.46255365 | AB31: 109.3582718 | AC31: 94.15114399 | AD31: 74.49958605 | AE31: 76.12049783 | AF31: 84.42745292 | AG31: 110.6576118
B32: Marzo | C32: 101.8555741 | D32: 104.2018298 | E32: 89.80399291 | F32: 123.5729867 | G32: 101.6036433 | H32: 102.404456 | I32: 106.7006877 | K32: -1.200582482 | L32: -4.084538592 | M32: -11.25727022 | N32: -5.830288971 | O32: 4.156984216 | P32: 4.532936281 | Q32: 1.003397708 | S32: 78.5356308 | T32: 113.850685 | U32: 84.29923004 | V32: 92.51093391 | W32: 77.07321737 | X32: 86.34460104 | Y32: 117.5903718 | AA32: 77.10489239 | AB32: 109.2597752 | AC32: 93.87024708 | AD32: 74.86339563 | AE32: 75.85674574 | AF32: 84.31723033 | AG32: 110.2058237
B33: Abril | C33: 101.5013856 | D33: 104.2382733 | E33: 90.04385858 | F33: 122.6394786 | G33: 102.2875252 | H33: 101.6537606 | I33: 106.9619984 | K33: -2.059717015 | L33: -4.191125548 | M33: -9.715022667 | N33: -6.20870268 | O33: 4.371040086 | P33: 3.455488091 | Q33: 1.159041739 | S33: 79.10403029 | T33: 113.6010855 | U33: 84.18578843 | V33: 92.10086298 | W33: 77.61705887 | X33: 86.30520745 | Y33: 117.0731799 | AA33: 77.93394129 | AB33: 108.9821253 | AC33: 93.49420356 | AD33: 75.09887032 | AE33: 75.88125601 | AF33: 84.90114575 | AG33: 109.4530596
B34: Mayo | C34: 102.2411291 | D34: 104.8423047 | E34: 89.81602898 | F34: 124.2846869 | G34: 102.8789401 | H34: 101.5202632 | I34: 107.1528119 | K34: -0.8481474867 | L34: -3.284346591 | M34: -8.978065722 | N34: -4.327902304 | O34: 5.474039295 | P34: 3.334637178 | Q34: 0.9762356394 | S34: 79.96649247 | T34: 113.7545367 | U34: 83.96173726 | V34: 94.41615707 | W34: 78.51951112 | X34: 86.36509779 | Y34: 117.3687329 | AA34: 78.21362417 | AB34: 108.5006068 | AC34: 93.48190764 | AD34: 75.96765092 | AE34: 76.32223955 | AF34: 85.07178277 | AG34: 109.5339738
B35: Junio | C35: 102.566183 | D35: 104.7706902 | E35: 89.15115497 | F35: 123.1979598 | G35: 102.0214977 | H35: 101.2284668 | I35: 107.2929852 | K35: -0.308816329 | L35: -1.71475599 | M35: -9.801729574 | N35: -5.21488691 | O35: 3.926743479 | P35: 3.354087438 | Q35: 1.180707523 | S35: 80.67899483 | T35: 113.7901733 | U35: 83.13890387 | V35: 94.57098459 | W35: 79.27920023 | X35: 86.3655766 | Y35: 117.3301259 | AA35: 78.66042436 | AB35: 108.6087846 | AC35: 93.2561153 | AD35: 76.76343405 | AE35: 77.70832819 | AF35: 85.3174797 | AG35: 109.35489
B36: Julio | C36: 102.3101769 | D36: 103.734306 | E36: 89.21958795 | F36: 121.325577 | G36: 101.0307668 | H36: 99.42375014 | I36: 106.5578047 | K36: -0.8282820089 | L36: -3.127940375 | M36: -8.169229179 | N36: -9.229560412 | O36: 1.833309335 | P36: 1.535642419 | Q36: 0.4214372488 | S36: 80.99274347 | T36: 113.1815945 | U36: 83.3085701 | V36: 94.17560149 | W36: 79.61406356 | X36: 86.31550395 | Y36: 116.4576338 | AA36: 79.16391693 | AB36: 109.1071979 | AC36: 93.37475325 | AD36: 77.62221602 | AE36: 78.80180072 | AF36: 86.81577976 | AG36: 109.2905715
B37: Agosto | C37: 101.5275202 | D37: 104.0044602 | E37: 89.9059723 | F37: 119.2982274 | G37: 102.1687181 | H37: 98.92435056 | I37: 105.8633531 | K37: -2.209232172 | L37: -0.5288374656 | M37: -6.973431254 | N37: -10.79769354 | O37: 0.4252390919 | P37: 0.9031401784 | Q37: -0.6453126417 | S37: 81.06196039 | T37: 112.2407006 | U37: 84.62632203 | V37: 93.52759334 | W37: 79.79981569 | X37: 86.23000021 | Y37: 115.3154839 | AA37: 79.84235231 | AB37: 107.9191224 | AC37: 94.1275867 | AD37: 78.39814169 | AE37: 78.10591851 | AF37: 87.16761821 | AG37: 108.9286147
B38: Septiembre | C38: 103.1745393 | D38: 104.6735164 | E38: 90.14360666 | F38: 119.3492485 | G38: 104.3295526 | H38: 98.57719863 | I38: 105.7784353 | K38: -0.8463984676 | L38: -0.6706372161 | M38: -6.118704551 | N38: -10.38095088 | O38: 2.585774203 | P38: 0.8159570621 | Q38: -0.4742992993 | S38: 81.79555848 | T38: 112.2435432 | U38: 85.11950211 | V38: 93.65201188 | W38: 80.61505779 | X38: 86.23151483 | Y38: 114.9825524 | AA38: 79.27882112 | AB38: 107.2320364 | AC38: 94.42655477 | AD38: 78.46887436 | AE38: 77.2696286 | AF38: 87.47612635 | AG38: 108.7013172
B39: Octubre | C39: 104.1321769 | D39: 105.2025056 | E39: 90.446837 | F39: 120.0148507 | G39: 104.9894646 | H39: 98.48879286 | I39: 106.3115268 | K39: 0.2709212694 | L39: -0.1743609074 | M39: -5.568499777 | N39: -9.627864986 | O39: 4.911308665 | P39: 0.7125926447 | Q39: 0.4557284391 | S39: 82.5379775 | T39: 112.1944832 | U39: 85.70567078 | V39: 93.70168891 | W39: 81.44347415 | X39: 86.21619794 | Y39: 114.8082523 | AA39: 79.26270243 | AB39: 106.6462082 | AC39: 94.75806299 | AD39: 78.07507853 | AE39: 77.57299691 | AF39: 87.53909499 | AG39: 107.99229
B40: Noviembre | C40: 103.0774408 | D40: 105.0558161 | E40: 90.70276812 | F40: 118.9591325 | G40: 102.8430792 | H40: 98.09904104 | I40: 104.9970039 | K40: -1.210488536 | L40: -1.464840165 | M40: -3.745475557 | N40: -9.402037447 | O40: 2.779527809 | P40: 0.7571830273 | Q40: -1.142784785 | S40: 82.98306436 | T40: 111.5856709 | U40: 86.11003298 | V40: 93.44039747 | W40: 81.95954115 | X40: 86.03657197 | Y40: 113.0772652 | AA40: 80.5055536 | AB40: 106.2156053 | AC40: 94.93649947 | AD40: 78.54831779 | AE40: 79.69378372 | AF40: 87.70378492 | AG40: 107.6957065
B41: Diciembre | C41: 102.4785525 | D41: 104.4929155 | E41: 89.54569005 | F41: 118.3402357 | G41: 102.8393157 | H41: 97.61304218 | I41: 100.1700297 | K41: -1.566815857 | L41: -1.738546799 | M41: -4.005644969 | N41: -9.981485917 | O41: 3.712345965 | P41: -1.04885401 | Q41: -4.613835082 | S41: 83.14058097 | T41: 110.7941045 | U41: 85.20638721 | V41: 93.09370717 | W41: 82.31766355 | X41: 85.80394525 | Y41: 107.5582268 | AA41: 81.12973782 | AB41: 106.0302547 | AC41: 95.15409079 | AD41: 78.66614988 | AE41: 80.04493515 | AF41: 87.90213206 | AG41: 107.3756563
A42: 1998 | B42: Enero | C42: 100.3774616 | D42: 103.0243276 | E42: 89.23530117 | F42: 117.0942059 | G42: 102.6857441 | H42: 97.89106333 | I42: 97.57353884 | K42: -1.682800454 | L42: -2.657631518 | M42: -3.941903427 | N42: -9.396751351 | O42: 2.782026957 | P42: -3.344895261 | Q42: -9.496679765 | S42: 82.30979255 | T42: 110.6556015 | U42: 85.55323272 | V42: 92.490793 | W42: 82.94465896 | X42: 85.96462329 | Y42: 104.5042239 | AA42: 82.00027303 | AB42: 107.4072542 | AC42: 95.87375355 | AD42: 78.98836009 | AE42: 80.77524266 | AF42: 87.81662019 | AG42: 107.1030375
B43: Febrero | C43: 100.497039 | D43: 103.2732616 | E43: 88.41227367 | F43: 115.0948337 | G43: 102.6268502 | H43: 98.17102521 | I43: 98.74617624 | K43: -1.496773694 | L43: -0.9729950513 | M43: -3.20494004 | N43: -7.055346409 | O43: 2.033133882 | P43: -3.697858525 | Q43: -7.536134112 | S43: 82.9061259 | T43: 110.5779398 | U43: 84.81505308 | V43: 92.83264478 | W43: 83.66129977 | X43: 85.93744718 | Y43: 104.8865912 | AA43: 82.49608817 | AB43: 107.0731553 | AC43: 95.93131085 | AD43: 80.65752544 | AE43: 81.51989426 | AF43: 87.53850436 | AG43: 106.2183825
B44: Marzo | C44: 100.3973876 | D44: 102.961632 | E44: 88.90578215 | F44: 113.6389939 | G44: 102.5698068 | H44: 98.52376835 | I44: 99.2839777 | K44: -1.431621665 | L44: -1.190188095 | M44: -1.000190233 | N44: -8.03896797 | O44: 0.9509141744 | P44: -3.789569126 | Q44: -6.950948665 | S44: 83.41699424 | T44: 110.1910125 | U44: 85.49735563 | V44: 92.89542415 | W44: 84.14505017 | X44: 85.91142467 | Y44: 105.2766567 | AA44: 83.08681751 | AB44: 107.0214315 | AC44: 96.16624877 | AD44: 81.74608117 | AE44: 82.03686136 | AF44: 87.19867917 | AG44: 106.0358974
B45: Abril | C45: 100.8287952 | D45: 102.2095265 | E45: 88.92563116 | F45: 112.0941645 | G45: 101.8219555 | H45: 98.89822949 | I45: 100.2470405 | K45: -0.6626415807 | L45: -1.946259002 | M45: -1.241869721 | N45: -8.59862923 | O45: -0.4551578305 | P45: -2.710702572 | Q45: -6.27789122 | S45: 84.13153403 | T45: 110.1860742 | U45: 85.74444431 | V45: 92.8388174 | W45: 84.88164442 | X45: 85.94941576 | Y45: 105.7528818 | AA45: 83.43998738 | AB45: 107.8041138 | AC45: 96.42264349 | AD45: 82.82216812 | AE45: 83.36281108 | AF45: 86.90693069 | AG45: 105.4922731
B46: Mayo | C46: 101.2085035 | D46: 102.0644245 | E46: 88.62775208 | F46: 111.6626788 | G46: 101.0707105 | H46: 98.63759902 | I46: 100.1951781 | K46: -1.009990421 | L46: -2.649579457 | M46: -1.323012066 | N46: -10.1557226 | O46: -1.757628572 | P46: -2.839496386 | Q46: -6.493188229 | S46: 84.8297812 | T46: 110.1488874 | U46: 85.59512714 | V46: 93.25878368 | W46: 85.63922604 | X46: 85.92966772 | Y46: 105.5943856 | AA46: 83.81685161 | AB46: 107.920941 | AC46: 96.57824455 | AD46: 83.51831127 | AE46: 84.73199174 | AF46: 87.11654438 | AG46: 105.3886899
B47: Junio | C47: 101.0253687 | D47: 101.6460113 | E47: 88.60731239 | F47: 109.8171794 | G47: 99.79167946 | H47: 98.03439932 | I47: 99.45693379 | K47: -1.502263477 | L47: -2.982397995 | M47: -0.6100230367 | N47: -10.86120286 | O47: -2.185635623 | P47: -3.155305577 | Q47: -7.303414459 | S47: 85.18562642 | T47: 109.4365269 | U47: 85.46038487 | V47: 93.12688424 | W47: 85.93705081 | X47: 85.73807842 | Y47: 104.9305973 | AA47: 84.32102499 | AB47: 107.6643594 | AC47: 96.44845619 | AD47: 84.8017448 | AE47: 86.11644905 | AF47: 87.45713648 | AG47: 105.5035514
B48: Julio | C48: 100.2921397 | D48: 101.2952268 | E48: 89.02825694 | F48: 108.0397567 | G48: 101.782198 | H48: 105.9110753 | I48: 99.96075866 | K48: -1.97246971 | L48: -2.35127543 | M48: -0.2144495539 | N48: -10.9505519 | O48: 0.7437646274 | P48: 6.52492502 | Q48: -6.191049115 | S48: 85.89798061 | T48: 109.2038178 | U48: 85.88850996 | V48: 93.27598528 | W48: 86.5619325 | X48: 93.09998901 | Y48: 105.3929788 | AA48: 85.64776949 | AB48: 107.8074666 | AC48: 96.4733141 | AD48: 86.33487162 | AE48: 85.04624015 | AF48: 87.903922 | AG48: 105.4343526
B49: Agosto | C49: 98.87118534 | D49: 102.1341293 | E49: 89.17610152 | F49: 107.9044268 | G49: 102.9426063 | H49: 106.3222541 | I49: 99.47385436 | K49: -2.616369315 | L49: -1.798317944 | M49: -0.8118156824 | N49: -9.550687273 | O49: 0.7574610424 | P49: 7.478344307 | Q49: -6.035609627 | S49: 86.31669479 | T49: 108.4975094 | U49: 86.04619639 | V49: 93.21272845 | W49: 86.93064771 | X49: 93.53961295 | Y49: 104.6941748 | AA49: 87.30217454 | AB49: 106.230415 | AC49: 96.4901974 | AD49: 86.3845268 | AE49: 84.44574197 | AF49: 87.97745472 | AG49: 105.2479322
B50: Septiembre | C50: 100.5841307 | D50: 103.3230437 | E50: 90.47260512 | F50: 108.7885443 | G50: 104.0297729 | H50: 106.004634 | I50: 99.17556338 | K50: -2.510705303 | L50: -1.290176119 | M50: 0.3649714919 | N50: -8.848572011 | O50: -0.2873391659 | P50: 7.534638347 | Q50: -6.242172022 | S50: 87.30662639 | T50: 108.4197521 | U50: 86.98300456 | V50: 94.18158042 | W50: 88.00146565 | X50: 93.68996731 | Y50: 104.7459188 | AA50: 86.79960326 | AB50: 104.9327897 | AC50: 96.14292022 | AD50: 86.57306796 | AE50: 84.5925769 | AF50: 88.38289775 | AG50: 105.6166613
B51: Octubre | C51: 102.226237 | D51: 104.1395483 | E51: 92.53134956 | F51: 109.8072409 | G51: 103.6143564 | H51: 104.8754462 | I51: 100.4973186 | K51: -1.830308329 | L51: -1.010391633 | M51: 2.304682649 | N51: -8.505288934 | O51: -1.30975833 | P51: 6.484649848 | Q51: -5.469029029 | S51: 88.73538878 | T51: 108.979654 | U51: 88.64016065 | V51: 95.28001388 | W51: 89.47930106 | X51: 94.47072904 | Y51: 105.9813328 | AA51: 86.80294942 | AB51: 104.6477114 | AC51: 95.79473452 | AD51: 86.77024678 | AE51: 86.35801466 | AF51: 90.07897696 | AG51: 105.4568762
B52: Noviembre | C52: 102.0280487 | D52: 102.4264529 | E52: 90.48954377 | F52: 109.6130827 | G52: 99.02932207 | H52: 103.3904466 | I52: 100.900328 | K52: -1.018061826 | L52: -2.502824915 | M52: -0.2350803102 | N52: -7.856521543 | O52: -3.708326518 | P52: 5.393942172 | Q52: -3.901707392 | S52: 89.39298254 | T52: 108.6651065 | U52: 88.51420383 | V52: 95.72065788 | W52: 90.06297415 | X52: 94.77566224 | Y52: 106.0428594 | AA52: 87.61608562 | AB52: 106.0908617 | AC52: 97.81705171 | AD52: 87.3259428 | AE52: 90.94576462 | AF52: 91.66771724 | AG52: 105.0966448
B53: Diciembre | C53: 102.5493762 | D53: 102.6005162 | E53: 92.70899906 | F53: 109.6251785 | G53: 99.18017009 | H53: 102.1187552 | I53: 101.9332257 | K53: 0.06911077458 | L53: -1.811031178 | M53: 3.532620058 | N53: -7.364407525 | O53: -3.558119364 | P53: 4.61589242 | Q53: 1.760203176 | S53: 90.3933589 | T53: 108.4495103 | U53: 90.8986253 | V53: 96.28336073 | W53: 90.92216661 | X53: 94.83886231 | Y53: 106.8749437 | AA53: 88.14618111 | AB53: 105.7007453 | AC53: 98.04725131 | AD53: 87.82960455 | AE53: 91.67373532 | AF53: 92.87114999 | AG53: 104.8479953
A54: 1999 | B54: Enero | C54: 100.1569216 | D54: 101.4364512 | E54: 95.92102549 | F54: 108.230509 | G54: 100.5085227 | H54: 103.4997627 | I54: 99.95976798 | K54: -0.2197106976 | L54: -1.541263548 | M54: 7.492241561 | N54: -7.569714332 | O54: -2.120276204 | P54: 5.729531604 | Q54: 2.445569947 | S54: 89.41031026 | T54: 107.1153522 | U54: 93.41599649 | V54: 96.44797897 | W54: 91.83568386 | X54: 95.26271297 | Y54: 104.5753423 | AA54: 89.27022604 | AB54: 105.5984815 | AC54: 97.38844639 | AD54: 89.11348551 | AE54: 91.37104138 | AF54: 92.04147956 | AG54: 104.617432
B55: Febrero | C55: 100.0457446 | D55: 101.4730769 | E55: 94.82587455 | F55: 107.2286909 | G55: 101.4953526 | H55: 105.4449791 | I55: 99.55212187 | K55: -0.4490623414 | L55: -1.743127625 | M55: 7.254197429 | N55: -6.834488196 | O55: -1.10253564 | P55: 7.409471241 | Q55: 0.8161790849 | S55: 89.80811477 | T55: 106.6949544 | U55: 91.65654516 | V55: 96.2628214 | W55: 92.19711639 | X55: 96.62105334 | Y55: 103.9058361 | AA55: 89.76705115 | AB55: 105.146072 | AC55: 96.65773777 | AD55: 89.77338117 | AE55: 90.83875668 | AF55: 91.63172507 | AG55: 104.3733012
B56: Marzo | C56: 101.3403587 | D56: 101.2611585 | E56: 96.69581272 | F56: 107.0271053 | G56: 104.0240441 | H56: 106.0082312 | I56: 99.28022499 | K56: 0.9392387003 | L56: -1.651560332 | M56: 8.762119163 | N56: -5.818327253 | O56: 1.417802522 | P56: 7.596606392 | Q56: -0.003779781183 | S56: 90.40343149 | T56: 106.1436672 | U56: 92.80268099 | V56: 96.25346466 | W56: 92.53090086 | X56: 97.34905863 | Y56: 103.5351248 | AA56: 89.20772791 | AB56: 104.8216994 | AC56: 95.97383628 | AD56: 89.93372696 | AE56: 88.9514551 | AF56: 91.83160354 | AG56: 104.2857476
B57: Abril | C57: 102.58764 | D57: 102.0126092 | E57: 98.4476563 | F57: 107.5209597 | G57: 104.7919672 | H57: 106.4722472 | I57: 99.7157959 | K57: 1.74438734 | L57: -0.1926603745 | M57: 10.70785219 | N57: -4.079788529 | O57: 2.916867595 | P57: 7.658395622 | Q57: -0.5299354493 | S57: 91.0917281 | T57: 105.8161366 | U57: 94.23879425 | V57: 96.5092768 | W57: 93.15630015 | X57: 97.38613386 | Y57: 103.4906496 | AA57: 88.79405756 | AB57: 103.7284875 | AC57: 95.72477171 | AD57: 89.75857089 | AE57: 88.89641323 | AF57: 91.46621438 | AG57: 103.7856126
B58: Mayo | C58: 102.4506641 | D58: 102.2602367 | E58: 100.3085449 | F58: 106.824216 | G58: 104.0430136 | H58: 106.4327885 | I58: 99.3852876 | K58: 1.22732827 | L58: 0.1918515493 | M58: 13.17961086 | N58: -4.333106559 | O58: 2.940815505 | P58: 7.902858126 | Q58: -0.8083128467 | S58: 91.64368338 | T58: 105.0623165 | U58: 96.69980488 | V58: 96.50284428 | W58: 93.58209833 | X58: 97.28860416 | Y58: 103.0339461 | AA58: 89.45152694 | AB58: 102.740146 | AC58: 96.4023603 | AD58: 90.33798508 | AE58: 89.94558606 | AF58: 91.40848935 | AG58: 103.671226
B59: Junio | C59: 101.5790965 | D59: 101.9050111 | E59: 100.6305485 | F59: 105.7351895 | G59: 103.8745534 | H59: 106.6265737 | I59: 98.92753332 | K59: 0.5481076673 | L59: 0.2548056995 | M59: 13.56912404 | N59: -3.717077706 | O59: 4.091397126 | P59: 8.764448421 | Q59: -0.5322911621 | S59: 92.07860867 | T59: 104.3249488 | U59: 97.53519325 | V59: 96.54767123 | W59: 93.92040058 | X59: 96.93460833 | Y59: 102.6497321 | AA59: 90.64720185 | AB59: 102.3746994 | AC59: 96.92404015 | AD59: 91.3108225 | AE59: 90.41714023 | AF59: 90.91036594 | AG59: 103.7625509
B60: Julio | C60: 102.4065434 | D60: 101.6278859 | E60: 100.0149721 | F60: 105.5899594 | G60: 104.1630392 | H60: 107.1602536 | I60: 98.8269278 | K60: 2.108244736 | L60: 0.3284055854 | M60: 12.34070562 | N60: -2.267496144 | O60: 2.339152944 | P60: 1.179459581 | Q60: -1.134275968 | S60: 92.77061656 | T60: 104.1653794 | U60: 97.8706829 | V60: 96.8149414 | W60: 94.60663691 | X60: 96.91319672 | Y60: 102.4733311 | AA60: 90.59051643 | AB60: 102.4968476 | AC60: 97.85603184 | AD60: 91.68953367 | AE60: 90.82553428 | AF60: 90.43763285 | AG60: 103.689686
B61: Agosto | C61: 103.0470683 | D61: 101.8308599 | E61: 103.4551703 | F61: 105.7577573 | G61: 103.7512265 | H61: 107.3200451 | I61: 99.46048851 | K61: 4.223559138 | L61: -0.2969324501 | M61: 16.01221463 | N61: -1.98941738 | O61: 0.7855058461 | P61: 0.938459236 | Q61: -0.01343654333 | S61: 93.62752824 | T61: 103.8725132 | U61: 101.8365118 | V61: 97.426204 | W61: 95.43621569 | X61: 97.0711832 | Y61: 102.8864065 | AA61: 90.85899265 | AB61: 102.0049455 | AC61: 98.43540102 | AD61: 92.12204045 | AE61: 91.98562648 | AF61: 90.45018859 | AG61: 103.4445015
B62: Septiembre | C62: 103.498796 | D62: 101.8361502 | E62: 105.0382505 | F62: 106.0882531 | G62: 103.4717345 | H62: 107.4766416 | I62: 100.1503719 | K62: 2.897738701 | L62: -1.439072511 | M62: 16.09950915 | N62: -2.482146717 | O62: -0.5364218402 | P62: 1.388625676 | Q62: 0.9829120224 | S62: 94.22274855 | T62: 103.5999578 | U62: 103.4255738 | V62: 97.98238705 | W62: 96.02065606 | X62: 97.12694458 | Y62: 103.1317738 | AA62: 91.03753107 | AB62: 101.7320054 | AC62: 98.46467678 | AD62: 92.35931805 | AE62: 92.79892381 | AF62: 90.37028244 | AG62: 102.9769255
B63: Octubre | C63: 103.0606342 | D63: 101.719696 | E63: 104.8861754 | F63: 105.9507431 | G63: 102.864307 | H63: 104.336647 | I63: 100.453558 | K63: 0.8162260473 | L63: -2.323663171 | M63: 13.35204326 | N63: -3.512061403 | O63: -0.7238855419 | P63: -0.5137515346 | Q63: -0.04354398534 | S63: 94.95587763 | T63: 103.5828234 | U63: 103.6653581 | V63: 98.38795239 | W63: 96.78115257 | X63: 97.40327492 | Y63: 103.2043647 | AA63: 92.13593377 | AB63: 101.8316289 | AC63: 98.83605515 | AD63: 92.86197479 | AE63: 94.08623396 | AF63: 93.3548065 | AG63: 102.7383866
B64: Noviembre | C64: 102.6087306 | D64: 102.199925 | E64: 104.0305955 | F64: 105.0843383 | G64: 102.2864906 | H64: 103.1014407 | I64: 100.3374176 | K64: 0.5691394271 | L64: -0.2211615347 | M64: 14.96421708 | N64: -4.131572815 | O64: 3.289095098 | P64: -0.2795286055 | Q64: -0.5578875967 | S64: 95.32527201 | T64: 103.3192676 | U64: 103.039999 | V64: 98.37083921 | W64: 97.04272842 | X64: 97.56850559 | Y64: 103.1479088 | AA64: 92.90171651 | AB64: 101.095248 | AC64: 99.04778341 | AD64: 93.61132283 | AE64: 94.87345573 | AF64: 94.63350358 | AG64: 102.80104
B65: Diciembre | C65: 101.9942829 | D65: 102.8963561 | E65: 102.6744411 | F65: 104.3548759 | G65: 102.364547 | H65: 102.7896797 | I65: 100.2257661 | K65: -0.5412937024 | L65: 0.2883414721 | M65: 10.74916362 | N65: -4.807565822 | O65: 3.210699233 | P65: 0.6570041864 | Q65: -1.675076596 | S65: 95.8862579 | T65: 103.3007618 | U65: 101.7910879 | V65: 98.57687863 | W65: 97.35222244 | X65: 97.50261831 | Y65: 103.3227639 | AA65: 94.01140452 | AB65: 100.3930224 | AC65: 99.1396562 | AD65: 94.46312674 | AE65: 95.10345647 | AF65: 94.85642781 | AG65: 103.0900216
A66: 2000 | B66: Enero | C66: 100.5537167 | D66: 101.6859303 | E66: 105.4552126 | F66: 103.9580575 | G66: 101.8757532 | H66: 103.2685272 | I66: 100.4447358 | K66: 0.3961734315 | L66: 0.2459462005 | M66: 9.939621727 | N66: -3.947548169 | O66: 1.360312999 | P66: -0.2234165128 | Q66: 0.4851630176 | S66: 95.8881472 | T66: 102.3649413 | U66: 104.417729 | V66: 98.13708029 | W66: 97.28962368 | X66: 97.91846977 | Y66: 103.1162008 | AA66: 95.36012231 | AB66: 100.6677531 | AC66: 99.01618563 | AD66: 94.40064832 | AE66: 95.49831106 | AF66: 94.81927596 | AG66: 102.6596366
B67: Febrero | C67: 99.88786092 | D67: 101.6498832 | E67: 103.6494791 | F67: 103.0766388 | G67: 100.3854116 | H67: 104.0014862 | I67: 100.4277259 | K67: -0.1578115297 | L67: 0.1742395934 | M67: 9.305060075 | N67: -3.872146611 | O67: -1.093588035 | P67: -1.368953698 | Q67: 0.8795433566 | S67: 96.06315835 | T67: 102.0754301 | U67: 102.7926748 | V67: 98.15119017 | W67: 97.25598823 | X67: 98.09802721 | Y67: 102.4099246 | AA67: 96.17100362 | AB67: 100.4186399 | AC67: 99.17336362 | AD67: 95.22156653 | AE67: 96.88259151 | AF67: 94.32367828 | AG67: 101.9737564
B68: Marzo | C68: 100.4543478 | D68: 102.4054924 | E68: 102.3468658 | F68: 103.0656321 | G68: 100.5089595 | H68: 104.7802058 | I68: 100.5997946 | K68: -0.8742922871 | L68: 1.130081745 | M68: 5.844154868 | N68: -3.701373804 | O68: -3.379107757 | P68: -1.158424649 | Q68: 1.32913644 | S68: 96.56937603 | T68: 102.1747932 | U68: 102.0075708 | V68: 98.39597891 | W68: 97.68441049 | X68: 98.07797977 | Y68: 102.5542497 | AA68: 96.13259967 | AB68: 99.77471986 | AC68: 99.66848519 | AD68: 95.46924318 | AE68: 97.18975398 | AF68: 93.60353806 | AG68: 101.9428023
B69: Abril | C69: 101.2107337 | D69: 102.3132058 | E69: 100.9882457 | F69: 101.9706248 | G69: 100.2610906 | H69: 104.6227843 | I69: 100.5004785 | K69: -1.342175644 | L69: 0.2946661365 | M69: 2.580649916 | N69: -5.162095724 | O69: -4.323686939 | P69: -1.737037516 | Q69: 0.7869190793 | S69: 96.82928889 | T69: 101.8447709 | U69: 101.5403107 | V69: 98.48749644 | W69: 97.85658231 | X69: 97.93049743 | Y69: 102.2342461 | AA69: 95.67096827 | AB69: 99.54215593 | AC69: 100.5466627 | AD69: 96.58418455 | AE69: 97.60175335 | AF69: 93.60341353 | AG69: 101.7251336
B70: Mayo | C70: 101.2786907 | D70: 100.9872204 | E70: 101.0343781 | F70: 100.8753111 | G70: 99.29609698 | H70: 104.2090662 | I70: 99.51318218 | K70: -1.143939324 | L70: -1.244879075 | M70: 0.7236005273 | N70: -5.568872914 | O70: -4.562455897 | P70: -2.089320766 | Q70: 0.1286856183 | S70: 96.69370853 | T70: 101.0975079 | U70: 100.6197688 | V70: 98.21974052 | W70: 97.55643884 | X70: 97.51590894 | Y70: 101.2165842 | AA70: 95.47290542 | AB70: 100.1092093 | AC70: 99.58963541 | AD70: 97.36747219 | AE70: 98.24800954 | AF70: 93.57718337 | AG70: 101.711735
B71: Junio | C71: 101.3738651 | D71: 100.5750783 | E71: 101.6625424 | F71: 101.1051902 | G71: 100.0669669 | H71: 103.9379694 | I71: 100.1432178 | K71: -0.2020409861 | L71: -1.305071008 | M71: 1.025527419 | N71: -4.378863267 | O71: -3.665562276 | P71: -2.521514304 | Q71: 1.228863609 | S71: 97.62075344 | T71: 101.274925 | U71: 101.227526 | V71: 98.88456828 | W71: 98.36176717 | X71: 97.75673605 | Y71: 101.6629096 | AA71: 96.29775221 | AB71: 100.695845 | AC71: 99.57209771 | AD71: 97.80365195 | AE71: 98.29594139 | AF71: 94.05295932 | AG71: 101.5175184
B72: Julio | C72: 100.7820147 | D72: 100.8701167 | E72: 102.0895167 | F72: 100.8770275 | G72: 101.0389167 | H72: 103.6869002 | I72: 100.0834841 | K72: -1.586352457 | L72: -0.7456312539 | M72: 2.074234098 | N72: -4.46342809 | O72: -2.999262123 | P72: -3.241270282 | Q72: 1.271471532 | S72: 98.13233081 | T72: 101.1671446 | U72: 101.6556539 | V72: 99.13474672 | W72: 98.71533477 | X72: 97.75474881 | Y72: 101.5461724 | AA72: 97.37087623 | AB72: 100.2944658 | AC72: 99.57501731 | AD72: 98.27286664 | AE72: 97.70030998 | AF72: 94.27878416 | AG72: 101.4614683
B73: Agosto | C73: 100.320756 | D73: 100.1379505 | E73: 102.3902093 | F73: 100.5190888 | G73: 101.0999589 | H73: 102.3102142 | I73: 100.0518351 | K73: -2.645696124 | L73: -1.662471862 | M73: -1.029393655 | N73: -4.953460335 | O73: -2.555408484 | P73: -4.668122264 | Q73: 0.5945543165 | S73: 98.27022642 | T73: 100.7835014 | U73: 101.3151538 | V73: 99.15505548 | W73: 98.76453619 | X73: 97.50699261 | Y73: 101.097699 | AA73: 97.95602656 | AB73: 100.6446616 | AC73: 98.95004066 | AD73: 98.64301068 | AE73: 97.68998653 | AF73: 95.30523749 | AG73: 101.0453221
B74: Septiembre | C74: 100.5381384 | D74: 99.77598905 | E74: 103.0300049 | F74: 100.8749934 | G74: 101.0445111 | H74: 100.7797988 | I74: 99.60526894 | K74: -2.860572014 | L74: -2.0230155 | M74: -1.911918367 | N74: -4.914078152 | O74: -2.345783971 | P74: -6.230975167 | Q74: -0.5442845303 | S74: 98.37349073 | T74: 100.1717412 | U74: 101.5201184 | V74: 99.20429009 | W74: 98.71754939 | X74: 99.21504837 | Y74: 100.6093622 | AA74: 97.84693879 | AB74: 100.3966407 | AC74: 98.53451777 | AD74: 98.34378844 | AE74: 97.69709238 | AF74: 98.4473571 | AG74: 101.0080725
B75: Octubre | C75: 100.266776 | D75: 99.53059123 | E75: 102.5834801 | F75: 100.4849013 | G75: 100.1790102 | H75: 100.8482873 | I75: 99.49177764 | K75: -2.71088783 | L75: -2.152095256 | M75: -2.195423018 | N75: -5.15885186 | O75: -2.610523454 | P75: -3.343369603 | Q75: -0.9574378491 | S75: 98.54893863 | T75: 99.63957358 | U75: 101.1891433 | V75: 99.16460452 | W75: 98.73341968 | X75: 99.38422063 | Y75: 100.0435994 | AA75: 98.28673325 | AB75: 100.1094963 | AC75: 98.64077836 | AD75: 98.68607451 | AE75: 98.55699265 | AF75: 98.54824839 | AG75: 100.5546405
B76: Noviembre | C76: 100.1062896 | D76: 99.67557853 | E76: 101.2768313 | F76: 99.85781705 | G76: 99.89379622 | H76: 100.6537516 | I76: 99.79827507 | K76: -2.438818793 | L76: -2.470008151 | M76: -2.647071508 | N76: -4.97364439 | O76: -2.339208638 | P76: -2.37405908 | Q76: -0.5373295097 | S76: 99.0655248 | T76: 99.64711897 | U76: 100.3801594 | V76: 99.47902625 | W76: 99.17919056 | X76: 99.58360675 | Y76: 99.9353853 | AA76: 98.96034027 | AB76: 99.97144781 | AC76: 99.11463278 | AD76: 99.62066986 | AE76: 99.28463459 | AF76: 98.9368058 | AG76: 100.1373874
B77: Diciembre | C77: 100 | D77: 100 | E77: 100 | F77: 100 | G77: 100 | H77: 100 | I77: 100 | K77: -1.955288921 | L77: -2.814828626 | M77: -2.604777811 | N77: -4.173140754 | O77: -2.309927717 | P77: -2.713968663 | Q77: -0.225257553 | S77: 100 | T77: 100 | U77: 100 | V77: 100 | W77: 100 | X77: 100 | Y77: 100 | AA77: 100 | AB77: 100 | AC77: 100 | AD77: 100 | AE77: 100 | AF77: 100 | AG77: 100
A78: 2001 | B78: Enero | C78: 99.8379658 | D78: 99.17572416 | E78: 99.95140786 | F78: 99.6983147 | G78: 100.3448153 | H78: 101.5793152 | I78: 100.3098709 | K78: -0.7118094567 | L78: -2.468587512 | M78: -5.219092152 | N78: -4.097559087 | O78: -1.502750032 | P78: -1.63574714 | Q78: -0.1342677426 | S78: 100.6813022 | T78: 100.2910443 | U78: 100.6632446 | V78: 99.92937489 | W78: 100.3731367 | X78: 100.5566365 | Y78: 99.76825265 | AA78: 100.8447051 | AB78: 101.1245899 | AC78: 100.7121828 | AD78: 100.2317594 | AE78: 100.0282241 | AF78: 98.99322147 | AG78: 99.46005486
B79: Febrero | C79: 99.39824672 | D79: 99.80424247 | E79: 98.59513003 | F79: 99.10277541 | G79: 99.86204413 | H79: 101.9585098 | I79: 100.5412599 | K79: -0.4901638704 | L79: -1.815684023 | M79: -4.876386409 | N79: -3.855251205 | O79: -0.5213580611 | P79: -1.96437225 | Q79: 0.1130504519 | S79: 101.0057011 | T79: 100.2360979 | U79: 99.67980775 | V79: 100.2259358 | W79: 100.6875214 | X79: 100.6938696 | Y79: 99.58977356 | AA79: 101.6171859 | AB79: 100.4327024 | AC79: 101.1001332 | AD79: 101.1333289 | AE79: 100.8266176 | AF79: 98.75965207 | AG79: 99.05363591
B80: Marzo | C80: 98.22409033 | D80: 99.76735874 | E80: 97.55052544 | F80: 98.51754307 | G80: 100.3583102 | H80: 102.3803108 | I80: 100.0454286 | K80: -2.220170179 | L80: -2.576164216 | M80: -4.686357806 | N80: -4.412808528 | O80: -0.1498864737 | P80: -2.290408694 | Q80: -0.5510607984 | S80: 101.2293384 | T80: 99.99609375 | U80: 98.78451361 | V80: 100.2305716 | W80: 100.7367314 | X80: 100.4182376 | Y80: 98.87924316 | AA80: 103.0595835 | AB80: 100.2292684 | AC80: 101.2649734 | AD80: 101.7388056 | AE80: 100.3770702 | AF80: 98.08354436 | AG80: 98.8343441
B81: Abril | C81: 97.69042905 | D81: 99.88629307 | E81: 98.007383 | F81: 98.52276278 | G81: 100.3928789 | H81: 102.024292 | I81: 99.91201169 | K81: -3.478192962 | L81: -2.372042544 | M81: -2.951692685 | N81: -3.381230655 | O81: 0.1314451633 | P81: -2.483677232 | Q81: -0.5855363472 | S81: 101.5053113 | T81: 99.77089395 | U81: 99.23345029 | V81: 100.4387496 | W81: 100.9697032 | X81: 100.2740484 | Y81: 98.44378778 | AA81: 103.9050727 | AB81: 99.88446951 | AC81: 101.2509948 | AD81: 101.9447149 | AE81: 100.5745669 | AF81: 98.28448346 | AG81: 98.53048308
B82: Mayo | C82: 97.7230707 | D82: 100.0411499 | E82: 98.39504405 | F82: 98.04828847 | G82: 100.4965919 | H82: 102.1164257 | I82: 100.1237385 | K82: -3.510728595 | L82: -0.9368220574 | M82: -2.612312835 | N82: -2.802492145 | O82: 1.209005138 | P82: -2.008117524 | Q82: 0.6135431311 | S82: 101.7994925 | T82: 99.63438628 | U82: 99.53689227 | V82: 100.7928701 | W82: 101.3979469 | X82: 100.2100567 | Y82: 98.35156229 | AA82: 104.1714017 | AB82: 99.59340372 | AC82: 101.1604733 | AD82: 102.7992143 | AE82: 100.896901 | AF82: 98.13314174 | AG82: 98.23001398
B83: Junio | C83: 97.90509192 | D83: 99.90775109 | E83: 98.02637393 | F83: 97.85264139 | G83: 100.1997389 | H83: 102.6926948 | I83: 100.7444075 | K83: =(C83/C71-1)*100 -> -3.4217628 | L83: =(D83/D71-1)*100 -> -0.6635115339 | M83: =(E83/E71-1)*100 -> -3.57670423 | N83: =(F83/F71-1)*100 -> -3.216994852 | O83: =(G83/G71-1)*100 -> 0.1326831559 | P83: =(H83/H71-1)*100 -> -1.198093964 | Q83: =(I83/I71-1)*100 -> 0.6003299313 | S83: 102.1126212 | T83: 99.40285638 | U83: 99.76560034 | V83: 101.0523103 | W83: 101.5827583 | X83: 100.0801712 | Y83: 98.13204713 | AA83: 104.2975592 | AB83: 99.4946391 | AC83: 101.7742433 | AD83: 103.2698851 | AE83: 101.3802624 | AF83: 97.45597904 | AG83: 97.40694255
B84: Julio | C84: 97.63595767 | D84: 99.79788372 | E84: 96.86179121 | F84: 97.45754124 | G84: 100.9073588 | H84: 102.609779 | I84: 100.3093545 | K84: -3.12164532 | L84: -1.062983734 | M84: -5.120727051 | N84: -3.389757172 | O84: -0.1302051565 | P84: -1.038820864 | Q84: 0.2256820683 | S84: 102.6610703 | T84: 99.25992431 | U84: 99.58984611 | V84: 101.3263192 | W84: 101.9169832 | X84: 100.0089132 | Y84: 97.92766449 | AA84: 105.1467848 | AB84: 99.46095109 | AC84: 102.8164407 | AD84: 103.969706 | AE84: 101.0005459 | AF84: 97.46528471 | AG84: 97.62565511
B85: Agosto | C85: 98.03489742 | D85: 100.0272955 | E85: 96.90611528 | F85: 97.43125263 | G85: 101.9916664 | H85: 102.252476 | I85: 101.135751 | K85: -2.278550022 | L85: -0.1105026219 | M85: -5.356072704 | N85: -3.071890309 | O85: 0.8820057863 | P85: -0.05643448036 | Q85: 1.083354315 | S85: 103.8012535 | T85: 99.52025513 | U85: 100.7060631 | V85: 101.8332065 | W85: 102.933733 | X85: 100.3457137 | Y85: 98.64439074 | AA85: 105.8819423 | AB85: 99.49309803 | AC85: 103.9212673 | AD85: 104.5180101 | AE85: 100.9236702 | AF85: 98.13524098 | AG85: 97.53661762
B86: Septiembre | C86: 98.41028615 | D86: 100.1270782 | E86: 98.01355893 | F86: 97.41597741 | G86: 102.7055791 | H86: 101.7337981 | I86: 100.5307363 | K86: -2.11646275 | L86: 0.3518773564 | M86: -4.868917493 | N86: -3.429012348 | O86: 1.643897293 | P86: 0.9466176199 | Q86: 0.9291349805 | S86: 104.38794 | T86: 99.17526046 | U86: 101.7508222 | V86: 102.1892421 | W86: 103.2638309 | X86: 100.2963375 | Y86: 98.54244557 | AA86: 106.0742165 | AB86: 99.04939031 | AC86: 103.8130064 | AD86: 104.8998787 | AE86: 100.5435458 | AF86: 98.58703729 | AG86: 98.0222061
B87: Octubre | C87: 98.72550965 | D87: 101.032504 | E87: 98.84180033 | F87: 97.35420595 | G87: 102.4649905 | H87: 101.1261389 | I87: 100.093867 | K87: -1.537165526 | L87: 1.50899608 | M87: -3.647448697 | N87: -3.115587783 | O87: 2.281895549 | P87: 0.2755144696 | Q87: 0.605164978 | S87: 104.9159159 | T87: 98.75360308 | U87: 103.600744 | V87: 102.5368288 | W87: 103.3656701 | X87: 100.1842422 | Y87: 98.22402476 | AA87: 106.2703208 | AB87: 97.7443884 | AC87: 104.8147076 | AD87: 105.3234709 | AE87: 100.879012 | AF87: 99.06859221 | AG87: 98.13191125
B88: Noviembre | C88: 98.40432303 | D88: 99.7328891 | E88: 97.84110226 | F88: 97.56330699 | G88: 102.3518682 | H88: 101.6167033 | I88: 100.347872 | K88: -1.700159463 | L88: 0.05749710584 | M88: -3.392413635 | N88: -2.29777711 | O88: 2.460685358 | P88: 0.9566972323 | Q88: 0.5507078486 | S88: 105.5802273 | T88: 98.66113503 | U88: 103.2104178 | V88: 103.272205 | W88: 103.570607 | X88: 100.7174442 | Y88: 98.08712371 | AA88: 107.2922653 | AB88: 98.92537549 | AC88: 105.4877913 | AD88: 105.8514806 | AE88: 101.1907343 | AF88: 99.115048 | AG88: 97.74708895
B89: Diciembre | C89: 97.9771475 | D89: 100.9982941 | E89: 95.58513443 | F89: 97.49464838 | G89: 102.6405295 | H89: 102.4003913 | I89: 100.5119369 | K89: -2.022852499 | L89: 0.9982941371 | M89: -4.414865574 | N89: -2.505351622 | O89: 2.640529462 | P89: 2.400391301 | Q89: 0.5119369283 | S89: 106.4944341 | T89: 98.83085805 | U89: 101.5842292 | V89: 103.7922049 | W89: 103.9416657 | X89: 102.0087509 | Y89: 97.95277717 | AA89: 108.693136 | AB89: 97.85398743 | AC89: 106.2761796 | AD89: 106.4593869 | AE89: 101.2676632 | AF89: 99.61754011 | AG89: 97.4538748
A90: 2002 | B90: Enero | C90: 97.5538546 | D90: 99.78385158 | E90: 95.08843951 | F90: 97.98051761 | G90: 102.9008611 | H90: 101.8954374 | I90: 99.86414266 | K90: -2.287818251 | L90: 0.6131817254 | M90: -4.865332515 | N90: -1.722995115 | O90: 2.547262503 | P90: 0.3112072275 | Q90: -0.4443513511 | S90: 106.7666815 | T90: 98.89403205 | U90: 101.6421667 | V90: 103.7730105 | W90: 103.900257 | X90: 102.1580914 | Y90: 97.57601882 | AA90: 109.4438369 | AB90: 99.10825298 | AC90: 106.8922439 | AD90: 105.9118823 | AE90: 100.971222 | AF90: 100.2577682 | AG90: 97.70876335
B91: Febrero | C91: 98.15127798 | D91: 99.88923818 | E91: 93.55012206 | F91: 97.86595619 | G91: 102.642777 | H91: 102.7174622 | I91: 100.0995081 | K91: -1.254517843 | L91: 0.08516241801 | M91: -5.116893676 | N91: -1.248016732 | O91: 2.784574327 | P91: 0.7443737253 | Q91: -0.4393737285 | S91: 107.505803 | T91: 98.87561238 | U91: 100.523117 | V91: 104.3876264 | W91: 104.1138933 | X91: 102.6556446 | Y91: 97.36187972 | AA91: 109.5307216 | AB91: 98.98525024 | AC91: 107.4537529 | AD91: 106.6638803 | AE91: 101.433239 | AF91: 99.93981785 | AG91: 97.26509311
B92: Marzo | C92: 98.91606188 | D92: 99.92557072 | E92: 93.22263206 | F92: 98.46621648 | G92: 103.574111 | H92: 102.2052649 | I92: 100.4777164 | K92: 0.7044825235 | L92: 0.1585808991 | M92: -4.436565935 | N92: -0.05209893168 | O92: 3.20431943 | P92: -0.1709761465 | Q92: 0.4320915087 | S92: 108.6208224 | T92: 98.94882912 | U92: 100.3019468 | V92: 105.0744371 | W92: 104.7899961 | X92: 102.7776238 | Y92: 97.55488635 | AA92: 109.8111068 | AB92: 99.02253088 | AC92: 107.5939872 | AD92: 106.7111552 | AE92: 101.1739276 | AF92: 100.5600092 | AG92: 97.0910664
B93: Abril | C93: 100.1598975 | D93: 100.150551 | E93: 92.05893326 | F93: 98.81644206 | G93: 104.0177908 | H93: 104.5419477 | I93: 101.08863 | K93: 2.52785099 | L93: 0.2645587386 | M93: -6.069389433 | N93: 0.2980826697 | O93: 3.610726086 | P93: 2.467702138 | Q93: 1.177654543 | S93: 109.608959 | T93: 99.0172898 | U93: 99.12217246 | V93: 105.7106044 | W93: 105.3507805 | X93: 105.2942807 | Y93: 97.65010606 | AA93: 109.4339767 | AB93: 98.86844239 | AC93: 107.6725191 | AD93: 106.9767361 | AE93: 101.2815017 | AF93: 100.719647 | AG93: 96.59850571
B94: Mayo | C94: 100.7133319 | D94: 100.249807 | E94: 92.36703465 | F94: 99.02890365 | G94: 104.56326 | H94: 105.1866151 | I94: 101.7022101 | K94: 3.059933781 | L94: 0.2085713401 | M94: -6.126334365 | N94: 1.00013493 | O94: 4.046573146 | P94: 3.006557892 | Q94: 1.576520842 | S94: 110.8250798 | T94: 98.97216059 | U94: 99.68200178 | V94: 106.356452 | W94: 106.2189737 | X94: 105.521856 | Y94: 97.92705493 | AA94: 110.0401284 | AB94: 98.72553724 | AC94: 107.9194565 | AD94: 107.3994037 | AE94: 101.5834565 | AF94: 100.3187106 | AG94: 96.28803038
B95: Junio | C95: 101.3727981 | D95: 99.77001684 | E95: 92.42493614 | F95: 98.68554768 | G95: 105.6159267 | H95: 105.3405067 | I95: 101.9954212 | K95: 3.54190585 | L95: -0.1378614315 | M95: -5.714215024 | N95: 0.8511842676 | O95: 5.405391139 | P95: 2.578383895 | Q95: 1.24176989 | S95: 112.1435939 | T95: 98.95552506 | U95: 100.0923388 | V95: 107.001862 | W95: 107.195226 | X95: 105.7383978 | Y95: 98.16457999 | AA95: 110.6249369 | AB95: 99.18363071 | AC95: 108.295816 | AD95: 108.4270844 | AE95: 101.495323 | AF95: 100.3777189 | AG95: 96.24410472
B96: Julio | C96: 101.2133371 | D96: 100.007713 | E96: 91.47780233 | F96: 98.83777254 | G96: 106.4894102 | H96: 105.2444473 | I96: 102.1593131 | K96: 3.663997891 | L96: 0.2102542627 | M96: -5.558423821 | N96: 1.416238579 | O96: 5.531857605 | P96: 2.56765814 | Q96: 1.84425332 | S96: 113.4710108 | T96: 99.10653993 | U96: 99.68328384 | V96: 107.8072583 | W96: 107.9238336 | X96: 105.9638303 | Y96: 98.33682187 | AA96: 112.1107297 | AB96: 99.09889641 | AC96: 108.9699154 | AD96: 109.0749574 | AE96: 101.3470104 | AF96: 100.6835353 | AG96: 96.25830368
B97: Agosto | C97: 100.9769462 | D97: 100.6846362 | E97: 90.50912444 | F97: 98.87433035 | G97: 106.8190043 | H97: 104.5201182 | I97: 101.6365544 | K97: 3.001021932 | L97: 0.6571613486 | M97: -6.601225137 | N97: 1.481124056 | O97: 4.733070993 | P97: 2.217689348 | Q97: 0.4951793921 | S97: 114.23022 | T97: 99.08227438 | U97: 98.31375049 | V97: 108.2579801 | W97: 108.0438454 | X97: 105.82408 | Y97: 97.85596237 | AA97: 113.1250491 | AB97: 98.40853394 | AC97: 108.6230268 | AD97: 109.4904812 | AE97: 101.1466509 | AF97: 101.2475702 | AG97: 96.28028315
B98: Septiembre | C98: 101.1390411 | D98: 100.7973733 | E98: 90.40368034 | F98: 98.92121557 | G98: 106.7416633 | H98: 102.9007123 | I98: 101.1127819 | K98: 2.772835138 | L98: 0.6694443702 | M98: -7.764108021 | N98: 1.545165593 | O98: 3.929761414 | P98: 1.147027025 | Q98: 0.5789727626 | S98: 114.6443083 | T98: 98.68146833 | U98: 97.74088575 | V98: 108.3485389 | W98: 108.3173906 | X98: 105.4239777 | Y98: 97.04954438 | AA98: 113.3531691 | AB98: 97.90083327 | AC98: 108.1160473 | AD98: 109.5301329 | AE98: 101.4762064 | AF98: 102.452136 | AG98: 95.98147983
B99: Octubre | C99: 101.5568715 | D99: 100.8803171 | E99: 89.55911696 | F99: 99.06287547 | G99: 107.174912 | H99: 100.0822337 | I99: 100.7713949 | K99: 2.867913078 | L99: -0.1506315497 | M99: -9.391455175 | N99: 1.755106007 | O99: 4.596615311 | P99: -1.032280276 | Q99: 0.6768925348 | S99: 115.618985 | T99: 98.66057369 | U99: 96.85501822 | V99: 108.8732408 | W99: 108.5549675 | X99: 105.3104987 | Y99: 96.74481563 | AA99: 113.8465407 | AB99: 97.79962683 | AC99: 108.146464 | AD99: 109.9031704 | AE99: 101.2876665 | AF99: 105.2239691 | AG99: 96.00424375
B100: Noviembre | C100: 101.8893735 | D100: 101.4982504 | E100: 88.13445384 | F100: 99.32235492 | G100: 108.3898982 | H100: 99.8127102 | I100: 101.4383506 | K100: 3.541562392 | L100: 1.770089387 | M100: -9.920828967 | N100: 1.802981052 | O100: 5.899286536 | P100: -1.775291853 | Q100: 1.08669829 | S100: 117.0814915 | T100: 98.90613782 | U100: 95.56588948 | V100: 109.7062051 | W100: 109.3295263 | X100: 105.4520318 | Y100: 97.2963255 | AA100: 114.9104048 | AB100: 97.44615049 | AC100: 108.4319302 | AD100: 110.4546959 | AE100: 100.8668964 | AF100: 105.6499033 | AG100: 95.91670696
B101: Diciembre | C101: 102.2245716 | D101: 101.2657174 | E101: 88.21799662 | F101: 99.18435579 | G101: 108.2668372 | H101: 98.06382662 | I101: 101.7265258 | K101: 4.335117101 | L101: 0.2647799703 | M101: -7.707409579 | N101: 1.733128374 | O101: 5.481565408 | P101: -4.234910261 | Q101: 1.208402582 | S101: 118.3249475 | T101: 98.88583165 | U101: 96.0581688 | V101: 110.2570327 | W101: 109.7323378 | X101: 105.5573986 | Y101: 97.27624935 | AA101: 115.7500058 | AB101: 97.64986039 | AC101: 108.8872707 | AD101: 111.1637332 | AE101: 101.3536006 | AF101: 107.6415252 | AG101: 95.62525469
A102: 2003 | B102: Enero | C102: 102.9528315 | D102: 100.1446794 | E102: 89.56486559 | F102: 99.64618427 | G102: 108.4720058 | H102: 95.79458044 | I102: 101.8589349 | K102: 5.534355297 | L102: 0.361609466 | M102: -5.808880611 | N102: 1.699997824 | O102: 5.414089415 | P102: -5.987370083 | Q102: 1.997505993 | S102: 119.3008028 | T102: 98.40573004 | U102: 98.32959713 | V102: 110.8946115 | W102: 110.1732685 | X102: 105.3620019 | Y102: 96.90693052 | AA102: 115.8790885 | AB102: 98.26356288 | AC102: 109.7859037 | AD102: 111.2883672 | AE102: 101.5683887 | AF102: 109.987435 | AG102: 95.13837016
B103: Febrero | C103: 103.6468854 | D103: 100.4128758 | E103: 89.58670891 | F103: 99.31806107 | G103: 107.7943991 | H103: 95.84330482 | I103: 102.3018348 | K103: 5.599119584 | L103: 0.5242182495 | M103: -4.236673409 | N103: 1.483769167 | O103: 5.018981681 | P103: -6.692296721 | Q103: 2.200137448 | S103: 120.2356189 | T103: 98.1803351 | U103: 98.39355328 | V103: 111.2660219 | W103: 110.4312296 | X103: 108.8293973 | Y103: 96.66279834 | AA103: 116.0050478 | AB103: 97.77663903 | AC103: 109.8305256 | AD103: 112.0299981 | AE103: 102.4461664 | AF103: 113.5492953 | AG103: 94.48784424
B104: Marzo | C104: 104.3425126 | D104: 100.4933982 | E104: 90.39067423 | F104: 99.78432091 | G104: 108.5673147 | H104: 118.5328594 | I104: 102.6287488 | K104: 5.485914662 | L104: 0.5682503977 | M104: -3.037843672 | N104: 1.338636211 | O104: 4.82089934 | P104: 15.97529683 | Q104: 2.140805442 | S104: 121.1569576 | T104: 98.01721457 | U104: 99.17288508 | V104: 111.6267388 | W104: 110.8851827 | X104: 136.1721092 | Y104: 96.49475566 | AA104: 116.1146637 | AB104: 97.53597385 | AC104: 109.7158373 | AD104: 111.8680148 | AE104: 102.1349594 | AF104: 114.8813164 | AG104: 94.02312389
B105: Abril | C105: 104.4819176 | D105: 100.7134469 | E105: 90.29573603 | F105: 99.92546403 | G105: 109.6430933 | H105: 123.9195442 | I105: 103.0446732 | K105: 4.315120285 | L105: 0.5620497365 | M105: -1.915291832 | N105: 1.122305106 | O105: 5.408019607 | P105: 18.53571415 | Q105: 1.934978393 | S105: 122.5552738 | T105: 98.19882346 | U105: 99.51868485 | V105: 112.3685612 | W105: 111.6369475 | X105: 142.9129532 | Y105: 96.80385697 | AA105: 117.2980709 | AB105: 97.50318999 | AC105: 110.2141576 | AD105: 112.4523787 | AE105: 101.818495 | AF105: 115.3272102 | AG105: 93.94358192
B106: Mayo | C106: 105.7888913 | D106: 101.3257414 | E106: 90.82427959 | F106: 100.9369983 | G106: 110.3686008 | H106: 132.7370667 | I106: 104.4947279 | K106: 5.039610159 | L106: 1.073253244 | M106: -1.67024422 | N106: 1.926805827 | O106: 5.551989059 | P106: 26.19197464 | Q106: 2.745778881 | S106: 124.8525011 | T106: 98.71322322 | U106: 100.4310567 | V106: 113.7412662 | W106: 113.2473201 | X106: 155.1023661 | Y106: 97.98180979 | AA106: 118.020427 | AB106: 97.42166394 | AC106: 110.5773227 | AD106: 112.6854058 | AE106: 102.6082775 | AF106: 116.8493247 | AG106: 93.76722805
B107: Junio | C107: 106.0972027 | D107: 101.0040971 | E107: 90.74139555 | F107: 101.1269313 | G107: 109.6871507 | H107: 142.6222731 | I107: 104.4789958 | K107: 4.660426328 | L107: 1.236924968 | M107: -1.821522057 | N107: 2.473901872 | O107: 3.854744318 | P107: 35.39167172 | Q107: 2.43498636 | S107: 125.8989688 | T107: 98.56752368 | U107: 100.4770862 | V107: 114.1286474 | W107: 113.5839463 | X107: 175.0815145 | Y107: 97.94589746 | AA107: 118.6637967 | AB107: 97.58764894 | AC107: 110.729051 | AD107: 112.8568285 | AE107: 103.5526455 | AF107: 122.7588866 | AG107: 93.74697441
B108: Julio | C108: 105.7469697 | D108: 101.2770346 | E108: 90.24927232 | F108: 100.9189041 | G108: 110.2525319 | H108: 163.7824999 | I108: 103.9131514 | K108: 4.479283746 | L108: 1.269223664 | M108: -1.342981559 | N108: 2.10560345 | O108: 3.533798984 | P108: 55.62103657 | Q108: 1.716767909 | S108: 126.400191 | T108: 98.33207568 | U108: 100.1273989 | V108: 114.2334183 | W108: 113.9397732 | X108: 208.2560976 | Y108: 97.42519577 | AA108: 119.5307926 | AB108: 97.09217502 | AC108: 110.9453808 | AD108: 113.1932806 | AE108: 103.3443598 | AF108: 127.1540597 | AG108: 93.75636714
B109: Agosto | C109: 106.0714968 | D109: 101.0038451 | E109: 89.93377966 | F109: 100.3485306 | G109: 109.9759332 | H109: 155.7144932 | I109: 103.6750249 | K109: 5.045261135 | L109: 0.3170384002 | M109: -0.6356759944 | N109: 1.490983784 | O109: 2.955399975 | P109: 48.98040282 | Q109: 2.005646965 | S109: 126.8636137 | T109: 98.02336061 | U109: 99.68318178 | V109: 114.2242143 | W109: 113.1793172 | X109: 203.2876657 | Y109: 96.96147373 | AA109: 119.6019831 | AB109: 97.04913755 | AC109: 110.8406454 | AD109: 113.8274907 | AE109: 102.9128046 | AF109: 130.551538 | AG109: 93.52442774
B110: Septiembre | C110: 107.4055459 | D110: 101.2523411 | E110: 90.71360472 | F110: 100.8141678 | G110: 111.1924407 | H110: 145.0547231 | I110: 104.5976831 | K110: 6.195930596 | L110: 0.4513687219 | M110: 0.3428227475 | N110: 1.91359581 | O110: 4.169672124 | P110: 40.96571341 | Q110: 3.446548645 | S110: 128.1722507 | T110: 97.98904874 | U110: 100.6065347 | V110: 114.9029123 | W110: 114.336119 | X110: 191.5054145 | Y110: 97.29760451 | AA110: 119.3348533 | AB110: 96.77706975 | AC110: 110.905674 | AD110: 113.9749648 | AE110: 102.827241 | AF110: 132.0228741 | AG110: 93.02080275
B111: Octubre | C111: 107.5121842 | D111: 100.9718418 | E111: 91.88413232 | F111: 101.1576776 | G111: 112.2344377 | H111: 156.2846013 | I111: 105.4476058 | K111: 5.864017557 | L111: 0.09072595595 | M111: 2.596067756 | N111: 2.114618735 | O111: 4.720811678 | P111: 56.15618824 | Q111: 4.640414935 | S111: 129.7469584 | T111: 97.94739489 | U111: 102.1944505 | V111: 115.6892866 | W111: 115.6105676 | X111: 211.7207754 | Y111: 97.68960215 | AA111: 120.6811668 | AB111: 97.00466306 | AC111: 111.2209997 | AD111: 114.3653051 | AE111: 103.0081051 | AF111: 135.4712964 | AG111: 92.64278824
B112: Noviembre | C112: 106.7971366 | D112: 100.8870424 | E112: 91.25936769 | F112: 100.8935726 | G112: 111.6549951 | H112: 167.5304913 | I112: 105.3270873 | K112: 4.816756543 | L112: -0.6021857276 | M112: 3.545621159 | N112: 1.581937624 | O112: 3.012362678 | P112: 67.84484756 | Q112: 3.833596089 | S112: 130.7354884 | T112: 97.88034024 | U112: 101.8376981 | V112: 116.0952399 | W112: 115.7300884 | X112: 240.9359056 | Y112: 97.6108391 | AA112: 122.414788 | AB112: 97.01973406 | AC112: 111.5915009 | AD112: 115.0670324 | AE112: 103.6497188 | AF112: 143.8161518 | AG112: 92.67401353
B113: Diciembre | C113: 107.1602778 | D113: 101.0633677 | E113: 90.60328334 | F113: 101.6152218 | G113: 111.9717168 | H113: 152.7949957 | I113: 106.4447983 | K113: 4.828297244 | L113: -0.199820493 | M113: 2.703855005 | N113: 2.450856227 | O113: 3.421989292 | P113: 55.81178196 | Q113: 4.638192936 | S113: 132.7030479 | T113: 98.1227865 | U113: 101.5099995 | V113: 117.0892846 | W113: 116.6374733 | X113: 227.8696646 | Y113: 98.25421855 | AA113: 123.8360432 | AB113: 97.09035895 | AC113: 112.0378818 | AD113: 115.2280954 | AE113: 104.1669063 | AF113: 149.1342459 | AG113: 92.30532644
A114: 2004 | B114: Enero | C114: 107.3306176 | D114: 100.6085109 | E114: 90.86664925 | F114: 102.0108612 | G114: 111.6765855 | H114: 176.2203589 | I114: 106.9218862 | K114: 4.25222506 | L114: 0.4631613507 | M114: 1.453453492 | N114: 2.373073277 | O114: 2.954291942 | P114: 83.95650159 | Q114: 4.970552005 | S114: 134.4062349 | T114: 98.09824496 | U114: 103.2217115 | V114: 117.7266287 | W114: 116.8910682 | X114: 279.2190821 | Y114: 98.50684609 | AA114: 125.2263686 | AB114: 97.50491693 | AC114: 113.5969163 | AD114: 115.4059747 | AE114: 104.6692713 | AF114: 158.4488216 | AG114: 92.12973094
B115: Febrero | C115: 107.1895073 | D115: 100.6362505 | E115: 90.53938411 | F115: 101.6852961 | G115: 110.9954001 | H115: 169.8855191 | I115: 107.3965512 | K115: 3.417972343 | L115: 0.2224562203 | M115: 1.063411318 | N115: 2.383488952 | O115: 2.969542928 | P115: 77.25340274 | Q115: 4.980083088 | S115: 135.2162962 | T115: 97.95021717 | U115: 103.0190786 | V115: 118.0575274 | W115: 116.931345 | X115: 297.9458596 | Y115: 98.34793421 | AA115: 126.1469519 | AB115: 97.33094854 | AC115: 113.7837192 | AD115: 116.1008838 | AE115: 105.3479197 | AF115: 175.3803745 | AG115: 91.57457396
B116: Marzo | C116: 107.7516724 | D116: 100.4134147 | E116: 90.16852422 | F116: 102.0090853 | G116: 111.1482059 | H116: 157.6637959 | I116: 107.9136732 | K116: 3.267277805 | L116: -0.07959079495 | M116: -0.2457665107 | N116: 2.229573122 | O116: 2.377226727 | P116: 33.01273312 | Q116: 5.14955549 | S116: 135.7456602 | T116: 97.78305929 | U116: 102.7351591 | V116: 118.1743763 | W116: 117.0048591 | X116: 281.210282 | Y116: 98.03479018 | AA116: 125.9800959 | AB116: 97.38047412 | AC116: 113.9368311 | AD116: 115.846913 | AE116: 105.2692287 | AF116: 178.3607203 | AG116: 90.84556876
B117: Abril | C117: 107.6146492 | D117: 99.81806382 | E117: 89.23535478 | F117: 101.5242927 | G117: 110.7745605 | H117: 149.6625655 | I117: 108.0975955 | K117: 2.998348076 | L117: -0.8890402403 | M117: -1.174342549 | N117: 1.600021274 | O117: 1.031954804 | P117: 20.77397995 | Q117: 4.903623024 | S117: 136.3079482 | T117: 97.63877499 | U117: 101.8201668 | V117: 118.3827628 | W117: 117.037278 | X117: 267.7875028 | Y117: 97.83079609 | AA117: 126.6630048 | AB117: 97.81673902 | AC117: 114.1029439 | AD117: 116.6053558 | AE117: 105.6535702 | AF117: 178.9275106 | AG117: 90.50228697
B118: Mayo | C118: 107.7358093 | D118: 99.37664226 | E118: 87.7503494 | F118: 101.2574447 | G118: 110.2201738 | H118: 154.4852286 | I118: 107.3946452 | K118: 1.840380409 | L118: -1.923597163 | M118: -3.384480681 | N118: 0.3174716679 | O118: -0.134482938 | P118: 16.38439246 | Q118: 2.775180542 | S118: 136.7044872 | T118: 97.35053081 | U118: 100.4840865 | V118: 118.3739683 | W118: 116.9073995 | X118: 282.2467921 | Y118: 97.03087643 | AA118: 126.8886252 | AB118: 97.9611794 | AC118: 114.5113236 | AD118: 116.9039656 | AE118: 106.0671522 | AF118: 182.7014755 | AG118: 90.34982724
B119: Junio | C119: 107.9796455 | D119: 99.7145753 | E119: 87.34268592 | F119: 101.6119292 | G119: 111.0023191 | H119: 156.1617127 | I119: 107.6560986 | K119: 1.774262466 | L119: -1.276702453 | M119: -3.745489705 | N119: 0.4795932004 | O119: 1.19901775 | P119: 9.493215452 | Q119: 3.040900988 | S119: 138.1164099 | T119: 97.50730868 | U119: 100.1347136 | V119: 119.1747954 | W119: 117.7170334 | X119: 290.1669614 | Y119: 97.34361239 | AA119: 127.9096715 | AB119: 97.78641526 | AC119: 114.6457915 | AD119: 117.2842562 | AE119: 106.0491657 | AF119: 185.8118461 | AG119: 90.42089918
B120: Julio | C120: 107.6433167 | D120: 99.59131795 | E120: 86.59871285 | F120: 100.9437804 | G120: 110.8853457 | H120: 144.7379768 | I120: 107.9151051 | K120: 1.79328738 | L120: -1.664460891 | M120: -4.044973857 | N120: 0.02464975755 | O120: 0.5739676176 | P120: -11.62793525 | Q120: 3.851248452 | S120: 139.5282079 | T120: 97.62135424 | U120: 99.65880728 | V120: 119.8844492 | W120: 118.0842242 | X120: 270.8610351 | Y120: 97.6378236 | AA120: 129.620874 | AB120: 98.02195236 | AC120: 115.0811646 | AD120: 118.7635819 | AE120: 106.4921821 | AF120: 187.1388843 | AG120: 90.47651257
B121: Agosto | C121: 107.6362831 | D121: 99.53309665 | E121: 86.73612819 | F121: 101.2710061 | G121: 111.216812 | H121: 132.6217334 | I121: 107.89518 | K121: 1.475218467 | L121: -1.456131199 | M121: -3.555562191 | N121: 0.9192715604 | O121: 1.128318524 | P121: -14.83019291 | Q121: 4.07056103 | S121: 140.6302175 | T121: 97.59684543 | U121: 99.87232083 | V121: 120.4334003 | W121: 118.3529347 | X121: 249.2088861 | Y121: 97.69915026 | AA121: 130.6531715 | AB121: 98.05466595 | AC121: 115.1450069 | AD121: 118.9218958 | AE121: 106.4164065 | AF121: 187.9095376 | AG121: 90.55006
B122: Septiembre | C122: 108.1580038 | D122: 99.69877039 | E122: 86.27413954 | F122: 101.9966516 | G122: 111.0921878 | H122: 120.6169823 | I122: 108.6982808 | K122: 0.700576406 | L122: -1.534355321 | M122: -4.893935362 | N122: 1.172934144 | O122: -0.09016160966 | P122: -16.84725622 | Q122: 3.920352271 | S122: 142.0311015 | T122: 97.65227725 | U122: 99.8424349 | V122: 121.0855747 | W122: 118.4721502 | X122: 223.4633206 | Y122: 97.93547117 | AA122: 131.3181609 | AB122: 97.94732359 | AC122: 115.7269553 | AD122: 118.7152449 | AE122: 106.6430975 | AF122: 185.2668807 | AG122: 90.09845461
B123: Octubre | C123: 109.341168 | D123: 100.139067 | E123: 85.36876167 | F123: 102.508288 | G123: 110.8926837 | H123: 104.7091549 | I123: 109.58181 | K123: 1.70118746 | L123: -0.8247594047 | M123: -7.090855065 | N123: 1.335153591 | O123: -1.195492302 | P123: -33.00097767 | Q123: 3.920624039 | S123: 143.9311809 | T123: 97.92015179 | U123: 99.27739293 | V123: 122.10951 | W123: 119.2028036 | X123: 195.6478036 | Y123: 98.34187754 | AA123: 131.63494 | AB123: 97.78416628 | AC123: 116.292413 | AD123: 119.1215973 | AE123: 107.4938397 | AF123: 186.848804 | AG123: 89.74288483
B124: Noviembre | C124: 109.7618191 | D124: 100.807812 | E124: 84.60197661 | F124: 102.880205 | G124: 111.2379526 | H124: 98.14137207 | I124: 110.8735999 | K124: 2.775994409 | L124: -0.07853380694 | M124: -7.295022136 | N124: 1.969037549 | O124: -0.3735099194 | P124: -41.41880005 | Q124: 5.265988795 | S124: 146.347777 | T124: 98.33447355 | U124: 99.22873634 | V124: 123.3531494 | W124: 120.1871588 | X124: 180.1872365 | Y124: 99.3233219 | AA124: 133.3321351 | AB124: 97.5464814 | AC124: 117.2889102 | AD124: 119.8997897 | AE124: 108.0451015 | AF124: 183.5996712 | AG124: 89.58248133
B125: Diciembre | C125: 110.0115642 | D125: 100.8315079 | E125: 84.57043537 | F125: 103.2392513 | G125: 112.0902708 | H125: 97.4953947 | I125: 111.2680498 | K125: 2.660768081 | L125: -0.2294202334 | M125: -6.658531288 | N125: 1.598214793 | O125: 0.1058785169 | P125: -36.19202367 | Q125: 4.531223262 | S125: 148.4852864 | T125: 98.59035861 | U125: 99.83948647 | V125: 124.2980884 | W125: 120.8502248 | X125: 176.6932808 | Y125: 100.1190542 | AA125: 134.9724344 | AB125: 97.77733235 | AC125: 118.0548333 | AD125: 120.3980917 | AE125: 107.8150887 | AF125: 181.232438 | AG125: 89.98005667
A126: 2005 | B126: Enero | C126: 107.7522989 | D126: 99.56754658 | E126: 82.98582202 | F126: 103.3449264 | G126: 112.3818896 | H126: 98.92619881 | I126: 109.3463384 | K126: 0.3928806984 | L126: -1.034668228 | M126: -8.672959001 | N126: 1.307767752 | O126: 0.6315595643 | P126: -43.86221919 | Q126: 2.267498525 | S126: 148.9298423 | T126: 98.52215435 | U126: 99.31177976 | V126: 125.3340071 | W126: 120.9490934 | X126: 182.1805005 | Y126: 99.88187174 | AA126: 138.2150022 | AB126: 98.9500673 | AC126: 119.6731892 | AD126: 121.2773684 | AE126: 107.6232957 | AF126: 184.1579912 | AG126: 91.34450516
B127: Febrero | C127: 107.9838254 | D127: 100.1578524 | E127: 82.41311803 | F127: 103.0649403 | G127: 112.8807498 | H127: 96.2162008 | I127: 109.4704649 | K127: 0.7410409682 | L127: -0.475373517 | M127: -8.975393596 | N127: 1.356778497 | O127: 1.698583587 | P127: -43.36409524 | Q127: 1.931080373 | S127: 150.0002824 | T127: 98.57838252 | U127: 98.78747007 | V127: 125.7808838 | W127: 122.2406633 | X127: 176.2287431 | Y127: 99.91521929 | AA127: 138.9099541 | AB127: 98.42301943 | AC127: 119.8686234 | AD127: 122.0404178 | AE127: 108.2918599 | AF127: 183.1591163 | AG127: 91.27139394
B128: Marzo | C128: 108.6160761 | D128: 100.889684 | E128: 81.48917143 | F128: 103.3124228 | G128: 112.9190423 | H128: 95.13013957 | I128: 109.4233276 | K128: 0.8022183674 | L128: 0.4743084303 | M128: -9.625701277 | N128: 1.27766805 | O128: 1.593220904 | P128: -39.66266064 | Q128: 1.398946402 | S128: 151.1965019 | T128: 98.68460436 | U128: 97.53942013 | V128: 126.2676572 | W128: 122.8208321 | X128: 172.8884937 | Y128: 99.92258539 | AA128: 139.2026921 | AB128: 97.81436563 | AC128: 119.6961736 | AD128: 122.2192393 | AE128: 108.7689282 | AF128: 181.7389257 | AG128: 91.31744349
B129: Abril | C129: 108.6451332 | D129: 100.9814463 | E129: 81.21315187 | F129: 102.9874632 | G129: 111.773843 | H129: 95.14479129 | I129: 109.5107107 | K129: 0.9575685321 | L129: 1.165502919 | M129: -8.989937824 | N129: 1.441202323 | O129: 0.9020866988 | P129: -36.42712795 | Q129: 1.30725864 | S129: 151.8446494 | T129: 98.62836765 | U129: 97.29400268 | V129: 126.2644954 | W129: 122.9502462 | X129: 172.4279481 | Y129: 99.73996524 | AA129: 139.7620353 | AB129: 97.66979113 | AC129: 119.8007964 | AD129: 122.6018114 | AE129: 109.9991222 | AF129: 181.2268919 | AG129: 91.07781754
B130: Mayo | C130: 107.830134 | D130: 100.3447413 | E130: 80.74623115 | F130: 102.8253741 | G130: 111.6993926 | H130: 96.95119454 | I130: 109.9784645 | K130: 0.08755189178 | L130: 0.9741715654 | M130: -7.981869352 | N130: 1.548458336 | O130: 1.34205807 | P130: -37.24241767 | Q130: 2.405910726 | S130: 152.7371736 | T130: 98.64254213 | U130: 97.14632921 | V130: 126.3830238 | W130: 123.6103199 | X130: 175.2060558 | Y130: 99.7580761 | AA130: 141.6460946 | AB130: 98.30364889 | AC130: 120.3106669 | AD130: 122.9103467 | AE130: 110.663377 | AF130: 180.7157268 | AG130: 90.70691843
B131: Junio | C131: 107.5448236 | D131: 100.2418415 | E131: 80.2736765 | F131: 101.7163957 | G131: 110.7651705 | H131: 97.35085247 | I131: 109.3363897 | K131: -0.4026887379 | L131: 0.5287754403 | M131: -8.093418863 | N131: 0.1028092834 | O131: -0.2136429267 | P131: -37.66023005 | Q131: 1.560795114 | S131: 152.9634651 | T131: 98.43239202 | U131: 97.17481389 | V131: 125.7693207 | W131: 123.3536165 | X131: 175.9435804 | Y131: 99.22354656 | AA131: 142.2322897 | AB131: 98.19491598 | AC131: 121.0543956 | AD131: 123.6470482 | AE131: 111.3649859 | AF131: 180.7314224 | AG131: 90.75070687
B132: Julio | C132: 107.1591286 | D132: 100.5714209 | E132: 79.48880308 | F132: 101.1857421 | G132: 111.1504346 | H132: 97.15329527 | I132: 109.0834813 | K132: -0.4498078936 | L132: 0.9841248848 | M132: -8.210179502 | N132: 0.2396994806 | O132: 0.2390657812 | P132: -32.87643134 | Q132: 1.08268091 | S132: 153.8354147 | T132: 98.4209271 | U132: 96.7317199 | V132: 125.7124514 | W132: 124.2475923 | X132: 175.9521322 | Y132: 99.00295163 | AA132: 143.5579187 | AB132: 97.86172476 | AC132: 121.6922587 | AD132: 124.2392938 | AE132: 111.7832717 | AF132: 181.1077347 | AG132: 90.75888525
B133: Agosto | C133: 107.3828537 | D133: 100.9230392 | E133: 79.74970606 | F133: 101.1266683 | G133: 111.7790868 | H133: 96.77361262 | I133: 109.9996376 | K133: -0.2354498513 | L133: 1.39646269 | M133: -8.05480055 | N133: -0.1425262812 | O133: 0.505566379 | P133: -27.03035157 | Q133: 1.950464852 | S133: 155.4660663 | T133: 98.56528628 | U133: 96.99082603 | V133: 126.1378247 | W133: 125.2024499 | X133: 176.828866 | Y133: 99.40793984 | AA133: 144.7773653 | AB133: 97.66381102 | AC133: 121.6190389 | AD133: 124.7325032 | AE133: 112.0088323 | AF133: 182.7242584 | AG133: 90.37115213
B134: Septiembre | C134: 108.8178707 | D134: 101.3877387 | E134: 80.01465243 | F134: 101.5676414 | G134: 112.1116088 | H134: 99.36068928 | I134: 109.8700697 | K134: 0.610095218 | L134: 1.69407134 | M134: -7.255345737 | N134: -0.4206120766 | O134: 0.9176351394 | P134: -17.62296866 | Q134: 1.078019767 | S134: 156.3584899 | T134: 98.46514467 | U134: 97.28971872 | V134: 126.0630143 | W134: 125.5051416 | X134: 185.5425383 | Y134: 99.31891991 | AA134: 143.6882462 | AB134: 97.11740882 | AC134: 121.5898786 | AD134: 124.1173001 | AE134: 111.9466066 | AF134: 186.7363639 | AG134: 90.39670235
B135: Octubre | C135: 108.0958839 | D135: 99.64154287 | E135: 79.23069348 | F135: 101.6545981 | G135: 111.6264177 | H135: 104.7100876 | I135: 109.0823044 | K135: -1.138897764 | L135: -0.4968332021 | M135: -7.19006351 | N135: -0.8328007706 | O135: 0.6616613932 | P135: 0.0008907906766 | Q135: -0.4558289031 | S135: 156.7250867 | T135: 98.1991601 | U135: 97.64212964 | V135: 125.5985046 | W135: 125.3686043 | X135: 197.2352234 | Y135: 98.81901391 | AA135: 144.9870994 | AB135: 98.55242831 | AC135: 123.2377572 | AD135: 123.5541794 | AE135: 112.3108731 | AF135: 188.3631538 | AG135: 90.59124157
B136: Noviembre | C136: 106.264265 | D136: 100.4964957 | E136: 78.08508139 | F136: 100.8852083 | G136: 112.0610825 | H136: 107.6299127 | I136: 109.0313504 | K136: -3.186494358 | L136: -0.3088216096 | M136: -7.703005864 | N136: -1.939145314 | O136: 0.7399721748 | P136: 9.66823721 | Q136: -1.66157634 | S136: 157.3700342 | T136: 98.19944475 | U136: 96.72616269 | V136: 125.4225648 | W136: 125.7456785 | X136: 202.1952164 | Y136: 98.54103211 | AA136: 148.0930906 | AB136: 97.7142975 | AC136: 123.872782 | AD136: 124.3220556 | AE136: 112.2117293 | AF136: 187.8615445 | AG136: 90.37862209
B137: Diciembre | C137: 105.8705555 | D137: 100.4931394 | E137: 78.19416219 | F137: 100.4492027 | G137: 111.9450626 | H137: 106.0037414 | I137: 108.6010749 | K137: -3.764157618 | L137: -0.3355781621 | M137: -7.539600742 | N137: -2.702507561 | O137: -0.129545777 | P137: 8.726921617 | Q137: -2.396891848 | S137: 158.5091462 | T137: 98.19849516 | U137: 96.85511442 | V137: 125.4828712 | W137: 125.932559 | X137: 201.4774999 | Y137: 98.54563032 | AA137: 149.7197643 | AB137: 97.71661603 | AC137: 123.8648918 | AD137: 124.9217195 | AE137: 112.494965 | AF137: 190.0664046 | AG137: 90.74093453
A138: 2006 | B138: Enero | C138: 106.3441954 | D138: 101.3565298 | E138: 78.34827747 | F138: 101.1154882 | G138: 112.4693461 | H138: 109.8072161 | I138: 110.1959714 | K138: -1.306796694 | L138: 1.796753363 | M138: -5.588357672 | N138: -2.157278818 | O138: 0.07782075612 | P138: 10.99912607 | Q138: 0.7770109005 | S138: 160.1135717 | T138: 97.98374682 | U138: 97.22830127 | V138: 125.410472 | W138: 127.0143329 | X138: 210.609528 | Y138: 99.16734759 | AA138: 150.5616466 | AB138: 96.67235746 | AC138: 124.0975608 | AD138: 124.0269659 | AE138: 112.932401 | AF138: 191.7993511 | AG138: 89.99180854
B139: Febrero | C139: 106.2494297 | D139: 101.1748711 | E139: 78.48307168 | F139: 100.5910804 | G139: 111.7896606 | H139: 109.0000835 | I139: 110.6825566 | K139: -1.606162524 | L139: 1.01541586 | M139: -4.768714542 | N139: -2.400292394 | O139: -0.9665856656 | P139: 13.28662179 | Q139: 1.107231651 | S139: 160.9871745 | T139: 98.03625794 | U139: 97.09878397 | V139: 125.3051994 | W139: 127.6763523 | X139: 208.3091581 | Y139: 99.14846222 | AA139: 151.518154 | AB139: 96.89783329 | AC139: 123.7193982 | AD139: 124.568897 | AE139: 114.2112353 | AF139: 191.1091729 | AG139: 89.57912186
B140: Marzo | C140: 107.1109074 | D140: 101.1524236 | E140: 78.41444114 | F140: 100.7706472 | G140: 111.5383478 | H140: 104.2328355 | I140: 110.6945994 | K140: -1.385769672 | L140: 0.260422655 | M140: -3.773176533 | N140: -2.46028068 | O140: -1.222729607 | P140: 9.56867719 | Q140: 1.161792283 | S140: 161.9265695 | T140: 97.93123799 | U140: 97.08933173 | V140: 125.2420703 | W140: 127.8129117 | X140: 198.4166393 | Y140: 99.12132011 | AA140: 151.1765453 | AB140: 96.8155132 | AC140: 123.8156267 | AD140: 124.284277 | AE140: 114.5910032 | AF140: 190.3590536 | AG140: 89.54485642
B141: Abril | C141: 108.1325965 | D141: 101.2418233 | E141: 78.04873068 | F141: 101.0911003 | G141: 110.9820345 | H141: 102.9378186 | I141: 110.2194578 | K141: -0.47175298 | L141: 0.2578463881 | M141: -3.89643933 | N141: -1.841353175 | O141: -0.7084023815 | P141: 8.190703063 | Q141: 0.6471943121 | S141: 163.0579956 | T141: 97.96024738 | U141: 96.78997789 | V141: 125.4157545 | W141: 128.2162982 | X141: 195.6806432 | Y141: 99.20814878 | AA141: 150.7944883 | AB141: 96.75867562 | AC141: 124.0122383 | AD141: 124.0621124 | AE141: 115.5288771 | AF141: 190.0959684 | AG141: 90.00965056
B142: Mayo | C142: 107.8959255 | D142: 101.8092717 | E142: 78.00232086 | F142: 101.3546734 | G142: 111.4437152 | H142: 104.3579634 | I142: 111.3665996 | K142: 0.06101398742 | L142: 1.459498947 | M142: -3.398189922 | N142: -1.430289626 | O142: -0.2288977228 | P142: 7.639688073 | Q142: 1.2621881 | S142: 164.7112452 | T142: 98.18673983 | U142: 96.98465344 | V142: 126.0594457 | W142: 129.3651303 | X142: 198.7028923 | Y142: 99.722551 | AA142: 152.6575211 | AB142: 96.44184483 | AC142: 124.3355997 | AD142: 124.3745764 | AE142: 116.0811357 | AF142: 190.4051074 | AG142: 89.54439782
B143: Junio | C143: 106.9577955 | D143: 100.7468231 | E143: 77.57104641 | F143: 100.8087773 | G143: 111.249566 | H143: 104.0581265 | I143: 110.4333677 | K143: -0.5458450776 | L143: 0.5037633314 | M143: -3.366770036 | N143: -0.8923029076 | O143: 0.4373175167 | P143: 6.889794873 | Q143: 1.003305472 | S143: 164.6195798 | T143: 97.74594844 | U143: 96.82240492 | V143: 125.4339053 | W143: 129.2299646 | X143: 199.328865 | Y143: 98.88204961 | AA143: 153.9107823 | AB143: 97.02137041 | AC143: 124.8177115 | AD143: 124.4275634 | AE143: 116.1622191 | AF143: 191.5553083 | AG143: 89.540011
B144: Julio | C144: 107.072074 | D144: 100.0799965 | E144: 77.42265436 | F144: 100.8352622 | G144: 111.6985718 | H144: 103.5719923 | I144: 111.031517 | K144: -0.08123859514 | L144: -0.4886322318 | M144: -2.599295287 | N144: -0.3463728038 | O144: 0.4931489228 | P144: 6.606772376 | Q144: 1.785821011 | S144: 165.9920683 | T144: 98.02163372 | U144: 96.74961587 | V144: 125.7437345 | W144: 129.9680452 | X144: 199.6960418 | Y144: 99.16044943 | AA144: 155.0283487 | AB144: 97.94328251 | AC144: 124.962928 | AD144: 124.7021446 | AE144: 116.3560492 | AF144: 192.8089218 | AG144: 89.30838024
B145: Agosto | C145: 107.277427 | D145: 101.0394459 | E145: 77.45806892 | F145: 100.9103458 | G145: 112.6092751 | H145: 103.6046768 | I145: 111.6823482 | K145: -0.09817830659 | L145: 0.1153420082 | M145: -2.873536789 | N145: -0.2139124077 | O145: 0.7427045469 | P145: 7.058808712 | Q145: 1.529741931 | S145: 167.4012804 | T145: 98.17564469 | U145: 96.9080641 | V145: 126.0350019 | W145: 130.9087994 | X145: 199.6718134 | Y145: 99.55286848 | AA145: 156.0452046 | AB145: 97.16566025 | AC145: 125.1103538 | AD145: 124.8979983 | AE145: 116.2504591 | AF145: 192.7247104 | AG145: 89.13930456
B146: Septiembre | C146: 107.6005755 | D146: 100.6543423 | E146: 77.7712776 | F146: 100.4653759 | G146: 112.8576113 | H146: 105.357215 | I146: 111.6497358 | K146: -1.118653709 | L146: -0.7233580972 | M146: -2.803705033 | N146: -1.085252565 | O146: 0.6654105702 | P146: 6.035108822 | Q146: 1.619791553 | S146: 167.9514615 | T146: 98.01419253 | U146: 97.09757153 | V146: 125.7710472 | W146: 130.7870683 | X146: 201.3602324 | Y146: 99.31643177 | AA146: 156.087884 | AB146: 97.37701357 | AC146: 124.850169 | AD146: 125.1884503 | AE146: 115.8867947 | AF146: 191.1214456 | AG146: 88.95357524
B147: Octubre | C147: 106.9729436 | D147: 100.8050104 | E147: 77.67466311 | F147: 100.0468224 | G147: 112.7041885 | H147: 106.5568287 | I147: 111.0465159 | K147: =(C147/C135-1)*100 -> -1.038837211 | L147: =(D147/D135-1)*100 -> 1.167653039 | M147: =(E147/E135-1)*100 -> -1.963923709 | N147: =(F147/F135-1)*100 -> -1.581606498 | O147: =(G147/G135-1)*100 -> 0.9655158421 | P147: =(H147/H135-1)*100 -> 1.76367066 | Q147: =(I147/I135-1)*100 -> 1.800669183 | S147: 167.6854807 | T147: 98.00617438 | U147: 97.19859253 | V147: 125.680305 | W147: 131.3738597 | X147: 204.6029658 | Y147: 99.28776871 | AA147: 156.7550401 | AB147: 97.223515 | AC147: 125.1355186 | AD147: 125.621486 | AE147: 116.5651973 | AF147: 192.0130021 | AG147: 89.41097155
B148: Noviembre | C148: 105.7107169 | D148: 100.4637004 | E148: 77.45935672 | F148: 99.97893209 | G148: 113.0225663 | H148: 106.4266154 | I148: 111.6173028 | K148: -0.5209164549 | L148: -0.03263322152 | M148: -0.8013370347 | N148: -0.8983241549 | O148: 0.8579997929 | P148: -1.117995227 | Q148: 2.371751285 | S148: 167.3347241 | T148: 98.18188304 | U148: 97.39564183 | V148: 126.1065664 | W148: 132.4163654 | X148: 205.7824965 | Y148: 99.83050591 | AA148: 158.2949477 | AB148: 97.72871458 | AC148: 125.7377365 | AD148: 126.1331401 | AE148: 117.1592273 | AF148: 193.3562349 | AG148: 89.43999128
B149: Diciembre | C149: 105.6235909 | D149: 100.2592644 | E149: 76.95320613 | F149: 99.98616122 | G149: 112.6199537 | H149: 104.728092 | I149: 111.9062307 | K149: -0.2332703472 | L149: -0.232727374 | M149: -1.587018814 | N149: -0.4609707717 | O149: 0.6028771208 | P149: -1.203400371 | Q149: 3.043391345 | S149: 168.1920813 | T149: 98.37639806 | U149: 97.59317873 | V149: 126.5490621 | W149: 133.2953187 | X149: 203.4735724 | Y149: 100.2650682 | AA149: 159.2372309 | AB149: 98.12200268 | AC149: 126.821459 | AD149: 126.5665773 | AE149: 118.3585273 | AF149: 194.2874816 | AG149: 89.5973956
A150: 2007 | B150: Enero | C150: 105.2296392 | D150: 99.72501517 | E150: 76.95177178 | F150: 98.86214607 | G150: 112.0902968 | H150: 109.121571 | I150: 111.9362436 | K150: -1.048064916 | L150: -1.609678884 | M150: -1.782433176 | N150: -2.228483642 | O150: -0.3370245159 | P150: -0.6244080563 | Q150: 1.579252112 | S150: 168.8898942 | T150: 97.77421349 | U150: 98.18468448 | V150: 124.5898116 | W150: 133.1373945 | X150: 206.3974581 | Y150: 100.2136177 | AA150: 160.496506 | AB150: 98.04381912 | AC150: 127.5924936 | AD150: 126.0237781 | AE150: 118.7769132 | AF150: 189.1445075 | AG150: 89.52740814
B151: Febrero | C151: 105.7900631 | D151: 100.5336401 | E151: 77.27796801 | F151: 98.44425633 | G151: 111.8494236 | H151: 108.384715 | I151: 112.3032715 | K151: -0.432347335 | L151: -0.6337848833 | M151: -1.535495038 | N151: -2.134209171 | O151: 0.0534601946 | P151: -0.5645578343 | Q151: 1.464291236 | S151: 169.5403461 | T151: 97.83712957 | U151: 98.488833 | V151: 124.6802446 | W151: 133.8943675 | X151: 204.5604705 | Y151: 100.378439 | AA151: 160.2611257 | AB151: 97.31780277 | AC151: 127.4474932 | AD151: 126.6506033 | AE151: 119.7094837 | AF151: 188.7355339 | AG151: 89.38158042
B152: Marzo | C152: 105.9826475 | D152: 100.7494854 | E152: 77.18461136 | F152: 98.65758046 | G152: 111.7227687 | H152: 106.7322906 | I152: 112.524027 | K152: -1.053356692 | L152: -0.3983475394 | M152: -1.568371543 | N152: -2.096907 | O152: 0.1653430368 | P152: 2.397953614 | Q152: 1.652680086 | S152: 169.9397307 | T152: 97.91747477 | U152: 98.52524523 | V152: 124.8840837 | W152: 134.4057362 | X152: 201.4718463 | Y152: 100.7066026 | AA152: 160.3467498 | AB152: 97.18905701 | AC152: 127.6488195 | AD152: 126.5833635 | AE152: 120.302905 | AF152: 188.7637239 | AG152: 89.49786569
B153: Abril | C153: 106.0239871 | D153: 101.5843145 | E153: 77.3785486 | F153: 98.9935789 | G153: 111.7463578 | H153: 105.1330117 | I153: 113.0360584 | K153: -1.950021984 | L153: 0.3382902124 | M153: -0.8586713362 | N153: -2.074882306 | O153: 0.6886910079 | P153: 2.13254284 | Q153: 2.555447714 | S153: 170.7322444 | T153: 98.29132537 | U153: 98.52813876 | V153: 125.3776483 | W153: 135.2175179 | X153: 198.9223628 | Y153: 101.2738249 | AA153: 161.0317146 | AB153: 96.75836855 | AC153: 127.3326271 | AD153: 126.6523038 | AE153: 121.0039599 | AF153: 189.210182 | AG153: 89.59426427
B154: Mayo | C154: 105.6694504 | D154: 102.6773268 | E154: 77.9302486 | F154: 99.15902535 | G154: 111.8175332 | H154: 104.6980009 | I154: 113.3854019 | K154: -2.063539527 | L154: 0.8526287209 | M154: -0.09239758766 | N154: -2.166301727 | O154: 0.3354320766 | P154: 0.3258376757 | Q154: 1.812753824 | S154: 171.2615595 | T154: 98.55678808 | U154: 98.60809644 | V154: 125.6444414 | W154: 135.9714427 | X154: 199.2256639 | Y154: 101.7288668 | AA154: 162.0729159 | AB154: 95.98690496 | AC154: 126.5337891 | AD154: 126.7100407 | AE154: 121.6011826 | AF154: 190.2860246 | AG154: 89.71954513
B155: Junio | C155: 105.3353386 | D155: 102.2979035 | E155: 78.20914556 | F155: 99.01943542 | G155: 111.2367344 | H155: 105.6131793 | I155: 113.250601 | K155: -1.516913153 | L155: 1.539582388 | M155: 0.8225996345 | N155: -1.774986213 | O155: -0.01153407194 | P155: 1.494407816 | Q155: 2.551070704 | S155: 171.3056874 | T155: 98.57783096 | U155: 99.15160503 | V155: 125.6023181 | W155: 136.2491377 | X155: 201.3773603 | Y155: 101.8662773 | AA155: 162.6288856 | AB155: 96.36349096 | AC155: 126.7775071 | AD155: 126.8461263 | AE155: 122.4857404 | AF155: 190.674461 | AG155: 89.94767035
B156: Julio | C156: 105.0308221 | D156: 102.0988316 | E156: 78.08213611 | F156: 98.8964342 | G156: 111.6081438 | H156: 107.5992979 | I156: 113.4008968 | K156: -1.906427887 | L156: 2.017221418 | M156: 0.8517942916 | N156: -1.922767829 | O156: -0.08095716386 | P156: 3.888411769 | Q156: 2.133970455 | S156: 172.1256453 | T156: 98.84522505 | U156: 99.46429203 | V156: 126.0099398 | W156: 137.3407368 | X156: 205.5847924 | Y156: 102.3121915 | AA156: 163.8810797 | AB156: 96.81327735 | AC156: 127.3841841 | AD156: 127.4160599 | AE156: 123.0561965 | AF156: 191.0651802 | AG156: 90.22167755
B157: Agosto | C157: 104.1359002 | D157: 102.1472054 | E157: 76.98730505 | F157: 98.05857812 | G157: 112.1490203 | H157: 107.5758726 | I157: 112.8220788 | K157: -2.928413634 | L157: 1.096363399 | M157: -0.6077660881 | N157: -2.826040937 | O157: -0.4087184201 | P157: 3.833027518 | Q157: 1.020510973 | S157: 171.6147874 | T157: 98.54414152 | U157: 98.88650834 | V157: 125.7013016 | W157: 138.011019 | X157: 204.2313879 | Y157: 101.8609858 | AA157: 164.7988706 | AB157: 96.47267506 | AC157: 128.4452135 | AD157: 128.1900105 | AE157: 123.0603876 | AF157: 189.8486928 | AG157: 90.28462056
B158: Septiembre | C158: 104.2991665 | D158: 102.1075045 | E158: 77.38092153 | F158: 98.37064478 | G158: 112.3465929 | H158: 108.1895532 | I158: 113.0619504 | K158: -3.068207558 | L158: 1.443715406 | M158: -0.5019283236 | N158: -2.085027943 | O158: -0.4527991829 | P158: 2.688319161 | Q158: 1.264861561 | S158: 172.3569771 | T158: 98.76757935 | U158: 99.65907032 | V158: 126.0537356 | W158: 139.1994563 | X158: 207.2142496 | Y158: 102.275629 | AA158: 165.2524971 | AB158: 96.72901107 | AC158: 128.7902345 | AD158: 128.1416178 | AE158: 123.9018049 | AF158: 191.5288893 | AG158: 90.4598131
B159: Octubre | C159: 104.8590163 | D159: 102.2992983 | E159: 78.10280465 | F159: 98.04529883 | G159: 111.9902387 | H159: 109.1729975 | I159: 113.8116522 | K159: -1.97613272 | L159: 1.482354835 | M159: 0.551198453 | N159: -2.000586859 | O159: -0.6334723 | P159: 2.455186395 | Q159: 2.490070307 | S159: 173.6626761 | T159: 99.24458859 | U159: 100.5417432 | V159: 126.6762689 | W159: 141.0507241 | X159: 209.5531816 | Y159: 103.1879694 | AA159: 165.6153969 | AB159: 97.01394851 | AC159: 128.7300035 | AD159: 129.2017775 | AE159: 125.9491236 | AF159: 191.9459815 | AG159: 90.66555792
B160: Noviembre | C160: 104.0213811 | D160: 102.355352 | E160: 76.71041992 | F160: 97.80018643 | G160: 109.4846381 | H160: 108.0701742 | I160: 114.1259496 | K160: -1.598074295 | L160: 1.882920472 | M160: -0.9668771162 | N160: -2.179204767 | O160: -3.130284842 | P160: 1.544311754 | Q160: 2.24754289 | S160: 173.1484808 | T160: 99.696864 | U160: 99.83951135 | V160: 127.4124504 | W160: 142.6068162 | X160: 209.9189177 | Y160: 103.9138668 | AA160: 166.4547028 | AB160: 97.40268784 | AC160: 130.151173 | AD160: 130.2783308 | AE160: 130.2528087 | AF160: 194.2431567 | AG160: 91.05191864
B161: Diciembre | C161: 99.31843433 | D161: 103.1447695 | E161: 75.98719415 | F161: 97.95186806 | G161: 109.0497946 | H161: 107.2822706 | I161: 114.013794 | K161: -5.969458666 | L161: 2.87804345 | M161: -1.255323886 | N161: -2.034574724 | O161: -3.170094694 | P161: 2.438866794 | Q161: 1.883329778 | S161: 167.6461684 | T161: 99.72005369 | U161: 99.62071276 | V161: 127.4561848 | W161: 143.2090412 | X161: 210.4621185 | Y161: 103.9477418 | AA161: 168.7966283 | AB161: 96.67969993 | AC161: 131.1019756 | AD161: 130.1212394 | AE161: 131.3244484 | AF161: 196.1760478 | AG161: 91.17119789
A162: 2008 | B162: Enero | C162: 99.01880447 | D162: 102.6354466 | E162: 76.75754944 | F162: 97.877371 | G162: 108.5995941 | H162: 113.3630241 | I162: 112.4087951 | K162: -5.902172426 | L162: 2.918456742 | M162: -0.252394882 | N162: -0.9961093365 | O162: -3.114188159 | P162: 3.886906128 | Q162: 0.4221612887 | S162: 167.3411251 | T162: 99.59074051 | U162: 100.7391002 | V162: 127.4365587 | W162: 143.8030979 | X162: 213.3281236 | Y162: 104.4450358 | AA162: 168.9993391 | AB162: 97.03347509 | AC162: 131.243247 | AD162: 130.2002265 | AE162: 132.4158706 | AF162: 188.181398 | AG162: 92.91535925
B163: Febrero | C163: 98.7375933 | D163: 102.6893114 | E163: 77.13944654 | F163: 97.60067434 | G163: 108.0170083 | H163: 114.6961957 | I163: 112.3452745 | K163: -6.666476627 | L163: 2.144228891 | M163: -0.179250922 | N163: -0.8569133632 | O163: -3.426405899 | P163: 5.823220258 | Q163: 0.03740141049 | S163: 167.5809658 | T163: 99.82771529 | U163: 101.3204017 | V163: 127.6975799 | W163: 145.0784808 | X163: 214.5964228 | Y163: 104.8774782 | AA163: 169.7235675 | AB163: 97.21334567 | AC163: 131.3470685 | AD163: 130.8367803 | AE163: 134.3107748 | AF163: 187.0998611 | AG163: 93.35281671
B164: Marzo | C164: 99.92841197 | D164: 103.4070881 | E164: 76.37206189 | F164: 98.37952174 | G164: 108.2999964 | H164: 114.863568 | I164: 113.0127596 | K164: -5.712478128 | L164: 2.637832586 | M164: -1.05273507 | N164: -0.2818422309 | O164: -3.06363003 | P164: 7.61838558 | Q164: 0.4343361606 | S164: 169.0920727 | T164: 100.4750072 | U164: 100.7359013 | V164: 128.7946188 | W164: 146.7835663 | X164: 216.7409237 | Y164: 105.9965542 | AA164: 169.2132091 | AB164: 97.16452621 | AC164: 131.901508 | AD164: 130.9160855 | AE164: 135.5342301 | AF164: 188.6942287 | AG164: 93.79166973
B165: Abril | C165: 99.83314904 | D165: 103.7077277 | E165: 75.01648061 | F165: 98.48452623 | G165: 108.3732234 | H165: 114.1034784 | I165: 113.5371055 | K165: -5.839091929 | L165: 2.090296413 | M165: -3.052613457 | N165: -0.514227974 | O165: -3.018563177 | P165: 8.532492818 | Q165: 0.443263056 | S165: 169.4666077 | T165: 100.9208361 | U165: 99.77773491 | V165: 129.3728546 | W165: 148.0342439 | X165: 218.175119 | Y165: 106.3795525 | AA165: 169.749837 | AB165: 97.31274446 | AC165: 133.0077526 | AD165: 131.3636361 | AE165: 136.5966973 | AF165: 191.2081228 | AG165: 93.69584691
B166: Mayo | C166: 101.7878863 | D166: 103.5532689 | E166: 73.30211696 | F166: 97.53071944 | G166: 106.5413381 | H166: 114.3874072 | I166: 112.9294794 | K166: -3.673307764 | L166: 0.853101831 | M166: -5.938812877 | N166: -1.642115689 | O166: -4.718575832 | P166: 9.25462398 | Q166: -0.4020998134 | S166: 174.8624201 | T166: 100.9292816 | U166: 98.10711268 | V166: 129.2670308 | W166: 148.3756409 | X166: 217.8874033 | Y166: 105.8508989 | AA166: 171.7909925 | AB166: 97.46605069 | AC166: 133.8393988 | AD166: 132.5398106 | AE166: 139.2657945 | AF166: 190.4819845 | AG166: 93.73185763
B167: Junio | C167: 103.0785748 | D167: 103.2912729 | E167: 73.39804516 | F167: 97.16109661 | G167: 105.6622314 | H167: 113.2626865 | I167: 112.4925019 | K167: -2.142456526 | L167: 0.9710554969 | M167: -6.151582862 | N167: -1.876741472 | O167: -5.011386749 | P167: 7.242947528 | Q167: -0.6693996585 | S167: 178.1710621 | T167: 100.9323701 | U167: 98.97262651 | V167: 129.0756581 | W167: 148.9905615 | X167: 219.0745701 | Y167: 105.8162072 | AA167: 172.8497532 | AB167: 97.71626124 | AC167: 134.8436819 | AD167: 132.8470577 | AE167: 141.00645 | AF167: 193.4216616 | AG167: 94.06512032
B168: Julio | C168: 104.8911167 | D168: 102.9473445 | E168: 72.62939476 | F168: 95.91523852 | G168: 105.7391735 | H168: 112.5475217 | I168: 112.7342888 | K168: -0.1330137299 | L168: 0.8310701388 | M168: -6.983340391 | N168: -3.014462256 | O168: -5.258550189 | P168: 4.598750998 | Q168: -0.5878331137 | S168: 184.3236885 | T168: 101.1504839 | U168: 98.50032447 | V168: 129.2566588 | W168: 149.7897101 | X168: 220.1369662 | Y168: 105.8901086 | AA168: 175.7285977 | AB168: 98.25458281 | AC168: 135.6204672 | AD168: 134.761338 | AE168: 141.6596188 | AF168: 195.5946812 | AG168: 93.92892771
B169: Agosto | C169: 104.7749039 | D169: 102.3944481 | E169: 71.40634522 | F169: 94.32071616 | G169: 105.1379496 | H169: 112.6202973 | I169: 110.795534 | K169: 0.6136248119 | L169: 0.2420455307 | M169: -7.249194943 | N169: -3.811866369 | O169: -6.251566557 | P169: 4.689178537 | Q169: -1.796230653 | S169: 187.6187537 | T169: 100.6253705 | U169: 97.32966491 | V169: 128.2797968 | W169: 149.3657433 | X169: 220.8428727 | Y169: 104.4940006 | AA169: 179.0684092 | AB169: 98.27229146 | AC169: 136.3039442 | AD169: 136.0038409 | AE169: 142.0664411 | AF169: 196.0950894 | AG169: 94.3124662
B170: Septiembre | C170: 102.8024863 | D170: 101.711322 | E170: 71.08426708 | F170: 93.20365448 | G170: 103.2926754 | H170: 110.2932564 | I170: 108.076081 | K170: -1.434987712 | L170: -0.3880052409 | M170: -8.137218223 | N170: -5.252573377 | O170: -8.058915973 | P170: 1.944460581 | Q170: -4.409856181 | S170: 185.7887353 | T170: 99.46195424 | U170: 96.67906822 | V170: 126.9053014 | W170: 146.8622122 | X170: 218.809759 | Y170: 102.6201387 | AA170: 180.7239708 | AB170: 97.78847846 | AC170: 136.0062813 | AD170: 136.1591475 | AE170: 142.1806644 | AF170: 198.3890639 | AG170: 94.95175782
B171: Octubre | C171: 98.81451644 | D171: 99.24093951 | E171: 68.78450188 | F171: 90.15256667 | G171: 100.429792 | H171: 108.4694442 | I171: 104.3406936 | K171: -5.764406409 | L171: -2.989618552 | M171: -11.9308171 | N171: -8.050087313 | O171: -10.32272703 | P171: -0.6444389483 | Q171: -8.321607114 | S171: 181.2551616 | T171: 96.8833567 | U171: 94.38445527 | V171: 123.9911182 | W171: 142.9312055 | X171: 214.2610632 | Y171: 99.40720711 | AA171: 183.4296904 | AB171: 97.62438483 | AC171: 137.2176183 | AD171: 137.5347622 | AE171: 142.3195275 | AF171: 197.5312631 | AG171: 95.27175222
B172: Noviembre | C172: 95.43105556 | D172: 98.16992585 | E172: 68.54073035 | F172: 88.77595569 | G172: 99.26534742 | H172: 110.5093011 | I172: 103.0635346 | K172: -8.258230635 | L172: -4.089113141 | M172: -10.65003892 | N172: -9.227212212 | O172: -9.333995011 | P172: 2.256984349 | Q172: -9.693163597 | S172: 179.1429472 | T172: 96.0900632 | U172: 94.92956393 | V172: 123.0008452 | W172: 142.1107822 | X172: 213.9170404 | Y172: 98.48331187 | AA172: 187.7197587 | AB172: 97.88136475 | AC172: 138.5009518 | AD172: 138.5519809 | AE172: 143.1625294 | AF172: 193.5737882 | AG172: 95.55592313
B173: Diciembre | C173: 95.36072153 | D173: 98.00530173 | E173: 69.32800997 | F173: 88.6199489 | G173: 99.71063113 | H173: 112.1432521 | I173: 104.0793612 | K173: -3.984872323 | L173: -4.982771151 | M173: -8.763561088 | N173: -9.527045623 | O173: -8.564127493 | P173: 4.531020354 | Q173: -8.713360443 | S173: 179.2192656 | T173: 96.1993027 | U173: 96.12664196 | V173: 123.5975232 | W173: 142.9113867 | X173: 215.5561048 | Y173: 99.54771094 | AA173: 187.9382441 | AB173: 98.15724354 | AC173: 138.654841 | AD173: 139.4691881 | AE173: 143.3261278 | AF173: 192.2149579 | AG173: 95.64596649
A174: 2009 | B174: Enero | C174: 95.35340301 | D174: 98.27000772 | E174: 70.81077116 | F174: 87.76684872 | G174: 100.0987818 | H174: 115.9096253 | I174: 102.9272962 | K174: -3.701722593 | L174: -4.25334426 | M174: -7.747483241 | N174: -10.3297853 | O174: -7.827664886 | P174: 2.246412619 | Q174: -8.434837231 | S174: 179.0291358 | T174: 95.35318842 | U174: 97.20102545 | V174: 122.6097129 | W174: 143.5064575 | X174: 216.0852663 | Y174: 98.64626111 | AA174: 187.7532738 | AB174: 97.03183162 | AC174: 137.2687006 | AD174: 139.6993451 | AE174: 143.3648392 | AF174: 186.4256447 | AG174: 95.8407194
B175: Febrero | C175: 95.20164668 | D175: 97.68344721 | E175: 71.42811414 | F175: 86.44435159 | G175: 98.84260779 | H175: 115.1708098 | I175: 101.3433947 | K175: -3.581155367 | L175: -4.874766564 | M175: -7.40390638 | N175: -11.43057958 | O175: -8.493477725 | P175: 0.4138010821 | Q175: -9.792917307 | S175: 178.9181411 | T175: 94.35711251 | U175: 97.09481031 | V175: 121.3510769 | W175: 142.1332875 | X175: 214.523976 | Y175: 97.08753122 | AA175: 187.9359731 | AB175: 96.59478161 | AC175: 135.9336047 | AD175: 140.3805739 | AE175: 143.7975896 | AF175: 186.2659266 | AG175: 95.80055168
B176: Marzo | C176: 95.84040307 | D176: 97.19587702 | E176: 72.93944945 | F176: 86.5115365 | G176: 99.46508183 | H176: 115.6955846 | I176: 100.7769216 | K176: -4.090937519 | L176: -6.006562233 | M176: -4.494591813 | N176: -12.06347117 | O176: -8.157816107 | P176: 0.7243520019 | Q176: -10.82695261 | S176: 179.7763253 | T176: 94.18044415 | U176: 98.63938822 | V176: 121.1874292 | W176: 141.976954 | X176: 215.3508899 | Y176: 96.94275471 | AA176: 187.5788493 | AB176: 96.89757121 | AC176: 135.2346213 | AD176: 140.0823914 | AE176: 142.7404988 | AF176: 186.1357897 | AG176: 96.19539189
B177: Abril | C177: 97.39780846 | D177: 98.29416048 | E177: 74.14635301 | F177: 87.10623695 | G177: 101.0449529 | H177: 117.389983 | I177: 101.677165 | K177: -2.439410762 | L177: -5.220023016 | M177: -1.159915247 | N177: -11.55337768 | O177: -6.762067436 | P177: 2.880284337 | Q177: -10.44587179 | S177: 182.9349332 | T177: 95.10528421 | U177: 100.1269912 | V177: 122.1662131 | W177: 143.7983703 | X177: 218.317214 | Y177: 97.97999555 | AA177: 187.8224326 | AB177: 96.75578258 | AC177: 135.039671 | AD177: 140.2496737 | AE177: 142.3112843 | AF177: 185.9760164 | AG177: 96.36381538
B178: Mayo | C178: 99.41361288 | D178: 98.77060116 | E178: 74.83300824 | F178: 87.78405487 | G178: 102.6807543 | H178: 119.0302746 | I178: 103.3847662 | K178: -2.332569719 | L178: -4.618558 | M178: 2.088468026 | N178: -9.993430405 | O178: -3.623554819 | P178: 4.058897298 | Q178: -8.451923509 | S178: 186.3036125 | T178: 95.71946048 | U178: 101.0777351 | V178: 122.9488713 | W178: 146.1759132 | X178: 221.2914272 | Y178: 99.17858246 | AA178: 187.4025167 | AB178: 96.91088174 | AC178: 135.0710569 | AD178: 140.0583186 | AE178: 142.3596021 | AF178: 185.911885 | AG178: 95.93152464
B179: Junio | C179: 100.5441453 | D179: 99.42967609 | E179: 75.6735349 | F179: 87.94783446 | G179: 103.7210815 | H179: 117.7625242 | I179: 103.952194 | K179: -2.458735502 | L179: -3.738550886 | M179: 3.100204818 | N179: -9.48246003 | O179: -1.837127482 | P179: 3.972921595 | Q179: -7.591890784 | S179: 187.9578538 | T179: 95.95065689 | U179: 101.7201915 | V179: 123.2819861 | W179: 147.2428351 | X179: 222.5227884 | Y179: 99.78014044 | AA179: 186.9406252 | AB179: 96.50102531 | AC179: 134.41977 | AD179: 140.1762612 | AE179: 141.9603739 | AF179: 188.9589154 | AG179: 95.98656517
B180: Julio | C180: 100.6275626 | D180: 99.86200187 | E180: 75.89535929 | F180: 87.27365792 | G180: 104.9213598 | H180: 117.8755841 | I180: 103.6033894 | K180: -4.064742816 | L180: -2.99701045 | M180: 4.496753049 | N180: -9.009601321 | O180: -0.7734255475 | P180: 4.734055737 | Q180: -8.099487276 | S180: 190.0759346 | T180: 95.95662065 | U180: 102.3898067 | V180: 123.3078633 | W180: 147.962089 | X180: 223.2812138 | Y180: 99.99388488 | AA180: 188.8905284 | AB180: 96.08922198 | AC180: 134.9091798 | AD180: 141.2887534 | AE180: 141.0218942 | AF180: 189.421088 | AG180: 96.51603625
B181: Agosto | C181: 101.5418685 | D181: 100.5828817 | E181: 77.16746726 | F181: 87.6060002 | G181: 105.9733466 | H181: 117.8750241 | I181: 103.9568713 | K181: -3.085696416 | L181: -1.769203747 | M181: 8.068081378 | N181: -7.119025634 | O181: 0.7945722609 | P181: 4.665878947 | Q181: -6.172327064 | S181: 192.5425928 | T181: 96.23473738 | U181: 103.9421873 | V181: 123.6142927 | W181: 149.5379636 | X181: 224.5856959 | Y181: 100.4051846 | AA181: 189.6189185 | AB181: 95.67705334 | AC181: 134.6969014 | AD181: 141.1025415 | AE181: 141.109032 | AF181: 190.5286533 | AG181: 96.58349977
B182: Septiembre | C182: 101.899238 | D182: 100.7929512 | E182: 77.3208234 | F182: 87.7012904 | G182: 106.193637 | H182: 118.3262294 | I182: 105.1913467 | K182: -0.8786249163 | L182: -0.9029189554 | M182: 8.773469261 | N182: -5.903592629 | O182: 2.808487194 | P182: 7.283285696 | Q182: -2.669170009 | S182: 193.2011743 | T182: 96.20252471 | U182: 104.679737 | V182: 123.707337 | W182: 150.1074463 | X182: 225.4351108 | Y182: 100.9328874 | AA182: 189.6002149 | AB182: 95.44568696 | AC182: 135.3836294 | AD182: 141.0553214 | AE182: 141.3525806 | AF182: 190.5199819 | AG182: 95.9517019
B183: Octubre | C183: 101.4818663 | D183: 102.0231295 | E183: 78.23503647 | F183: 87.8762683 | G183: 106.8525865 | H183: 118.9740398 | I183: 105.8019134 | K183: 2.699350263 | L183: 2.803470007 | M183: 13.73933711 | N183: -2.524940164 | O183: 6.395307919 | P183: 9.68438223 | Q183: 1.40043131 | S183: 192.7436208 | T183: 96.59955504 | U183: 105.6665291 | V183: 124.2072687 | W183: 151.6093545 | X183: 226.9837776 | Y183: 101.7133391 | AA183: 189.929125 | AB183: 94.68397561 | AC183: 135.0629256 | AD183: 141.3433583 | AE183: 141.886462 | AF183: 190.7842905 | AG183: 96.1356329
B184: Noviembre | C184: 99.29364421 | D184: 101.0116049 | E184: 78.16480219 | F184: 88.09322331 | G184: 107.8844003 | H184: 117.8773137 | I184: 106.1275424 | K184: 4.047517477 | L184: 2.89465337 | M184: 14.04139085 | N184: -0.7690510047 | O184: 8.682841557 | P184: 6.667323472 | Q184: 2.972931065 | S184: 187.9633267 | T184: 96.84275318 | U184: 105.3586022 | V184: 124.5493128 | W184: 152.8553164 | X184: 226.9963057 | Y184: 102.0040149 | AA184: 189.3004615 | AB184: 95.87289822 | AC184: 134.7903395 | AD184: 141.3835345 | AE184: 141.6843548 | AF184: 192.5699684 | AG184: 96.11455479
B185: Diciembre | C185: 98.17509659 | D185: 101.3897225 | E185: 78.42787394 | F185: 88.0267419 | G185: 108.0949214 | H185: 117.514077 | I185: 105.7853749 | K185: 2.951293806 | L185: 3.453303767 | M185: 13.12581159 | N185: -0.6693831476 | O185: 8.408622245 | P185: 4.789253713 | Q185: 1.639147011 | S185: 187.5447131 | T185: 96.74715919 | U185: 105.5995922 | V185: 124.3553359 | W185: 153.2667158 | X185: 226.3706203 | Y185: 101.6820415 | AA185: 191.0308414 | AB185: 95.42107109 | AC185: 134.6454862 | AD185: 141.2699519 | AE185: 141.7890071 | AF185: 192.6327689 | AG185: 96.12107681
A186: 2010 | B186: Enero | C186: 95.78662301 | D186: 101.7532964 | E186: 77.97580921 | F186: 88.25898272 | G186: 109.1583143 | H186: 120.3556762 | I186: 104.8704681 | K186: 0.4543309223 | L186: 3.544610191 | M186: 10.11857084 | N186: 0.5607288024 | O186: 9.05059219 | P186: 3.835790855 | Q186: 1.887907278 | S186: 184.9396235 | T186: 96.15368059 | U186: 105.4486316 | V186: 124.1170747 | W186: 155.0252126 | X186: 225.1251723 | Y186: 100.0716224 | AA186: 193.0745836 | AB186: 94.49687034 | AC186: 135.2324941 | AD186: 140.6282634 | AE186: 142.0186942 | AF186: 187.0499004 | AG186: 95.42402571
B187: Febrero | C187: 93.19416403 | D187: 101.9459702 | E187: 75.55227664 | F187: 87.77963839 | G187: 108.4736294 | H187: 120.4445423 | I187: 104.578341 | K187: -2.108663783 | L187: 4.363608276 | M187: 5.773864466 | N187: 1.544677908 | O187: 9.743795588 | P187: 4.579053067 | Q187: 3.192064265 | S187: 180.5714251 | T187: 96.12156117 | U187: 102.2954355 | V187: 123.9358695 | W187: 155.7150408 | X187: 225.1316848 | Y187: 99.78849381 | AA187: 193.7582969 | AB187: 94.28676874 | AC187: 135.3968935 | AD187: 141.18977 | AE187: 143.5510562 | AF187: 186.9172987 | AG187: 95.4198478
B188: Marzo | C188: 90.84760955 | D188: 102.7353498 | E188: 74.21405768 | F188: 88.27478897 | G188: 109.0117851 | H188: 120.4851322 | I188: 105.2104426 | K188: -5.209487192 | L188: 5.699287849 | M188: 1.747488149 | N188: 2.038170339 | O188: 9.598045007 | P188: 4.139784276 | Q188: 4.39934153 | S188: 175.7235509 | T188: 96.65142731 | U188: 101.2228161 | V188: 124.5752757 | W188: 157.5560142 | X188: 226.2665061 | Y188: 100.3622878 | AA188: 193.4267195 | AB188: 94.07806317 | AC188: 136.3930491 | AD188: 141.1221451 | AE188: 144.5311752 | AF188: 187.7962052 | AG188: 95.39194522
B189: Abril | C189: 87.2577846 | D189: 103.3714891 | E189: 74.48701758 | F189: 88.15502977 | G189: 109.7885756 | H189: 120.7211597 | I189: 105.3242342 | K189: -10.41093636 | L189: 5.16544273 | M189: 0.4594488439 | N189: 1.20403871 | O189: 8.653200823 | P189: 2.837700982 | Q189: 3.586910841 | S189: 168.5511395 | T189: 96.90897401 | U189: 101.3478284 | V189: 124.8778638 | W189: 158.9833697 | X189: 227.0514377 | Y189: 100.6180432 | AA189: 193.1645873 | AB189: 93.74826163 | AC189: 136.0610636 | AD189: 141.6571058 | AE189: 144.8086641 | AF189: 188.0792384 | AG189: 95.53171116
B190: Mayo | C190: 87.68299407 | D190: 102.6716741 | E190: 73.68517748 | F190: 87.03736717 | G190: 108.8352441 | H190: 119.9586433 | I190: 103.7420419 | K190: -11.79981139 | L190: 3.949629596 | M190: -1.533856224 | N190: -0.8505960468 | O190: 5.993810476 | P190: 0.7799433396 | Q190: 0.3455786873 | S190: 170.2109348 | T190: 96.01919915 | U190: 100.1478737 | V190: 123.5061574 | W190: 157.4793793 | X190: 226.2753838 | Y190: 99.27957518 | AA190: 194.120806 | AB190: 93.52063268 | AC190: 135.9131879 | AD190: 141.9001533 | AE190: 144.6952048 | AF190: 188.6278283 | AG190: 95.69849729
B191: Junio | C191: 88.41633832 | D191: 102.0135842 | E191: 73.23551137 | F191: 86.44718396 | G191: 108.8349561 | H191: 119.9827478 | I191: 103.2890983 | K191: -12.06217123 | L191: 2.598729313 | M191: -3.221765079 | N191: -1.706296133 | O191: 4.930409984 | P191: 1.885339673 | Q191: -0.6378852253 | S191: 172.2036187 | T191: 95.8108317 | U191: 100.0510073 | V191: 123.1486433 | W191: 157.402685 | X191: 226.142131 | Y191: 98.95515892 | AA191: 194.7644767 | AB191: 93.91967985 | AC191: 136.6154279 | AD191: 142.4553555 | AE191: 144.6251192 | AF191: 188.4788732 | AG191: 95.80406891
B192: Julio | C192: 87.05436784 | D192: 102.6666427 | E192: 73.38836617 | F192: 86.53952104 | G192: 109.2734118 | H192: 120.7180079 | I192: 103.1793898 | K192: -13.48854568 | L192: 2.808516541 | M192: -3.303223202 | N192: -0.8411895332 | O192: 4.14791809 | P192: 2.411376197 | Q192: -0.4092526733 | S192: 169.9397489 | T192: 96.26408629 | U192: 100.4951024 | V192: 123.9226613 | W192: 159.2039845 | X192: 228.2339051 | Y192: 99.92802038 | AA192: 195.2110539 | AB192: 93.76374229 | AC192: 136.9360127 | AD192: 143.1977666 | AE192: 145.6932495 | AF192: 189.0636775 | AG192: 96.84881894
B193: Agosto | C193: 85.32389164 | D193: 103.2551715 | E193: 73.79129439 | F193: 86.52869871 | G193: 111.1148127 | H193: 121.3849656 | I193: 103.433636 | K193: -15.97171399 | L193: 2.65680375 | M193: -4.375124638 | N193: -1.229711986 | O193: 4.851659613 | P193: 2.977680481 | Q193: -0.5033195943 | S193: 166.5618055 | T193: 96.48573731 | U193: 100.9184675 | V193: 124.2954813 | W193: 160.7707357 | X193: 229.5716242 | Y193: 100.5635821 | AA193: 195.2112149 | AB193: 93.44397567 | AC193: 136.7620237 | AD193: 143.6465394 | AE193: 144.688842 | AF193: 189.1269013 | AG193: 97.22522188
B194: Septiembre | C194: 85.56415577 | D194: 103.2724047 | E194: 74.53086741 | F194: 86.31523157 | G194: 111.6676419 | H194: 121.3066391 | I194: 103.9689894 | K194: -16.03062258 | L194: 2.459947249 | M194: -3.608285406 | N194: -1.580431516 | O194: 5.154739098 | P194: 2.518807276 | Q194: -1.162032169 | S194: 166.4980364 | T194: 96.56860443 | U194: 101.9837343 | V194: 124.4705537 | W194: 161.8430399 | X194: 230.8196746 | Y194: 100.9178836 | AA194: 194.588534 | AB194: 93.50862386 | AC194: 136.8342244 | AD194: 144.2046223 | AE194: 144.9327998 | AF194: 190.2778581 | AG194: 97.06536941
B195: Octubre | C195: 86.52823067 | D195: 103.8345241 | E195: 74.91859093 | F195: 86.64653166 | G195: 111.5236437 | H195: 122.6603964 | I195: 105.2701866 | K195: -14.73527855 | L195: 1.77547445 | M195: -4.239079688 | N195: -1.399395618 | O195: 4.371496642 | P195: 3.098454615 | Q195: -0.5025681662 | S195: 168.5792312 | T195: 97.32846326 | U195: 102.6604598 | V195: 125.6636133 | W195: 164.4107471 | X195: 234.3711416 | Y195: 102.0838708 | AA195: 194.8257001 | AB195: 93.73420268 | AC195: 137.0293521 | AD195: 145.0301713 | AE195: 147.4223237 | AF195: 191.0731976 | AG195: 96.97320202
B196: Noviembre | C196: 86.38795597 | D196: 103.6890423 | E196: 73.97322016 | F196: 86.07775285 | G196: 110.2169837 | H196: 122.2764059 | I196: 104.7983875 | K196: -12.99749681 | L196: 2.650623557 | M196: -5.362492975 | N196: -2.287883659 | O196: 2.162113778 | P196: 3.731924446 | Q196: -1.252412739 | S196: 168.9041351 | T196: 97.24832774 | U196: 101.8231916 | V196: 125.4770244 | W196: 164.3461725 | X196: 233.7651889 | Y196: 101.6791404 | AA196: 195.518152 | AB196: 93.78843277 | AC196: 137.6487212 | AD196: 145.7717241 | AE196: 149.1114771 | AF196: 191.1776741 | AG196: 97.02357337
B197: Diciembre | C197: 84.53297072 | D197: 103.8945743 | E197: 73.61283124 | F197: 86.07141678 | G197: 109.9236828 | H197: 121.3858364 | I197: 103.92133 | K197: -13.89570914 | L197: 2.470518434 | M197: -6.139453314 | N197: -2.221285345 | O197: 1.691810588 | P197: 3.294719677 | Q197: -1.762100813 | S197: 165.9873472 | T197: 97.06574379 | U197: 101.1207524 | V197: 125.1109563 | W197: 164.4841015 | X197: 233.3635122 | Y197: 101.2344065 | AA197: 196.3581142 | AB197: 93.42715388 | AC197: 137.3683781 | AD197: 145.3571476 | AE197: 149.634817 | AF197: 192.2493753 | AG197: 97.41446392
A198: 2011 | B198: Enero | C198: 83.37750686 | D198: 103.0334815 | E198: 72.86093512 | F198: 85.96618523 | G198: 110.6835214 | H198: 127.2692551 | I198: 104.7169603 | K198: -12.95495733 | L198: 1.258126382 | M198: -6.559565252 | N198: -2.597806386 | O198: 1.397243185 | P198: 5.744289912 | Q198: -0.1463785119 | S198: 166.4645028 | T198: 96.87301968 | U198: 101.3071642 | V198: 126.6724001 | W198: 167.7011451 | X198: 232.7709836 | Y198: 102.187059 | AA198: 199.6515716 | AB198: 94.02091269 | AC198: 139.0418116 | AD198: 147.3514264 | AE198: 151.5141035 | AF198: 182.8964768 | AG198: 97.58405776
B199: Febrero | C199: 83.01422133 | D199: 103.8790027 | E199: 71.51564852 | F199: 86.23408996 | G199: 111.5734134 | H199: 127.4403248 | I199: 105.1941347 | K199: -10.9233693 | L199: 1.896134337 | M199: -5.342827909 | N199: -1.760714054 | O199: 2.857638234 | P199: 5.808301832 | Q199: 0.5888348196 | S199: 165.5178833 | T199: 97.28769876 | U199: 99.6755579 | V199: 127.275791 | W199: 169.3434946 | X199: 234.4751224 | Y199: 102.5557552 | AA199: 199.3849737 | AB199: 93.65482551 | AC199: 139.3758708 | AD199: 147.5933602 | AE199: 151.7776408 | AF199: 183.9881707 | AG199: 97.49189491
B200: Marzo | C200: 83.47677023 | D200: 104.4415118 | E200: 70.63491925 | F200: 86.72133374 | G200: 112.4721864 | H200: 127.9406259 | I200: 105.430896 | K200: -8.11341031 | L200: 1.660735077 | M200: -4.822723004 | N200: -1.759794897 | O200: 3.174336807 | P200: 6.187895196 | Q200: 0.2095356827 | S200: 165.5704303 | T200: 97.67236911 | U200: 98.6454545 | V200: 127.8951548 | W200: 170.653076 | X200: 236.1981959 | Y200: 102.9989159 | AA200: 198.3431197 | AB200: 93.51872393 | AC200: 139.6553653 | AD200: 147.478307 | AE200: 151.7291354 | AF200: 184.6154763 | AG200: 97.69329465
B201: Abril | C201: 84.37735672 | D201: 102.6702557 | E201: 70.387139 | F201: 87.04066194 | G201: 113.5709672 | H201: 128.7174265 | I201: 105.790398 | K201: -3.30105548 | L201: -0.6783624573 | M201: -5.504151881 | N201: -1.264100105 | O201: 3.445159504 | P201: 6.623749173 | Q201: 0.4425987756 | S201: 166.6486337 | T201: 98.289326 | U201: 98.21237215 | V201: 128.943769 | W201: 172.27491 | X201: 238.3953609 | Y201: 103.9530144 | AA201: 197.5039752 | AB201: 95.73300987 | AC201: 139.5317007 | AD201: 148.1419903 | AE201: 151.6892163 | AF201: 185.2083027 | AG201: 98.26318491
... 102 more rows

Sheet ITCER RESTOM
A2: Secretaría Ejecutiva
A3: Consejo Monetario Centroamericano
C4: ITCER RESTO DEL MUNDO Periodo de referencia Diciembre 2000=100 | K4: VARIACION INTERANUAL | S4: EFECTO TIPO DE CAMBIO | AA4: EFECTO PRECIO
A5: Año | B5: MES | C5: COSTA RICA | D5: EL SALVADOR | E5: GUATEMALA | F5: HONDURAS | G5: NICARAGUA | H5: REPÚBLICA DOMINICANA | I5: PANAMÁ | K5: COSTA RICA | L5: EL SALVADOR | M5: GUATEMALA | N5: HONDURAS | O5: NICARAGUA | P5: REPÚBLICA DOMINICANA | Q5: PANAMÁ | S5: COSTA RICA | T5: EL SALVADOR | U5: GUATEMALA | V5: HONDURAS | W5: NICARAGUA | X5: REPÚBLICA DOMINICANA | Y5: PANAMÁ | AA5: COSTA RICA | AB5: EL SALVADOR | AC5: GUATEMALA | AD5: HONDURAS | AE5: NICARAGUA | AF5: REPÚBLICA DOMINICANA | AG5: PANAMÁ
A6: 1995 | B6: Enero | C6: 101.3097779 | D6: 120.2207863 | E6: 104.5696299 | F6: 140.3431006 | G6: 95.9510777 | H6: 106.4869656 | I6: 101.9462975 | S6: 59.77941908 | T6: 111.377711 | U6: 84.49467136 | V6: 67.27104969 | W6: 61.88177661 | X6: 85.43717913 | Y6: 114.4558912 | AA6: 59.00656416 | AB6: 92.64430422 | AC6: 80.80230505 | AD6: 47.93327881 | AE6: 64.4930501 | AF6: 80.23252298 | AG6: 112.2707681
B7: Febrero | C7: 102.0554076 | D7: 119.9734043 | E7: 105.6078079 | F7: 132.9237508 | G7: 97.06920778 | H7: 106.8963254 | I7: 102.8722944 | S7: 60.73514544 | T7: 111.6471546 | U7: 84.40222083 | V7: 66.512284 | W7: 62.70573213 | X7: 85.57657859 | Y7: 114.8004375 | AA7: 59.51193265 | AB7: 93.05992039 | AC7: 79.92043628 | AD7: 50.03792296 | AE7: 64.59899443 | AF7: 80.05567852 | AG7: 111.5950978
B8: Marzo | C8: 103.8274248 | D8: 119.3667364 | E8: 104.9735899 | F8: 133.2539394 | G8: 98.48890861 | H8: 106.5450817 | I8: 103.8505421 | S8: 61.93960064 | T8: 111.5713666 | U8: 83.59860289 | V8: 67.2765682 | W8: 63.55426894 | X8: 85.45819237 | Y8: 115.5267344 | AA8: 59.65630059 | AB8: 93.4693952 | AC8: 79.63774792 | AD8: 50.48748914 | AE8: 64.52936664 | AF8: 80.20848174 | AG8: 111.2432656
B9: Abril | C9: 106.6241163 | D9: 121.1407932 | E9: 107.457263 | F9: 131.8190621 | G9: 102.1631895 | H9: 108.5988664 | I9: 105.8216846 | S9: 63.52350455 | T9: 112.9910279 | U9: 85.32431133 | V9: 67.86256544 | W9: 65.33470474 | X9: 86.31134374 | Y9: 117.0899331 | AA9: 59.57705136 | AB9: 93.27248479 | AC9: 79.40301936 | AD9: 51.48160239 | AE9: 63.95131656 | AF9: 79.47720507 | AG9: 110.6483359
B10: Mayo | C10: 107.4782103 | D10: 120.8685546 | E10: 106.8414883 | F10: 130.1057284 | G10: 102.8329812 | H10: 108.7088194 | I10: 105.8363679 | S10: 64.31363259 | T10: 112.98514 | U10: 85.56171406 | V10: 67.95574334 | W10: 65.9044057 | X10: 86.37745556 | Y10: 116.9194212 | AA10: 59.83876397 | AB10: 93.47769596 | AC10: 80.08285494 | AD10: 52.23116934 | AE10: 64.08878257 | AF10: 79.45763372 | AG10: 110.4718761
B11: Junio | C11: 107.8045672 | D11: 120.1016839 | E11: 106.0431113 | F11: 131.1481897 | G11: 102.1563285 | H11: 108.2073399 | I11: 105.9399971 | S11: 65.24233164 | T11: 112.7962362 | U11: 85.58560366 | V11: 68.91540535 | W11: 66.43814162 | X11: 86.23961868 | Y11: 116.8678306 | AA11: 60.51907941 | AB11: 93.91728121 | AC11: 80.70831066 | AD11: 52.54773666 | AE11: 65.03575708 | AF11: 79.69849253 | AG11: 110.315116
B12: Julio | C12: 107.6167231 | D12: 117.2427424 | E12: 106.3517639 | F12: 131.3107742 | G12: 101.9624755 | H12: 107.6189363 | I12: 105.762695 | S12: 66.15128752 | T12: 112.8331534 | U12: 85.84869018 | V12: 69.87490926 | W12: 67.05895293 | X12: 86.24976954 | Y12: 116.6721134 | AA12: 61.46933821 | AB12: 96.23892365 | AC12: 80.72145399 | AD12: 53.2133861 | AE12: 65.76826682 | AF12: 80.14367404 | AG12: 110.3149966
B13: Agosto | C13: 106.9439172 | D13: 115.6085562 | E13: 105.7472797 | F13: 130.5787451 | G13: 103.3776566 | H13: 105.9471924 | I13: 104.3888581 | S13: 66.25194107 | T13: 111.6497459 | U13: 85.53755851 | V13: 70.15806792 | W13: 66.67982263 | X13: 85.55298846 | Y13: 114.9889019 | AA13: 61.95017242 | AB13: 96.57567703 | AC13: 80.88866093 | AD13: 53.72855119 | AE13: 64.50119383 | AF13: 80.75059518 | AG13: 110.1543824
B14: Septiembre | C14: 104.9943213 | D14: 111.6352668 | E14: 103.5394533 | F14: 127.8480886 | G14: 100.6029847 | H14: 102.6923747 | I14: 102.7152585 | S14: 66.75679069 | T14: 110.9047295 | U14: 86.06705885 | V14: 70.59541521 | W14: 66.64722913 | X14: 85.10118592 | Y14: 113.9273024 | AA14: 63.58133453 | AB14: 99.34560351 | AC14: 83.12489213 | AD14: 55.21820151 | AE14: 66.24776521 | AF14: 82.87001462 | AG14: 110.9156557
B15: Octubre | C15: 103.9056125 | D15: 111.4207201 | E15: 103.4091517 | F15: 127.939046 | G15: 98.06627809 | H15: 102.1675522 | I15: 103.2217706 | S15: 67.82257072 | T15: 110.7973814 | U15: 86.81105831 | V15: 71.74329807 | W15: 67.25896642 | X15: 84.99445671 | Y15: 113.9501214 | AA15: 65.27325051 | AB15: 99.44055405 | AC15: 83.94910593 | AD15: 56.07615524 | AE15: 68.58521372 | AF15: 83.19124309 | AG15: 110.3934962
B16: Noviembre | C16: 102.541749 | D16: 110.0917971 | E16: 101.7234685 | F16: 128.6387703 | G16: 95.39462646 | H16: 100.5804542 | I16: 102.634157 | S16: 68.44082337 | T16: 109.8061091 | U16: 86.33401504 | V16: 73.09594311 | W16: 67.20374127 | X16: 84.36387232 | Y16: 113.1997398 | AA16: 66.74434954 | AB16: 99.74050021 | AC16: 84.87128521 | AD16: 56.82263827 | AE16: 70.44814133 | AF16: 83.87700473 | AG16: 110.2944119
B17: Diciembre | C17: 102.7196325 | D17: 109.9782335 | E17: 100.268645 | F17: 129.17205 | G17: 97.16880545 | H17: 100.4199848 | I17: 102.2552617 | S17: 69.22168384 | T17: 109.5760857 | U17: 85.24474635 | V17: 74.44472611 | W17: 67.65173773 | X17: 84.2559164 | Y17: 112.9812877 | AA17: 67.38895199 | AB17: 99.63433874 | AC17: 85.01635417 | AD17: 57.63222471 | AE17: 69.62289741 | AF17: 83.90353433 | AG17: 110.4894612
A18: 1996 | B18: Enero | C18: 103.0415422 | D18: 110.3892115 | E18: 102.3074027 | F18: 131.8738232 | G18: 99.66590536 | H18: 97.35111759 | I18: 106.1963434 | K18: =(C18/C6-1)*100 -> 1.709375338 | L18: =(D18/D6-1)*100 -> -8.17793258 | M18: -2.163369282 | N18: -6.034694469 | O18: 3.871585137 | P18: -8.579311041 | Q18: 4.168906517 | S18: 70.28283411 | T18: 110.520055 | U18: 87.61438762 | V18: 76.01899595 | W18: 68.77335602 | X18: 79.7815039 | Y18: 117.5574542 | AA18: 68.20825133 | AB18: 100.1185293 | AC18: 85.63836569 | AD18: 57.64525065 | AE18: 69.00389433 | AF18: 81.95232462 | AG18: 110.6982129
B19: Febrero | C19: 103.6253157 | D19: 110.5506453 | E19: 103.2764908 | F19: 131.3736672 | G19: 99.94191172 | H19: 97.56919581 | I19: 106.6935161 | K19: =(C19/C7-1)*100 -> 1.538289985 | L19: -7.854039924 | M19: -2.207523479 | N19: -1.16614488 | O19: 2.95943895 | P19: -8.725397749 | Q19: 3.714529487 | S19: 71.01149003 | T19: 110.4108905 | U19: 88.48808944 | V19: 77.545605 | W19: 69.33131364 | X19: 79.76108815 | Y19: 117.4241723 | AA19: 68.52716398 | AB19: 99.87358301 | AC19: 85.68076703 | AD19: 59.02674914 | AE19: 69.37161042 | AF19: 81.74822749 | AG19: 110.0574586
B20: Marzo | C20: 104.5685807 | D20: 110.4836971 | E20: 102.9448752 | F20: 132.6872192 | G20: 100.454644 | H20: 97.93116204 | I20: 106.8044943 | K20: 0.7138344026 | L20: -7.441804568 | M20: -1.932595314 | N20: -0.4252933905 | O20: 1.995895241 | P20: -8.084765139 | Q20: 2.844426392 | S20: 71.63549047 | T20: 110.2388269 | U20: 88.5547755 | V20: 79.10136301 | W20: 69.85049602 | X20: 79.73321056 | Y20: 117.167634 | AA20: 68.50575001 | AB20: 99.77836524 | AC20: 86.02154825 | AD20: 59.6149075 | AE20: 69.53436218 | AF20: 81.41760895 | AG20: 109.702906
B21: Abril | C21: 105.0410774 | D21: 110.4253565 | E21: 101.5276767 | F21: 132.0692744 | G21: 100.8000726 | H21: 98.22452936 | I21: 106.8824899 | K21: -1.484691251 | L21: -8.845440431 | M21: -5.518088002 | N21: 0.1898149826 | O21: -1.334254493 | P21: -9.552896231 | Q21: 1.002446029 | S21: 72.09787914 | T21: 109.9872975 | U21: 87.77637216 | V21: 79.971707 | W21: 70.28393839 | X21: 79.71854259 | Y21: 116.7934146 | AA21: 68.63779478 | AB21: 99.60329852 | AC21: 86.45560999 | AD21: 60.55284799 | AE21: 69.72607916 | AF21: 81.15950579 | AG21: 109.27273
B22: Mayo | C22: 104.4027223 | D22: 109.7613663 | E22: 100.3565396 | F22: 130.9862233 | G22: 100.1049698 | H22: 98.21035574 | I22: 107.1812242 | K22: -2.861499085 | L22: -9.189477224 | M22: -6.069691394 | N22: 0.6767533331 | O22: -2.652856453 | P22: -9.657416701 | Q22: 1.270693979 | S22: 72.61103296 | T22: 109.7866198 | U22: 86.96791569 | V22: 80.74106744 | W22: 70.77698253 | X22: 79.69891732 | Y22: 116.4786976 | AA22: 69.54898432 | AB22: 100.0230076 | AC22: 86.6589422 | AD22: 61.64088513 | AE22: 70.70276599 | AF22: 81.15123575 | AG22: 108.6745356
B23: Junio | C23: 104.1283466 | D23: 107.9277036 | E23: 100.3344074 | F23: 130.9493884 | G23: 100.5823507 | H23: 97.91062178 | I23: 107.0480178 | K23: -3.410078744 | L23: -10.13639437 | M23: -5.38338016 | N23: -0.1515851893 | O23: -1.540754075 | P23: -9.515729804 | Q23: 1.045894591 | S23: 73.31184702 | T23: 109.5775513 | U23: 87.35105267 | V23: 82.65972021 | W23: 71.31220002 | X23: 79.65191295 | Y23: 116.0865594 | AA23: 70.40527333 | AB23: 101.52866 | AC23: 87.05991783 | AD23: 63.12341065 | AE23: 70.89931738 | AF23: 81.35165675 | AG23: 108.4434461
B24: Julio | C24: 104.4301967 | D24: 108.339582 | E24: 98.79253227 | F24: 134.6049399 | G24: 101.7017602 | H24: 97.88432697 | I24: 107.129287 | K24: -2.960995632 | L24: -7.593783859 | M24: -7.107763302 | N24: 2.508678885 | O24: -0.2556973309 | P24: -9.045442841 | Q24: 1.292130456 | S24: 74.22470243 | T24: 109.7544855 | U24: 86.95760816 | V24: 86.73127811 | W24: 72.17816064 | X24: 79.66394639 | Y24: 116.2119527 | AA24: 71.07590027 | AB24: 101.3059894 | AC24: 88.0204264 | AD24: 64.43394886 | AE24: 70.97041441 | AF24: 81.3858039 | AG24: 108.4782285
B25: Agosto | C25: 105.0385822 | D25: 105.765949 | E25: 98.12813157 | F25: 134.5319706 | G25: 104.1629394 | H25: 98.00169348 | I25: 107.5805087 | K25: -1.781620661 | L25: -8.513735986 | M25: -7.205053536 | N25: 3.027464767 | O25: 0.759625349 | P25: -7.499489861 | Q25: 3.057462953 | S25: 75.18588034 | T25: 110.1094826 | U25: 86.9582512 | V25: 88.94882384 | W25: 73.18689229 | X25: 79.72097699 | Y25: 116.6223517 | AA25: 71.57929852 | AB25: 104.106741 | AC25: 88.6170457 | AD25: 66.11723847 | AE25: 70.26193067 | AF25: 81.34653001 | AG25: 108.4047223
B26: Septiembre | C26: 105.2553403 | D26: 106.4876638 | E26: 97.57346799 | F26: 133.9424042 | G26: 104.0808295 | H26: 97.7414278 | I26: 107.3031475 | K26: 0.2486029509 | L26: -4.611090349 | M26: -5.762040556 | N26: 4.766841342 | O26: 3.456999608 | P26: -4.821143645 | Q26: 4.466609052 | S26: 75.71272578 | T26: 109.7483718 | U26: 86.33202536 | V26: 89.74821289 | W26: 73.57088201 | X26: 79.67070096 | Y26: 116.1763582 | AA26: 71.9324317 | AB26: 103.0620524 | AC26: 88.47899654 | AD26: 67.00507836 | AE26: 70.68629482 | AF26: 81.51170159 | AG26: 108.2692921
B27: Octubre | C27: 104.9792119 | D27: 106.3588239 | E27: 97.23980405 | F27: 133.4534635 | G27: 102.2678803 | H27: 97.75235511 | I27: 106.8005629 | K27: 1.033244904 | L27: -4.543047432 | M27: -5.965959065 | N27: 4.310191134 | O27: 4.284451595 | P27: -4.321525764 | Q27: 3.467090551 | S27: 76.25856094 | T27: 109.3109875 | U27: 86.05407876 | V27: 90.4566262 | W27: 73.92803595 | X27: 79.60021243 | Y27: 115.8141872 | AA27: 72.64158261 | AB27: 102.775664 | AC27: 88.49676282 | AD27: 67.78140024 | AE27: 72.28861665 | AF27: 81.43048047 | AG27: 108.4396787
B28: Noviembre | C28: 105.4341953 | D28: 107.346341 | E28: 95.72012832 | F28: 131.8976599 | G28: 102.2379978 | H28: 97.3197249 | I28: 107.1820784 | K28: 2.820749944 | L28: -2.493788043 | M28: -5.901627458 | N28: 2.533365039 | O28: 7.173749282 | P28: -3.241911483 | Q28: 4.431196711 | S28: 77.21419469 | T28: 109.4550187 | U28: 85.44260098 | V28: 91.00207088 | W28: 74.81663966 | X28: 79.60087531 | Y28: 116.1307499 | AA28: 73.2344895 | AB28: 101.9643685 | AC28: 89.26294029 | AD28: 68.99445445 | AE28: 73.17889754 | AF28: 81.79315693 | AG28: 108.3490371
B29: Diciembre | C29: 105.0544322 | D29: 106.8286238 | E29: 94.70094605 | F29: 131.8158079 | G29: 101.0362708 | H29: 98.59686449 | I29: 105.8907758 | K29: 2.272982847 | L29: -2.863848223 | M29: -5.552781682 | N29: 2.046695044 | O29: 3.980151166 | P29: -1.815495481 | Q29: 3.555332067 | S29: 77.5776674 | T29: 108.9568177 | U29: 84.93684647 | V29: 91.79283545 | W29: 75.06155222 | X29: 81.51132638 | Y29: 115.4078739 | AA29: 73.8452113 | AB29: 101.992157 | AC29: 89.68954379 | AD29: 69.63719822 | AE29: 74.29168915 | AF29: 82.67131699 | AG29: 108.9876555
A30: 1997 | B30: Enero | C30: 102.9427728 | D30: 106.7687912 | E30: 94.10167384 | F30: 129.2557338 | G30: 101.4507572 | H30: 101.2435132 | I30: 109.2505872 | K30: -0.09585399764 | L30: -3.279686639 | M30: -8.0206599 | N30: -1.985298823 | O30: 1.790834914 | P30: 3.99830599 | Q30: 2.876034895 | S30: 77.62066341 | T30: 109.9802907 | U30: 85.23091203 | V30: 91.86861235 | W30: 74.83583832 | X30: 85.87798721 | Y30: 118.8604207 | AA30: 75.4017609 | AB30: 103.0079009 | AC30: 90.57321571 | AD30: 71.07507703 | AE30: 73.76567745 | AF30: 84.82319957 | AG30: 108.796139
B31: Febrero | C31: 102.5896958 | D31: 104.5568412 | E31: 92.21857068 | F31: 123.4900184 | G31: 101.4702016 | H31: 101.9015632 | I31: 107.9867121 | K31: -0.9993889283 | L31: -5.42177214 | M31: -10.70710284 | N31: -6.000935325 | O31: 1.529178112 | P31: 4.44030248 | Q31: 1.212066226 | S31: 77.48743445 | T31: 108.7276572 | U31: 85.06030744 | V31: 89.57232103 | W31: 74.5549894 | X31: 86.02677495 | Y31: 116.8941049 | AA31: 75.53140095 | AB31: 103.9890418 | AC31: 92.23772046 | AD31: 72.53405754 | AE31: 73.4747623 | AF31: 84.42144775 | AG31: 108.2486007
B32: Marzo | C32: 102.3404221 | D32: 104.1778063 | E32: 90.63159553 | F32: 123.0921419 | G32: 102.2966009 | H32: 102.3639902 | I32: 107.8270686 | K32: -2.130810767 | L32: -5.707530608 | M32: -11.96104191 | N32: -7.231350092 | O32: 1.833620427 | P32: 4.526473541 | Q32: 0.9574262834 | S32: 77.92717539 | T32: 108.238222 | U32: 83.36152134 | V32: 89.71341345 | W32: 74.92800869 | X32: 86.30251955 | Y32: 116.26079 | AA32: 76.14505958 | AB32: 103.8975823 | AC32: 91.97843296 | AD32: 72.88313623 | AE32: 73.24584396 | AF32: 84.30945238 | AG32: 107.8215252
B33: Abril | C33: 102.011632 | D33: 104.2271983 | E33: 90.87666497 | F33: 122.182756 | G33: 102.9580903 | H33: 101.615919 | I33: 108.0729036 | K33: -2.884057834 | L33: -5.612984555 | M33: -10.49074699 | N33: -7.485858053 | O33: 2.140889045 | P33: 3.452691206 | Q33: 1.113759323 | S33: 78.48318774 | T33: 108.0009675 | U33: 83.25652506 | V33: 89.3366107 | W33: 75.43009746 | X33: 86.26295949 | Y33: 115.7528081 | AA33: 76.93552806 | AB33: 103.6207144 | AC33: 91.61485524 | AD33: 73.1172005 | AE33: 73.26291431 | AF33: 84.89118663 | AG33: 107.1062258
B34: Mayo | C34: 102.8088098 | D34: 104.9920227 | E34: 90.79634713 | F34: 123.9179255 | G34: 103.8017424 | H34: 101.4809959 | I34: 108.363825 | K34: -1.526696262 | L34: -4.345193399 | M34: -9.526227736 | N34: -5.396214644 | O34: 3.692896171 | P34: 3.330239582 | Q34: 1.103365618 | S34: 79.40158977 | T34: 108.4271969 | U34: 83.2092098 | V34: 91.67726078 | W34: 76.54480878 | X34: 86.32394355 | Y34: 116.1718849 | AA34: 77.23228184 | AB34: 103.2718431 | AC34: 91.64378571 | AD34: 73.98224299 | AE34: 73.74135253 | AF34: 85.06414704 | AG34: 107.2054119
B35: Junio | C35: 103.0337652 | D35: 104.7352708 | E35: 90.06138203 | F35: 122.7237854 | G35: 102.8662897 | H35: 101.1877604 | I35: 108.4663299 | K35: =(C35/C23-1)*100 -> -1.051184825 | L35: -2.957936334 | M35: -10.23878615 | N35: -6.281513176 | O35: 2.270715491 | P35: 3.347071639 | Q35: 1.32493073 | S35: 80.07881416 | T35: 108.4093725 | U35: 82.43632238 | V35: 91.82406711 | W35: 77.31316283 | X35: 86.32331775 | Y35: 116.1848425 | AA35: 77.72094323 | AB35: 103.5079889 | AC35: 91.53348586 | AD35: 74.82173634 | AE35: 75.15889129 | AF35: 85.31003887 | AG35: 107.1160448
B36: Julio | C36: 102.6242731 | D36: 103.4699668 | E36: 89.95805102 | F36: 120.6835583 | G36: 101.5608561 | H36: 99.38287417 | I36: 107.57459 | K36: -1.729311617 | L36: -4.494770113 | M36: -8.942458556 | N36: -10.34240016 | O36: -0.1385462783 | P36: 1.530936824 | Q36: 0.4156688497 | S36: 80.35164277 | T36: 107.8094686 | U36: 82.58974664 | V36: 91.43952243 | W36: 77.55601917 | X36: 86.27391998 | Y36: 115.2909815 | AA36: 78.29691779 | AB36: 104.1939723 | AC36: 91.80917739 | AD36: 75.76800327 | AE36: 76.36408564 | AF36: 86.80964472 | AG36: 107.1730615
B37: Agosto | C37: 101.8424559 | D37: 103.7087276 | E37: 90.63977732 | F37: 118.7416757 | G37: 102.5431483 | H37: 98.88565624 | I37: 106.8439053 | K37: -3.042811792 | L37: -1.945069688 | M37: -7.631200283 | N37: -11.73720629 | O37: -1.555055171 | P37: 0.9019872289 | Q37: -0.6846996726 | S37: 80.41761393 | T37: 107.0671241 | U37: 83.8522114 | V37: 90.88620766 | W37: 77.67710762 | X37: 86.19103058 | Y37: 114.1317619 | AA37: 78.96275992 | AB37: 103.2382969 | AC37: 92.51149317 | AD37: 76.54111929 | AE37: 75.75065612 | AF37: 87.16231844 | AG37: 106.8210316
B38: Septiembre | C38: 103.6209051 | D38: 104.6826491 | E38: 91.0743546 | F38: 119.03899 | G38: 105.0325326 | H38: 98.54058539 | I38: 106.8843615 | K38: -1.552828795 | L38: -1.695045768 | M38: -6.660738332 | N38: -11.12673337 | O38: 0.9143884181 | P38: 0.8176242225 | Q38: -0.3902830896 | S38: 81.20492798 | T38: 107.3214371 | U38: 84.40767368 | V38: 91.13194465 | W38: 78.62405749 | X38: 86.19362095 | Y38: 113.8461767 | AA38: 78.36732165 | AB38: 102.5207501 | AC38: 92.67995809 | AD38: 76.55638262 | AE38: 74.85686154 | AF38: 87.47017344 | AG38: 106.5134086
B39: Octubre | C39: 104.6999939 | D39: 105.4711374 | E39: 91.51941284 | F39: 119.8912847 | G39: 106.0239076 | H39: 98.45744494 | I39: 107.4956369 | K39: -0.2659745297 | L39: -0.8346148539 | M39: -5.882767109 | N39: -10.16247796 | O39: 3.672734123 | P39: 0.7213021416 | Q39: 0.6508149607 | S39: 82.00787552 | T39: 107.5345928 | U39: 85.04049446 | V39: 91.31838941 | W39: 79.60023848 | X39: 86.17945884 | Y39: 113.7469353 | AA39: 78.3265332 | AB39: 101.9564171 | AC39: 92.92071683 | AD39: 76.16766279 | AE39: 75.07763131 | AF39: 87.52965192 | AG39: 105.8153973
B40: Noviembre | C40: 103.5870857 | D40: 105.1306634 | E40: 91.57751259 | F40: 118.7536829 | G40: 103.7205574 | H40: 98.06694073 | I40: 105.866102 | K40: -1.751907563 | L40: -2.06404582 | M40: -4.327841806 | N40: -9.965284483 | O40: 1.450106308 | P40: 0.7677948429 | Q40: -1.227795188 | S40: 82.47361159 | T40: 107.0324447 | U40: 85.35889495 | V40: 91.15395538 | W40: 80.13821581 | X40: 86.00019311 | Y40: 111.8794096 | AA40: 79.61765799 | AB40: 101.8089693 | AC40: 93.20944907 | AD40: 76.75884501 | AE40: 77.26357993 | AF40: 87.69539712 | AG40: 105.6801068
B41: Diciembre | C41: 102.8402979 | D41: 104.10641 | E41: 90.2882853 | F41: 117.938161 | G41: 103.373592 | H41: 97.57625299 | I41: 100.2608984 | K41: -2.107606667 | L41: -2.548206333 | M41: -4.659574096 | N41: -10.52805967 | O41: 2.313348688 | P41: -1.035135855 | Q41: -5.316683444 | S41: 82.53797698 | T41: 105.9184799 | U41: 84.37667327 | V41: 90.73486046 | W41: 80.30727347 | X41: 85.76517126 | Y41: 105.6532258 | AA41: 80.25839932 | AB41: 101.740594 | AC41: 93.4525149 | AD41: 76.93426765 | AE41: 77.68644959 | AF41: 87.8955367 | AG41: 105.3782955
A42: 1998 | B42: Enero | C42: 100.4366941 | D42: 102.5869952 | E42: 89.66887728 | F42: 116.5116559 | G42: 102.8635896 | H42: 97.84835618 | I42: 97.29537244 | K42: -2.434438689 | L42: -3.916683866 | M42: -4.710645814 | N42: -9.859584163 | O42: 1.392628709 | P42: -3.353456301 | Q42: -10.94292955 | S42: 81.61473921 | T42: 105.8460581 | U42: 84.60625817 | V42: 90.26217818 | W42: 80.78074594 | X42: 85.89581907 | Y42: 102.3813593 | AA42: 81.25988209 | AB42: 103.1768772 | AC42: 94.35409557 | AD42: 77.47051354 | AE42: 78.53191424 | AF42: 87.78463167 | AG42: 105.2273677
B43: Febrero | C43: 100.5070637 | D43: 102.6127895 | E43: 88.78905672 | F43: 114.4421384 | G43: 102.7160375 | H43: 98.12842889 | I43: 98.51947807 | K43: -2.030059705 | L43: -1.859325129 | M43: -3.718897321 | N43: -7.326810843 | O43: 1.227784997 | P43: -3.702724685 | Q43: -8.76703614 | S43: 82.19445636 | T43: 105.7265034 | U43: 83.89686109 | V43: 90.59819257 | W43: 81.50131595 | X43: 85.86868513 | Y43: 102.855902 | AA43: 81.77978077 | AB43: 103.0344306 | AC43: 94.49009167 | AD43: 79.16506442 | AE43: 79.34624228 | AF43: 87.5064302 | AG43: 104.4015904
B44: Marzo | C44: 100.3939318 | D44: 102.2876814 | E44: 89.23665013 | F44: 112.9789648 | G44: 102.5542836 | H44: 98.48023127 | I44: 99.13349993 | K44: -1.901976021 | L44: -1.814325871 | M44: -1.53913808 | N44: -8.215940473 | O44: 0.2518976375 | P44: -3.794067524 | Q44: -8.062510471 | S44: 82.73060584 | T44: 105.5429445 | U44: 84.61069302 | V44: 90.72602352 | W44: 82.01198783 | X44: 85.8453567 | Y44: 103.3905323 | AA44: 82.40598245 | AB44: 103.1824586 | AC44: 94.81607937 | AD44: 80.30346507 | AE44: 79.96934396 | AF44: 87.17014125 | AG44: 104.294242
B45: Abril | C45: 100.7709903 | D45: 101.488247 | E45: 89.17381665 | F45: 111.3406001 | G45: 101.7101367 | H45: 98.85515125 | I45: 100.135642 | K45: -1.216176699 | L45: -2.627866122 | M45: -1.873801508 | N45: -8.873720259 | O45: -1.212098656 | P45: -2.716865456 | Q45: -7.34435858 | S45: 83.46877179 | T45: 105.707843 | U45: 84.92485313 | V45: 90.7356437 | W45: 82.7979015 | X45: 85.88530634 | Y45: 103.9982815 | AA45: 82.83015932 | AB45: 104.1577188 | AC45: 95.23518934 | AD45: 81.49376208 | AE45: 81.40575189 | AF45: 86.87995037 | AG45: 103.8574072
B46: Mayo | C46: 101.1137864 | D46: 101.2876786 | E46: 88.8254992 | F46: 110.8597244 | G46: 100.9352618 | H46: 98.59306377 | I46: 100.0410163 | K46: -1.648714182 | L46: -3.528214776 | M46: -2.170624694 | N46: -10.5377822 | O46: -2.761495649 | P46: -2.845786137 | Q46: -7.680430903 | S46: 84.18661164 | T46: 105.7982047 | U46: 84.8224176 | V46: 91.20164027 | W46: 83.61303289 | X46: 85.86678584 | Y46: 103.8828873 | AA46: 83.25928107 | AB46: 104.4531833 | AC46: 95.49331933 | AD46: 82.26760506 | AE46: 82.83827814 | AF46: 87.09211638 | AG46: 103.8402958
B47: Junio | C47: 100.8414776 | D47: 100.6215346 | E47: 88.63270352 | F47: 108.9314777 | G47: 99.41453249 | H47: 97.98478162 | I47: 99.21309157 | K47: -2.12773701 | L47: -3.927746784 | M47: -1.586338642 | N47: -11.23849595 | O47: -3.355576635 | P47: -3.165381657 | Q47: -8.530977584 | S47: 84.51634262 | T47: 105.0454113 | U47: 84.61818646 | V47: 91.06081753 | W47: 83.80887571 | X47: 85.6748619 | Y47: 103.2183671 | AA47: 83.81109102 | AB47: 104.3965506 | AC47: 95.47061423 | AD47: 83.59458574 | AE47: 84.3024391 | AF47: 87.43690651 | AG47: 104.0370433
B48: Julio | C48: 100.1508024 | D48: 100.305924 | E48: 89.02882484 | F48: 107.2611318 | G48: 101.2765785 | H48: 105.8556932 | I48: 99.83577274 | K48: -2.410219987 | L48: -3.05793356 | M48: -1.032954997 | N48: -11.12200098 | O48: -0.2799086466 | P48: 6.513012532 | Q48: -7.193908243 | S48: 85.28066454 | T48: 105.0526055 | U48: 85.13371005 | V48: 91.33538971 | W48: 84.52801642 | X48: 93.03451515 | Y48: 103.8939161 | AA48: 85.1522529 | AB48: 104.7322045 | AC48: 95.62488352 | AD48: 85.15236431 | AE48: 83.46255141 | AF48: 87.88805998 | AG48: 104.064819
B49: Agosto | C49: 98.78925357 | D49: 101.0916259 | E49: 89.16218749 | F49: 107.2210091 | G49: 102.347418 | H49: 106.2660139 | I49: 99.31773937 | K49: -2.997966102 | L49: -2.523511532 | M49: -1.630178128 | N49: -9.70229411 | O49: -0.1908759866 | P49: 7.463527055 | Q49: -7.044076075 | S49: 85.69597267 | T49: 104.403147 | U49: 85.21309328 | V49: 91.31831738 | W49: 84.85655614 | X49: 93.47365256 | Y49: 103.2069929 | AA49: 86.74624979 | AB49: 103.275762 | AC49: 95.5708868 | AD49: 85.16830623 | AE49: 82.91030471 | AF49: 87.96194483 | AG49: 103.9159706
B50: Septiembre | C50: 100.6733755 | D50: 102.8225505 | E50: 90.61579256 | F50: 108.5312573 | G50: 104.021952 | H50: 105.951625 | I50: 99.21422393 | K50: -2.844531761 | L50: -1.77689297 | M50: -0.503502932 | N50: -8.827135298 | O50: -0.9621595735 | P50: 7.520799261 | Q50: -7.176108291 | S50: 86.79036057 | T50: 104.793901 | U50: 86.17015133 | V50: 92.53235968 | W50: 86.26797955 | X50: 93.62798952 | Y50: 103.3816753 | AA50: 86.20984457 | AB50: 101.9172356 | AC50: 95.09396641 | AD50: 85.25871899 | AE50: 82.93247519 | AF50: 88.36862059 | AG50: 104.2004575
B51: Octubre | C51: 102.483953 | D51: 104.3393453 | E51: 92.89589472 | F51: 109.9033203 | G51: 104.2821938 | H51: 104.8335924 | I51: 100.7906212 | K51: =(C51/C39-1)*100 -> -2.116562669 | L51: -1.07308222 | M51: 1.504032674 | N51: -8.330851091 | O51: -1.642755713 | P51: 6.476044046 | Q51: -6.237477096 | S51: 88.38234911 | T51: 106.0859547 | U51: 88.03588756 | V51: 93.95834029 | W51: 88.26611775 | X51: 94.416919 | Y51: 104.9018424 | AA51: 86.24018352 | AB51: 101.67397 | AC51: 94.76832946 | AD51: 85.49181232 | AE51: 84.64160035 | AF51: 90.0636111 | AG51: 104.078972
B52: Noviembre | C52: 101.980618 | D52: 101.9670154 | E52: 90.5955042 | F52: 109.1304735 | G52: 99.22994058 | H52: 103.3418991 | I52: 100.9758605 | K52: -1.550837823 | L52: -3.009253338 | M52: -1.072324814 | N52: -8.103503906 | O52: -4.329534063 | P52: 5.378936448 | Q52: -4.619270376 | S52: 89.03312034 | T52: 105.8160507 | U52: 87.98031655 | V52: 94.39749723 | W52: 88.85714349 | X52: 94.7240237 | Y52: 105.0522514 | AA52: 87.30396238 | AB52: 103.7747847 | AC52: 97.11333618 | AD52: 86.49966794 | AE52: 89.54670634 | AF52: 91.66081181 | AG52: 104.0369954
B53: Diciembre | C53: 102.6358149 | D53: 102.6497931 | E53: 92.93829815 | F53: 109.3744749 | G53: 99.69384406 | H53: 102.0779646 | I53: 102.211034 | K53: -0.1988354793 | L53: -1.399161606 | M53: 2.935057234 | N53: -7.261166413 | O53: -3.559659587 | P53: 4.613531932 | Q53: 1.945060932 | S53: 90.1779943 | T53: 106.2660115 | U53: 90.49011624 | V53: 95.23212101 | W53: 90.05962843 | X53: 94.7956611 | Y53: 106.1543534 | AA53: 87.86211163 | AB53: 103.5228697 | AC53: 97.36579865 | AD53: 87.06978581 | AE53: 90.33619806 | AF53: 92.86593976 | AG53: 103.8580173
A54: 1999 | B54: Enero | C54: 100.186799 | D54: 101.7228484 | E54: 95.94653805 | F54: 108.3050235 | G54: 101.2788823 | H54: 103.4634831 | I54: 100.0281986 | K54: -0.2488086047 | L54: -0.8423550857 | M54: 7.00093606 | N54: -7.043614921 | O54: -1.540591097 | P54: 5.738601222 | Q54: 2.808793574 | S54: 89.15448506 | T54: 105.1600559 | U54: 92.94384292 | V54: 95.59751587 | W54: 91.09206556 | X54: 95.21005926 | Y54: 103.7567947 | AA54: 88.98825591 | AB54: 103.3789925 | AC54: 96.87044975 | AD54: 88.26692682 | AE54: 89.94181564 | AF54: 92.02286291 | AG54: 103.727545
B55: Febrero | C55: 100.0386891 | D55: 101.4853728 | E55: 94.8577305 | F55: 107.2501769 | G55: 102.0531497 | H55: 105.4039806 | I55: 99.57035914 | K55: -0.4660115952 | L55: -1.098709806 | M55: 6.834934397 | N55: -6.284364769 | O55: -0.6453595382 | P55: 7.414315856 | Q55: 1.066673411 | S55: 89.48187741 | T55: 104.3688392 | U55: 91.17297197 | V55: 95.29353155 | W55: 91.23527669 | X55: 96.56206483 | Y55: 103.0461086 | AA55: 89.44727103 | AB55: 102.8412631 | AC55: 96.11548946 | AD55: 88.85163107 | AE55: 89.39976565 | AF55: 91.61140245 | AG55: 103.4907471
B56: Marzo | C56: 101.4562756 | D56: 101.7544874 | E56: 96.8787678 | F56: 107.3564077 | G56: 104.8041244 | H56: 105.980392 | I56: 99.42339524 | K56: 1.058175265 | L56: -0.5212690455 | M56: 8.563877796 | N56: -4.976640674 | O56: 2.193804797 | P56: 7.61590488 | Q56: 0.2924292095 | S56: 90.1143883 | T56: 104.0652023 | U56: 92.35693609 | V56: 95.35557282 | W56: 91.58904117 | X56: 97.29528889 | Y56: 102.7368528 | AA56: 88.82091107 | AB56: 102.2708727 | AC56: 95.33248429 | AD56: 88.8215011 | AE56: 87.39068397 | AF56: 91.80499057 | AG56: 103.3326739
B57: Abril | C57: 102.8288169 | D57: 102.9849565 | E57: 98.86423394 | F57: 108.1012324 | G57: 105.9701907 | H57: 106.4657199 | I57: 100.0018916 | K57: 2.042082352 | L57: 1.474761407 | M57: 10.86688633 | N57: -2.909421793 | O57: 4.188426232 | P57: 7.698707161 | Q57: -0.1335692515 | S57: 90.85374185 | T57: 104.0915671 | U57: 93.88210878 | V57: 95.72288285 | W57: 92.36075527 | X57: 97.34037691 | Y57: 102.7845143 | AA57: 88.35435883 | AB57: 101.0745361 | AC57: 94.96063949 | AD57: 88.54929842 | AE57: 87.15729835 | AF57: 91.42884399 | AG57: 102.7825701
B58: Mayo | C58: 102.7409289 | D58: 103.457757 | E58: 100.760624 | F58: 107.474646 | G58: 105.3142382 | H58: 106.4304658 | I58: 99.69219034 | K58: 1.609219242 | L58: 2.142489973 | M58: 13.43659752 | N58: -3.053479012 | O58: 4.338400971 | P58: 7.949242774 | Q58: -0.3486829237 | S58: 91.47999855 | T58: 103.8164691 | U58: 96.36638658 | V58: 95.86660772 | W58: 92.96385665 | X58: 97.25175092 | Y58: 102.4134514 | AA58: 89.03948943 | AB58: 100.3467233 | AC58: 95.63893387 | AD58: 89.19927748 | AE58: 88.27282832 | AF58: 91.37585767 | AG58: 102.7296633
B59: Junio | C59: 101.8366612 | D59: 102.9298636 | E59: 100.9955338 | F59: 106.326813 | G59: 104.9072597 | H59: 106.6171512 | I59: 99.18630532 | K59: 0.9868791883 | L59: 2.294070563 | M59: 13.94838449 | N59: -2.391103795 | O59: 5.52507476 | P59: 8.809908496 | Q59: -0.02699870466 | S59: 91.92786605 | T59: 103.1980942 | U59: 97.19528385 | V59: 95.95633324 | W59: 93.30035029 | X59: 96.90129592 | Y59: 102.0827612 | AA59: 90.26991356 | AB59: 100.2605955 | AC59: 96.23720991 | AD59: 90.24659963 | AE59: 88.93602838 | AF59: 90.8871554 | AG59: 102.9202176
B60: Julio | C60: 102.639355 | D60: 102.6102864 | E60: 100.3889127 | F60: 106.1791732 | G60: 105.1938419 | H60: 107.1514675 | I60: 99.09177128 | K60: 2.48480543 | L60: 2.297334351 | M60: 12.760011 | N60: -1.008714532 | O60: 3.867886805 | P60: 1.224095062 | Q60: -0.7452253263 | S60: 92.64015921 | T60: 103.2069058 | U60: 97.58258509 | V60: 96.31033031 | W60: 94.08123341 | X60: 96.88355379 | Y60: 101.9531367 | AA60: 90.25793199 | AB60: 100.581442 | AC60: 97.20454429 | AD60: 90.70548153 | AE60: 89.43606552 | AF60: 90.41738393 | AG60: 102.8875914
B61: Agosto | C61: 103.4211698 | D61: 103.5200925 | E61: 103.9372488 | F61: 106.6118669 | G61: 105.3008383 | H61: 107.3273676 | I61: 99.87828576 | K61: 4.688684311 | L61: 2.402243093 | M61: 16.57099459 | N61: -0.5681183468 | O61: 2.885681326 | P61: 0.9987705688 | Q61: 0.5643970502 | S61: 93.65972605 | T61: 103.8140519 | U61: 101.6415781 | V61: 97.26149496 | W61: 95.45503546 | X61: 97.05773478 | Y61: 102.5584142 | AA61: 90.56146458 | AB61: 100.2839636 | AC61: 97.79129165 | AD61: 91.2295205 | AE61: 90.64983429 | AF61: 90.43148727 | AG61: 102.6833945
B62: Septiembre | C62: 103.9395295 | D62: 103.8437362 | E62: 105.6120151 | F62: 107.0538993 | G62: 105.2480144 | H62: 107.4984158 | I62: 100.6654316 | K62: 3.244307644 | L62: 0.9931534491 | M62: 16.54923733 | N62: -1.361228168 | O62: 1.178657391 | P62: 1.459902815 | Q62: 1.462701261 | S62: 94.32031394 | T62: 103.9088923 | U62: 103.3047287 | V62: 97.97051074 | W62: 96.26186811 | X62: 97.12166297 | Y62: 102.9181894 | AA62: 90.74537315 | AB62: 100.0627444 | AC62: 97.81531829 | AD62: 91.51512595 | AE62: 91.46193268 | AF62: 90.34706445 | AG62: 102.2378663
B63: Octubre | C63: 103.4720872 | D63: 103.6428668 | E63: 105.372861 | F63: 106.8495652 | G63: 104.5795265 | H63: 104.3558677 | I63: 100.9269786 | K63: 0.964184389 | L63: -0.6675128166 | M63: 13.43112777 | N63: -2.778583047 | O63: 0.2851230908 | P63: -0.4556981927 | Q63: 0.1352878383 | S63: 95.09511492 | T63: 104.0760167 | U63: 103.5843997 | V63: 98.49082697 | W63: 97.2006059 | X63: 97.40182515 | Y63: 103.0509328 | AA63: 91.90412357 | AB63: 100.4179254 | AC63: 98.30273061 | AD63: 92.17709661 | AE63: 92.9442016 | AF63: 93.33622281 | AG63: 102.1044464
B64: Noviembre | C64: 102.956136 | D64: 103.8160749 | E64: 104.5177386 | F64: 105.8557693 | G64: 103.7729449 | H64: 103.1136874 | I64: 100.7716183 | K64: 0.9565720187 | L64: 1.813389887 | M64: 15.36746718 | N64: -3.000723919 | O64: 4.578259589 | P64: -0.2208317506 | Q64: -0.2022683807 | S64: 95.4335909 | T64: 103.6743401 | U64: 102.9916293 | V64: 98.42431522 | W64: 97.36701897 | X64: 97.56645696 | Y64: 103.0195302 | AA64: 92.69344654 | AB64: 99.86347508 | AC64: 98.53985618 | AD64: 92.97964188 | AE64: 93.82697881 | AF64: 94.62027729 | AG64: 102.2306994
B65: Diciembre | C65: 102.2803062 | D65: 104.1684046 | E65: 103.1715586 | F65: 105.0321387 | G65: 103.6086491 | H65: 102.7904555 | I65: 100.6186997 | K65: -0.3463787893 | L65: 1.479410235 | M65: 11.01081108 | N65: -3.970155016 | O65: 3.926827209 | P65: 0.6979869839 | Q65: -1.557888806 | S65: 95.9578332 | T65: 103.4638217 | U65: 101.7913073 | V65: 98.58116404 | W65: 97.59154811 | X65: 97.49962989 | Y65: 103.2255442 | AA65: 93.81848444 | AB65: 99.32361167 | AC65: 98.66217854 | AD65: 93.85809456 | AE65: 94.19247235 | AF65: 94.85280459 | AG65: 102.5908151
A66: 2000 | B66: Enero | C66: 100.82284 | D66: 103.2537814 | E66: 105.8495597 | F66: 104.3146171 | G66: 103.1942986 | H66: 103.2815511 | I66: 100.8565677 | K66: 0.6348551487 | L66: 1.505004002 | M66: 10.32139545 | N66: -3.684414884 | O66: 1.891229776 | P66: -0.1758417662 | Q66: 0.828135614 | S66: 95.97231733 | T66: 102.9056614 | U66: 104.4409192 | V66: 98.06437862 | W66: 97.67171999 | X66: 97.92776914 | Y66: 103.1104988 | AA66: 95.18906361 | AB66: 99.66285012 | AC66: 98.66920514 | AD66: 94.0082812 | AE66: 94.64836845 | AF66: 94.81632302 | AG66: 102.2347885
B67: Febrero | C67: 100.0693394 | D67: 102.6768566 | E67: 103.9522129 | F67: 103.281345 | G67: 101.2474385 | H67: 104.0107186 | I67: 100.6982836 | K67: =(C67/C55-1)*100 -> 0.03063840407 | L67: 1.174044884 | M67: 9.587497332 | N67: -3.700536496 | O67: -0.7895015984 | P67: -1.321830502 | Q67: 1.132791397 | S67: 96.09102538 | T67: 102.2602404 | U67: 102.7842522 | V67: 98.02708474 | W67: 97.34274733 | X67: 98.10088948 | Y67: 102.3312476 | AA67: 96.02444261 | AB67: 99.59424531 | AC67: 98.87644466 | AD67: 94.91267249 | AE67: 96.14341735 | AF67: 94.31805761 | AG67: 101.6216403
B68: Marzo | C68: 100.6181487 | D68: 103.2648295 | E68: 102.7281769 | F68: 103.2950961 | G68: 101.3808936 | H68: 104.788948 | I68: 100.8939219 | K68: -0.8260966131 | L68: 1.484300265 | M68: 6.037864874 | N68: -3.783017418 | O68: -3.266313087 | P68: -1.124211745 | Q68: 1.479054925 | S68: 96.57976712 | T68: 102.3000162 | U68: 102.0488802 | V68: 98.28982223 | W68: 97.77670553 | X68: 98.0798538 | Y68: 102.5075048 | AA68: 95.98642824 | AB68: 99.06569034 | AC68: 99.33874357 | AD68: 95.15439355 | AE68: 96.44490402 | AF68: 93.59751737 | AG68: 101.5992866
B69: Abril | C69: 101.3150145 | D69: 102.8485247 | E69: 101.3391692 | F69: 102.162389 | G69: 100.9920044 | H69: 104.6274006 | I69: 100.7754992 | K69: -1.472157785 | L69: -0.1324774229 | M69: 2.503367647 | N69: -5.493779494 | O69: -4.697723271 | P69: -1.726677119 | Q69: 0.773592971 | S69: 96.82175839 | T69: 101.8532669 | U69: 101.559777 | V69: 98.37980881 | W69: 97.87018505 | X69: 97.93088669 | Y69: 102.1828263 | AA69: 95.56506399 | AB69: 99.03230718 | AC69: 100.2176925 | AD69: 96.29748261 | AE69: 96.90884505 | AF69: 93.59965564 | AG69: 101.3964973
B70: Mayo | C70: 101.323809 | D70: 101.2592343 | E70: 101.2257917 | F70: 100.9638717 | G70: 99.66682835 | H70: 104.2073501 | I70: 99.71202347 | K70: -1.379313891 | L70: -2.125043868 | M70: 0.4616561755 | N70: -6.057963018 | O70: -5.362437125 | P70: -2.088796347 | Q70: 0.01989436085 | S70: 96.63161421 | T70: 100.7554288 | U70: 100.5341439 | V70: 98.04789589 | W70: 97.20790339 | X70: 97.50935115 | Y70: 101.0783725 | AA70: 95.36910934 | AB70: 99.50245977 | AC70: 99.31672775 | AD70: 97.11186212 | AE70: 97.53285521 | AF70: 93.57243138 | AG70: 101.3702951
B71: Junio | C71: 101.4626285 | D71: 101.0473535 | E71: 101.8358284 | F71: 101.2464552 | G71: 100.6336998 | H71: 103.9434003 | I71: 100.3752316 | K71: -0.3672869136 | L71: -1.828925087 | M71: 0.83201169 | N71: -4.778058959 | O71: -4.07365509 | P71: -2.507805616 | Q71: 1.198679909 | S71: 97.6193102 | T71: 101.2415556 | U71: 101.2210774 | V71: 98.81555849 | W71: 98.37343704 | X71: 97.7582525 | Y71: 101.6244539 | AA71: 96.21208485 | AB71: 100.1921892 | AC71: 99.39633133 | AD71: 97.59903031 | AE71: 97.75397031 | AF71: 94.04950406 | AG71: 101.2445523
B72: Julio | C72: 100.8938704 | D72: 101.443253 | E72: 102.3146237 | F72: 101.0619549 | G72: 101.5413417 | H72: 103.6927963 | I72: 100.2880912 | K72: -1.700599717 | L72: -1.137345462 | M72: 1.918250752 | N72: -4.819418042 | O72: -3.472161663 | P72: -3.227833736 | Q72: 1.207284815 | S72: 98.14438264 | T72: 101.3135911 | U72: 101.7117122 | V72: 99.09039935 | W72: 98.78931691 | X72: 97.75884423 | Y72: 101.5366477 | AA72: 97.27487137 | AB72: 99.87218281 | AC72: 99.41072785 | AD72: 98.04916144 | AE72: 97.28974944 | AF72: 94.27737287 | AG72: 101.2449699
B73: Agosto | C73: 100.4091113 | D73: 100.6528932 | E73: 102.5500489 | F73: 100.6639847 | G73: 101.4030905 | H73: 102.31551 | I73: 100.2167034 | K73: -2.912419692 | L73: -2.769703186 | M73: -1.334651301 | N73: -5.579005769 | O73: -3.701535432 | P73: -4.669692151 | Q73: 0.3388300938 | S73: 98.25647461 | T73: 100.8203907 | U73: 101.3506005 | V73: 99.09133751 | W73: 98.69713666 | X73: 97.50799082 | Y73: 101.0717522 | AA73: 97.85613413 | AB73: 100.166411 | AC73: 98.83037753 | AD73: 98.43772609 | AE73: 97.3314878 | AF73: 95.3012802 | AG73: 100.8531998
B74: Septiembre | C74: 100.6363263 | D74: 100.3430598 | E74: 103.1864878 | F74: 101.0354293 | G74: 101.3080618 | H74: 100.7869998 | I74: 99.78382849 | K74: -3.178004822 | L74: -3.371100158 | M74: -2.296639613 | N74: -5.621906362 | O74: -3.743493598 | P74: -6.243269626 | Q74: -0.8757754603 | S74: 98.3575714 | T74: 100.1733799 | U74: 101.5168908 | V74: 99.13614969 | W74: 98.54932312 | X74: 99.21427131 | Y74: 100.5919266 | AA74: 97.73565375 | AB74: 99.83090021 | AC74: 98.38196164 | AD74: 98.12018457 | AE74: 97.27688143 | AF74: 98.43955221 | AG74: 100.8098488
B75: Octubre | C75: 100.3366474 | D75: 99.87997642 | E75: 102.6585018 | F75: 100.5809026 | G75: 100.2689343 | H75: 100.8555967 | I75: 99.6136603 | K75: -3.030227701 | L75: -3.630631354 | M75: -2.57595665 | N75: -5.866811519 | O75: -4.121831733 | P75: -3.354167815 | Q75: -1.301255973 | S75: 98.51769122 | T75: 99.51139096 | U75: 101.122874 | V75: 99.08155155 | W75: 98.43733229 | X75: 99.3809715 | Y75: 100.0046324 | AA75: 98.18714676 | AB75: 99.63097162 | AC75: 98.50413971 | AD75: 98.50930838 | AE75: 98.17331054 | AF75: 98.53788459 | AG75: 100.3924885
B76: Noviembre | C76: 100.1319552 | D76: 99.77626335 | E76: 101.3016792 | F76: 99.89690047 | G76: 99.86422188 | H76: 100.6584438 | I76: 99.8589194 | K76: -2.743091291 | L76: -3.891316027 | M76: -3.077046474 | N76: -5.629233899 | O76: -3.76661082 | P76: -2.381103481 | Q76: -0.9057102277 | S76: 99.02799988 | T76: 99.47180627 | U76: 100.3211256 | V76: 99.41240177 | W76: 98.91498031 | X76: 99.57962154 | Y76: 99.90434908 | AA76: 98.89749946 | AB76: 99.69486021 | AC76: 99.03204605 | AD76: 99.51500127 | AE76: 99.04946781 | AF76: 98.92823469 | AG76: 100.0454939
B77: Diciembre | C77: 100 | D77: 100 | E77: 100 | F77: 100 | G77: 100 | H77: 100 | I77: 100 | K77: -2.229467557 | L77: -4.001601697 | M77: -3.074062874 | N77: -4.791046571 | O77: -3.482961206 | P77: -2.714702913 | Q77: -0.614895389 | S77: 100 | T77: 100 | U77: 100 | V77: 100 | W77: 100 | X77: 100 | Y77: 100 | AA77: 100 | AB77: 100 | AC77: 100 | AD77: 100 | AE77: 100 | AF77: 100 | AG77: 100
A78: 2001 | B78: Enero | C78: 99.85348445 | D78: 99.16596772 | E78: 99.81600714 | F78: 99.6383783 | G78: 100.2171677 | H78: 101.6494867 | I78: 100.2428395 | K78: -0.9614444311 | L78: -3.958996572 | M78: -5.700120573 | N78: -4.482822225 | O78: -2.8849762 | P78: -1.580209083 | Q78: -0.6085158864 | S78: 100.7558231 | T78: 100.4689187 | U78: 100.6962675 | V78: 100.0077784 | W78: 100.5643235 | X78: 100.5615397 | Y78: 99.80860347 | AA78: 100.9036627 | AB78: 101.3139094 | AC78: 100.881883 | AD78: 100.3707408 | AE78: 100.3464036 | AF78: 98.92970737 | AG78: 99.5668159
B79: Febrero | C79: 99.36209756 | D79: 99.52239301 | E79: 98.45085675 | F79: 98.99564885 | G79: 99.54919247 | H79: 102.0271368 | I79: 100.4058034 | K79: -0.7067517714 | L79: -3.072224538 | M79: -5.292197232 | N79: -4.149535581 | O79: -1.67732244 | P79: -1.907093663 | Q79: -0.2904520736 | S79: 101.0469142 | T79: 100.3020702 | U79: 99.7266088 | V79: 100.2629401 | W79: 100.8071744 | X79: 100.696497 | Y79: 99.62182243 | AA79: 101.6956331 | AB79: 100.7834189 | AC79: 101.2958263 | AD79: 101.2801484 | AE79: 101.2636787 | AF79: 98.69579819 | AG79: 99.21918764
B80: Marzo | C80: 98.1506715 | D80: 99.24989628 | E80: 97.29722906 | F80: 98.3007193 | G80: 99.67596169 | H80: 102.4396171 | I80: 99.76960803 | K80: -2.452318248 | L80: -3.887996773 | M80: -5.286716848 | N80: -4.835056992 | O80: -1.681709294 | P80: -2.241964388 | Q80: -1.114352394 | S80: 101.2352 | T80: 99.93994918 | U80: 98.77206046 | V80: 100.1923762 | W80: 100.6748839 | X80: 100.4158473 | Y80: 98.84414604 | AA80: 103.1426463 | AB80: 100.6952681 | AC80: 101.5158 | AD80: 101.9243572 | AE80: 101.0021696 | AF80: 98.02442659 | AG80: 99.0724009
B81: Abril | C81: 97.63029296 | D81: 99.42839988 | E81: 97.75639419 | F81: 98.32089253 | G81: 99.68512148 | H81: 102.0847118 | I81: 99.59332614 | K81: -3.636895793 | L81: -3.325400003 | M81: -3.535429613 | N81: -3.760186646 | O81: -1.294045918 | P81: -2.430232219 | Q81: -1.173075873 | S81: 101.5219311 | T81: 99.82388261 | U81: 99.2368984 | V81: 100.4167665 | W81: 100.9428602 | X81: 100.2723793 | Y81: 98.40729266 | AA81: 103.986097 | AB81: 100.3977563 | AC81: 101.5144832 | AD81: 102.131667 | AE81: 101.2617116 | AF81: 98.2246778 | AG81: 98.80912353
B82: Mayo | C82: 97.66456538 | D82: 99.62171646 | E82: 98.17939812 | F82: 97.89436648 | G82: 99.87192257 | H82: 102.1812532 | I82: 99.8149124 | K82: -3.61143514 | L82: -1.617154046 | M82: -3.009503304 | N82: -3.04020159 | O82: 0.2057798231 | P82: -1.944293634 | Q82: 0.1031860875 | S82: 101.8179791 | T82: 99.7709793 | U82: 99.59664751 | V82: 100.8021659 | W82: 101.4801044 | X82: 100.2099905 | Y82: 98.34844755 | AA82: 104.2527335 | AB82: 100.1498296 | AC82: 101.4435303 | AD82: 102.970344 | AE82: 101.6102442 | AF82: 98.07081764 | AG82: 98.53081587
B83: Junio | C83: 97.83503761 | D83: 99.44321593 | E83: 97.81511976 | F83: 97.69170909 | G83: 99.51268026 | H83: 102.7663942 | I83: 100.4238907 | K83: =(C83/C71-1)*100 -> -3.575297545 | L83: -1.587510729 | M83: -3.948226023 | N83: -3.51098327 | O83: -1.113960385 | P83: -1.132352938 | Q83: 0.04847718867 | S83: 102.133428 | T83: 99.60045344 | U83: 99.84271702 | V83: 101.0795005 | W83: 101.6529849 | X83: 100.0806234 | Y83: 98.1506235 | AA83: 104.3935082 | AB83: 100.1581179 | AC83: 102.0728874 | AD83: 103.4678392 | AE83: 102.1507859 | AF83: 97.38652815 | AG83: 97.73632827
B84: Julio | C84: 97.5282318 | D84: 99.12122725 | E84: 96.58479422 | F84: 97.20273907 | G84: 100.0036138 | H84: 102.6730122 | I84: 99.92756944 | K84: -3.335820675 | L84: -2.288989835 | M84: -5.600205836 | N84: -3.818663385 | O84: -1.514386042 | P84: -0.983466723 | Q84: -0.3594860974 | S84: 102.6923416 | T84: 99.48842412 | U84: 99.67413354 | V84: 101.3536315 | W84: 102.0277479 | X84: 100.0103472 | Y84: 97.96244151 | AA84: 105.2949897 | AB84: 100.3704523 | AC84: 103.1985773 | AD84: 104.2703451 | AE84: 102.0240609 | AF84: 97.40665542 | AG84: 98.03344769
B85: Agosto | C85: 97.95980682 | D85: 99.43036604 | E85: 96.72837363 | F85: 97.20382626 | G85: 101.3375476 | H85: 102.3195764 | I85: 100.8257889 | K85: -2.439324915 | L85: -1.2145971 | M85: -5.676911268 | N85: -3.437335044 | O85: -0.06463601745 | P85: 0.003974449061 | Q85: 0.607768378 | S85: 103.9250978 | T85: 100.0732563 | U85: 100.9659344 | V85: 101.9932148 | W85: 103.5309383 | X85: 100.3583453 | Y85: 98.83147252 | AA85: 106.0895291 | AB85: 100.6465734 | AC85: 104.3808871 | AD85: 104.9271605 | AE85: 102.1644403 | AF85: 98.08322979 | AG85: 98.0220176
B86: Septiembre | C86: 98.38855935 | D86: 99.73643877 | E86: 97.84127499 | F86: 97.29615128 | G86: 102.2298494 | H86: 101.800169 | I86: 100.2846327 | K86: -2.23355424 | L86: -0.6045471051 | M86: -5.180147985 | N86: -3.700957208 | O86: 0.9098857378 | P86: 1.005257805 | Q86: 0.5018891874 | S86: 104.5643794 | T86: 99.94387503 | U86: 102.0022275 | V86: 102.4391744 | W86: 104.0688094 | X86: 100.3141825 | Y86: 98.80143517 | AA86: 106.2769697 | AB86: 100.2079844 | AC86: 104.2527579 | AD86: 105.2859472 | AE86: 101.7988484 | AF86: 98.54029076 | AG86: 98.52101212
B87: Octubre | C87: 98.7403341 | D87: 100.7825893 | E87: 98.78108796 | F87: 97.33482901 | G87: 102.1483192 | H87: 101.1917814 | I87: 99.89258747 | K87: -1.590957367 | L87: 0.9036975506 | M87: -3.777002177 | N87: -3.227326 | O87: 1.874344088 | P87: 0.3333327001 | Q87: 0.2800089477 | S87: 105.1572502 | T87: 99.84185254 | U87: 103.8903968 | V87: 102.8889316 | W87: 104.3370196 | X87: 100.2079018 | Y87: 98.54808905 | AA87: 106.498779 | AB87: 99.06656817 | AC87: 105.1723553 | AD87: 105.7061821 | AE87: 102.142669 | AF87: 99.02770799 | AG87: 98.65405587
B88: Noviembre | C88: 98.35331075 | D88: 99.30776835 | E88: 97.65942817 | F88: 97.38300182 | G88: 101.6965159 | H88: 101.6797949 | I88: 100.074881 | K88: -1.776300555 | L88: -0.4695455438 | M88: -3.595449787 | N88: -2.516493139 | O88: 1.834785243 | P88: 1.014670059 | Q88: 0.2162667286 | S88: 105.8210928 | T88: 99.77790641 | U88: 103.5679061 | V88: 103.6267496 | W88: 104.5280255 | X88: 100.742494 | Y88: 98.4438171 | AA88: 107.5928121 | AB88: 100.4734152 | AC88: 106.0500845 | AD88: 106.4115376 | AE88: 102.7842739 | AF88: 99.07818368 | AG88: 98.37015652
B89: Diciembre | C89: 97.89196878 | D89: 100.227418 | E89: 95.49492168 | F89: 97.22469932 | G89: 101.7708793 | H89: 102.4581237 | I89: 100.1574556 | K89: -2.108031225 | L89: 0.2274179534 | M89: -4.505078325 | N89: -2.775300683 | O89: 1.770879302 | P89: 2.458123728 | Q89: 0.1574555772 | S89: 106.719104 | T89: 99.81788697 | U89: 102.0118531 | V89: 104.0767507 | W89: 104.8120784 | X89: 102.0336207 | Y89: 98.30537197 | AA89: 109.0172211 | AB89: 99.59139825 | AC89: 106.8243748 | AD89: 107.0476447 | AE89: 102.9882802 | AF89: 99.58568141 | AG89: 98.15082802
A90: 2002 | B90: Enero | C90: 97.3825308 | D90: 99.16591827 | E90: 94.7123219 | F90: 97.26169257 | G90: 101.7554663 | H90: 101.9323995 | I90: 99.46663248 | K90: -2.474579288 | L90: -4.986180323e-05 | M90: -5.113092958 | N90: -2.385311535 | O90: 1.534965148 | P90: 0.278321928 | Q90: -0.7743266664 | S90: 107.0227313 | T90: 99.80106177 | U90: 102.1567862 | V90: 104.1483464 | W90: 104.7152383 | X90: 102.2018426 | Y90: 97.99517629 | AA90: 109.8993119 | AB90: 100.6404857 | AC90: 107.86008 | AD90: 107.0805408 | AE90: 102.9087106 | AF90: 100.2643351 | AG90: 98.52065346
B91: Febrero | C91: 97.92154809 | D91: 99.12412072 | E91: 93.19193424 | F91: 97.01922573 | G91: 101.362581 | H91: 102.7586574 | I91: 99.6736351 | K91: -1.44979777 | L91: -0.4001835929 | M91: -5.341672671 | N91: -1.996474731 | O91: 1.821600409 | P91: 0.7169863361 | Q91: -0.7292091018 | S91: 107.7292102 | T91: 99.73052824 | U91: 101.0961324 | V91: 104.6744423 | W91: 104.8885735 | X91: 102.7007875 | Y91: 97.78611885 | AA91: 110.0158365 | AB91: 100.6117658 | AC91: 108.4816334 | AD91: 107.8904119 | AE91: 103.4785939 | AF91: 99.9436837 | AG91: 98.10630339
B92: Marzo | C92: 98.71317387 | D92: 99.20782856 | E92: 92.98633042 | F92: 97.65452995 | G92: 102.4373404 | H92: 102.2551343 | I92: 100.1131734 | K92: 0.5731008956 | L92: -0.04238566276 | M92: -4.430648931 | N92: -0.6573597325 | O92: 2.77035575 | P92: -0.1800893288 | Q92: 0.3443587749 | S92: 108.8786076 | T92: 99.86486525 | U92: 101.0318998 | V92: 105.4251822 | W92: 105.7821786 | X92: 102.8313524 | Y92: 98.06126742 | AA92: 110.2979505 | AB92: 100.6622831 | AC92: 108.6524216 | AD92: 107.9572881 | AE92: 103.2652528 | AF92: 100.5635102 | AG92: 97.95041358
B93: Abril | C93: 99.97158397 | D93: 99.39971414 | E93: 91.93678343 | F93: 97.99264401 | G93: 102.9728047 | H93: 104.6066382 | I93: 100.7927708 | K93: 2.398119423 | L93: -0.02885065476 | M93: -5.953176576 | N93: -0.3338542912 | O93: 3.298068081 | P93: 2.470425122 | Q93: 1.204342443 | S93: 109.876644 | T93: 99.88869452 | U93: 99.93232309 | V93: 106.0105898 | W93: 106.397264 | X93: 105.3539705 | Y93: 98.20968603 | AA93: 109.9078755 | AB93: 100.4919334 | AC93: 108.6967799 | AD93: 108.1821915 | AE93: 103.3255958 | AF93: 100.7144215 | AG93: 97.43723207
B94: Mayo | C94: 100.586411 | D94: 99.57414987 | E94: 92.32185209 | F94: 98.32519151 | G94: 103.7554639 | H94: 105.2632465 | I94: 101.4923176 | K94: 2.991715185 | L94: -0.04774721215 | M94: -5.96616617 | N94: 0.4400917579 | O94: 3.888521693 | P94: 3.016202292 | Q94: 1.680515643 | S94: 111.1816066 | T94: 99.99902418 | U94: 100.6185282 | V94: 106.8280608 | W94: 107.6029317 | X94: 105.5955567 | Y94: 98.61225319 | AA94: 110.5334264 | AB94: 100.4266914 | AC94: 108.9866873 | AD94: 108.6477017 | AE94: 103.7082074 | AF94: 100.3156944 | AG94: 97.16228331
B95: Junio | C95: 101.2704385 | D95: 99.11434878 | E95: 92.35800119 | F95: 98.00564788 | G95: 104.9508308 | H95: 105.4222159 | I95: 101.8393946 | K95: 3.511421855 | L95: -0.3307084779 | M95: -5.579013328 | N95: 0.3213566349 | O95: 5.464781505 | P95: 2.584329034 | Q95: 1.409529039 | S95: 112.5892215 | T95: 100.1268024 | U95: 101.163205 | V95: 107.6274836 | W95: 108.9545216 | X95: 105.8257271 | Y95: 98.96837032 | AA95: 111.1767888 | AB95: 101.0215006 | AC95: 109.5337748 | AD95: 109.8176339 | AE95: 103.8148252 | AF95: 100.3827572 | AG95: 97.18083133
B96: Julio | C96: 101.0958321 | D96: 99.23098387 | E96: 91.44517451 | F96: 98.09253545 | G96: 105.9461663 | H96: 105.3238727 | I96: 101.9614965 | K96: 3.658018009 | L96: 0.110729683 | M96: -5.321354923 | N96: 0.9154025795 | O96: 5.942337729 | P96: 2.581847413 | Q96: 2.035401266 | S96: 113.9539601 | T96: 100.321288 | U96: 100.9143732 | V96: 108.5044123 | W96: 110.0973635 | X96: 106.0620841 | Y96: 99.21068392 | AA96: 112.7187518 | AB96: 101.0987537 | AC96: 110.3550556 | AD96: 110.6143417 | AE96: 103.9182137 | AF96: 100.7008966 | AG96: 97.30210655
B97: Agosto | C97: 100.8347767 | D97: 99.81988949 | E97: 90.49039429 | F97: 98.07503385 | G97: 106.0983036 | H97: 104.5948308 | I97: 101.3638888 | K97: 2.934846419 | L97: 0.3917550177 | M97: -6.448965392 | N97: 0.8962688209 | O97: 4.697919133 | P97: 2.223674522 | Q97: 0.533692726 | S97: 114.6652998 | T97: 100.217138 | U97: 99.52652398 | V97: 108.8336593 | W97: 110.0562231 | X97: 105.9219353 | Y97: 98.6868316 | AA97: 113.7160249 | AB97: 100.3979653 | AC97: 109.9857336 | AD97: 110.9697902 | AE97: 103.7304268 | AF97: 101.2688051 | AG97: 97.35896361
B98: Septiembre | C98: 100.9834306 | D98: 99.96529813 | E98: 90.31649961 | F98: 98.12008921 | G98: 106.0793743 | H98: 102.9763536 | I98: 100.8046252 | K98: 2.637370952 | L98: 0.2294641428 | M98: -7.690798567 | N98: 0.8468350724 | O98: 3.765558649 | P98: 1.155385668 | Q98: 0.5185165662 | S98: 115.0366394 | T98: 99.79953936 | U98: 98.80370919 | V98: 108.8251659 | W98: 110.3029283 | X98: 105.5182998 | Y98: 97.83375265 | AA98: 113.9163511 | AB98: 99.83418368 | AC98: 109.3971861 | AD98: 110.9101783 | AE98: 103.9815035 | AF98: 102.4684757 | AG98: 97.05284106
B99: Octubre | C99: 101.3702649 | D99: 99.98248233 | E99: 89.47074784 | F99: 98.17557282 | G99: 106.3980716 | H99: 100.1532677 | I99: 100.4234662 | K99: =(C99/C87-1)*100 -> 2.663481777 | L99: -0.7938940576 | M99: -9.425225332 | N99: 0.863764618 | O99: 4.160374251 | P99: -1.026282629 | Q99: 0.5314495801 | S99: 116.0022882 | T99: 99.75938782 | U99: 97.94587611 | V99: 109.2853839 | W99: 110.5072339 | X99: 105.4064997 | Y99: 97.52710044 | AA99: 114.434236 | AB99: 99.7768664 | AC99: 109.4725131 | AD99: 111.3162682 | AE99: 103.8620647 | AF99: 105.2451927 | AG99: 97.11584765
B100: Noviembre | C100: 101.7007734 | D100: 100.4429074 | E100: 88.18120526 | F100: 98.37060199 | G100: 107.6165382 | H100: 99.88177134 | I100: 101.1294555 | K100: 3.403507841 | L100: 1.14305162 | M100: -9.705384404 | N100: 1.014140205 | O100: 5.821263683 | P100: -1.768319429 | Q100: 1.053785373 | S100: 117.4806527 | T100: 99.94959165 | U100: 96.80874295 | V100: 110.0951454 | W100: 111.4350078 | X100: 105.554089 | Y100: 98.17759627 | AA100: 115.5159875 | AB100: 99.50885954 | AC100: 109.7838736 | AD100: 111.9187472 | AE100: 103.5482182 | AF100: 105.6790319 | AG100: 97.08110837
B101: Diciembre | C101: 102.0345824 | D101: 100.1982095 | E101: 88.27376764 | F101: 98.22762294 | G101: 107.5438422 | H101: 98.13476491 | I101: 101.4135186 | K101: 4.2318218 | L101: -0.02914218045 | M101: -7.561819942 | N101: 1.031552302 | O101: 5.672509584 | P101: -4.21963497 | Q101: 1.254088372 | S101: 118.7959613 | T101: 100.0716188 | U101: 97.42811267 | V101: 110.7733891 | W101: 112.0924325 | X101: 105.6700829 | Y101: 98.23412245 | AA101: 116.4271548 | AB101: 99.87365975 | AC101: 110.3704025 | AD101: 112.7721366 | AE101: 104.2295219 | AF101: 107.6785408 | AG101: 96.86491882
A102: 2003 | B102: Enero | C102: 102.7734243 | D102: 99.26042248 | E102: 89.65744581 | F102: 99.02863095 | G102: 107.8084457 | H102: 95.88575776 | I102: 101.5676244 | K102: 5.535791161 | L102: 0.09529907825 | M102: -5.337083906 | N102: 1.816684796 | O102: 5.948554534 | P102: -5.932011566 | Q102: 2.112258041 | S102: 119.9225174 | T102: 99.81594215 | U102: 99.80783212 | V102: 111.9962124 | W102: 112.9770358 | X102: 105.5283655 | Y102: 98.00466173 | AA102: 116.6863108 | AB102: 100.5596588 | AC102: 111.3212977 | AD102: 113.0947801 | AE102: 104.7942349 | AF102: 110.0563503 | AG102: 96.49202912
B103: Febrero | C103: 103.4935751 | D103: 99.56180873 | E103: 89.68002868 | F103: 98.79428664 | G103: 107.2236877 | H103: 95.94630282 | I103: 102.0347444 | K103: 5.690297082 | L103: 0.441555501 | M103: -3.768465144 | N103: 1.829597062 | O103: 5.782317958 | P103: -6.629470207 | Q103: 2.368840373 | S103: 120.9205437 | T103: 99.66289981 | U103: 99.88793873 | V103: 112.4449792 | W103: 113.3605024 | X103: 109.0061376 | Y103: 97.82388993 | AA103: 116.8386961 | AB103: 100.101536 | AC103: 111.3825901 | AD103: 113.8172895 | AE103: 105.7233759 | AF103: 113.6116082 | AG103: 95.87311704
B104: Marzo | C104: 104.4407667 | D104: 99.92533216 | E104: 90.68570362 | F104: 99.53085229 | G104: 108.3783628 | H104: 118.686442 | I104: 102.5976854 | K104: 5.802257797 | L104: 0.7232328499 | M104: -2.474155916 | N104: 1.921387914 | O104: 5.799664841 | P104: 16.06893172 | Q104: 2.481703382 | S104: 122.1109061 | T104: 99.73591082 | U104: 100.8526029 | V104: 113.0612946 | W104: 114.1921312 | X104: 136.4123794 | Y104: 97.87189025 | AA104: 116.9188143 | AB104: 99.81043712 | AC104: 111.2111379 | AD104: 113.5942193 | AE104: 105.3643257 | AF104: 114.9350989 | AG104: 95.3938579
B105: Abril | C105: 104.6516041 | D105: 100.1711901 | E105: 90.72057357 | F105: 99.73668247 | G105: 109.5397639 | H105: 124.083484 | I105: 103.0918139 | K105: 4.681350369 | L105: 0.7761349737 | M105: -1.322876235 | N105: 1.77976468 | O105: 6.377372442 | P105: 18.61912984 | Q105: 2.280960229 | S105: 123.6446219 | T105: 100.0790229 | U105: 101.4375599 | V105: 113.9971747 | W105: 115.2722279 | X105: 143.1882191 | Y105: 98.32912537 | AA105: 118.1488072 | AB105: 99.9079903 | AC105: 111.8131819 | AD105: 114.2981418 | AE105: 105.2332265 | AF105: 115.3966785 | AG105: 95.38014872
B106: Mayo | C106: 106.1512778 | D106: 100.9282049 | E106: 91.59848987 | F106: 101.0686362 | G106: 110.8911887 | H106: 132.9454222 | I106: 104.7799347 | K106: 5.532424 | L106: 1.359845913 | M106: -0.7835222155 | N106: 2.790174811 | O106: 6.8774448 | P106: 26.29804476 | Q106: 3.239276769 | S106: 126.2435285 | T106: 100.8580858 | U106: 102.8308038 | V106: 115.8429378 | W106: 117.7375771 | X106: 155.4497614 | Y106: 99.81451149 | AA106: 118.9279405 | AB106: 99.9305258 | AC106: 112.2625536 | AD106: 114.6180874 | AE106: 106.1739697 | AF106: 116.9275021 | AG106: 95.26109345
B107: Junio | C107: 106.5072314 | D107: 100.6205241 | E107: 91.50223251 | F107: 101.2683081 | G107: 110.1795579 | H107: 142.8497058 | I107: 104.8254775 | K107: 5.171097249 | L107: 1.519633999 | M107: -0.9265777446 | N107: 3.329053248 | O107: 4.982073066 | P107: 35.50246927 | Q107: 2.932149099 | S107: 127.4513605 | T107: 100.8168334 | U107: 102.9954935 | V107: 116.357492 | W107: 118.2222671 | X107: 175.4909038 | Y107: 99.92891239 | AA107: 119.6645137 | AB107: 100.1950987 | AC107: 112.5606346 | AD107: 114.9002034 | AE107: 107.2996383 | AF107: 122.8500282 | AG107: 95.32884061
B108: Julio | C108: 106.2262383 | D108: 100.9056752 | E108: 91.07642393 | F108: 101.0271127 | G108: 110.6634531 | H108: 164.0345082 | I108: 104.3010197 | K108: 5.07479495 | L108: 1.687669734 | M108: -0.4032477278 | N108: 2.991641784 | O108: 4.452531866 | P108: 55.74295177 | Q108: 2.294516352 | S108: 128.077965 | T108: 100.6518424 | U108: 102.7458128 | V108: 116.4572605 | W108: 118.5978132 | X108: 208.7451754 | Y108: 99.5072437 | AA108: 120.5709316 | AB108: 99.74844553 | AC108: 112.8127438 | AD108: 115.273274 | AE108: 107.1698107 | AF108: 127.2568666 | AG108: 95.40390308
B109: Agosto | C109: 106.465868 | D109: 100.5825088 | E109: 90.64462265 | F109: 100.362464 | G109: 110.2025813 | H109: 155.9572632 | I109: 104.0104613 | K109: 5.584473403 | L109: 0.7639953928 | M109: 0.1704361682 | N109: 2.332326666 | O109: 3.86837262 | P109: 49.10609068 | Q109: 2.610961879 | S109: 128.456337 | T109: 100.2897557 | U109: 102.1860296 | V109: 116.3257421 | W109: 117.6405679 | X109: 203.7634269 | Y109: 99.00541074 | AA109: 120.6549474 | AB109: 99.70894225 | AC109: 112.7325887 | AD109: 115.9056259 | AE109: 106.749376 | AF109: 130.6533743 | AG109: 95.18793545
B110: Septiembre | C110: 107.8680272 | D110: 101.0177445 | E110: 91.59924618 | F110: 101.0526433 | G110: 111.7830056 | H110: 145.3199017 | I110: 105.0588116 | K110: 6.817550721 | L110: 1.052811686 | M110: 1.420279317 | N110: 2.988739703 | O110: 5.376758016 | P110: 41.11968105 | Q110: 4.220229416 | S110: 129.8402695 | T110: 100.4261416 | U110: 103.2570207 | V110: 117.2218576 | W110: 119.1643735 | X110: 191.9862847 | Y110: 99.45623185 | AA110: 120.3695597 | AB110: 99.41435747 | AC110: 112.7269329 | AD110: 116.0007831 | AE110: 106.6033007 | AF110: 132.1128644 | AG110: 94.66719671
B111: Octubre | C111: 108.1532765 | D111: 100.9174418 | E111: 92.88210768 | F111: 101.6455427 | G111: 113.1660708 | H111: 156.5950311 | I111: 106.0537189 | K111: 6.691322703 | L111: 0.9351233286 | M111: 3.81282142 | N111: 3.534453382 | O111: 6.36101681 | P111: 56.35538869 | Q111: 5.606511054 | S111: 131.7157959 | T111: 100.686193 | U111: 105.1215167 | V111: 118.4459373 | W111: 121.104138 | X111: 212.3053944 | Y111: 100.0974282 | AA111: 121.7862281 | AB111: 99.77085345 | AC111: 113.1773593 | AD111: 116.5284125 | AE111: 107.0145293 | AF111: 135.5760735 | AG111: 94.38370405
B112: Noviembre | C112: 107.422573 | D112: 100.691774 | E112: 92.2074103 | F112: 101.2725119 | G112: 112.4585497 | H112: 167.8391684 | I112: 105.903914 | K112: 5.626112167 | L112: 0.2477691566 | M112: 4.565831262 | N112: 2.949976785 | O112: 4.499319102 | P112: 68.03783732 | Q112: 4.721135399 | S112: 132.8393556 | T112: 100.6802967 | U112: 104.8773243 | V112: 118.9278574 | W112: 121.4111307 | X112: 241.6160669 | Y112: 100.1471655 | AA112: 123.6605603 | AB112: 99.98860163 | AC112: 113.7406679 | AD112: 117.4335021 | AE112: 107.9607829 | AF112: 143.9569018 | AG112: 94.56417777
B113: Diciembre | C113: 107.7634685 | D113: 100.7688885 | E113: 91.58290639 | F113: 102.0136465 | G113: 112.8596577 | H113: 153.0862817 | I113: 107.0185724 | K113: 5.614651291 | L113: 0.5695500743 | M113: 3.748722682 | N113: 3.854336948 | O113: 4.942928759 | P113: 55.99597335 | Q113: 5.526929651 | S113: 134.8898435 | T113: 100.9778594 | U113: 104.6892032 | V113: 120.1112371 | W113: 122.7006195 | X113: 228.5515826 | Y113: 100.9124394 | AA113: 125.1721436 | AB113: 100.2073764 | AC113: 114.3108549 | AD113: 117.7403624 | AE113: 108.7196453 | AF113: 149.2959265 | AG113: 94.29432396
A114: 2004 | B114: Enero | C114: 108.1064871 | D114: 100.3749365 | E114: 91.90604203 | F114: 102.6396111 | G114: 112.4909519 | H114: 176.6312774 | I114: 107.5773976 | K114: 5.189145772 | L114: 1.122818176 | M114: 2.507986033 | N114: 3.646400115 | O114: 4.343357464 | P114: 84.2101283 | Q114: 5.917016582 | S114: 137.0296114 | T114: 101.1419568 | U114: 106.2960809 | V114: 121.1887966 | W114: 123.2230467 | X114: 280.0452698 | Y114: 101.4840239 | AA114: 126.7542911 | AB114: 100.7641551 | AC114: 115.6573371 | AD114: 118.072151 | AE114: 109.5404072 | AF114: 158.5479503 | AG114: 94.33582345
B115: Febrero | C115: 107.9096854 | D115: 100.3263224 | E115: 91.5478497 | F115: 102.2423365 | G115: 111.6320279 | H115: 170.2838507 | I115: 107.9995788 | K115: =(C115/C103-1)*100 -> 4.267038089 | L115: 0.7678784751 | M115: 2.082761396 | N115: 3.490130788 | O115: 4.11134916 | P115: 77.4782828 | Q115: 5.845885583 | S115: 137.9159419 | T115: 101.0307281 | U115: 106.1696016 | V115: 121.5365917 | W115: 123.2882775 | X115: 298.8386524 | Y115: 101.4005386 | AA115: 127.8068242 | AB115: 100.7021145 | AC115: 115.9717043 | AD115: 118.8711017 | AE115: 110.4416715 | AF115: 175.4944179 | AG115: 93.88975376
B116: Marzo | C116: 108.4007377 | D116: 100.1172571 | E116: 91.17847543 | F116: 102.4968559 | G116: 111.683901 | H116: 158.0583518 | I116: 108.489432 | K116: 3.791595124 | L116: 0.1920683589 | M116: 0.5433842307 | N116: 2.979984094 | O116: 3.04999826 | P116: 33.17304751 | Q116: 5.742572546 | S116: 138.3469333 | T116: 100.847877 | U116: 105.8438198 | V116: 121.5487129 | W116: 123.2567888 | X116: 282.0623816 | Y116: 101.0514644 | AA116: 127.6254537 | AB116: 100.7297642 | AC116: 116.0842176 | AD116: 118.5877478 | AE116: 110.3621809 | AF116: 178.4545887 | AG116: 93.14406254
B117: Abril | C117: 108.1319389 | D117: 99.36217197 | E117: 90.11904019 | F117: 101.792317 | G117: 110.9471222 | H117: 150.0332331 | I117: 108.5733877 | K117: 3.32563922 | L117: -0.8076355236 | M117: -0.6630617038 | N117: 2.061061655 | O117: 1.284792151 | P117: 20.91313707 | Q117: 5.317176595 | S117: 138.7998727 | T117: 100.6169615 | U117: 104.8671848 | V117: 121.598886 | W117: 123.0908746 | X117: 268.5999464 | Y117: 100.8149556 | AA117: 128.3615869 | AB117: 101.2628443 | AC117: 116.3651816 | AD117: 119.4578232 | AE117: 110.9455316 | AF117: 179.0269668 | AG117: 92.85420469
B118: Mayo | C118: 108.1741148 | D118: 98.76470883 | E118: 88.51895901 | F118: 101.3017233 | G118: 109.9969782 | H118: 154.853543 | I118: 107.756354 | K118: 1.905617229 | L118: -2.143599051 | M118: -3.361988676 | N118: 0.2306225442 | O118: -0.806385542 | P118: 16.47903361 | Q118: 2.840638653 | S118: 139.1617173 | T118: 100.2239377 | U118: 103.4410761 | V118: 121.4029336 | W118: 122.6651979 | X118: 283.0808888 | Y118: 99.94050355 | AA118: 128.6460421 | AB118: 101.4774801 | AC118: 116.857538 | AD118: 119.8429105 | AE118: 111.5168797 | AF118: 182.8055615 | AG118: 92.7467382
B119: Junio | C119: 108.4457844 | D119: 99.08554775 | E119: 88.18549054 | F119: 101.6995281 | G119: 110.89566 | H119: 156.5386927 | I119: 108.0636296 | K119: 1.820114021 | L119: -1.52551021 | M119: -3.624766166 | N119: 0.4258193596 | O119: 0.6499410034 | P119: 9.582789745 | Q119: 3.08908878 | S119: 140.6734166 | T119: 100.4327987 | U119: 103.2370842 | V119: 122.3374186 | W119: 123.8043174 | X119: 291.0579763 | Y119: 100.3705135 | AA119: 129.7177363 | AB119: 101.3596846 | AC119: 117.0681067 | AD119: 120.2930052 | AE119: 111.640363 | AF119: 185.9335678 | AG119: 92.88093861
B120: Julio | C120: 107.9954489 | D120: 98.76523998 | E120: 87.32763222 | F120: 100.9023522 | G120: 110.5552518 | H120: 145.0713677 | I120: 108.2218031 | K120: 1.665511898 | L120: -2.121223773 | M120: -4.11609453 | N120: -0.12349213 | O120: -0.09777505073 | P120: -11.56045803 | Q120: 3.75910366 | S120: 142.0745297 | T120: 100.5429461 | U120: 102.7818808 | V120: 123.1046327 | W120: 124.3014906 | X120: 271.7185549 | Y120: 100.7129689 | AA120: 131.5560342 | AB120: 101.7999309 | AC120: 117.6968598 | AD120: 122.0037293 | AE120: 112.433818 | AF120: 187.2999195 | AG120: 93.06162528
B121: Agosto | C121: 107.9304233 | D121: 98.69770249 | E121: 87.44098549 | F121: 101.2032129 | G121: 110.872741 | H121: 132.9252457 | I121: 108.1614389 | K121: 1.37561021 | L121: -1.87389078 | M121: -3.534282637 | N121: 0.8377124518 | O121: 0.6081161034 | P121: -14.76815957 | Q121: 3.990923172 | S121: 143.144584 | T121: 100.5714965 | U121: 103.016802 | V121: 123.7099093 | W121: 124.6989515 | X121: 250.0191385 | Y121: 100.7977617 | AA121: 132.6267234 | AB121: 101.8985184 | AC121: 117.8129471 | AD121: 122.2391125 | AE121: 112.4703424 | AF121: 188.0900329 | AG121: 93.19195711
B122: Septiembre | C122: 108.3981714 | D122: 98.8213207 | E122: 86.99607042 | F122: 101.9181355 | G122: 110.7807777 | H122: 120.9049729 | I122: 108.9470131 | K122: 0.4914748326 | L122: -2.174295011 | M122: -5.025342401 | N122: 0.8564765376 | O122: -0.8965834092 | P122: -16.80081567 | Q122: 3.700976059 | S122: 144.4966005 | T122: 100.6456301 | U122: 102.9969388 | V122: 124.419987 | W122: 124.9320012 | X122: 224.2117266 | Y122: 101.0615728 | AA122: 133.3016956 | AB122: 101.8460686 | AC122: 118.3926335 | AD122: 122.0783587 | AE122: 112.7740785 | AF122: 185.4445861 | AG122: 92.76213264
B123: Octubre | C123: 109.4833852 | D123: 99.14617047 | E123: 86.10517732 | F123: 102.441688 | G123: 110.709464 | H123: 104.9696561 | I123: 109.7829559 | K123: 1.229836706 | L123: -1.755168725 | M123: -7.29627107 | N123: 0.7832564922 | O123: -2.170797956 | P123: -32.96744132 | Q123: 3.516366081 | S123: 146.3505693 | T123: 100.8964437 | U123: 102.4705916 | V123: 125.5470217 | W123: 125.9423209 | X123: 196.3243385 | Y123: 101.4875254 | AA123: 133.6737707 | AB123: 101.7653462 | AC123: 119.0063069 | AD123: 122.5546203 | AE123: 113.7593086 | AF123: 187.0296101 | AG123: 92.44379019
B124: Noviembre | C124: 109.889416 | D124: 99.67314624 | E124: 85.42679025 | F124: 102.8722324 | G124: 111.2125321 | H124: 98.38976315 | I124: 111.0952824 | K124: 2.296391725 | L124: -1.011629522 | M124: -7.353660655 | N124: 1.579619624 | O124: -1.107979421 | P124: -41.37854467 | Q124: 4.901960867 | S124: 148.8574415 | T124: 101.3694554 | U124: 102.6185956 | V124: 127.0587481 | W124: 127.4437864 | X124: 180.8459369 | Y124: 102.6311814 | AA124: 135.4611271 | AB124: 101.7018718 | AC124: 120.1246065 | AD124: 123.5112189 | AE124: 114.5948069 | AF124: 183.8056431 | AG124: 92.38122372
B125: Diciembre | C125: 110.1816082 | D125: 99.6582998 | E125: 85.45526214 | F125: 103.2918899 | G125: 112.1683573 | H125: 97.7393706 | I125: 111.5670346 | K125: 2.243932704 | L125: -1.102114641 | M125: -6.690816542 | N125: 1.253012207 | O125: -0.6125310327 | P125: -36.15406325 | Q125: 4.250161568 | S125: 151.161562 | T125: 101.7705091 | U125: 103.4440288 | V125: 128.3091112 | W125: 128.5870575 | X125: 177.3756477 | Y125: 103.6281714 | AA125: 137.1930983 | AB125: 102.1194515 | AC125: 121.0505078 | AD125: 124.2199279 | AE125: 114.6375508 | AF125: 181.4781972 | AG125: 92.8842213
A126: 2005 | B126: Enero | C126: 107.7062242 | D126: 98.14450502 | E126: 83.61979988 | F126: 103.1523107 | G126: 111.7570978 | H126: 99.10038738 | I126: 109.2821279 | K126: -0.3702487608 | L126: -2.222100057 | M126: -9.015992823 | N126: 0.499514439 | O126: -0.6523672044 | P126: -43.89420218 | Q126: 1.584654757 | S126: 151.6472096 | T126: 101.6623037 | U126: 102.8527333 | V126: 129.6508542 | W126: 128.2243766 | X126: 182.8007916 | Y126: 103.536468 | AA126: 140.7970716 | AB126: 103.5843053 | AC126: 123.0004538 | AD126: 125.6887541 | AE126: 114.7348841 | AF126: 184.460219 | AG126: 94.7423608
B127: Febrero | C127: 107.9071561 | D127: 98.66092019 | E127: 83.09290277 | F127: 102.8427488 | G127: 112.2592028 | H127: 96.38721715 | I127: 109.3920761 | K127: -0.002343879826 | L127: -1.659985331 | M127: -9.235549449 | N127: 0.5872443096 | O127: 0.5618234913 | P127: -43.39614897 | Q127: 1.289354327 | S127: 152.7155901 | T127: 101.7303718 | U127: 102.3828442 | V127: 130.1043385 | W127: 129.6661789 | X127: 176.8383326 | Y127: 103.6002128 | AA127: 141.5249883 | AB127: 103.1111119 | AC127: 123.2149086 | AD127: 126.508033 | AE127: 115.5060571 | AF127: 183.4665818 | AG127: 94.70540877
B128: Marzo | C128: 108.5153292 | D128: 99.29527356 | E128: 82.23416375 | F128: 103.0980902 | G128: 112.2873598 | H128: 95.30031964 | I128: 109.3487508 | K128: 0.105711 | L128: -0.8210208446 | M128: -9.809674535 | N128: 0.5865880501 | O128: 0.540327442 | P128: -39.70560962 | Q128: 0.7920761151 | S128: 153.8809601 | T128: 101.7365213 | U128: 101.1514019 | V128: 130.5554538 | W128: 130.2527682 | X128: 173.4860662 | Y128: 103.6075439 | AA128: 141.8057349 | AB128: 102.4585739 | AC128: 123.0041108 | AD128: 126.6322718 | AE128: 115.9994931 | AF128: 182.0414316 | AG128: 94.74963651
B129: Abril | C129: 108.4905074 | D129: 99.34939876 | E129: 81.9301681 | F129: 102.6950575 | G129: 111.0693641 | H129: 95.31615237 | I129: 109.4075114 | K129: 0.3316028031 | L129: -0.01285519946 | M129: -9.08672804 | N129: 0.8868454606 | O129: 0.1101803598 | P129: -36.46997374 | Q129: 0.7682580005 | S129: 154.5057895 | T129: 101.6917973 | U129: 100.9054224 | V129: 130.501255 | W129: 130.406006 | X129: 173.0271961 | Y129: 103.4361153 | AA129: 142.414109 | AB129: 102.357738 | AC129: 123.1602775 | AD129: 127.076471 | AE129: 117.4095188 | AF129: 181.5297741 | AG129: 94.54206025
B130: Mayo | C130: 107.6303345 | D130: 98.63004773 | E130: 81.39999425 | F130: 102.3699105 | G130: 110.8121989 | H130: 97.11958386 | I130: 109.8110531 | K130: -0.5026898826 | L130: -0.1363453686 | M130: -8.042305107 | N130: 1.054460986 | O130: 0.7411300609 | P130: -37.28294363 | Q130: 1.906800839 | S130: 155.4287322 | T130: 101.7536386 | U130: 100.8227069 | V130: 130.6262261 | W130: 131.2500633 | X130: 175.8238551 | Y130: 103.5234244 | AA130: 144.4097827 | AB130: 103.166977 | AC130: 123.8608281 | AD130: 127.602169 | AE130: 118.4436954 | AF130: 181.0385178 | AG130: 94.27413862
B131: Junio | C131: 107.2255299 | D131: 98.41927845 | E131: 80.84201728 | F131: 101.0805225 | G131: 109.6887238 | H131: 97.51072504 | I131: 109.0867181 | K131: =(C131/C119-1)*100 -> -1.12522082 | L131: -0.6724182456 | M131: -8.327303302 | N131: -0.608661238 | O131: -1.088352974 | P131: -37.70822833 | Q131: 0.9467463951 | S131: 155.5702172 | T131: 101.5531991 | U131: 100.8218832 | V131: 129.8673902 | W131: 130.9444398 | X131: 176.5613208 | Y131: 102.9535984 | AA131: 145.0869186 | AB131: 103.1842548 | AC131: 124.7147048 | AD131: 128.4791441 | AE131: 119.3782143 | AF131: 181.0686165 | AG131: 94.37775763
B132: Julio | C132: 106.7860524 | D132: 98.63886637 | E132: 80.02280169 | F132: 100.4565883 | G132: 109.9403962 | H132: 97.30528831 | I132: 108.7520199 | K132: -1.119858777 | L132: -0.1279535309 | M132: -8.364855832 | N132: -0.4417775242 | O132: -0.5561523261 | P132: -32.9259179 | Q132: 0.4899353146 | S132: 156.4444805 | T132: 101.5527683 | U132: 100.3780017 | V132: 129.8018409 | W132: 131.9606874 | X132: 176.5724201 | Y132: 102.7392781 | AA132: 146.5027286 | AB132: 102.9541113 | AC132: 125.4367501 | AD132: 129.2118746 | AE132: 120.0292995 | AF132: 181.4623061 | AG132: 94.47114467
B133: Agosto | C133: 107.0816638 | D133: 99.03477459 | E133: 80.35979857 | F133: 100.5290958 | G133: 110.7145769 | H133: 96.93553413 | I133: 109.7176728 | K133: -0.7863950364 | L133: 0.3415197004 | M133: -8.09824693 | N133: -0.6661024441 | O133: -0.142653715 | P133: -27.07515145 | Q133: 1.438806608 | S133: 158.2211529 | T133: 101.7874691 | U133: 100.7706735 | V133: 130.4391705 | W133: 133.3002357 | X133: 177.472269 | Y133: 103.2780833 | AA133: 147.7574658 | AB133: 102.7795232 | AC133: 125.3993605 | AD133: 129.7526547 | AE133: 120.3998962 | AF133: 183.0827783 | AG133: 94.13076366
B134: Septiembre | C134: 108.5898463 | D134: 99.66622536 | E134: 80.73383298 | F134: 101.1183058 | G134: 111.3067438 | H134: 99.54581567 | I134: 109.7359427 | K134: 0.1768248433 | L134: 0.8549821581 | M134: -7.198299201 | N134: -0.7847765982 | O134: 0.4747809917 | P134: -17.66607007 | Q134: 0.7241406983 | S134: 159.2114526 | T134: 101.7767593 | U134: 101.1186528 | V134: 130.4508751 | W134: 133.7731632 | X134: 186.2313008 | Y134: 103.2755897 | AA134: 146.6172557 | AB134: 102.117602 | AC134: 125.2494141 | AD134: 129.0081693 | AE134: 120.1842392 | AF134: 187.0809934 | AG134: 94.11281945
B135: Octubre | C135: 107.7698553 | D135: 97.82014984 | E135: 79.76561054 | F135: 100.8982977 | G135: 110.3997613 | H135: 104.8853411 | I135: 108.8306737 | K135: -1.565104962 | L135: -1.337440086 | M135: -7.3625849 | N135: -1.506603758 | O135: -0.27974364 | P135: -0.08032316351 | Q135: -0.8674226928 | S135: 159.6208775 | T135: 101.5848368 | U135: 101.4709962 | V135: 129.971941 | W135: 133.629897 | X135: 197.9714723 | Y135: 102.7998295 | AA135: 148.1127326 | AB135: 103.8485803 | AC135: 127.2114581 | AD135: 128.8148006 | AE135: 121.041835 | AF135: 188.7503727 | AG135: 94.45850701
B136: Noviembre | C136: 105.8856431 | D136: 98.42607444 | E136: 78.60060077 | F136: 99.96386438 | G136: 110.594811 | H136: 107.7898535 | I136: 108.6316133 | K136: -3.643456363 | L136: -1.25116127 | M136: -7.990689408 | N136: -2.827165247 | O136: -0.5554420033 | P136: 9.553931258 | Q136: -2.217618162 | S136: 160.2167221 | T136: 101.5264571 | U136: 100.5545811 | V136: 129.6693312 | W136: 133.9772735 | X136: 202.9472336 | Y136: 102.5118531 | AA136: 151.3110912 | AB136: 103.1499607 | AC136: 127.9310592 | AD136: 129.7162049 | AE136: 121.142459 | AF136: 188.2804615 | AG136: 94.36650163
B137: Diciembre | C137: 105.4599539 | D137: 98.33617314 | E137: 78.68147485 | F137: 99.50609741 | G137: 110.4586065 | H137: 106.1482361 | I137: 108.1607212 | K137: -4.285337974 | L137: -1.32665986 | M137: -7.926705889 | N137: -3.665140154 | O137: -1.524271918 | P137: 8.603355458 | Q137: -3.053154061 | S137: 161.393731 | T137: 101.558962 | U137: 100.7559314 | V137: 129.8036167 | W137: 134.313562 | X137: 202.2379219 | Y137: 102.5666473 | AA137: 153.0379306 | AB137: 103.2773177 | AC137: 128.0554688 | AD137: 130.4479022 | AE137: 121.5962851 | AF137: 190.5240533 | AG137: 94.82799867
A138: 2006 | B138: Enero | C138: 106.0615901 | D138: 99.32250689 | E138: 78.96543469 | F138: 100.3290099 | G138: 111.1745427 | H138: 109.9896474 | I138: 109.9317439 | K138: -1.52696291 | L138: 1.200272872 | M138: -5.566104201 | N138: -2.737021372 | O138: -0.5212689311 | P138: 10.98811047 | Q138: 0.5944393669 | S138: 163.4416941 | T138: 102.1059365 | U138: 101.3441851 | V138: 130.4591036 | W138: 135.9794567 | X138: 211.4881811 | Y138: 103.6868758 | AA138: 154.1007389 | AB138: 102.8024158 | AC138: 128.3399319 | AD138: 130.0312877 | AE138: 122.3116852 | AF138: 192.2800791 | AG138: 94.31932228
B139: Febrero | C139: 105.9351248 | D139: 99.12976319 | E139: 79.07899957 | F139: 99.76228606 | G139: 110.4616754 | H139: 109.1857993 | I139: 110.3933499 | K139: -1.827525964 | L139: 0.4752063901 | M139: -4.830620989 | N139: -2.995313462 | O139: -1.601229448 | P139: 13.27829823 | Q139: 0.9153074516 | S139: 164.3185311 | T139: 102.1964402 | U139: 101.2534343 | V139: 130.3499936 | W139: 136.7724467 | X139: 209.1892777 | Y139: 103.7002875 | AA139: 155.1124157 | AB139: 103.0935987 | AC139: 128.040864 | AD139: 130.660592 | AE139: 123.8189138 | AF139: 191.5901876 | AG139: 93.93707828
B140: Marzo | C140: 106.7686592 | D140: 99.11862282 | E140: 78.99854856 | F140: 99.97740775 | G140: 110.1929676 | H140: 104.4190441 | I140: 110.4318356 | K140: -1.609606674 | L140: -0.1779044828 | M140: -3.93463622 | N140: -3.026906137 | O140: -1.865207466 | P140: 9.568409065 | Q140: 0.9904866555 | S140: 165.2412577 | T140: 102.0788834 | U140: 101.2067989 | V140: 130.3085544 | W140: 136.8808588 | X140: 199.2626953 | Y140: 103.673913 | AA140: 154.7656952 | AB140: 102.9865836 | AC140: 128.1122258 | AD140: 130.3380007 | AE140: 124.2192327 | AF140: 190.8298406 | AG140: 93.88045797
B141: Abril | C141: 107.7653726 | D141: 99.17153675 | E141: 78.63589697 | F141: 100.3119396 | G141: 109.6480475 | H141: 103.121256 | I141: 109.9953085 | K141: -0.6683854642 | L141: -0.1790267665 | M141: -4.020827983 | N141: -2.320577033 | O141: -1.279665827 | P141: 8.188647451 | Q141: 0.5372548379 | S141: 166.4142617 | T141: 102.0993997 | U141: 100.9253157 | V141: 130.5498295 | W141: 137.3459762 | X141: 196.5211998 | Y141: 103.7991893 | AA141: 154.422759 | AB141: 102.9523219 | AC141: 128.3450938 | AD141: 130.1438593 | AE141: 125.2607588 | AF141: 190.5729306 | AG141: 94.36692409
B142: Mayo | C142: 107.621831 | D142: 99.73947293 | E142: 78.65982106 | F142: 100.7215921 | G142: 110.2346636 | H142: 104.5539626 | I142: 111.1711475 | K142: -0.007900593798 | L142: 1.124834911 | M142: -3.366306366 | N142: -1.610158986 | O142: -0.521183874 | P142: 7.654870844 | Q142: 1.238576984 | S142: 168.2739302 | T142: 102.4401042 | U142: 101.2602582 | V142: 131.4929008 | W142: 138.9836728 | X142: 199.5821793 | Y142: 104.4681966 | AA142: 156.3566877 | AB142: 102.7076855 | AC142: 128.7318695 | AD142: 130.5508561 | AE142: 126.0798267 | AF142: 190.8891585 | AG142: 93.97060206
B143: Junio | C143: 106.5764002 | D143: 98.55111513 | E143: 78.05663161 | F143: 99.96523984 | G143: 109.573384 | H143: 104.2329057 | I143: 110.0597849 | K143: -0.6053872143 | L143: 0.1339541241 | M143: -3.445467796 | N143: -1.103360634 | O143: -0.1051518845 | P143: 6.893785923 | Q143: 0.8920121523 | S143: 168.0921112 | T143: 101.9264842 | U143: 100.9869186 | V143: 130.7373583 | W143: 138.5555884 | X143: 200.1918338 | Y143: 103.5160976 | AA143: 157.7198244 | AB143: 103.4249933 | AC143: 129.3764751 | AD143: 130.7828186 | AE143: 126.4500404 | AF143: 192.0620293 | AG143: 94.05442482
B144: Julio | C144: 106.6671867 | D144: 97.90444382 | E144: 77.89828773 | F144: 99.94183985 | G144: 110.0062491 | H144: 103.7489156 | I144: 110.6427595 | K144: -0.1113119575 | L144: -0.744556971 | M144: -2.654885745 | N144: -0.5124088337 | O144: 0.05989867854 | P144: 6.622073076 | Q144: 1.738578766 | S144: 169.5449775 | T144: 102.2930993 | U144: 101.0265062 | V144: 131.1728827 | W144: 139.6549467 | X144: 200.5789982 | Y144: 103.8893258 | AA144: 158.9476414 | AB144: 104.4825907 | AC144: 129.6902784 | AD144: 131.2492174 | AE144: 126.9518303 | AF144: 193.3311756 | AG144: 93.8961811
B145: Agosto | C145: 106.9515302 | D145: 98.90143309 | E145: 78.03432369 | F145: 100.1635882 | G145: 111.111043 | H145: 103.7954742 | I145: 111.3754463 | K145: -0.1215274557 | L145: -0.1346410849 | M145: -2.893828658 | N145: -0.3635839349 | O145: 0.3580975046 | P145: 7.076806341 | Q145: 1.510944788 | S145: 171.0845365 | T145: 102.549499 | U145: 101.2762153 | V145: 131.6421659 | W145: 140.9208226 | X145: 200.5842518 | Y145: 104.409044 | AA145: 159.9645523 | AB145: 103.6885875 | AC145: 129.7841904 | AD145: 131.4271666 | AE145: 126.828818 | AF145: 193.2495164 | AG145: 93.74511841
B146: Septiembre | C146: 107.2897677 | D146: 98.55350471 | E146: 78.35005202 | F146: 99.73426633 | G146: 111.3966307 | H146: 105.5529047 | I146: 111.3821305 | K146: -1.19723771 | L146: -1.116447063 | M146: -2.952641878 | N146: -1.368732829 | O146: 0.08075610872 | P146: 6.034496816 | Q146: 1.50013541 | S146: 171.6437876 | T146: 102.4041295 | U146: 101.4753805 | V146: 131.3687749 | W146: 140.7799985 | X146: 202.2835846 | Y146: 104.1840583 | AA146: 159.9815073 | AB146: 103.9071414 | AC146: 129.5153965 | AD146: 131.7187961 | AE146: 126.37725 | AF146: 191.6418929 | AG146: 93.53749823
